Workbook

Sheet Resumo
A1: Ministério da Integração e do Desenvolvimento Regional
A2: Companhia de Desenvolvimento dos Vales do São Francisco e do Parnaíba
A4: PLANILHA RESUMO
A5: OBRA: | B5: Contratação de empresa para execução de manutenção e recuperação nas barragens de Itapicuru, Marcado dos Pereiras e Marcado Grande no estado de Alagoas. | E5: BDI (serv.): | F5: ='BDI serv'!D23 -> 0.2321 | G5: Bancos de dados:
A6: LOCAL: | B6: Barragens de Alagoas | E6: BDI (forn.): | F6: ='BDI forn'!D23 -> 0.1469 | G6: AGO/25 - SINAPI
A7: DATA BASE: | B7: 2025-10-07 | C7: Encargos sociais - Horistas: | F7: ='Encargos Sociais'!E49 -> 1.1441 | G7: JUL/25 - ORSE
A8: PRAZO: | B8: 150 dias | C8: Encargos sociais - Mensalista: | F8: ='Encargos Sociais'!F49 -> 0.7012 | G8: JUL/2025 - SICRO3
E9: Desconto: | F9: 0 | G9: JUN/25 - EMBASA
G10: 028 - SEINFRA
A11: ITEM | B11: DESCRIÇÃO | C11: UNID. | D11: QUANT. | E11: CUSTO UNITÁRIO | F11: PREÇO UNITÁRIO | G11: PREÇO TOTAL
A13: 1 | B13: BARRAGENS ALAGOAS | G13: =SUM(G14:G16) -> 1010026.33
A14: 1.1 | B14: Itapicuru | C14: unid. | D14: 1 | E14: =ITAPICURU!I91 -> 297165.44 | F14: =ITAPICURU!I93 -> 366089.42 | G14: =TRUNC(D14*F14,2) -> 366089.42
A15: 1.2 | B15: Marcado dos Pereiras | C15: unid. | D15: 1 | E15: ='MARCADO DOS PEREIRAS'!I77 -> 268765.89 | F15: ='MARCADO DOS PEREIRAS'!I79 -> 331108.83 | G15: =TRUNC(D15*F15,2) -> 331108.83
A16: 1.3 | B16: Marcado Grande | C16: unid. | D16: 1 | E16: ='MARCADO GRANDE'!I80 -> 253931.09 | F16: ='MARCADO GRANDE'!I82 -> 312828.08 | G16: =TRUNC(D16*F16,2) -> 312828.08
B18: TOTAL (Custo): | G18: =SUMPRODUCT(D13:D17,E13:E17) -> 819862.42
B19: BDI e Encargos Sociais: | G19: =G20-G18 -> 190163.91
B20: TOTAL GERAL COM BDI: | G20: =SUMPRODUCT(D13:D17,F13:F17) -> 1010026.33

Sheet ITAPICURU
A1: Ministério da Integração e do Desenvolvimento Regional
A2: Companhia de Desenvolvimento dos Vales do São Francisco e do Parnaíba
A4: PLANILHA ORÇAMENTÁRIA - ORÇAMENTO NÃO DESONERADO
A5: OBRA: | B5: =Resumo!B5 -> Contratação de empresa para execução de manutenção e recuperação nas barragens de Itapicuru, Marcado dos Pereiras e Marcado Grande no estado de Alagoas. | G5: BDI (serv.): | H5: ='BDI serv'!D23 -> 0.2321 | I5: Bancos de dados:
A6: LOCAL: | B6: Barragem Itapicuru, localizada no município de Campo Grande - AL | G6: BDI (forn.): | H6: ='BDI forn'!D23 -> 0.1469 | I6: =Resumo!G6 -> AGO/25 - SINAPI
A7: DATA BASE: | B7: 2025-10-07 | E7: Encargos sociais - Horistas: | H7: ='Encargos Sociais'!E49 -> 1.1441 | I7: =Resumo!G7 -> JUL/25 - ORSE
A8: PRAZO: | B8: 120 dias | E8: Encargos sociais - Mensalista: | H8: ='Encargos Sociais'!F49 -> 0.7012 | I8: =Resumo!G8 -> JUL/2025 - SICRO3
B9: Itapicuru | G9: Desconto: | H9: =Resumo!F9 -> 0 | I9: =Resumo!G9 -> JUN/25 - EMBASA
I10: =Resumo!G10 -> 028 - SEINFRA
A11: ITEM | B11: REFERÊNCIA | D11: DESCRIÇÃO | E11: UNID. | F11: QUANT. | G11: CUSTO UNITÁRIO | H11: PREÇO UNITÁRIO | I11: PREÇO TOTAL
B12: FONTE | C12: CÓDIGO
A13: 1 | D13: ADMINISTRAÇÃO DA OBRA | I13: =SUM(I14) -> 139370.48
A14: 1.1 | D14: Administração da Obra | I14: =SUM(I15:I15) -> 139370.48
A15: 1.1.1 | B15: PRÓPRIA | C15: CPU.01 | D15: =(VLOOKUP(C15,CPU!B1:C282,2,0)) -> Administração Local | E15: =(VLOOKUP(C15,CPU!B2:D$445,3,0)) -> mês | F15: 4 | G15: =TRUNC((1-$H$9)*(SUMIFS(CPU!$G:$G,CPU!$A:$A,ITAPICURU!$C15,CPU!$H:$H,"ss")+SUMIFS(CPU!$G:$G,CPU!$A:$A,ITAPICURU!$C15,CPU!$H:$H,"mdo")+SUMIF('Comp SINAPI AL 07-2025 Onerado'!B:B,ITAPICURU!C15,'Comp SINAPI AL 07-2025 Onerado'!E:E)+SUMIF('Ins SINAPI AL 07-2025 Onerado'!B:B,ITAPICURU!C15,'Ins SINAPI AL 07-2025 Onerado'!F:F)),2) -> 28279.06 | H15: =TRUNC(G15*(1+$H$5),2) -> 34842.62 | I15: =TRUNC(F15*H15,2) -> 139370.48 | J15: =_xlfn.ISFORMULA(G15) -> TRUE
J16: =_xlfn.ISFORMULA(G16) -> FALSE
A17: 2 | D17: SERVIÇOS PRELIMINARES | I17: =SUM(I18,I20,I22) -> 27298.63 | J17: FALSE
A18: 2.1 | D18: Mobilização e desmobilização | I18: =SUM(I19) -> 710.56 | J18: FALSE
A19: 2.1.1 | B19: PRÓPRIA | C19: CPU.02 | D19: =(VLOOKUP(C19,CPU!B5:C327,2,0)) -> Mobilização e desmobilização de instalação do canteiro | E19: =(VLOOKUP(C19,CPU!B2:D$445,3,0)) -> un | F19: 1 | G19: =TRUNC((1-$H$9)*(SUMIFS(CPU!$G:$G,CPU!$A:$A,ITAPICURU!$C19,CPU!$H:$H,"ss")+SUMIFS(CPU!$G:$G,CPU!$A:$A,ITAPICURU!$C19,CPU!$H:$H,"mdo")+SUMIF('Comp SINAPI AL 07-2025 Onerado'!B:B,ITAPICURU!C19,'Comp SINAPI AL 07-2025 Onerado'!E:E)+SUMIF('Ins SINAPI AL 07-2025 Onerado'!B:B,ITAPICURU!C19,'Ins SINAPI AL 07-2025 Onerado'!F:F)),2) -> 576.71 | H19: =TRUNC(G19*(1+$H$5),2) -> 710.56 | I19: =TRUNC(F19*H19,2) -> 710.56 | J19: TRUE
A20: 2.2 | D20: Canteiro de obras | I20: =SUM(I21) -> 25441.95 | J20: FALSE
A21: 2.2.1 | B21: PRÓPRIA | C21: CPU.03 | D21: =(VLOOKUP(C21,CPU!B7:C338,2,0)) -> Execução de canteiro de obras, inclusive, limpeza, refeitório, sanitários e central de formas | E21: =(VLOOKUP(C21,CPU!B2:D$445,3,0)) -> m2 | F21: 28.5 | G21: =TRUNC((1-$H$9)*(SUMIFS(CPU!$G:$G,CPU!$A:$A,ITAPICURU!$C21,CPU!$H:$H,"ss")+SUMIFS(CPU!$G:$G,CPU!$A:$A,ITAPICURU!$C21,CPU!$H:$H,"mdo")+SUMIF('Comp SINAPI AL 07-2025 Onerado'!B:B,ITAPICURU!C21,'Comp SINAPI AL 07-2025 Onerado'!E:E)+SUMIF('Ins SINAPI AL 07-2025 Onerado'!B:B,ITAPICURU!C21,'Ins SINAPI AL 07-2025 Onerado'!F:F)),2) -> 724.54 | H21: =TRUNC(G21*(1+$H$5),2) -> 892.7 | I21: =TRUNC(F21*H21,2) -> 25441.95 | J21: TRUE
A22: 2.3 | D22: Sinalização | I22: =SUM(I23:I23) -> 1146.12 | J22: FALSE
A23: 2.3.1 | B23: SINAPI | C23: 103689 | D23: =IF(J23="ca",VLOOKUP(C23,'Comp SINAPI AL 07-2025 Onerado'!$B$11:$C$9004,2,0),VLOOKUP(C23,'Ins SINAPI AL 07-2025 Onerado'!$B$10:$C$9000,2,0)) -> FORNECIMENTO E INSTALAÇÃO DE PLACA DE OBRA COM CHAPA GALVANIZADA E ESTRUTURA DE MADEIRA. AF_03/2022_PS | E23: =IF(J23="ca",VLOOKUP(C23,'Comp SINAPI AL 07-2025 Onerado'!$B$11:$D$9004,3,0),VLOOKUP(C23,'Ins SINAPI AL 07-2025 Onerado'!$B$11:$D$9000,3,0)) -> M2 | F23: 2 | G23: =TRUNC((1-$H$9)*(SUMIFS(CPU!$G:$G,CPU!$A:$A,ITAPICURU!$C23,CPU!$H:$H,"ss")+SUMIFS(CPU!$G:$G,CPU!$A:$A,ITAPICURU!$C23,CPU!$H:$H,"mdo")+SUMIF('Comp SINAPI AL 07-2025 Onerado'!B:B,ITAPICURU!C23,'Comp SINAPI AL 07-2025 Onerado'!E:E)+SUMIF('Ins SINAPI AL 07-2025 Onerado'!B:B,ITAPICURU!C23,'Ins SINAPI AL 07-2025 Onerado'!F:F)),2) -> 465.11 | H23: =TRUNC(G23*(1+$H$5),2) -> 573.06 | I23: =TRUNC(F23*H23,2) -> 1146.12 | J23: ca
J24: FALSE
A25: 3 | D25: CORTE DA VEGETAÇÃO E REMOÇÃO DAS RAIZES | I25: =SUM(I26) -> 34452.5 | J25: FALSE
A26: 3.1 | D26: Remoção da vegetação | I26: =SUM(I27:I29) -> 34452.5 | J26: FALSE
A27: 3.1.1 | B27: PRÓPRIA | C27: CPU.04 | D27: =(VLOOKUP(C27,CPU!B13:C342,2,0)) -> Limpeza de vegetação | E27: =(VLOOKUP(C27,CPU!B2:D$445,3,0)) -> m2 | F27: 9470 | G27: =TRUNC((1-$H$9)*(SUMIFS(CPU!$G:$G,CPU!$A:$A,ITAPICURU!$C27,CPU!$H:$H,"ss")+SUMIFS(CPU!$G:$G,CPU!$A:$A,ITAPICURU!$C27,CPU!$H:$H,"mdo")+SUMIF('Comp SINAPI AL 07-2025 Onerado'!B:B,ITAPICURU!C27,'Comp SINAPI AL 07-2025 Onerado'!E:E)+SUMIF('Ins SINAPI AL 07-2025 Onerado'!B:B,ITAPICURU!C27,'Ins SINAPI AL 07-2025 Onerado'!F:F)),2) -> 1.17 | H27: =TRUNC(G27*(1+$H$5),2) -> 1.44 | I27: =TRUNC(F27*H27,2) -> 13636.8 | J27: TRUE
A28: 3.1.2 | B28: PRÓPRIA | C28: CPU.05 | D28: =(VLOOKUP(C28,CPU!B14:C343,2,0)) -> Corte de tronco e remoção de raiz | E28: =(VLOOKUP(C28,CPU!B3:D$445,3,0)) -> un | F28: 30 | G28: =TRUNC((1-$H$9)*(SUMIFS(CPU!$G:$G,CPU!$A:$A,ITAPICURU!$C28,CPU!$H:$H,"ss")+SUMIFS(CPU!$G:$G,CPU!$A:$A,ITAPICURU!$C28,CPU!$H:$H,"mdo")+SUMIF('Comp SINAPI AL 07-2025 Onerado'!B:B,ITAPICURU!C28,'Comp SINAPI AL 07-2025 Onerado'!E:E)+SUMIF('Ins SINAPI AL 07-2025 Onerado'!B:B,ITAPICURU!C28,'Ins SINAPI AL 07-2025 Onerado'!F:F)),2) -> 286.54 | H28: =TRUNC(G28*(1+$H$5),2) -> 353.04 | I28: =TRUNC(F28*H28,2) -> 10591.2 | J28: TRUE
A29: 3.1.3 | B29: PRÓPRIA | C29: CPU.31 | D29: =(VLOOKUP(C29,CPU!B10:C339,2,0)) -> Limpeza/desobstrução de enrocamento | E29: =(VLOOKUP(C29,CPU!B10:D339,3,0)) -> m2 | F29: 1430 | G29: =TRUNC((1-$H$9)*(SUMIFS(CPU!$G:$G,CPU!$A:$A,ITAPICURU!$C29,CPU!$H:$H,"ss")+SUMIFS(CPU!$G:$G,CPU!$A:$A,ITAPICURU!$C29,CPU!$H:$H,"mdo")+SUMIF('Comp SINAPI AL 07-2025 Onerado'!B:B,ITAPICURU!C29,'Comp SINAPI AL 07-2025 Onerado'!E:E)+SUMIF('Ins SINAPI AL 07-2025 Onerado'!B:B,ITAPICURU!C29,'Ins SINAPI AL 07-2025 Onerado'!F:F)),2) -> 5.81 | H29: =TRUNC(G29*(1+$H$5),2) -> 7.15 | I29: =TRUNC(F29*H29,2) -> 10224.5 | J29: TRUE
J30: FALSE
A31: 4 | D31: RECUPERAÇÃO DO MACIÇO | I31: =SUM(I32,I34) -> 2315.06 | J31: FALSE
A32: 4.1 | D32: Recomposição das Erosões (erosões e buracos nas ombreiras e taludes) | I32: =SUM(I33:I33) -> 1668.5 | J32: FALSE
A33: 4.1.1 | B33: PRÓPRIA | C33: CPU.09 | D33: =(VLOOKUP(C33,CPU!B15:C344,2,0)) -> Recomposição das erosões, inclusive, regularização da superfície e reaterro | E33: =(VLOOKUP(C33,CPU!B1:D$445,3,0)) -> m3 | F33: 10 | G33: =TRUNC((1-$H$9)*(SUMIFS(CPU!$G:$G,CPU!$A:$A,ITAPICURU!$C33,CPU!$H:$H,"ss")+SUMIFS(CPU!$G:$G,CPU!$A:$A,ITAPICURU!$C33,CPU!$H:$H,"mdo")+SUMIF('Comp SINAPI AL 07-2025 Onerado'!B:B,ITAPICURU!C33,'Comp SINAPI AL 07-2025 Onerado'!E:E)+SUMIF('Ins SINAPI AL 07-2025 Onerado'!B:B,ITAPICURU!C33,'Ins SINAPI AL 07-2025 Onerado'!F:F)),2) -> 135.42 | H33: =TRUNC(G33*(1+$H$5),2) -> 166.85 | I33: =TRUNC(F33*H33,2) -> 1668.5 | J33: TRUE
A34: 4.2 | D34: Injeção de nata de cimento em formigueiros e tocas de animais | I34: =SUM(I35:I35) -> 646.56 | J34: FALSE
A35: 4.1.1 | B35: PRÓPRIA | C35: CPU.17 | D35: =(VLOOKUP(C35,CPU!B17:C346,2,0)) -> Injeção de nata de cimento em buracos | E35: =(VLOOKUP(C35,CPU!B3:D$445,3,0)) -> m3 | F35: 0.5 | G35: =TRUNC((1-$H$9)*(SUMIFS(CPU!$G:$G,CPU!$A:$A,ITAPICURU!$C35,CPU!$H:$H,"ss")+SUMIFS(CPU!$G:$G,CPU!$A:$A,ITAPICURU!$C35,CPU!$H:$H,"mdo")+SUMIF('Comp SINAPI AL 07-2025 Onerado'!B:B,ITAPICURU!C35,'Comp SINAPI AL 07-2025 Onerado'!E:E)+SUMIF('Ins SINAPI AL 07-2025 Onerado'!B:B,ITAPICURU!C35,'Ins SINAPI AL 07-2025 Onerado'!F:F)),2) -> 1049.53 | H35: =TRUNC(G35*(1+$H$5),2) -> 1293.12 | I35: =TRUNC(F35*H35,2) -> 646.56 | J35: TRUE
J36: FALSE
A37: 5 | D37: RECUPERAÇÃO DA CRISTA | I37: =SUM(I38,I40) -> 70122.66 | J37: FALSE
A38: 5.1 | D38: Recuperação da crista | I38: =SUM(I39) -> 65251.7 | J38: FALSE
A39: 5.1.1 | B39: PRÓPRIA | C39: CPU.28 | D39: =(VLOOKUP(C39,CPU!B22:C351,2,0)) -> Recuperação da crista com concreto | E39: =(VLOOKUP(C39,CPU!B8:D$445,3,0)) -> m2 | F39: 610 | G39: =TRUNC((1-$H$9)*(SUMIFS(CPU!$G:$G,CPU!$A:$A,ITAPICURU!$C39,CPU!$H:$H,"ss")+SUMIFS(CPU!$G:$G,CPU!$A:$A,ITAPICURU!$C39,CPU!$H:$H,"mdo")+SUMIF('Comp SINAPI AL 07-2025 Onerado'!B:B,ITAPICURU!C39,'Comp SINAPI AL 07-2025 Onerado'!E:E)+SUMIF('Ins SINAPI AL 07-2025 Onerado'!B:B,ITAPICURU!C39,'Ins SINAPI AL 07-2025 Onerado'!F:F)),2) -> 86.82 | H39: =TRUNC(G39*(1+$H$5),2) -> 106.97 | I39: =TRUNC(F39*H39,2) -> 65251.7 | J39: TRUE
A40: 5.2 | D40: Recuperação do meio-fio e sarjeta | I40: =SUM(I41:I43) -> 4870.96 | J40: FALSE
A41: 5.2.1 | B41: PRÓPRIA | C41: CPU.29 | D41: =(VLOOKUP(C41,CPU!B23:C352,2,0)) -> Limpeza de sarjeta e meio-fio | E41: =(VLOOKUP(C41,CPU!B9:D$445,3,0)) -> m | F41: 394 | G41: =TRUNC((1-$H$9)*(SUMIFS(CPU!$G:$G,CPU!$A:$A,ITAPICURU!$C41,CPU!$H:$H,"ss")+SUMIFS(CPU!$G:$G,CPU!$A:$A,ITAPICURU!$C41,CPU!$H:$H,"mdo")+SUMIF('Comp SINAPI AL 07-2025 Onerado'!B:B,ITAPICURU!C41,'Comp SINAPI AL 07-2025 Onerado'!E:E)+SUMIF('Ins SINAPI AL 07-2025 Onerado'!B:B,ITAPICURU!C41,'Ins SINAPI AL 07-2025 Onerado'!F:F)),2) -> 1.43 | H41: =TRUNC(G41*(1+$H$5),2) -> 1.76 | I41: =TRUNC(F41*H41,2) -> 693.44 | J41: TRUE
A42: 5.2.2 | B42: PRÓPRIA | C42: CPU.18 | D42: =(VLOOKUP(C42,CPU!B24:C353,2,0)) -> Recuperação com uso de argamassa | E42: =(VLOOKUP(C42,CPU!B10:D$445,3,0)) -> m3 | F42: 1.5 | G42: =TRUNC((1-$H$9)*(SUMIFS(CPU!$G:$G,CPU!$A:$A,ITAPICURU!$C42,CPU!$H:$H,"ss")+SUMIFS(CPU!$G:$G,CPU!$A:$A,ITAPICURU!$C42,CPU!$H:$H,"mdo")+SUMIF('Comp SINAPI AL 07-2025 Onerado'!B:B,ITAPICURU!C42,'Comp SINAPI AL 07-2025 Onerado'!E:E)+SUMIF('Ins SINAPI AL 07-2025 Onerado'!B:B,ITAPICURU!C42,'Ins SINAPI AL 07-2025 Onerado'!F:F)),2) -> 1586.72 | H42: =TRUNC(G42*(1+$H$5),2) -> 1954.99 | I42: =TRUNC(F42*H42,2) -> 2932.48 | J42: TRUE
A43: 5.2.3 | B43: PRÓPRIA | C43: CPU.20 | D43: =(VLOOKUP(C43,CPU!B25:C354,2,0)) -> Pintura do meio-fio | E43: =(VLOOKUP(C43,CPU!B11:D$445,3,0)) -> m | F43: =F41 -> 394 | G43: =TRUNC((1-$H$9)*(SUMIFS(CPU!$G:$G,CPU!$A:$A,ITAPICURU!$C43,CPU!$H:$H,"ss")+SUMIFS(CPU!$G:$G,CPU!$A:$A,ITAPICURU!$C43,CPU!$H:$H,"mdo")+SUMIF('Comp SINAPI AL 07-2025 Onerado'!B:B,ITAPICURU!C43,'Comp SINAPI AL 07-2025 Onerado'!E:E)+SUMIF('Ins SINAPI AL 07-2025 Onerado'!B:B,ITAPICURU!C43,'Ins SINAPI AL 07-2025 Onerado'!F:F)),2) -> 2.57 | H43: =TRUNC(G43*(1+$H$5),2) -> 3.16 | I43: =TRUNC(F43*H43,2) -> 1245.04 | J43: TRUE
J44: FALSE
A45: 6 | D45: DRENAGEM SUPERFICIAL DO TALUDE DE JUSANTE | I45: =SUM(I46,I49) -> 15498.78 | J45: FALSE
A46: 6.1 | D46: Limpeza e recuperação de descida d'água | I46: =SUM(I47:I48) -> 3812.78 | J46: FALSE
A47: 6.1.1 | B47: PRÓPRIA | C47: CPU.32 | D47: =(VLOOKUP(C47,CPU!B17:C346,2,0)) -> Limpeza de descida d'água | E47: =(VLOOKUP(C47,CPU!B17:D438,3,0)) -> m | F47: 50 | G47: =TRUNC((1-$H$9)*(SUMIFS(CPU!$G:$G,CPU!$A:$A,ITAPICURU!$C47,CPU!$H:$H,"ss")+SUMIFS(CPU!$G:$G,CPU!$A:$A,ITAPICURU!$C47,CPU!$H:$H,"mdo")+SUMIF('Comp SINAPI AL 07-2025 Onerado'!B:B,ITAPICURU!C47,'Comp SINAPI AL 07-2025 Onerado'!E:E)+SUMIF('Ins SINAPI AL 07-2025 Onerado'!B:B,ITAPICURU!C47,'Ins SINAPI AL 07-2025 Onerado'!F:F)),2) -> 2.87 | H47: =TRUNC(G47*(1+$H$5),2) -> 3.53 | I47: =TRUNC(F47*H47,2) -> 176.5 | J47: TRUE
A48: 6.1.2 | B48: PRÓPRIA | C48: CPU.18 | D48: =(VLOOKUP(C48,CPU!B18:C347,2,0)) -> Recuperação com uso de argamassa | E48: =(VLOOKUP(C48,CPU!B18:D439,3,0)) -> m3 | F48: 1.86 | G48: =TRUNC((1-$H$9)*(SUMIFS(CPU!$G:$G,CPU!$A:$A,ITAPICURU!$C48,CPU!$H:$H,"ss")+SUMIFS(CPU!$G:$G,CPU!$A:$A,ITAPICURU!$C48,CPU!$H:$H,"mdo")+SUMIF('Comp SINAPI AL 07-2025 Onerado'!B:B,ITAPICURU!C48,'Comp SINAPI AL 07-2025 Onerado'!E:E)+SUMIF('Ins SINAPI AL 07-2025 Onerado'!B:B,ITAPICURU!C48,'Ins SINAPI AL 07-2025 Onerado'!F:F)),2) -> 1586.72 | H48: =TRUNC(G48*(1+$H$5),2) -> 1954.99 | I48: =TRUNC(F48*H48,2) -> 3636.28 | J48: TRUE
A49: 6.2 | D49: Implantação de descida d'agua tipo rápido retangular | I49: =SUM(I50) -> 11686 | J49: FALSE
A50: 6.2.1 | B50: PRÓPRIA | C50: CPU.30 | D50: =(VLOOKUP(C50,CPU!B19:C348,2,0)) -> Descida d'água de aterros tipo rápido | E50: =(VLOOKUP(C50,CPU!B19:D440,3,0)) -> m | F50: 40 | G50: =TRUNC((1-$H$9)*(SUMIFS(CPU!$G:$G,CPU!$A:$A,ITAPICURU!$C50,CPU!$H:$H,"ss")+SUMIFS(CPU!$G:$G,CPU!$A:$A,ITAPICURU!$C50,CPU!$H:$H,"mdo")+SUMIF('Comp SINAPI AL 07-2025 Onerado'!B:B,ITAPICURU!C50,'Comp SINAPI AL 07-2025 Onerado'!E:E)+SUMIF('Ins SINAPI AL 07-2025 Onerado'!B:B,ITAPICURU!C50,'Ins SINAPI AL 07-2025 Onerado'!F:F)),2) -> 237.12 | H50: =TRUNC(G50*(1+$H$5),2) -> 292.15 | I50: =TRUNC(F50*H50,2) -> 11686 | J50: TRUE
J51: FALSE
A52: 7 | D52: PROTEÇÃO SUPERFICIAL DO TALUDE DE JUSANTE | I52: =SUM(I53,I55) -> 21935.2 | J52: FALSE
A53: 7.1 | D53: Proteção vegetal | I53: =SUM(I54) -> 19622.4 | J53: FALSE
A54: 7.1.1 | B54: PRÓPRIA | C54: CPU.08 | D54: =(VLOOKUP(C54,CPU!B23:C352,2,0)) -> Plantio de vegetação tipo gramínea para proteção de talude com hidrossemeadura, inclusive adubação e transporte | E54: =(VLOOKUP(C54,CPU!B23:D444,3,0)) -> m2 | F54: 2240 | G54: =TRUNC((1-$H$9)*(SUMIFS(CPU!$G:$G,CPU!$A:$A,ITAPICURU!$C54,CPU!$H:$H,"ss")+SUMIFS(CPU!$G:$G,CPU!$A:$A,ITAPICURU!$C54,CPU!$H:$H,"mdo")+SUMIF('Comp SINAPI AL 07-2025 Onerado'!B:B,ITAPICURU!C54,'Comp SINAPI AL 07-2025 Onerado'!E:E)+SUMIF('Ins SINAPI AL 07-2025 Onerado'!B:B,ITAPICURU!C54,'Ins SINAPI AL 07-2025 Onerado'!F:F)),2) -> 7.11 | H54: =TRUNC(G54*(1+$H$5),2) -> 8.76 | I54: =TRUNC(F54*H54,2) -> 19622.4 | J54: TRUE
A55: 7.2 | D55: Irrigação da área de hidrossemeadura | I55: =SUM(I56) -> 2312.8 | J55: FALSE
A56: 7.2.1 | B56: PRÓPRIA | C56: CPU.16 | D56: =(VLOOKUP(C56,CPU!B23:C352,2,0)) -> Irrigação - inclusive transporte | E56: =(VLOOKUP(C56,CPU!B23:D444,3,0)) -> m3 | F56: 20 | G56: =TRUNC((1-$H$9)*(SUMIFS(CPU!$G:$G,CPU!$A:$A,ITAPICURU!$C56,CPU!$H:$H,"ss")+SUMIFS(CPU!$G:$G,CPU!$A:$A,ITAPICURU!$C56,CPU!$H:$H,"mdo")+SUMIF('Comp SINAPI AL 07-2025 Onerado'!B:B,ITAPICURU!C56,'Comp SINAPI AL 07-2025 Onerado'!E:E)+SUMIF('Ins SINAPI AL 07-2025 Onerado'!B:B,ITAPICURU!C56,'Ins SINAPI AL 07-2025 Onerado'!F:F)),2) -> 93.86 | H56: =TRUNC(G56*(1+$H$5),2) -> 115.64 | I56: =TRUNC(F56*H56,2) -> 2312.8 | J56: TRUE
J57: FALSE
A58: 8 | D58: RECUPERAÇÃO DO VERTEDOURO | I58: =SUM(I59) -> 12880.62 | J58: FALSE
A59: 8.1 | D59: Recuperação do vertedouro | I59: =SUM(I60:I64) -> 12880.62 | J59: FALSE
A60: 8.1.1 | B60: PRÓPRIA | C60: CPU.21 | D60: =(VLOOKUP(C60,CPU!B24:C355,2,0)) -> Apicoamento da superfície | E60: =(VLOOKUP(C60,CPU!B24:D443,3,0)) -> m2 | F60: 55 | G60: =TRUNC((1-$H$9)*(SUMIFS(CPU!$G:$G,CPU!$A:$A,ITAPICURU!$C60,CPU!$H:$H,"ss")+SUMIFS(CPU!$G:$G,CPU!$A:$A,ITAPICURU!$C60,CPU!$H:$H,"mdo")+SUMIF('Comp SINAPI AL 07-2025 Onerado'!B:B,ITAPICURU!C60,'Comp SINAPI AL 07-2025 Onerado'!E:E)+SUMIF('Ins SINAPI AL 07-2025 Onerado'!B:B,ITAPICURU!C60,'Ins SINAPI AL 07-2025 Onerado'!F:F)),2) -> 19.09 | H60: =TRUNC(G60*(1+$H$5),2) -> 23.52 | I60: =TRUNC(F60*H60,2) -> 1293.6 | J60: TRUE
A61: 8.1.2 | B61: PRÓPRIA | C61: CPU.22 | D61: =(VLOOKUP(C61,CPU!B26:C357,2,0)) -> Limpeza da superfície | E61: =(VLOOKUP(C61,CPU!B26:D445,3,0)) -> m2 | F61: 55 | G61: =TRUNC((1-$H$9)*(SUMIFS(CPU!$G:$G,CPU!$A:$A,ITAPICURU!$C61,CPU!$H:$H,"ss")+SUMIFS(CPU!$G:$G,CPU!$A:$A,ITAPICURU!$C61,CPU!$H:$H,"mdo")+SUMIF('Comp SINAPI AL 07-2025 Onerado'!B:B,ITAPICURU!C61,'Comp SINAPI AL 07-2025 Onerado'!E:E)+SUMIF('Ins SINAPI AL 07-2025 Onerado'!B:B,ITAPICURU!C61,'Ins SINAPI AL 07-2025 Onerado'!F:F)),2) -> 3.47 | H61: =TRUNC(G61*(1+$H$5),2) -> 4.27 | I61: =TRUNC(F61*H61,2) -> 234.85 | J61: TRUE
A62: 8.1.3 | B62: PRÓPRIA | C62: CPU.15 | D62: =(VLOOKUP(C62,CPU!B22:C353,2,0)) -> Selagem de fissuras com resina epóxi | E62: =(VLOOKUP(C62,CPU!B22:D441,3,0)) -> m | F62: 100 | G62: =TRUNC((1-$H$9)*(SUMIFS(CPU!$G:$G,CPU!$A:$A,ITAPICURU!$C62,CPU!$H:$H,"ss")+SUMIFS(CPU!$G:$G,CPU!$A:$A,ITAPICURU!$C62,CPU!$H:$H,"mdo")+SUMIF('Comp SINAPI AL 07-2025 Onerado'!B:B,ITAPICURU!C62,'Comp SINAPI AL 07-2025 Onerado'!E:E)+SUMIF('Ins SINAPI AL 07-2025 Onerado'!B:B,ITAPICURU!C62,'Ins SINAPI AL 07-2025 Onerado'!F:F)),2) -> 26.38 | H62: =TRUNC(G62*(1+$H$5),2) -> 32.5 | I62: =TRUNC(F62*H62,2) -> 3250 | J62: TRUE
A63: 8.1.4 | B63: PRÓPRIA | C63: CPU.23 | D63: =(VLOOKUP(C63,CPU!B24:C355,2,0)) -> Tratamento para impermeabilização de fissuras com injeção de poliuretano | E63: =(VLOOKUP(C63,CPU!B24:D443,3,0)) -> m | F63: 20 | G63: =TRUNC((1-$H$9)*(SUMIFS(CPU!$G:$G,CPU!$A:$A,ITAPICURU!$C63,CPU!$H:$H,"ss")+SUMIFS(CPU!$G:$G,CPU!$A:$A,ITAPICURU!$C63,CPU!$H:$H,"mdo")+SUMIF('Comp SINAPI AL 07-2025 Onerado'!B:B,ITAPICURU!C63,'Comp SINAPI AL 07-2025 Onerado'!E:E)+SUMIF('Ins SINAPI AL 07-2025 Onerado'!B:B,ITAPICURU!C63,'Ins SINAPI AL 07-2025 Onerado'!F:F)),2) -> 154.26 | H63: =TRUNC(G63*(1+$H$5),2) -> 190.06 | I63: =TRUNC(F63*H63,2) -> 3801.2 | J63: TRUE
A64: 8.1.5 | B64: PRÓPRIA | C64: CPU.18 | D64: =(VLOOKUP(C64,CPU!B25:C356,2,0)) -> Recuperação com uso de argamassa | E64: =(VLOOKUP(C64,CPU!B25:D444,3,0)) -> m3 | F64: 2.2 | G64: =TRUNC((1-$H$9)*(SUMIFS(CPU!$G:$G,CPU!$A:$A,ITAPICURU!$C64,CPU!$H:$H,"ss")+SUMIFS(CPU!$G:$G,CPU!$A:$A,ITAPICURU!$C64,CPU!$H:$H,"mdo")+SUMIF('Comp SINAPI AL 07-2025 Onerado'!B:B,ITAPICURU!C64,'Comp SINAPI AL 07-2025 Onerado'!E:E)+SUMIF('Ins SINAPI AL 07-2025 Onerado'!B:B,ITAPICURU!C64,'Ins SINAPI AL 07-2025 Onerado'!F:F)),2) -> 1586.72 | H64: =TRUNC(G64*(1+$H$5),2) -> 1954.99 | I64: =TRUNC(F64*H64,2) -> 4300.97 | J64: TRUE
J65: FALSE
A66: 9 | D66: RECUPERAÇÃO DO CANAL DE RESTITUIÇÃO | I66: =SUM(I67) -> 10374.64 | J66: FALSE
A67: 9.1 | D67: Recuperação de erosão na saida do canal de restituição | I67: =SUM(I68:I69) -> 10374.64 | J67: FALSE
A68: 9.1.1 | B68: PRÓPRIA | C68: CPU.22 | D68: =(VLOOKUP(C68,CPU!B45:C376,2,0)) -> Limpeza da superfície | E68: =(VLOOKUP(C68,CPU!B44:D471,3,0)) -> m2 | F68: 72 | G68: =TRUNC((1-$H$9)*(SUMIFS(CPU!$G:$G,CPU!$A:$A,ITAPICURU!$C68,CPU!$H:$H,"ss")+SUMIFS(CPU!$G:$G,CPU!$A:$A,ITAPICURU!$C68,CPU!$H:$H,"mdo")+SUMIF('Comp SINAPI AL 07-2025 Onerado'!B:B,ITAPICURU!C68,'Comp SINAPI AL 07-2025 Onerado'!E:E)+SUMIF('Ins SINAPI AL 07-2025 Onerado'!B:B,ITAPICURU!C68,'Ins SINAPI AL 07-2025 Onerado'!F:F)),2) -> 3.47 | H68: =TRUNC(G68*(1+$H$5),2) -> 4.27 | I68: =TRUNC(F68*H68,2) -> 307.44 | J68: TRUE
A69: 9.1.2 | B69: PRÓPRIA | C69: CPU.33 | D69: =(VLOOKUP(C69,CPU!B46:C377,2,0)) -> Proteção de pé de canal de restituição em concreto ciclópico | E69: =(VLOOKUP(C69,CPU!B45:D472,3,0)) -> m3 | F69: 11 | G69: =TRUNC((1-$H$9)*(SUMIFS(CPU!$G:$G,CPU!$A:$A,ITAPICURU!$C69,CPU!$H:$H,"ss")+SUMIFS(CPU!$G:$G,CPU!$A:$A,ITAPICURU!$C69,CPU!$H:$H,"mdo")+SUMIF('Comp SINAPI AL 07-2025 Onerado'!B:B,ITAPICURU!C69,'Comp SINAPI AL 07-2025 Onerado'!E:E)+SUMIF('Ins SINAPI AL 07-2025 Onerado'!B:B,ITAPICURU!C69,'Ins SINAPI AL 07-2025 Onerado'!F:F)),2) -> 742.8 | H69: =TRUNC(G69*(1+$H$5),2) -> 915.2 | I69: =TRUNC(F69*H69,2) -> 10067.2 | J69: TRUE
J70: FALSE
A71: 10 | D71: RECUPERAÇÃO DE CERCA EXISTENTE | I71: =SUM(I72,I74) -> 5054 | J71: FALSE
A72: 10.1 | D72: Substituição de mourão | I72: =SUM(I73) -> 3075 | J72: FALSE
A73: 10.1.1 | B73: PRÓPRIA | C73: CPU.26 | D73: =(VLOOKUP(C73,CPU!B52:C383,2,0)) -> Fornecimento e implantação de estaca pré-moldada de concreto armado | E73: =(VLOOKUP(C73,CPU!B51:D478,3,0)) -> un | F73: 20 | G73: =TRUNC((1-$H$9)*(SUMIFS(CPU!$G:$G,CPU!$A:$A,ITAPICURU!$C73,CPU!$H:$H,"ss")+SUMIFS(CPU!$G:$G,CPU!$A:$A,ITAPICURU!$C73,CPU!$H:$H,"mdo")+SUMIF('Comp SINAPI AL 07-2025 Onerado'!B:B,ITAPICURU!C73,'Comp SINAPI AL 07-2025 Onerado'!E:E)+SUMIF('Ins SINAPI AL 07-2025 Onerado'!B:B,ITAPICURU!C73,'Ins SINAPI AL 07-2025 Onerado'!F:F)),2) -> 124.79 | H73: =TRUNC(G73*(1+$H$5),2) -> 153.75 | I73: =TRUNC(F73*H73,2) -> 3075
A74: 10.2 | D74: Recuperação de arame das cercas | I74: =SUM(I75) -> 1979 | J74: FALSE
A75: 10.2.1 | B75: PRÓPRIA | C75: CPU.27 | D75: =(VLOOKUP(C75,CPU!B54:C385,2,0)) -> Recuperação de arame das cercas | E75: =(VLOOKUP(C75,CPU!B53:D480,3,0)) -> m | F75: 100 | G75: =TRUNC((1-$H$9)*(SUMIFS(CPU!$G:$G,CPU!$A:$A,ITAPICURU!$C75,CPU!$H:$H,"ss")+SUMIFS(CPU!$G:$G,CPU!$A:$A,ITAPICURU!$C75,CPU!$H:$H,"mdo")+SUMIF('Comp SINAPI AL 07-2025 Onerado'!B:B,ITAPICURU!C75,'Comp SINAPI AL 07-2025 Onerado'!E:E)+SUMIF('Ins SINAPI AL 07-2025 Onerado'!B:B,ITAPICURU!C75,'Ins SINAPI AL 07-2025 Onerado'!F:F)),2) -> 16.07 | H75: =TRUNC(G75*(1+$H$5),2) -> 19.79 | I75: =TRUNC(F75*H75,2) -> 1979 | J75: TRUE
J76: FALSE
A77: 11 | D77: SERVIÇOS COMPLEMENTARES | I77: =SUM(I78) -> 8761.44 | J77: FALSE
A78: 11.1 | D78: Instalação de placas de aviso | I78: =SUM(I79:I80) -> 8761.44 | J78: FALSE
A79: 11.1.1 | B79: SINAPI | C79: 103689 | D79: =IF(J79="ca",VLOOKUP(C79,'Comp SINAPI AL 07-2025 Onerado'!$B$11:$C$9004,2,0),VLOOKUP(C79,'Ins SINAPI AL 07-2025 Onerado'!$B$10:$C$9000,2,0)) -> FORNECIMENTO E INSTALAÇÃO DE PLACA DE OBRA COM CHAPA GALVANIZADA E ESTRUTURA DE MADEIRA. AF_03/2022_PS | E79: =IF(J79="ca",VLOOKUP(C79,'Comp SINAPI AL 07-2025 Onerado'!$B$11:$D$9004,3,0),VLOOKUP(C79,'Ins SINAPI AL 07-2025 Onerado'!$B$11:$D$9000,3,0)) -> M2 | F79: 4 | G79: =TRUNC((1-$H$9)*(SUMIFS(CPU!$G:$G,CPU!$A:$A,ITAPICURU!$C79,CPU!$H:$H,"ss")+SUMIFS(CPU!$G:$G,CPU!$A:$A,ITAPICURU!$C79,CPU!$H:$H,"mdo")+SUMIF('Comp SINAPI AL 07-2025 Onerado'!B:B,ITAPICURU!C79,'Comp SINAPI AL 07-2025 Onerado'!E:E)+SUMIF('Ins SINAPI AL 07-2025 Onerado'!B:B,ITAPICURU!C79,'Ins SINAPI AL 07-2025 Onerado'!F:F)),2) -> 465.11 | H79: =TRUNC(G79*(1+$H$5),2) -> 573.06 | I79: =TRUNC(F79*H79,2) -> 2292.24 | J79: ca
A80: 11.1.2 | B80: PRÓPRIA | C80: CPU.19 | D80: =(VLOOKUP(C80,CPU!B34:C365,2,0)) -> Régua Linimétrica Padrão “ANA”, Aço Carbono - 2 X 70 X 1000 mm (Fornecimento e Instalação) | E80: =(VLOOKUP(C80,CPU!B35:D462,3,0)) -> un | F80: 15 | G80: =TRUNC((1-$H$9)*(SUMIFS(CPU!$G:$G,CPU!$A:$A,ITAPICURU!$C80,CPU!$H:$H,"ss")+SUMIFS(CPU!$G:$G,CPU!$A:$A,ITAPICURU!$C80,CPU!$H:$H,"mdo")+SUMIF('Comp SINAPI AL 07-2025 Onerado'!B:B,ITAPICURU!C80,'Comp SINAPI AL 07-2025 Onerado'!E:E)+SUMIF('Ins SINAPI AL 07-2025 Onerado'!B:B,ITAPICURU!C80,'Ins SINAPI AL 07-2025 Onerado'!F:F)),2) -> 350.04 | H80: =TRUNC(G80*(1+$H$5),2) -> 431.28 | I80: =TRUNC(F80*H80,2) -> 6469.2 | J80: =_xlfn.ISFORMULA(G80) -> TRUE
J81: FALSE
A82: 12 | D82: PROJETO "AS IS" | I82: =SUM(I83) -> 16883.43 | J82: FALSE
A83: 12.1 | D83: Levantamento topográfico e "AS IS" | I83: =SUM(I84:I85) -> 16883.43 | J83: FALSE
A84: 12.1.1 | B84: ORSE | C84: 9346 | D84: Levantamento topográfico planimétrico cadastral | E84: m2 | F84: =F27+F29 -> 10900 | G84: =TRUNC((1-$H$9)*0.35,2) -> 0.35 | H84: =TRUNC(G84*(1+$H$5),2) -> 0.43 | I84: =TRUNC(F84*H84,2) -> 4687 | J84: TRUE
A85: 12.1.2 | B85: PRÓPRIA | C85: CPU.12 | D85: =(VLOOKUP(C85,CPU!B43:C373,2,0)) -> Projeto geométrico | E85: =(VLOOKUP(C85,CPU!B41:D468,3,0)) -> un | F85: 1 | G85: =TRUNC((1-$H$9)*(SUMIFS(CPU!$G:$G,CPU!$A:$A,ITAPICURU!$C85,CPU!$H:$H,"ss")+SUMIFS(CPU!$G:$G,CPU!$A:$A,ITAPICURU!$C85,CPU!$H:$H,"mdo")+SUMIF('Comp SINAPI AL 07-2025 Onerado'!B:B,ITAPICURU!C85,'Comp SINAPI AL 07-2025 Onerado'!E:E)+SUMIF('Ins SINAPI AL 07-2025 Onerado'!B:B,ITAPICURU!C85,'Ins SINAPI AL 07-2025 Onerado'!F:F)),2) -> 9898.9 | H85: =TRUNC(G85*(1+$H$5),2) -> 12196.43 | I85: =TRUNC(F85*H85,2) -> 12196.43 | J85: TRUE
J86: FALSE
A87: 13 | D87: FISCALIZAÇÃO E ACOMPANHAMENTO | I87: =SUM(I88) -> 1141.98 | J87: FALSE
A88: 13.1 | D88: Disponibilidade de veículo para apoio a fiscalização | I88: =SUM(I89) -> 1141.98 | J88: FALSE
A89: 13.1.1 | B89: PRÓPRIA | C89: CPU.14 | D89: =(VLOOKUP(C89,CPU!B47:C377,2,0)) -> Disponibilidade de veículo para apoio a fiscalização, inclusive combustível | E89: =(VLOOKUP(C89,CPU!B46:D472,3,0)) -> un | F89: =F15+2 -> 6 | G89: =TRUNC((1-$H$9)*(SUMIFS(CPU!$G:$G,CPU!$A:$A,ITAPICURU!$C89,CPU!$H:$H,"ss")+SUMIFS(CPU!$G:$G,CPU!$A:$A,ITAPICURU!$C89,CPU!$H:$H,"mdo")+SUMIF('Comp SINAPI AL 07-2025 Onerado'!B:B,ITAPICURU!C89,'Comp SINAPI AL 07-2025 Onerado'!E:E)+SUMIF('Ins SINAPI AL 07-2025 Onerado'!B:B,ITAPICURU!C89,'Ins SINAPI AL 07-2025 Onerado'!F:F)),2) -> 154.48 | H89: =TRUNC(G89*(1+$H$5),2) -> 190.33 | I89: =TRUNC(F89*H89,2) -> 1141.98 | J89: TRUE
J90: FALSE
D91: TOTAL (Custo): | I91: =TRUNC(SUMPRODUCT(F14:F89,G14:G89),2) -> 297165.44 | J91: FALSE
D92: BDI e Encargos Sociais: | I92: =I93-I91 -> 68923.98
D93: TOTAL GERAL COM BDI: | I93: =SUM(I13,I17,I25,I31,I37,I45,I52,I58,I66,I71,I77,I82,I87) -> 366089.42 | L93: =TRUNC(SUMPRODUCT(F14:F89,H14:H89),2) -> 366089.43

Sheet MARCADO DOS PEREIRAS
A1: Ministério da Integração e do Desenvolvimento Regional
A2: Companhia de Desenvolvimento dos Vales do São Francisco e do Parnaíba
A4: PLANILHA ORÇAMENTÁRIA - ORÇAMENTO NÃO DESONERADO
A5: OBRA: | B5: =Resumo!B5 -> Contratação de empresa para execução de manutenção e recuperação nas barragens de Itapicuru, Marcado dos Pereiras e Marcado Grande no estado de Alagoas. | G5: BDI (serv.): | H5: ='BDI serv'!D23 -> 0.2321 | I5: Bancos de dados:
A6: LOCAL: | B6: Barragem Marcado dos Pereiras, localizada no município de Feira Grande - AL | G6: BDI (forn.): | H6: ='BDI forn'!D23 -> 0.1469 | I6: =Resumo!G6 -> AGO/25 - SINAPI
A7: DATA BASE: | B7: 2025-10-07 | E7: Encargos sociais - Horistas: | H7: ='Encargos Sociais'!E49 -> 1.1441 | I7: =Resumo!G7 -> JUL/25 - ORSE
A8: PRAZO: | B8: 90 dias | E8: Encargos sociais - Mensalista: | H8: ='Encargos Sociais'!F49 -> 0.7012 | I8: =Resumo!G8 -> JUL/2025 - SICRO3
B9: Marcado dos Pereiras | G9: Desconto: | H9: =ITAPICURU!H9 -> 0 | I9: =Resumo!G9 -> JUN/25 - EMBASA
I10: =Resumo!G10 -> 028 - SEINFRA
A11: ITEM | B11: REFERÊNCIA | D11: DESCRIÇÃO | E11: UNID. | F11: QUANT. | G11: CUSTO UNITÁRIO | H11: PREÇO UNITÁRIO | I11: PREÇO TOTAL
B12: FONTE | C12: CÓDIGO
A13: 1 | D13: ADMINISTRAÇÃO DA OBRA | I13: =SUM(I14) -> 104527.86
A14: 1.1 | D14: Administração da Obra | I14: =SUM(I15:I15) -> 104527.86
A15: 1.1.1 | B15: PRÓPRIA | C15: CPU.01 | D15: =(VLOOKUP(C15,CPU!B1:C282,2,0)) -> Administração Local | E15: =(VLOOKUP(C15,CPU!B2:D$445,3,0)) -> mês | F15: 3 | G15: =TRUNC((1-$H$9)*(SUMIFS(CPU!$G:$G,CPU!$A:$A,'MARCADO DOS PEREIRAS'!$C15,CPU!$H:$H,"ss")+SUMIFS(CPU!$G:$G,CPU!$A:$A,'MARCADO DOS PEREIRAS'!$C15,CPU!$H:$H,"mdo")+SUMIF('Comp SINAPI AL 07-2025 Onerado'!B:B,'MARCADO DOS PEREIRAS'!C15,'Comp SINAPI AL 07-2025 Onerado'!E:E)+SUMIF('Ins SINAPI AL 07-2025 Onerado'!B:B,'MARCADO DOS PEREIRAS'!C15,'Ins SINAPI AL 07-2025 Onerado'!F:F)),2) -> 28279.06 | H15: =TRUNC(G15*(1+$H$5),2) -> 34842.62 | I15: =TRUNC(F15*H15,2) -> 104527.86 | J15: =_xlfn.ISFORMULA(G15) -> TRUE
J16: =_xlfn.ISFORMULA(G16) -> FALSE
A17: 2 | D17: SERVIÇOS PRELIMINARES | I17: =SUM(I18,I20,I22) -> 27298.63 | J17: FALSE
A18: 2.1 | D18: Mobilização e desmobilização | I18: =SUM(I19) -> 710.56 | J18: FALSE
A19: 2.1.1 | B19: PRÓPRIA | C19: CPU.02 | D19: =(VLOOKUP(C19,CPU!B5:C327,2,0)) -> Mobilização e desmobilização de instalação do canteiro | E19: =(VLOOKUP(C19,CPU!B2:D$445,3,0)) -> un | F19: 1 | G19: =TRUNC((1-$H$9)*(SUMIFS(CPU!$G:$G,CPU!$A:$A,'MARCADO DOS PEREIRAS'!$C19,CPU!$H:$H,"ss")+SUMIFS(CPU!$G:$G,CPU!$A:$A,'MARCADO DOS PEREIRAS'!$C19,CPU!$H:$H,"mdo")+SUMIF('Comp SINAPI AL 07-2025 Onerado'!B:B,'MARCADO DOS PEREIRAS'!C19,'Comp SINAPI AL 07-2025 Onerado'!E:E)+SUMIF('Ins SINAPI AL 07-2025 Onerado'!B:B,'MARCADO DOS PEREIRAS'!C19,'Ins SINAPI AL 07-2025 Onerado'!F:F)),2) -> 576.71 | H19: =TRUNC(G19*(1+$H$5),2) -> 710.56 | I19: =TRUNC(F19*H19,2) -> 710.56 | J19: TRUE
A20: 2.2 | D20: Canteiro de obras | I20: =SUM(I21) -> 25441.95 | J20: FALSE
A21: 2.2.1 | B21: PRÓPRIA | C21: CPU.03 | D21: =(VLOOKUP(C21,CPU!B7:C338,2,0)) -> Execução de canteiro de obras, inclusive, limpeza, refeitório, sanitários e central de formas | E21: =(VLOOKUP(C21,CPU!B2:D$445,3,0)) -> m2 | F21: 28.5 | G21: =TRUNC((1-$H$9)*(SUMIFS(CPU!$G:$G,CPU!$A:$A,'MARCADO DOS PEREIRAS'!$C21,CPU!$H:$H,"ss")+SUMIFS(CPU!$G:$G,CPU!$A:$A,'MARCADO DOS PEREIRAS'!$C21,CPU!$H:$H,"mdo")+SUMIF('Comp SINAPI AL 07-2025 Onerado'!B:B,'MARCADO DOS PEREIRAS'!C21,'Comp SINAPI AL 07-2025 Onerado'!E:E)+SUMIF('Ins SINAPI AL 07-2025 Onerado'!B:B,'MARCADO DOS PEREIRAS'!C21,'Ins SINAPI AL 07-2025 Onerado'!F:F)),2) -> 724.54 | H21: =TRUNC(G21*(1+$H$5),2) -> 892.7 | I21: =TRUNC(F21*H21,2) -> 25441.95 | J21: TRUE
A22: 2.3 | D22: Sinalização | I22: =SUM(I23:I23) -> 1146.12 | J22: FALSE
A23: 2.3.1 | B23: SINAPI | C23: 103689 | D23: =IF(J23="ca",VLOOKUP(C23,'Comp SINAPI AL 07-2025 Onerado'!$B$11:$C$9004,2,0),VLOOKUP(C23,'Ins SINAPI AL 07-2025 Onerado'!$B$10:$C$9000,2,0)) -> FORNECIMENTO E INSTALAÇÃO DE PLACA DE OBRA COM CHAPA GALVANIZADA E ESTRUTURA DE MADEIRA. AF_03/2022_PS | E23: =IF(J23="ca",VLOOKUP(C23,'Comp SINAPI AL 07-2025 Onerado'!$B$11:$D$9004,3,0),VLOOKUP(C23,'Ins SINAPI AL 07-2025 Onerado'!$B$11:$D$9000,3,0)) -> M2 | F23: 2 | G23: =TRUNC((1-$H$9)*(SUMIFS(CPU!$G:$G,CPU!$A:$A,'MARCADO DOS PEREIRAS'!$C23,CPU!$H:$H,"ss")+SUMIFS(CPU!$G:$G,CPU!$A:$A,'MARCADO DOS PEREIRAS'!$C23,CPU!$H:$H,"mdo")+SUMIF('Comp SINAPI AL 07-2025 Onerado'!B:B,'MARCADO DOS PEREIRAS'!C23,'Comp SINAPI AL 07-2025 Onerado'!E:E)+SUMIF('Ins SINAPI AL 07-2025 Onerado'!B:B,'MARCADO DOS PEREIRAS'!C23,'Ins SINAPI AL 07-2025 Onerado'!F:F)),2) -> 465.11 | H23: =TRUNC(G23*(1+$H$5),2) -> 573.06 | I23: =TRUNC(F23*H23,2) -> 1146.12 | J23: ca
J24: FALSE
A25: 3 | D25: CORTE DA VEGETAÇÃO E REMOÇÃO DAS RAIZES | I25: =SUM(I26,I29) -> 48871.2 | J25: FALSE
A26: 3.1 | D26: Remoção da vegetação | I26: =SUM(I27:I28) -> 21691.2 | J26: FALSE
A27: 3.1.1 | B27: PRÓPRIA | C27: CPU.04 | D27: =(VLOOKUP(C27,CPU!B13:C342,2,0)) -> Limpeza de vegetação | E27: =(VLOOKUP(C27,CPU!B2:D$445,3,0)) -> m2 | F27: 10160 | G27: =TRUNC((1-$H$9)*(SUMIFS(CPU!$G:$G,CPU!$A:$A,'MARCADO DOS PEREIRAS'!$C27,CPU!$H:$H,"ss")+SUMIFS(CPU!$G:$G,CPU!$A:$A,'MARCADO DOS PEREIRAS'!$C27,CPU!$H:$H,"mdo")+SUMIF('Comp SINAPI AL 07-2025 Onerado'!B:B,'MARCADO DOS PEREIRAS'!C27,'Comp SINAPI AL 07-2025 Onerado'!E:E)+SUMIF('Ins SINAPI AL 07-2025 Onerado'!B:B,'MARCADO DOS PEREIRAS'!C27,'Ins SINAPI AL 07-2025 Onerado'!F:F)),2) -> 1.17 | H27: =TRUNC(G27*(1+$H$5),2) -> 1.44 | I27: =TRUNC(F27*H27,2) -> 14630.4 | J27: TRUE
A28: 3.1.2 | B28: PRÓPRIA | C28: CPU.05 | D28: =(VLOOKUP(C28,CPU!B14:C343,2,0)) -> Corte de tronco e remoção de raiz | E28: =(VLOOKUP(C28,CPU!B3:D$445,3,0)) -> un | F28: 20 | G28: =TRUNC((1-$H$9)*(SUMIFS(CPU!$G:$G,CPU!$A:$A,'MARCADO DOS PEREIRAS'!$C28,CPU!$H:$H,"ss")+SUMIFS(CPU!$G:$G,CPU!$A:$A,'MARCADO DOS PEREIRAS'!$C28,CPU!$H:$H,"mdo")+SUMIF('Comp SINAPI AL 07-2025 Onerado'!B:B,'MARCADO DOS PEREIRAS'!C28,'Comp SINAPI AL 07-2025 Onerado'!E:E)+SUMIF('Ins SINAPI AL 07-2025 Onerado'!B:B,'MARCADO DOS PEREIRAS'!C28,'Ins SINAPI AL 07-2025 Onerado'!F:F)),2) -> 286.54 | H28: =TRUNC(G28*(1+$H$5),2) -> 353.04 | I28: =TRUNC(F28*H28,2) -> 7060.8 | J28: TRUE
A29: 3.2 | D29: Remoção da vegetação aquática | I29: =SUM(I30) -> 27180 | J29: FALSE
A30: 3.2.1 | B30: PRÓPRIA | C30: CPU.24 | D30: =(VLOOKUP(C30,CPU!B16:C345,2,0)) -> Remoção de vegetação aquática | E30: =(VLOOKUP(C30,CPU!B5:D$445,3,0)) -> m2 | F30: 2000 | G30: =TRUNC((1-$H$9)*(SUMIFS(CPU!$G:$G,CPU!$A:$A,'MARCADO DOS PEREIRAS'!$C30,CPU!$H:$H,"ss")+SUMIFS(CPU!$G:$G,CPU!$A:$A,'MARCADO DOS PEREIRAS'!$C30,CPU!$H:$H,"mdo")+SUMIF('Comp SINAPI AL 07-2025 Onerado'!B:B,'MARCADO DOS PEREIRAS'!C30,'Comp SINAPI AL 07-2025 Onerado'!E:E)+SUMIF('Ins SINAPI AL 07-2025 Onerado'!B:B,'MARCADO DOS PEREIRAS'!C30,'Ins SINAPI AL 07-2025 Onerado'!F:F)),2) -> 11.03 | H30: =TRUNC(G30*(1+$H$5),2) -> 13.59 | I30: =TRUNC(F30*H30,2) -> 27180 | J30: TRUE
J31: FALSE
A32: 4 | D32: RECUPERAÇÃO DO MACIÇO | I32: =SUM(I33) -> 1668.5 | J32: FALSE
A33: 4.1 | D33: Recomposição das Erosões (erosões e buracos nas ombreiras e taludes) | I33: =I34 -> 1668.5 | J33: FALSE
A34: 4.1.1 | B34: PRÓPRIA | C34: CPU.09 | D34: =(VLOOKUP(C34,CPU!B18:C347,2,0)) -> Recomposição das erosões, inclusive, regularização da superfície e reaterro | E34: =(VLOOKUP(C34,CPU!B4:D$445,3,0)) -> m3 | F34: 10 | G34: =TRUNC((1-$H$9)*(SUMIFS(CPU!$G:$G,CPU!$A:$A,'MARCADO DOS PEREIRAS'!$C34,CPU!$H:$H,"ss")+SUMIFS(CPU!$G:$G,CPU!$A:$A,'MARCADO DOS PEREIRAS'!$C34,CPU!$H:$H,"mdo")+SUMIF('Comp SINAPI AL 07-2025 Onerado'!B:B,'MARCADO DOS PEREIRAS'!C34,'Comp SINAPI AL 07-2025 Onerado'!E:E)+SUMIF('Ins SINAPI AL 07-2025 Onerado'!B:B,'MARCADO DOS PEREIRAS'!C34,'Ins SINAPI AL 07-2025 Onerado'!F:F)),2) -> 135.42 | H34: =TRUNC(G34*(1+$H$5),2) -> 166.85 | I34: =TRUNC(F34*H34,2) -> 1668.5 | J34: TRUE
J35: FALSE
A36: 5 | D36: REGULARIZAÇÃO E PAVIMENTAÇÃO DA CRISTA | I36: =SUM(I37,I40,I44) -> 75212.04 | J36: FALSE
A37: 5.1 | D37: Limpeza e Regularização da Crista | I37: =SUM(I38:I39) -> 7137.42 | J37: FALSE
A38: 5.1.1 | B38: PRÓPRIA | C38: CPU.25 | D38: =(VLOOKUP(C38,CPU!B9:C338,2,0)) -> Demolição e remoção de guias | E38: =(VLOOKUP(C38,CPU!B9:D338,3,0)) -> m | F38: 150 | G38: =TRUNC((1-$H$9)*(SUMIFS(CPU!$G:$G,CPU!$A:$A,'MARCADO DOS PEREIRAS'!$C38,CPU!$H:$H,"ss")+SUMIFS(CPU!$G:$G,CPU!$A:$A,'MARCADO DOS PEREIRAS'!$C38,CPU!$H:$H,"mdo")+SUMIF('Comp SINAPI AL 07-2025 Onerado'!B:B,'MARCADO DOS PEREIRAS'!C38,'Comp SINAPI AL 07-2025 Onerado'!E:E)+SUMIF('Ins SINAPI AL 07-2025 Onerado'!B:B,'MARCADO DOS PEREIRAS'!C38,'Ins SINAPI AL 07-2025 Onerado'!F:F)),2) -> 24.11 | H38: =TRUNC(G38*(1+$H$5),2) -> 29.7 | I38: =TRUNC(F38*H38,2) -> 4455 | J38: TRUE
A39: 5.1.2 | B39: PRÓPRIA | C39: CPU.10 | D39: =(VLOOKUP(C39,CPU!B10:C339,2,0)) -> Regularização e compactação da crista | E39: =(VLOOKUP(C39,CPU!B10:D339,3,0)) -> m2 | F39: 741 | G39: =TRUNC((1-$H$9)*(SUMIFS(CPU!$G:$G,CPU!$A:$A,'MARCADO DOS PEREIRAS'!$C39,CPU!$H:$H,"ss")+SUMIFS(CPU!$G:$G,CPU!$A:$A,'MARCADO DOS PEREIRAS'!$C39,CPU!$H:$H,"mdo")+SUMIF('Comp SINAPI AL 07-2025 Onerado'!B:B,'MARCADO DOS PEREIRAS'!C39,'Comp SINAPI AL 07-2025 Onerado'!E:E)+SUMIF('Ins SINAPI AL 07-2025 Onerado'!B:B,'MARCADO DOS PEREIRAS'!C39,'Ins SINAPI AL 07-2025 Onerado'!F:F)),2) -> 2.94 | H39: =TRUNC(G39*(1+$H$5),2) -> 3.62 | I39: =TRUNC(F39*H39,2) -> 2682.42 | J39: TRUE
A40: 5.2 | D40: Instalação de meio-fio em ambos os lados da crista | I40: =SUM(I41:I43) -> 40477.06 | J40: FALSE
A41: 5.2.1 | B41: PRÓPRIA | C41: CPU.13 | D41: =(VLOOKUP(C41,CPU!B13:C342,2,0)) -> Fornecimento e Assentamento de Guia (meio-fio) Pré-fabricado, dimensões 100X15X13X30 Cm (Comprimento X Base Inferior X Base Superior X Altura) | E41: =(VLOOKUP(C41,CPU!B13:D342,3,0)) -> m | F41: 453 | G41: =TRUNC((1-$H$9)*(SUMIFS(CPU!$G:$G,CPU!$A:$A,'MARCADO DOS PEREIRAS'!$C41,CPU!$H:$H,"ss")+SUMIFS(CPU!$G:$G,CPU!$A:$A,'MARCADO DOS PEREIRAS'!$C41,CPU!$H:$H,"mdo")+SUMIF('Comp SINAPI AL 07-2025 Onerado'!B:B,'MARCADO DOS PEREIRAS'!C41,'Comp SINAPI AL 07-2025 Onerado'!E:E)+SUMIF('Ins SINAPI AL 07-2025 Onerado'!B:B,'MARCADO DOS PEREIRAS'!C41,'Ins SINAPI AL 07-2025 Onerado'!F:F)),2) -> 64.85 | H41: =TRUNC(G41*(1+$H$5),2) -> 79.9 | I41: =TRUNC(F41*H41,2) -> 36194.7 | J41: TRUE
A42: 5.2.2 | B42: PRÓPRIA | C42: CPU.07 | D42: =(VLOOKUP(C42,CPU!B13:C342,2,0)) -> Entrada para descida d’água tipo EDA 01 B | E42: =(VLOOKUP(C42,CPU!B13:D342,3,0)) -> un | F42: 8 | G42: =TRUNC((1-$H$9)*(SUMIFS(CPU!$G:$G,CPU!$A:$A,'MARCADO DOS PEREIRAS'!$C42,CPU!$H:$H,"ss")+SUMIFS(CPU!$G:$G,CPU!$A:$A,'MARCADO DOS PEREIRAS'!$C42,CPU!$H:$H,"mdo")+SUMIF('Comp SINAPI AL 07-2025 Onerado'!B:B,'MARCADO DOS PEREIRAS'!C42,'Comp SINAPI AL 07-2025 Onerado'!E:E)+SUMIF('Ins SINAPI AL 07-2025 Onerado'!B:B,'MARCADO DOS PEREIRAS'!C42,'Ins SINAPI AL 07-2025 Onerado'!F:F)),2) -> 289.23 | H42: =TRUNC(G42*(1+$H$5),2) -> 356.36 | I42: =TRUNC(F42*H42,2) -> 2850.88 | J42: TRUE
A43: 5.2.3 | B43: PRÓPRIA | C43: CPU.20 | D43: =(VLOOKUP(C43,CPU!B14:C343,2,0)) -> Pintura do meio-fio | E43: =(VLOOKUP(C43,CPU!B14:D343,3,0)) -> m | F43: =F41 -> 453 | G43: =TRUNC((1-$H$9)*(SUMIFS(CPU!$G:$G,CPU!$A:$A,'MARCADO DOS PEREIRAS'!$C43,CPU!$H:$H,"ss")+SUMIFS(CPU!$G:$G,CPU!$A:$A,'MARCADO DOS PEREIRAS'!$C43,CPU!$H:$H,"mdo")+SUMIF('Comp SINAPI AL 07-2025 Onerado'!B:B,'MARCADO DOS PEREIRAS'!C43,'Comp SINAPI AL 07-2025 Onerado'!E:E)+SUMIF('Ins SINAPI AL 07-2025 Onerado'!B:B,'MARCADO DOS PEREIRAS'!C43,'Ins SINAPI AL 07-2025 Onerado'!F:F)),2) -> 2.57 | H43: =TRUNC(G43*(1+$H$5),2) -> 3.16 | I43: =TRUNC(F43*H43,2) -> 1431.48 | J43: TRUE
A44: 5.3 | D44: Pavimentação da Crista | I44: =SUM(I45:I45) -> 27597.56 | J44: FALSE
A45: 5.3.1 | B45: PRÓPRIA | C45: CPU.11 | D45: =(VLOOKUP(C45,CPU!B14:C343,2,0)) -> Execução de Revestimento em BGTC com 10 cm de espessura | E45: =(VLOOKUP(C45,CPU!B14:D343,3,0)) -> m3 | F45: 74 | G45: =TRUNC((1-$H$9)*(SUMIFS(CPU!$G:$G,CPU!$A:$A,'MARCADO DOS PEREIRAS'!$C45,CPU!$H:$H,"ss")+SUMIFS(CPU!$G:$G,CPU!$A:$A,'MARCADO DOS PEREIRAS'!$C45,CPU!$H:$H,"mdo")+SUMIF('Comp SINAPI AL 07-2025 Onerado'!B:B,'MARCADO DOS PEREIRAS'!C45,'Comp SINAPI AL 07-2025 Onerado'!E:E)+SUMIF('Ins SINAPI AL 07-2025 Onerado'!B:B,'MARCADO DOS PEREIRAS'!C45,'Ins SINAPI AL 07-2025 Onerado'!F:F)),2) -> 302.69 | H45: =TRUNC(G45*(1+$H$5),2) -> 372.94 | I45: =TRUNC(F45*H45,2) -> 27597.56 | J45: TRUE
J46: FALSE
A47: 6 | D47: MANUTENÇÃO NO TALUDE DE MONTANTE | I47: =SUM(I48) -> 21789.36 | J47: FALSE
A48: 6.1 | D48: Implantação de rip-rap em enrocamento | I48: =SUM(I49:I49) -> 21789.36 | J48: FALSE
A49: 6.1.1 | B49: PRÓPRIA | C49: CPU.06 | D49: =(VLOOKUP(C49,CPU!B24:C353,2,0)) -> Enrocamento c/ pedra de mão c/ fornecimento e assentamento | E49: =(VLOOKUP(C49,CPU!B24:D445,3,0)) -> m3 | F49: 106 | G49: =TRUNC((1-$H$9)*(SUMIFS(CPU!$G:$G,CPU!$A:$A,'MARCADO DOS PEREIRAS'!$C49,CPU!$H:$H,"ss")+SUMIFS(CPU!$G:$G,CPU!$A:$A,'MARCADO DOS PEREIRAS'!$C49,CPU!$H:$H,"mdo")+SUMIF('Comp SINAPI AL 07-2025 Onerado'!B:B,'MARCADO DOS PEREIRAS'!C49,'Comp SINAPI AL 07-2025 Onerado'!E:E)+SUMIF('Ins SINAPI AL 07-2025 Onerado'!B:B,'MARCADO DOS PEREIRAS'!C49,'Ins SINAPI AL 07-2025 Onerado'!F:F)),2) -> 166.84 | H49: =TRUNC(G49*(1+$H$5),2) -> 205.56 | I49: =TRUNC(F49*H49,2) -> 21789.36 | J49: TRUE
J50: FALSE
A51: 7 | D51: PROTEÇÃO SUPERFICIAL DO TALUDE DE JUSANTE | I51: =SUM(I52,I54) -> 20840.2 | J51: FALSE
A52: 7.1 | D52: Proteção vegetal | I52: =SUM(I53) -> 18527.4 | J52: FALSE
A53: 7.1.1 | B53: PRÓPRIA | C53: CPU.08 | D53: =(VLOOKUP(C53,CPU!B25:C356,2,0)) -> Plantio de vegetação tipo gramínea para proteção de talude com hidrossemeadura, inclusive adubação e transporte | E53: =(VLOOKUP(C53,CPU!B25:D444,3,0)) -> m2 | F53: 2115 | G53: =TRUNC((1-$H$9)*(SUMIFS(CPU!$G:$G,CPU!$A:$A,'MARCADO DOS PEREIRAS'!$C53,CPU!$H:$H,"ss")+SUMIFS(CPU!$G:$G,CPU!$A:$A,'MARCADO DOS PEREIRAS'!$C53,CPU!$H:$H,"mdo")+SUMIF('Comp SINAPI AL 07-2025 Onerado'!B:B,'MARCADO DOS PEREIRAS'!C53,'Comp SINAPI AL 07-2025 Onerado'!E:E)+SUMIF('Ins SINAPI AL 07-2025 Onerado'!B:B,'MARCADO DOS PEREIRAS'!C53,'Ins SINAPI AL 07-2025 Onerado'!F:F)),2) -> 7.11 | H53: =TRUNC(G53*(1+$H$5),2) -> 8.76 | I53: =TRUNC(F53*H53,2) -> 18527.4 | J53: TRUE
A54: 7.2 | D54: Irrigação da área de hidrossemeadura | I54: =SUM(I55:I55) -> 2312.8 | J54: FALSE
A55: 7.2.1 | B55: PRÓPRIA | C55: CPU.16 | D55: =(VLOOKUP(C55,CPU!B30:C361,2,0)) -> Irrigação - inclusive transporte | E55: =(VLOOKUP(C55,CPU!B29:D456,3,0)) -> m3 | F55: 20 | G55: =TRUNC((1-$H$9)*(SUMIFS(CPU!$G:$G,CPU!$A:$A,'MARCADO DOS PEREIRAS'!$C55,CPU!$H:$H,"ss")+SUMIFS(CPU!$G:$G,CPU!$A:$A,'MARCADO DOS PEREIRAS'!$C55,CPU!$H:$H,"mdo")+SUMIF('Comp SINAPI AL 07-2025 Onerado'!B:B,'MARCADO DOS PEREIRAS'!C55,'Comp SINAPI AL 07-2025 Onerado'!E:E)+SUMIF('Ins SINAPI AL 07-2025 Onerado'!B:B,'MARCADO DOS PEREIRAS'!C55,'Ins SINAPI AL 07-2025 Onerado'!F:F)),2) -> 93.86 | H55: =TRUNC(G55*(1+$H$5),2) -> 115.64 | I55: =TRUNC(F55*H55,2) -> 2312.8 | J55: TRUE
J56: FALSE
A57: 8 | D57: RECUPERAÇÃO DE CERCA EXISTENTE | I57: =SUM(I58,I60) -> 5054 | J57: FALSE
A58: 8.1 | D58: Substituição de mourão | I58: =SUM(I59) -> 3075 | J58: FALSE
A59: 8.1.1 | B59: PRÓPRIA | C59: CPU.26 | D59: =(VLOOKUP(C59,CPU!B34:C365,2,0)) -> Fornecimento e implantação de estaca pré-moldada de concreto armado | E59: =(VLOOKUP(C59,CPU!B33:D460,3,0)) -> un | F59: 20 | G59: =TRUNC((1-$H$9)*(SUMIFS(CPU!$G:$G,CPU!$A:$A,'MARCADO DOS PEREIRAS'!$C59,CPU!$H:$H,"ss")+SUMIFS(CPU!$G:$G,CPU!$A:$A,'MARCADO DOS PEREIRAS'!$C59,CPU!$H:$H,"mdo")+SUMIF('Comp SINAPI AL 07-2025 Onerado'!B:B,'MARCADO DOS PEREIRAS'!C59,'Comp SINAPI AL 07-2025 Onerado'!E:E)+SUMIF('Ins SINAPI AL 07-2025 Onerado'!B:B,'MARCADO DOS PEREIRAS'!C59,'Ins SINAPI AL 07-2025 Onerado'!F:F)),2) -> 124.79 | H59: =TRUNC(G59*(1+$H$5),2) -> 153.75 | I59: =TRUNC(F59*H59,2) -> 3075 | J59: TRUE
A60: 8.2 | D60: Recuperação do arame das cercas | I60: =SUM(I61) -> 1979 | J60: FALSE
A61: 8.2.1 | B61: PRÓPRIA | C61: CPU.27 | D61: =(VLOOKUP(C61,CPU!B36:C367,2,0)) -> Recuperação de arame das cercas | E61: =(VLOOKUP(C61,CPU!B35:D462,3,0)) -> m | F61: 100 | G61: =TRUNC((1-$H$9)*(SUMIFS(CPU!$G:$G,CPU!$A:$A,'MARCADO DOS PEREIRAS'!$C61,CPU!$H:$H,"ss")+SUMIFS(CPU!$G:$G,CPU!$A:$A,'MARCADO DOS PEREIRAS'!$C61,CPU!$H:$H,"mdo")+SUMIF('Comp SINAPI AL 07-2025 Onerado'!B:B,'MARCADO DOS PEREIRAS'!C61,'Comp SINAPI AL 07-2025 Onerado'!E:E)+SUMIF('Ins SINAPI AL 07-2025 Onerado'!B:B,'MARCADO DOS PEREIRAS'!C61,'Ins SINAPI AL 07-2025 Onerado'!F:F)),2) -> 16.07 | H61: =TRUNC(G61*(1+$H$5),2) -> 19.79 | I61: =TRUNC(F61*H61,2) -> 1979 | J61: TRUE
J62: FALSE
A63: 9 | D63: SERVIÇOS COMPLEMENTARES | I63: =SUM(I64) -> 8330.16 | J63: FALSE
A64: 9.1 | D64: Instalação de placas de aviso | I64: =SUM(I65:I66) -> 8330.16 | J64: FALSE
A65: 9.1.1 | B65: SINAPI | C65: 103689 | D65: =IF(J65="ca",VLOOKUP(C65,'Comp SINAPI AL 07-2025 Onerado'!$B$11:$C$9004,2,0),VLOOKUP(C65,'Ins SINAPI AL 07-2025 Onerado'!$B$10:$C$9000,2,0)) -> FORNECIMENTO E INSTALAÇÃO DE PLACA DE OBRA COM CHAPA GALVANIZADA E ESTRUTURA DE MADEIRA. AF_03/2022_PS | E65: =IF(J65="ca",VLOOKUP(C65,'Comp SINAPI AL 07-2025 Onerado'!$B$11:$D$9004,3,0),VLOOKUP(C65,'Ins SINAPI AL 07-2025 Onerado'!$B$11:$D$9000,3,0)) -> M2 | F65: 4 | G65: =TRUNC((1-$H$9)*(SUMIFS(CPU!$G:$G,CPU!$A:$A,'MARCADO DOS PEREIRAS'!$C65,CPU!$H:$H,"ss")+SUMIFS(CPU!$G:$G,CPU!$A:$A,'MARCADO DOS PEREIRAS'!$C65,CPU!$H:$H,"mdo")+SUMIF('Comp SINAPI AL 07-2025 Onerado'!B:B,'MARCADO DOS PEREIRAS'!C65,'Comp SINAPI AL 07-2025 Onerado'!E:E)+SUMIF('Ins SINAPI AL 07-2025 Onerado'!B:B,'MARCADO DOS PEREIRAS'!C65,'Ins SINAPI AL 07-2025 Onerado'!F:F)),2) -> 465.11 | H65: =TRUNC(G65*(1+$H$5),2) -> 573.06 | I65: =TRUNC(F65*H65,2) -> 2292.24 | J65: ca
A66: 9.1.2 | B66: PRÓPRIA | C66: CPU.19 | D66: =(VLOOKUP(C66,CPU!B34:C365,2,0)) -> Régua Linimétrica Padrão “ANA”, Aço Carbono - 2 X 70 X 1000 mm (Fornecimento e Instalação) | E66: =(VLOOKUP(C66,CPU!B35:D462,3,0)) -> un | F66: 14 | G66: =TRUNC((1-$H$9)*(SUMIFS(CPU!$G:$G,CPU!$A:$A,'MARCADO DOS PEREIRAS'!$C66,CPU!$H:$H,"ss")+SUMIFS(CPU!$G:$G,CPU!$A:$A,'MARCADO DOS PEREIRAS'!$C66,CPU!$H:$H,"mdo")+SUMIF('Comp SINAPI AL 07-2025 Onerado'!B:B,'MARCADO DOS PEREIRAS'!C66,'Comp SINAPI AL 07-2025 Onerado'!E:E)+SUMIF('Ins SINAPI AL 07-2025 Onerado'!B:B,'MARCADO DOS PEREIRAS'!C66,'Ins SINAPI AL 07-2025 Onerado'!F:F)),2) -> 350.04 | H66: =TRUNC(G66*(1+$H$5),2) -> 431.28 | I66: =TRUNC(F66*H66,2) -> 6037.92 | J66: TRUE
J67: FALSE
A68: 10 | D68: PROJETO "AS IS" | I68: =SUM(I69) -> 16565.23 | J68: FALSE
A69: 10.1 | D69: Levantamento topográfico e "AS IS" | I69: =SUM(I70:I71) -> 16565.23 | J69: FALSE
A70: 10.1.1 | B70: ORSE | C70: 9346 | D70: Levantamento topográfico planimétrico cadastral | E70: m2 | F70: =F27 -> 10160 | G70: =TRUNC((1-$H$9)*0.35,2) -> 0.35 | H70: =TRUNC(G70*(1+$H$5),2) -> 0.43 | I70: =TRUNC(F70*H70,2) -> 4368.8 | J70: TRUE
A71: 10.1.2 | B71: PRÓPRIA | C71: CPU.12 | D71: =(VLOOKUP(C71,CPU!B43:C373,2,0)) -> Projeto geométrico | E71: =(VLOOKUP(C71,CPU!B41:D468,3,0)) -> un | F71: 1 | G71: =TRUNC((1-$H$9)*(SUMIFS(CPU!$G:$G,CPU!$A:$A,'MARCADO DOS PEREIRAS'!$C71,CPU!$H:$H,"ss")+SUMIFS(CPU!$G:$G,CPU!$A:$A,'MARCADO DOS PEREIRAS'!$C71,CPU!$H:$H,"mdo")+SUMIF('Comp SINAPI AL 07-2025 Onerado'!B:B,'MARCADO DOS PEREIRAS'!C71,'Comp SINAPI AL 07-2025 Onerado'!E:E)+SUMIF('Ins SINAPI AL 07-2025 Onerado'!B:B,'MARCADO DOS PEREIRAS'!C71,'Ins SINAPI AL 07-2025 Onerado'!F:F)),2) -> 9898.9 | H71: =TRUNC(G71*(1+$H$5),2) -> 12196.43 | I71: =TRUNC(F71*H71,2) -> 12196.43 | J71: TRUE
J72: FALSE
A73: 11 | D73: FISCALIZAÇÃO E ACOMPANHAMENTO | I73: =SUM(I74) -> 951.65 | J73: FALSE
A74: 11.1 | D74: Disponibilidade de veículo para apoio a fiscalização | I74: =SUM(I75) -> 951.65 | J74: FALSE
A75: 11.1.1 | B75: PRÓPRIA | C75: CPU.14 | D75: =(VLOOKUP(C75,CPU!B47:C377,2,0)) -> Disponibilidade de veículo para apoio a fiscalização, inclusive combustível | E75: =(VLOOKUP(C75,CPU!B46:D472,3,0)) -> un | F75: =F15+2 -> 5 | G75: =TRUNC((1-$H$9)*(SUMIFS(CPU!$G:$G,CPU!$A:$A,'MARCADO DOS PEREIRAS'!$C75,CPU!$H:$H,"ss")+SUMIFS(CPU!$G:$G,CPU!$A:$A,'MARCADO DOS PEREIRAS'!$C75,CPU!$H:$H,"mdo")+SUMIF('Comp SINAPI AL 07-2025 Onerado'!B:B,'MARCADO DOS PEREIRAS'!C75,'Comp SINAPI AL 07-2025 Onerado'!E:E)+SUMIF('Ins SINAPI AL 07-2025 Onerado'!B:B,'MARCADO DOS PEREIRAS'!C75,'Ins SINAPI AL 07-2025 Onerado'!F:F)),2) -> 154.48 | H75: =TRUNC(G75*(1+$H$5),2) -> 190.33 | I75: =TRUNC(F75*H75,2) -> 951.65 | J75: TRUE
D77: TOTAL (Custo): | I77: =TRUNC(SUMPRODUCT(F14:F75,G14:G75),2) -> 268765.89
D78: BDI e Encargos Sociais: | I78: =I79-I77 -> 62342.94
D79: TOTAL GERAL COM BDI: | I79: =SUM(I13,I17,I25,I32,I36,I47,I51,I57,I63,I68,I73) -> 331108.83 | L79: =TRUNC(SUMPRODUCT(F14:F75,H14:H75),2) -> 331108.83

Sheet MARCADO GRANDE
A1: Ministério da Integração e do Desenvolvimento Regional
A2: Companhia de Desenvolvimento dos Vales do São Francisco e do Parnaíba
A4: PLANILHA ORÇAMENTÁRIA - ORÇAMENTO NÃO DESONERADO
A5: OBRA: | B5: =Resumo!B5 -> Contratação de empresa para execução de manutenção e recuperação nas barragens de Itapicuru, Marcado dos Pereiras e Marcado Grande no estado de Alagoas. | G5: BDI (serv.): | H5: ='BDI serv'!D23 -> 0.2321 | I5: Bancos de dados:
A6: LOCAL: | B6: Barragem Marcado Grande, localizada no município de Campo Grande - AL | G6: BDI (forn.): | H6: ='BDI forn'!D23 -> 0.1469 | I6: =Resumo!G6 -> AGO/25 - SINAPI
A7: DATA BASE: | B7: 2025-10-07 | E7: Encargos sociais - Horistas: | H7: ='Encargos Sociais'!E49 -> 1.1441 | I7: =Resumo!G7 -> JUL/25 - ORSE
A8: PRAZO: | B8: 90 dias | E8: Encargos sociais - Mensalista: | H8: ='Encargos Sociais'!F49 -> 0.7012 | I8: =Resumo!G8 -> JUL/2025 - SICRO3
B9: Marcado Grande | G9: Desconto: | H9: ='MARCADO DOS PEREIRAS'!H9 -> 0 | I9: =Resumo!G9 -> JUN/25 - EMBASA
I10: =Resumo!G10 -> 028 - SEINFRA
A11: ITEM | B11: REFERÊNCIA | D11: DESCRIÇÃO | E11: UNID. | F11: QUANT. | G11: CUSTO UNITÁRIO | H11: PREÇO UNITÁRIO | I11: PREÇO TOTAL
B12: FONTE | C12: CÓDIGO
A13: 1 | D13: ADMINISTRAÇÃO DA OBRA | I13: =SUM(I14) -> 104527.86
A14: 1.1 | D14: Administração da Obra | I14: =SUM(I15:I15) -> 104527.86
A15: 1.1.1 | B15: PRÓPRIA | C15: CPU.01 | D15: =(VLOOKUP(C15,CPU!B1:C282,2,0)) -> Administração Local | E15: =(VLOOKUP(C15,CPU!B2:D$445,3,0)) -> mês | F15: 3 | G15: =TRUNC((1-$H$9)*(SUMIFS(CPU!$G:$G,CPU!$A:$A,'MARCADO GRANDE'!$C15,CPU!$H:$H,"ss")+SUMIFS(CPU!$G:$G,CPU!$A:$A,'MARCADO GRANDE'!$C15,CPU!$H:$H,"mdo")+SUMIF('Comp SINAPI AL 07-2025 Onerado'!B:B,'MARCADO GRANDE'!C15,'Comp SINAPI AL 07-2025 Onerado'!E:E)+SUMIF('Ins SINAPI AL 07-2025 Onerado'!B:B,'MARCADO GRANDE'!C15,'Ins SINAPI AL 07-2025 Onerado'!F:F)),2) -> 28279.06 | H15: =TRUNC(G15*(1+$H$5),2) -> 34842.62 | I15: =TRUNC(F15*H15,2) -> 104527.86 | K15: =_xlfn.ISFORMULA(G15) -> TRUE
K16: =_xlfn.ISFORMULA(G16) -> FALSE
A17: 2 | D17: SERVIÇOS PRELIMINARES | I17: =SUM(I18,I20,I22) -> 27298.63 | K17: FALSE
A18: 2.1 | D18: Mobilização e desmobilização | I18: =SUM(I19) -> 710.56 | K18: FALSE
A19: 2.1.1 | B19: PRÓPRIA | C19: CPU.02 | D19: =(VLOOKUP(C19,CPU!B5:C327,2,0)) -> Mobilização e desmobilização de instalação do canteiro | E19: =(VLOOKUP(C19,CPU!B2:D$445,3,0)) -> un | F19: 1 | G19: =TRUNC((1-$H$9)*(SUMIFS(CPU!$G:$G,CPU!$A:$A,'MARCADO GRANDE'!$C19,CPU!$H:$H,"ss")+SUMIFS(CPU!$G:$G,CPU!$A:$A,'MARCADO GRANDE'!$C19,CPU!$H:$H,"mdo")+SUMIF('Comp SINAPI AL 07-2025 Onerado'!B:B,'MARCADO GRANDE'!C19,'Comp SINAPI AL 07-2025 Onerado'!E:E)+SUMIF('Ins SINAPI AL 07-2025 Onerado'!B:B,'MARCADO GRANDE'!C19,'Ins SINAPI AL 07-2025 Onerado'!F:F)),2) -> 576.71 | H19: =TRUNC(G19*(1+$H$5),2) -> 710.56 | I19: =TRUNC(F19*H19,2) -> 710.56 | K19: TRUE
A20: 2.2 | D20: Canteiro de obras | I20: =SUM(I21) -> 25441.95 | K20: FALSE
A21: 2.2.1 | B21: PRÓPRIA | C21: CPU.03 | D21: =(VLOOKUP(C21,CPU!B7:C338,2,0)) -> Execução de canteiro de obras, inclusive, limpeza, refeitório, sanitários e central de formas | E21: =(VLOOKUP(C21,CPU!B2:D$445,3,0)) -> m2 | F21: 28.5 | G21: =TRUNC((1-$H$9)*(SUMIFS(CPU!$G:$G,CPU!$A:$A,'MARCADO GRANDE'!$C21,CPU!$H:$H,"ss")+SUMIFS(CPU!$G:$G,CPU!$A:$A,'MARCADO GRANDE'!$C21,CPU!$H:$H,"mdo")+SUMIF('Comp SINAPI AL 07-2025 Onerado'!B:B,'MARCADO GRANDE'!C21,'Comp SINAPI AL 07-2025 Onerado'!E:E)+SUMIF('Ins SINAPI AL 07-2025 Onerado'!B:B,'MARCADO GRANDE'!C21,'Ins SINAPI AL 07-2025 Onerado'!F:F)),2) -> 724.54 | H21: =TRUNC(G21*(1+$H$5),2) -> 892.7 | I21: =TRUNC(F21*H21,2) -> 25441.95 | K21: TRUE
A22: 2.3 | D22: Sinalização | I22: =SUM(I23:I23) -> 1146.12 | K22: FALSE
A23: 2.3.1 | B23: SINAPI | C23: 103689 | D23: =IF(J23="ca",VLOOKUP(C23,'Comp SINAPI AL 07-2025 Onerado'!$B$11:$C$9004,2,0),VLOOKUP(C23,'Ins SINAPI AL 07-2025 Onerado'!$B$10:$C$9000,2,0)) -> FORNECIMENTO E INSTALAÇÃO DE PLACA DE OBRA COM CHAPA GALVANIZADA E ESTRUTURA DE MADEIRA. AF_03/2022_PS | E23: =IF(J23="ca",VLOOKUP(C23,'Comp SINAPI AL 07-2025 Onerado'!$B$11:$D$9004,3,0),VLOOKUP(C23,'Ins SINAPI AL 07-2025 Onerado'!$B$11:$D$9000,3,0)) -> M2 | F23: 2 | G23: =TRUNC((1-$H$9)*(SUMIFS(CPU!$G:$G,CPU!$A:$A,'MARCADO GRANDE'!$C23,CPU!$H:$H,"ss")+SUMIFS(CPU!$G:$G,CPU!$A:$A,'MARCADO GRANDE'!$C23,CPU!$H:$H,"mdo")+SUMIF('Comp SINAPI AL 07-2025 Onerado'!B:B,'MARCADO GRANDE'!C23,'Comp SINAPI AL 07-2025 Onerado'!E:E)+SUMIF('Ins SINAPI AL 07-2025 Onerado'!B:B,'MARCADO GRANDE'!C23,'Ins SINAPI AL 07-2025 Onerado'!F:F)),2) -> 465.11 | H23: =TRUNC(G23*(1+$H$5),2) -> 573.06 | I23: =TRUNC(F23*H23,2) -> 1146.12 | J23: ca | K23: TRUE
K24: FALSE
A25: 3 | D25: CORTE DA VEGETAÇÃO E REMOÇÃO DAS RAIZES | I25: =SUM(I26,I29) -> 50044.8 | K25: FALSE
A26: 3.1 | D26: Remoção da vegetação | I26: =SUM(I27:I28) -> 22864.8 | K26: FALSE
A27: 3.1.1 | B27: PRÓPRIA | C27: CPU.04 | D27: =(VLOOKUP(C27,CPU!B13:C342,2,0)) -> Limpeza de vegetação | E27: =(VLOOKUP(C27,CPU!B2:D$445,3,0)) -> m2 | F27: 10975 | G27: =TRUNC((1-$H$9)*(SUMIFS(CPU!$G:$G,CPU!$A:$A,'MARCADO GRANDE'!$C27,CPU!$H:$H,"ss")+SUMIFS(CPU!$G:$G,CPU!$A:$A,'MARCADO GRANDE'!$C27,CPU!$H:$H,"mdo")+SUMIF('Comp SINAPI AL 07-2025 Onerado'!B:B,'MARCADO GRANDE'!C27,'Comp SINAPI AL 07-2025 Onerado'!E:E)+SUMIF('Ins SINAPI AL 07-2025 Onerado'!B:B,'MARCADO GRANDE'!C27,'Ins SINAPI AL 07-2025 Onerado'!F:F)),2) -> 1.17 | H27: =TRUNC(G27*(1+$H$5),2) -> 1.44 | I27: =TRUNC(F27*H27,2) -> 15804 | K27: TRUE
A28: 3.1.2 | B28: PRÓPRIA | C28: CPU.05 | D28: =(VLOOKUP(C28,CPU!B14:C343,2,0)) -> Corte de tronco e remoção de raiz | E28: =(VLOOKUP(C28,CPU!B3:D$445,3,0)) -> un | F28: 20 | G28: =TRUNC((1-$H$9)*(SUMIFS(CPU!$G:$G,CPU!$A:$A,'MARCADO GRANDE'!$C28,CPU!$H:$H,"ss")+SUMIFS(CPU!$G:$G,CPU!$A:$A,'MARCADO GRANDE'!$C28,CPU!$H:$H,"mdo")+SUMIF('Comp SINAPI AL 07-2025 Onerado'!B:B,'MARCADO GRANDE'!C28,'Comp SINAPI AL 07-2025 Onerado'!E:E)+SUMIF('Ins SINAPI AL 07-2025 Onerado'!B:B,'MARCADO GRANDE'!C28,'Ins SINAPI AL 07-2025 Onerado'!F:F)),2) -> 286.54 | H28: =TRUNC(G28*(1+$H$5),2) -> 353.04 | I28: =TRUNC(F28*H28,2) -> 7060.8 | K28: TRUE
A29: 3.2 | D29: Remoção da vegetação aquática | I29: =SUM(I30) -> 27180 | K29: FALSE
A30: 3.2.1 | B30: PRÓPRIA | C30: CPU.24 | D30: =(VLOOKUP(C30,CPU!B16:C345,2,0)) -> Remoção de vegetação aquática | E30: =(VLOOKUP(C30,CPU!B5:D$445,3,0)) -> m2 | F30: 2000 | G30: =TRUNC((1-$H$9)*(SUMIFS(CPU!$G:$G,CPU!$A:$A,'MARCADO GRANDE'!$C30,CPU!$H:$H,"ss")+SUMIFS(CPU!$G:$G,CPU!$A:$A,'MARCADO GRANDE'!$C30,CPU!$H:$H,"mdo")+SUMIF('Comp SINAPI AL 07-2025 Onerado'!B:B,'MARCADO GRANDE'!C30,'Comp SINAPI AL 07-2025 Onerado'!E:E)+SUMIF('Ins SINAPI AL 07-2025 Onerado'!B:B,'MARCADO GRANDE'!C30,'Ins SINAPI AL 07-2025 Onerado'!F:F)),2) -> 11.03 | H30: =TRUNC(G30*(1+$H$5),2) -> 13.59 | I30: =TRUNC(F30*H30,2) -> 27180 | K30: TRUE
K31: FALSE
A32: 4 | D32: RECUPERAÇÃO DO MACIÇO | I32: =SUM(I33) -> 1668.5 | K32: FALSE
A33: 4.1 | D33: Recomposição das Erosões (erosões e buracos nas ombreiras e taludes) | I33: =I34 -> 1668.5 | K33: FALSE
A34: 4.1.1 | B34: PRÓPRIA | C34: CPU.09 | D34: =(VLOOKUP(C34,CPU!B18:C347,2,0)) -> Recomposição das erosões, inclusive, regularização da superfície e reaterro | E34: =(VLOOKUP(C34,CPU!B4:D$445,3,0)) -> m3 | F34: 10 | G34: =TRUNC((1-$H$9)*(SUMIFS(CPU!$G:$G,CPU!$A:$A,'MARCADO GRANDE'!$C34,CPU!$H:$H,"ss")+SUMIFS(CPU!$G:$G,CPU!$A:$A,'MARCADO GRANDE'!$C34,CPU!$H:$H,"mdo")+SUMIF('Comp SINAPI AL 07-2025 Onerado'!B:B,'MARCADO GRANDE'!C34,'Comp SINAPI AL 07-2025 Onerado'!E:E)+SUMIF('Ins SINAPI AL 07-2025 Onerado'!B:B,'MARCADO GRANDE'!C34,'Ins SINAPI AL 07-2025 Onerado'!F:F)),2) -> 135.42 | H34: =TRUNC(G34*(1+$H$5),2) -> 166.85 | I34: =TRUNC(F34*H34,2) -> 1668.5 | K34: TRUE
K35: FALSE
A36: 5 | D36: REGULARIZAÇÃO E PAVIMENTAÇÃO DA CRISTA | I36: =SUM(I37,I39,I43) -> 65999.96 | K36: FALSE
A37: 5.1 | D37: Limpeza e Regularização da Crista | I37: =SUM(I38:I38) -> 2599.16 | K37: FALSE
A38: 5.1.1 | B38: PRÓPRIA | C38: CPU.10 | D38: =(VLOOKUP(C38,CPU!B15:C344,2,0)) -> Regularização e compactação da crista | E38: =(VLOOKUP(C38,CPU!B1:D$445,3,0)) -> m2 | F38: 718 | G38: =TRUNC((1-$H$9)*(SUMIFS(CPU!$G:$G,CPU!$A:$A,'MARCADO GRANDE'!$C38,CPU!$H:$H,"ss")+SUMIFS(CPU!$G:$G,CPU!$A:$A,'MARCADO GRANDE'!$C38,CPU!$H:$H,"mdo")+SUMIF('Comp SINAPI AL 07-2025 Onerado'!B:B,'MARCADO GRANDE'!C38,'Comp SINAPI AL 07-2025 Onerado'!E:E)+SUMIF('Ins SINAPI AL 07-2025 Onerado'!B:B,'MARCADO GRANDE'!C38,'Ins SINAPI AL 07-2025 Onerado'!F:F)),2) -> 2.94 | H38: =TRUNC(G38*(1+$H$5),2) -> 3.62 | I38: =TRUNC(F38*H38,2) -> 2599.16 | K38: TRUE
A39: 5.2 | D39: Instalação de meio-fio em ambos os lados da crista | I39: =SUM(I40:I42) -> 36549.12 | K39: FALSE
A40: 5.2.1 | B40: PRÓPRIA | C40: CPU.13 | D40: =(VLOOKUP(C40,CPU!B10:C339,2,0)) -> Fornecimento e Assentamento de Guia (meio-fio) Pré-fabricado, dimensões 100X15X13X30 Cm (Comprimento X Base Inferior X Base Superior X Altura) | E40: =(VLOOKUP(C40,CPU!B10:D339,3,0)) -> m | F40: 410 | G40: =TRUNC((1-$H$9)*(SUMIFS(CPU!$G:$G,CPU!$A:$A,'MARCADO GRANDE'!$C40,CPU!$H:$H,"ss")+SUMIFS(CPU!$G:$G,CPU!$A:$A,'MARCADO GRANDE'!$C40,CPU!$H:$H,"mdo")+SUMIF('Comp SINAPI AL 07-2025 Onerado'!B:B,'MARCADO GRANDE'!C40,'Comp SINAPI AL 07-2025 Onerado'!E:E)+SUMIF('Ins SINAPI AL 07-2025 Onerado'!B:B,'MARCADO GRANDE'!C40,'Ins SINAPI AL 07-2025 Onerado'!F:F)),2) -> 64.85 | H40: =TRUNC(G40*(1+$H$5),2) -> 79.9 | I40: =TRUNC(F40*H40,2) -> 32759 | K40: TRUE
A41: 5.2.2 | B41: PRÓPRIA | C41: CPU.07 | D41: =(VLOOKUP(C41,CPU!B13:C342,2,0)) -> Entrada para descida d’água tipo EDA 01 B | E41: =(VLOOKUP(C41,CPU!B13:D342,3,0)) -> un | F41: 7 | G41: =TRUNC((1-$H$9)*(SUMIFS(CPU!$G:$G,CPU!$A:$A,'MARCADO GRANDE'!$C41,CPU!$H:$H,"ss")+SUMIFS(CPU!$G:$G,CPU!$A:$A,'MARCADO GRANDE'!$C41,CPU!$H:$H,"mdo")+SUMIF('Comp SINAPI AL 07-2025 Onerado'!B:B,'MARCADO GRANDE'!C41,'Comp SINAPI AL 07-2025 Onerado'!E:E)+SUMIF('Ins SINAPI AL 07-2025 Onerado'!B:B,'MARCADO GRANDE'!C41,'Ins SINAPI AL 07-2025 Onerado'!F:F)),2) -> 289.23 | H41: =TRUNC(G41*(1+$H$5),2) -> 356.36 | I41: =TRUNC(F41*H41,2) -> 2494.52 | K41: TRUE
A42: 5.2.3 | B42: PRÓPRIA | C42: CPU.20 | D42: =(VLOOKUP(C42,CPU!B14:C343,2,0)) -> Pintura do meio-fio | E42: =(VLOOKUP(C42,CPU!B14:D343,3,0)) -> m | F42: 410 | G42: =TRUNC((1-$H$9)*(SUMIFS(CPU!$G:$G,CPU!$A:$A,'MARCADO GRANDE'!$C42,CPU!$H:$H,"ss")+SUMIFS(CPU!$G:$G,CPU!$A:$A,'MARCADO GRANDE'!$C42,CPU!$H:$H,"mdo")+SUMIF('Comp SINAPI AL 07-2025 Onerado'!B:B,'MARCADO GRANDE'!C42,'Comp SINAPI AL 07-2025 Onerado'!E:E)+SUMIF('Ins SINAPI AL 07-2025 Onerado'!B:B,'MARCADO GRANDE'!C42,'Ins SINAPI AL 07-2025 Onerado'!F:F)),2) -> 2.57 | H42: =TRUNC(G42*(1+$H$5),2) -> 3.16 | I42: =TRUNC(F42*H42,2) -> 1295.6 | K42: TRUE
A43: 5.3 | D43: Pavimentação da Crista | I43: =SUM(I44:I44) -> 26851.68 | K43: FALSE
A44: 5.3.1 | B44: PRÓPRIA | C44: CPU.11 | D44: =(VLOOKUP(C44,CPU!B23:C352,2,0)) -> Execução de Revestimento em BGTC com 10 cm de espessura | E44: =(VLOOKUP(C44,CPU!B23:D444,3,0)) -> m3 | F44: 72 | G44: =TRUNC((1-$H$9)*(SUMIFS(CPU!$G:$G,CPU!$A:$A,'MARCADO GRANDE'!$C44,CPU!$H:$H,"ss")+SUMIFS(CPU!$G:$G,CPU!$A:$A,'MARCADO GRANDE'!$C44,CPU!$H:$H,"mdo")+SUMIF('Comp SINAPI AL 07-2025 Onerado'!B:B,'MARCADO GRANDE'!C44,'Comp SINAPI AL 07-2025 Onerado'!E:E)+SUMIF('Ins SINAPI AL 07-2025 Onerado'!B:B,'MARCADO GRANDE'!C44,'Ins SINAPI AL 07-2025 Onerado'!F:F)),2) -> 302.69 | H44: =TRUNC(G44*(1+$H$5),2) -> 372.94 | I44: =TRUNC(F44*H44,2) -> 26851.68 | K44: TRUE
K45: FALSE
A46: 6 | D46: MANUTENÇÃO NO TALUDE DE MONTANTE | I46: =SUM(I47) -> 15622.56 | K46: FALSE
A47: 6.1 | D47: Implantação de rip-rap em enrocamento | I47: =SUM(I48:I48) -> 15622.56 | K47: FALSE
A48: 6.1.1 | B48: PRÓPRIA | C48: CPU.06 | D48: =(VLOOKUP(C48,CPU!B24:C355,2,0)) -> Enrocamento c/ pedra de mão c/ fornecimento e assentamento | E48: =(VLOOKUP(C48,CPU!B24:D443,3,0)) -> m3 | F48: 76 | G48: =TRUNC((1-$H$9)*(SUMIFS(CPU!$G:$G,CPU!$A:$A,'MARCADO GRANDE'!$C48,CPU!$H:$H,"ss")+SUMIFS(CPU!$G:$G,CPU!$A:$A,'MARCADO GRANDE'!$C48,CPU!$H:$H,"mdo")+SUMIF('Comp SINAPI AL 07-2025 Onerado'!B:B,'MARCADO GRANDE'!C48,'Comp SINAPI AL 07-2025 Onerado'!E:E)+SUMIF('Ins SINAPI AL 07-2025 Onerado'!B:B,'MARCADO GRANDE'!C48,'Ins SINAPI AL 07-2025 Onerado'!F:F)),2) -> 166.84 | H48: =TRUNC(G48*(1+$H$5),2) -> 205.56 | I48: =TRUNC(F48*H48,2) -> 15622.56 | K48: TRUE
K49: FALSE
A50: 7 | D50: PROTEÇÃO SUPERFICIAL DO TALUDE DE JUSANTE | I50: =SUM(I51,I53) -> 3073.04 | K50: FALSE
A51: 7.1 | D51: Proteção vegetal | I51: =SUM(I52) -> 760.24 | K51: FALSE
A52: 7.1.1 | B52: PRÓPRIA | C52: CPU.08 | D52: =(VLOOKUP(C52,CPU!B28:C359,2,0)) -> Plantio de vegetação tipo gramínea para proteção de talude com hidrossemeadura, inclusive adubação e transporte | E52: m2 | F52: 1768 | G52: =TRUNC((1-$H$9)*0.35,2) -> 0.35 | H52: =TRUNC(G52*(1+$H$5),2) -> 0.43 | I52: =TRUNC(F52*H52,2) -> 760.24 | K52: TRUE
A53: 7.2 | D53: Irrigação da área de hidrossemeadura | I53: =SUM(I54) -> 2312.8 | K53: FALSE
A54: 7.2.1 | B54: PRÓPRIA | C54: CPU.16 | D54: =(VLOOKUP(C54,CPU!B43:C373,2,0)) -> Irrigação - inclusive transporte | E54: =(VLOOKUP(C54,CPU!B41:D468,3,0)) -> m3 | F54: 20 | G54: =TRUNC((1-$H$9)*(SUMIFS(CPU!$G:$G,CPU!$A:$A,'MARCADO GRANDE'!$C54,CPU!$H:$H,"ss")+SUMIFS(CPU!$G:$G,CPU!$A:$A,'MARCADO GRANDE'!$C54,CPU!$H:$H,"mdo")+SUMIF('Comp SINAPI AL 07-2025 Onerado'!B:B,'MARCADO GRANDE'!C54,'Comp SINAPI AL 07-2025 Onerado'!E:E)+SUMIF('Ins SINAPI AL 07-2025 Onerado'!B:B,'MARCADO GRANDE'!C54,'Ins SINAPI AL 07-2025 Onerado'!F:F)),2) -> 93.86 | H54: =TRUNC(G54*(1+$H$5),2) -> 115.64 | I54: =TRUNC(F54*H54,2) -> 2312.8 | K54: TRUE
K55: FALSE
A56: 8 | D56: RECUPERAÇÃO DE CERCA EXISTENTE | I56: =SUM(I57,I59) -> 5054 | K56: FALSE
A57: 8.1 | D57: Substituição de mourão | I57: =SUM(I58) -> 3075 | K57: FALSE
A58: 8.1.1 | B58: PRÓPRIA | C58: CPU.26 | D58: =(VLOOKUP(C58,CPU!B33:C364,2,0)) -> Fornecimento e implantação de estaca pré-moldada de concreto armado | E58: =(VLOOKUP(C58,CPU!B32:D459,3,0)) -> un | F58: 20 | G58: =TRUNC((1-$H$9)*(SUMIFS(CPU!$G:$G,CPU!$A:$A,'MARCADO GRANDE'!$C58,CPU!$H:$H,"ss")+SUMIFS(CPU!$G:$G,CPU!$A:$A,'MARCADO GRANDE'!$C58,CPU!$H:$H,"mdo")+SUMIF('Comp SINAPI AL 07-2025 Onerado'!B:B,'MARCADO GRANDE'!C58,'Comp SINAPI AL 07-2025 Onerado'!E:E)+SUMIF('Ins SINAPI AL 07-2025 Onerado'!B:B,'MARCADO GRANDE'!C58,'Ins SINAPI AL 07-2025 Onerado'!F:F)),2) -> 124.79 | H58: =TRUNC(G58*(1+$H$5),2) -> 153.75 | I58: =TRUNC(F58*H58,2) -> 3075 | K58: TRUE
A59: 8.2 | D59: Recuperação de arame das cercas | I59: =SUM(I60) -> 1979 | K59: FALSE
A60: 8.2.1 | B60: PRÓPRIA | C60: CPU.27 | D60: =(VLOOKUP(C60,CPU!B35:C366,2,0)) -> Recuperação de arame das cercas | E60: =(VLOOKUP(C60,CPU!B34:D461,3,0)) -> m | F60: 100 | G60: =TRUNC((1-$H$9)*(SUMIFS(CPU!$G:$G,CPU!$A:$A,'MARCADO GRANDE'!$C60,CPU!$H:$H,"ss")+SUMIFS(CPU!$G:$G,CPU!$A:$A,'MARCADO GRANDE'!$C60,CPU!$H:$H,"mdo")+SUMIF('Comp SINAPI AL 07-2025 Onerado'!B:B,'MARCADO GRANDE'!C60,'Comp SINAPI AL 07-2025 Onerado'!E:E)+SUMIF('Ins SINAPI AL 07-2025 Onerado'!B:B,'MARCADO GRANDE'!C60,'Ins SINAPI AL 07-2025 Onerado'!F:F)),2) -> 16.07 | H60: =TRUNC(G60*(1+$H$5),2) -> 19.79 | I60: =TRUNC(F60*H60,2) -> 1979 | K60: TRUE
K61: FALSE
A62: 9 | D62: IMPLANTAÇÃO DE COLCHÃO DRENANTE EM ENROCAMENTO PARA DISSIPAÇÃO DE ENERGIA DO FLUXO DO CANAL | I62: =SUM(I63) -> 13772.52 | K62: FALSE
A63: 9.1 | D63: Colchão em enrocamento | I63: =SUM(I64) -> 13772.52 | K63: FALSE
A64: 9.1.1 | B64: PRÓPRIA | C64: CPU.06 | D64: =(VLOOKUP(C64,CPU!B47:C377,2,0)) -> Enrocamento c/ pedra de mão c/ fornecimento e assentamento | E64: =(VLOOKUP(C64,CPU!B46:D472,3,0)) -> m3 | F64: 67 | G64: =TRUNC((1-$H$9)*(SUMIFS(CPU!$G:$G,CPU!$A:$A,'MARCADO GRANDE'!$C64,CPU!$H:$H,"ss")+SUMIFS(CPU!$G:$G,CPU!$A:$A,'MARCADO GRANDE'!$C64,CPU!$H:$H,"mdo")+SUMIF('Comp SINAPI AL 07-2025 Onerado'!B:B,'MARCADO GRANDE'!C64,'Comp SINAPI AL 07-2025 Onerado'!E:E)+SUMIF('Ins SINAPI AL 07-2025 Onerado'!B:B,'MARCADO GRANDE'!C64,'Ins SINAPI AL 07-2025 Onerado'!F:F)),2) -> 166.84 | H64: =TRUNC(G64*(1+$H$5),2) -> 205.56 | I64: =TRUNC(F64*H64,2) -> 13772.52 | K64: TRUE
K65: FALSE
A66: 10 | D66: SERVIÇOS COMPLEMENTARES | I66: =SUM(I67) -> 7898.88 | K66: FALSE
A67: 10.1 | D67: Instalação de placas de aviso | I67: =SUM(I68:I69) -> 7898.88 | K67: FALSE
A68: 10.1.1 | B68: SINAPI | C68: 103689 | D68: =IF(J68="ca",VLOOKUP(C68,'Comp SINAPI AL 07-2025 Onerado'!$B$11:$C$9004,2,0),VLOOKUP(C68,'Ins SINAPI AL 07-2025 Onerado'!$B$10:$C$9000,2,0)) -> FORNECIMENTO E INSTALAÇÃO DE PLACA DE OBRA COM CHAPA GALVANIZADA E ESTRUTURA DE MADEIRA. AF_03/2022_PS | E68: =IF(J68="ca",VLOOKUP(C68,'Comp SINAPI AL 07-2025 Onerado'!$B$11:$D$9004,3,0),VLOOKUP(C68,'Ins SINAPI AL 07-2025 Onerado'!$B$11:$D$9000,3,0)) -> M2 | F68: 4 | G68: =TRUNC((1-$H$9)*(SUMIFS(CPU!$G:$G,CPU!$A:$A,'MARCADO GRANDE'!$C68,CPU!$H:$H,"ss")+SUMIFS(CPU!$G:$G,CPU!$A:$A,'MARCADO GRANDE'!$C68,CPU!$H:$H,"mdo")+SUMIF('Comp SINAPI AL 07-2025 Onerado'!B:B,'MARCADO GRANDE'!C68,'Comp SINAPI AL 07-2025 Onerado'!E:E)+SUMIF('Ins SINAPI AL 07-2025 Onerado'!B:B,'MARCADO GRANDE'!C68,'Ins SINAPI AL 07-2025 Onerado'!F:F)),2) -> 465.11 | H68: =TRUNC(G68*(1+$H$5),2) -> 573.06 | I68: =TRUNC(F68*H68,2) -> 2292.24 | J68: ca | K68: TRUE
A69: 10.1.2 | B69: PRÓPRIA | C69: CPU.19 | D69: =(VLOOKUP(C69,CPU!B37:C368,2,0)) -> Régua Linimétrica Padrão “ANA”, Aço Carbono - 2 X 70 X 1000 mm (Fornecimento e Instalação) | E69: =(VLOOKUP(C69,CPU!B38:D465,3,0)) -> un | F69: 13 | G69: =TRUNC((1-$H$9)*(SUMIFS(CPU!$G:$G,CPU!$A:$A,'MARCADO GRANDE'!$C69,CPU!$H:$H,"ss")+SUMIFS(CPU!$G:$G,CPU!$A:$A,'MARCADO GRANDE'!$C69,CPU!$H:$H,"mdo")+SUMIF('Comp SINAPI AL 07-2025 Onerado'!B:B,'MARCADO GRANDE'!C69,'Comp SINAPI AL 07-2025 Onerado'!E:E)+SUMIF('Ins SINAPI AL 07-2025 Onerado'!B:B,'MARCADO GRANDE'!C69,'Ins SINAPI AL 07-2025 Onerado'!F:F)),2) -> 350.04 | H69: =TRUNC(G69*(1+$H$5),2) -> 431.28 | I69: =TRUNC(F69*H69,2) -> 5606.64 | K69: TRUE
K70: FALSE
A71: 11 | D71: PROJETO "AS IS" | I71: =SUM(I72) -> 16915.68 | K71: FALSE
A72: 11.1 | D72: Levantamento topográfico e "AS IS" | I72: =SUM(I73:I74) -> 16915.68 | K72: FALSE
A73: 11.1.1 | B73: ORSE | C73: 9346 | D73: Levantamento topográfico planimétrico cadastral | E73: m2 | F73: =F27 -> 10975 | G73: =TRUNC((1-$H$9)*0.35,2) -> 0.35 | H73: =TRUNC(G73*(1+$H$5),2) -> 0.43 | I73: =TRUNC(F73*H73,2) -> 4719.25 | K73: TRUE
A74: 11.1.2 | B74: PRÓPRIA | C74: CPU.12 | D74: =(VLOOKUP(C74,CPU!B46:C376,2,0)) -> Projeto geométrico | E74: =(VLOOKUP(C74,CPU!B44:D471,3,0)) -> un | F74: 1 | G74: =TRUNC((1-$H$9)*(SUMIFS(CPU!$G:$G,CPU!$A:$A,'MARCADO GRANDE'!$C74,CPU!$H:$H,"ss")+SUMIFS(CPU!$G:$G,CPU!$A:$A,'MARCADO GRANDE'!$C74,CPU!$H:$H,"mdo")+SUMIF('Comp SINAPI AL 07-2025 Onerado'!B:B,'MARCADO GRANDE'!C74,'Comp SINAPI AL 07-2025 Onerado'!E:E)+SUMIF('Ins SINAPI AL 07-2025 Onerado'!B:B,'MARCADO GRANDE'!C74,'Ins SINAPI AL 07-2025 Onerado'!F:F)),2) -> 9898.9 | H74: =TRUNC(G74*(1+$H$5),2) -> 12196.43 | I74: =TRUNC(F74*H74,2) -> 12196.43 | K74: TRUE
K75: FALSE
A76: 12 | D76: FISCALIZAÇÃO E ACOMPANHAMENTO | I76: =SUM(I77) -> 951.65 | K76: FALSE
A77: 12.1 | D77: Disponibilidade de veículo para apoio a fiscalização | I77: =SUM(I78) -> 951.65 | K77: FALSE
A78: 12.1.1 | B78: PRÓPRIA | C78: CPU.14 | D78: =(VLOOKUP(C78,CPU!B50:C380,2,0)) -> Disponibilidade de veículo para apoio a fiscalização, inclusive combustível | E78: =(VLOOKUP(C78,CPU!B49:D475,3,0)) -> un | F78: =F15+2 -> 5 | G78: =TRUNC((1-$H$9)*(SUMIFS(CPU!$G:$G,CPU!$A:$A,'MARCADO GRANDE'!$C78,CPU!$H:$H,"ss")+SUMIFS(CPU!$G:$G,CPU!$A:$A,'MARCADO GRANDE'!$C78,CPU!$H:$H,"mdo")+SUMIF('Comp SINAPI AL 07-2025 Onerado'!B:B,'MARCADO GRANDE'!C78,'Comp SINAPI AL 07-2025 Onerado'!E:E)+SUMIF('Ins SINAPI AL 07-2025 Onerado'!B:B,'MARCADO GRANDE'!C78,'Ins SINAPI AL 07-2025 Onerado'!F:F)),2) -> 154.48 | H78: =TRUNC(G78*(1+$H$5),2) -> 190.33 | I78: =TRUNC(F78*H78,2) -> 951.65 | K78: TRUE
K79: FALSE
D80: TOTAL (Custo): | I80: =TRUNC(SUMPRODUCT(F14:F78,G14:G78),2) -> 253931.09 | K80: =_xlfn.ISFORMULA(G80) -> FALSE
D81: BDI e Encargos Sociais: | I81: =I82-I80 -> 58896.99 | K81: FALSE
D82: TOTAL GERAL COM BDI: | I82: =SUM(I13,I17,I25,I32,I36,I46,I50,I56,I62,I66,I71,I76) -> 312828.08 | K82: FALSE | L82: =TRUNC(SUMPRODUCT(F14:F78,H14:H78),2) -> 312828.08

Sheet CPU
A1: Ministério da Integração e do Desenvolvimento Regional
A2: Companhia de Desenvolvimento dos Vales do São Francisco e do Parnaíba
A4: COMPOSIÇÕES DE PREÇOS UNITÁRIOS - ORÇAMENTO NÃO DESONERADO
A5: ='MARCADO DOS PEREIRAS'!A5 -> OBRA: | B5: =Resumo!B5 -> Contratação de empresa para execução de manutenção e recuperação nas barragens de Itapicuru, Marcado dos Pereiras e Marcado Grande no estado de Alagoas.
A6: ='MARCADO DOS PEREIRAS'!A6 -> LOCAL: | B6: =Resumo!B6 -> Barragens de Alagoas
A7: ='MARCADO DOS PEREIRAS'!A7 -> DATA BASE: | B7: 2025-10-07
A8: ='MARCADO DOS PEREIRAS'!A8 -> PRAZO: | B8: =Resumo!B8 -> 150 dias | G8: =Resumo!G8 -> JUL/2025 - SICRO3
A9: REFERÊNCIA | B9: CÓDIGO | C9: DESCRIÇÃO | D9: UNIDADE | E9: ÍNDICE | F9: CUSTO UNITÁRIO | G9: CUSTO TOTAL
B10: CPU.01 | C10: Administração Local | D10: mês | E10: 1 | G10: =SUM(G14,G13,G12,G11) -> 28279.06 | H10: S | I10: =_xlfn.ISFORMULA(F10) -> FALSE | J10: COMENTÁRIOS
A11: =B10 -> CPU.01 | C11: MATERIAL | G11: 0 | H11: ss | I11: =_xlfn.ISFORMULA(F11) -> FALSE
A12: =B10 -> CPU.01 | C12: EQUIPAMENTOS | G12: 0 | H12: ss | I12: FALSE
A13: =B10 -> CPU.01 | C13: SERVIÇOS | G13: 0 | H13: ss | I13: FALSE
A14: =B10 -> CPU.01 | C14: MÃO DE OBRA | G14: =SUM(G15:G17) -> 28279.06 | H14: mdo | I14: FALSE
A15: SINAPI | B15: 90778 | C15: =PROPER(IF(H15="i",VLOOKUP(B15,'Ins SINAPI AL 07-2025 Onerado'!$B$11:$F$49999,2,0),VLOOKUP(B15,'Comp SINAPI AL 07-2025 Onerado'!$B$11:$C$50004,2,0))) -> Engenheiro Civil De Obra Pleno Com Encargos Complementares | D15: =IF(H15="i",VLOOKUP(B15,'Ins SINAPI AL 07-2025 Onerado'!$B$11:$F$49999,2,0),VLOOKUP(B15,'Comp SINAPI AL 07-2025 Onerado'!$B$11:$H$50004,3,0)) -> H | E15: =1.5*5*4 -> 30 | F15: =IF(H15="i",VLOOKUP(B15,'Ins SINAPI AL 07-2025 Onerado'!$B$11:$F$49999,5,0),VLOOKUP(B15,'Comp SINAPI AL 07-2025 Onerado'!$B$11:$E$50004,4,0)) -> 143.99 | G15: =TRUNC(E15*F15,2) -> 4319.7 | H15: ca | I15: TRUE
A16: SINAPI | B16: 93572 | C16: =PROPER(IF(H16="i",VLOOKUP(B16,'Ins SINAPI AL 07-2025 Onerado'!$B$11:$F$49999,2,0),VLOOKUP(B16,'Comp SINAPI AL 07-2025 Onerado'!$B$11:$C$50004,2,0))) -> Encarregado Geral De Obras Com Encargos Complementares | D16: =IF(H16="i",VLOOKUP(B16,'Ins SINAPI AL 07-2025 Onerado'!$B$11:$F$49999,2,0),VLOOKUP(B16,'Comp SINAPI AL 07-2025 Onerado'!$B$11:$H$50004,3,0)) -> MES | E16: 0.8 | F16: =IF(H16="i",VLOOKUP(B16,'Ins SINAPI AL 07-2025 Onerado'!$B$11:$F$49999,5,0),VLOOKUP(B16,'Comp SINAPI AL 07-2025 Onerado'!$B$11:$E$50004,4,0)) -> 5049.26 | G16: =TRUNC(E16*F16,2) -> 4039.4 | H16: ca | I16: TRUE
A17: EMBASA | B17: 74.13.43 | C17: VIGIA - AN | D17: MES | E17: 4 | F17: 4979.99 | G17: 19919.96 | H17: ca | I17: FALSE | J17: considerando 4 vigias intercalando em dupla na jornada de 12/36
I18: FALSE
B19: CPU.02 | C19: Mobilização e desmobilização de instalação do canteiro | D19: un | E19: 1 | G19: =SUM(G25,G24,G21,G20) -> 576.71 | H19: S | I19: FALSE | J19: mobilização e desmobilização da SR a barragem | N19: 2 dias
A20: =B19 -> CPU.02 | C20: MATERIAL | G20: 0 | H20: ss | I20: FALSE
A21: =B19 -> CPU.02 | C21: EQUIPAMENTOS | G21: =SUM(G22:G23) -> 576.71 | H21: ss | I21: FALSE
A22: PRÓPRIA | B22: CODE | C22: Veículo para serviço tipo pick-up, cabine dupla - 2.0 16V 4x4 diesel Aut. | D22: dia | E22: 2 | F22: ='CPU-VEICULO_Serviços'!$C$11 -> 166.8570842 | G22: =TRUNC(E22*F22,2) -> 333.71 | H22: ca | I22: TRUE
A23: SINAPI | B23: 100946 | C23: =PROPER(IF(H23="i",VLOOKUP(B23,'Ins SINAPI AL 07-2025 Onerado'!$B$11:$F$49999,2,0),VLOOKUP(B23,'Comp SINAPI AL 07-2025 Onerado'!$B$11:$C$50004,2,0))) -> Transporte Com Caminhão Carroceria 9T, Em Via Urbana Em Revestimento Primário (Unidade: Txkm). Af_07/2020 | D23: =IF(H23="i",VLOOKUP(B23,'Ins SINAPI AL 07-2025 Onerado'!$B$11:$F$49999,2,0),VLOOKUP(B23,'Comp SINAPI AL 07-2025 Onerado'!$B$11:$H$50004,3,0)) -> TXKM | E23: ='Memorial de cálculo'!H18 -> 100 | F23: =IF(H23="i",VLOOKUP(B23,'Ins SINAPI AL 07-2025 Onerado'!$B$11:$F$49999,5,0),VLOOKUP(B23,'Comp SINAPI AL 07-2025 Onerado'!$B$11:$E$50004,4,0)) -> 2.43 | G23: =TRUNC(E23*F23,2) -> 243 | H23: ca | I23: TRUE | J23: considerando 5 toneladas de carga
A24: =B19 -> CPU.02 | C24: SERVIÇOS | G24: 0 | H24: ss | I24: FALSE
A25: =B19 -> CPU.02 | C25: MÃO DE OBRA | G25: 0 | H25: mdo | I25: FALSE
I26: FALSE
B27: CPU.03 | C27: Execução de canteiro de obras, inclusive, limpeza, refeitório, sanitários e central de formas | D27: m2 | E27: 1 | G27: =SUM(G36,G30,G29,G28) -> 724.54 | H27: S | I27: FALSE
A28: =B27 -> CPU.03 | C28: MATERIAL | G28: 0 | H28: ss | I28: FALSE
A29: =B27 -> CPU.03 | C29: EQUIPAMENTOS | G29: 0 | H29: ss | I29: FALSE
A30: =B27 -> CPU.03 | C30: SERVIÇOS | G30: =SUM(G31:G35) -> 724.54 | H30: ss | I30: FALSE
A31: SINAPI | B31: 98524 | C31: =PROPER(IF(H31="i",VLOOKUP(B31,'Ins SINAPI AL 07-2025 Onerado'!$B$11:$F$49999,2,0),VLOOKUP(B31,'Comp SINAPI AL 07-2025 Onerado'!$B$11:$C$50004,2,0))) -> Limpeza Manual De Vegetação Em Terreno Com Enxada. Af_03/2024 | D31: =IF(H31="i",VLOOKUP(B31,'Ins SINAPI AL 07-2025 Onerado'!$B$11:$F$49999,2,0),VLOOKUP(B31,'Comp SINAPI AL 07-2025 Onerado'!$B$11:$H$50004,3,0)) -> M2 | E31: 1 | F31: =IF(H31="i",VLOOKUP(B31,'Ins SINAPI AL 07-2025 Onerado'!$B$11:$F$49999,5,0),VLOOKUP(B31,'Comp SINAPI AL 07-2025 Onerado'!$B$11:$E$50004,4,0)) -> 4.55 | G31: =TRUNC(E31*F31,2) -> 4.55 | H31: ca | I31: TRUE
A32: PRÓPRIA | B32: 93210-ADAPTADO | C32: ='COMPOSICÕES MODIFICADAS'!D149 -> EXECUÇÃO DE REFEITÓRIO EM CANTEIRO DE OBRA EM CHAPA DE MADEIRA COMPENSADA, NÃO INCLUSO MOBILIÁRIO E EQUIPAMENTOS. AF_02/2016 | D32: m2 | E32: ='Memorial de cálculo'!H23/'Memorial de cálculo'!H22 -> 0.2631578947 | F32: ='COMPOSICÕES MODIFICADAS'!D154 -> 629.3204458 | G32: 165.61 | H32: ca | I32: TRUE
A33: PRÓPRIA | B33: 93212-ADAPTADO | C33: EXECUÇÃO DE SANITÁRIO E VESTIÁRIO EM CANTEIRO DE OBRA EM CHAPA DE MADEIRA COMPENSADA, NÃO INCLUSO MOBILIÁRIO. AF_02/2016 | D33: m2 | E33: ='Memorial de cálculo'!H24/'Memorial de cálculo'!H22 -> 0.3157894737 | F33: ='COMPOSICÕES MODIFICADAS'!D9 -> 1010.21 | G33: 319.01 | H33: ca | I33: TRUE
A34: PRÓPRIA | B34: 93583-ADAPTADO | C34: ='COMPOSICÕES MODIFICADAS'!D109 -> EXECUÇÃO DE CENTRAL DE FÔRMAS, PRODUÇÃO DE ARGAMASSA OU CONCRETO EM CANTEIRO DE OBRA, NÃO INCLUSO MOBILIÁRIO E EQUIPAMENTOS. AF_04/2016 | D34: m2 | E34: ='Memorial de cálculo'!H25/'Memorial de cálculo'!H22 -> 0.4210526316 | F34: ='COMPOSICÕES MODIFICADAS'!D114 -> 527.88 | G34: 222.26 | H34: ca | I34: TRUE
A35: PRÓPRIA | B35: CODE | C35: Hospedagem | D35: un | E35: ='Memorial de cálculo'!D27*'Memorial de cálculo'!H27 -> 0.1394375 | F35: ='CPU HOSPEDAGEM'!$C$19 -> 94.08609848 | G35: 13.11 | H35: ca | I35: TRUE
A36: =B27 -> CPU.03 | C36: MÃO DE OBRA | G36: 0 | H36: mdo | I36: FALSE
I37: FALSE
B38: CPU.04 | C38: Limpeza de vegetação | D38: m2 | E38: 1 | G38: =SUM(G47,G41,G40,G39) -> 1.17 | H38: S | I38: FALSE
A39: =B38 -> CPU.04 | C39: MATERIAL | G39: 0 | H39: ss | I39: FALSE
A40: =B38 -> CPU.04 | C40: EQUIPAMENTOS | G40: 0 | H40: ss | I40: FALSE
A41: =B38 -> CPU.04 | C41: SERVIÇOS | G41: =SUM(G42:G46) -> 1.17 | H41: ss | I41: FALSE
A42: SINAPI | B42: 98524 | C42: =PROPER(IF(H42="i",VLOOKUP(B42,'Ins SINAPI AL 07-2025 Onerado'!$B$11:$F$49999,2,0),VLOOKUP(B42,'Comp SINAPI AL 07-2025 Onerado'!$B$11:$C$50004,2,0))) -> Limpeza Manual De Vegetação Em Terreno Com Enxada. Af_03/2024 | D42: =IF(H42="i",VLOOKUP(B42,'Ins SINAPI AL 07-2025 Onerado'!$B$11:$F$49999,2,0),VLOOKUP(B42,'Comp SINAPI AL 07-2025 Onerado'!$B$11:$H$50004,3,0)) -> M2 | E42: =1*0.1 -> 0.1 | F42: =IF(H42="i",VLOOKUP(B42,'Ins SINAPI AL 07-2025 Onerado'!$B$11:$F$49999,5,0),VLOOKUP(B42,'Comp SINAPI AL 07-2025 Onerado'!$B$11:$E$50004,4,0)) -> 4.55 | G42: =TRUNC(E42*F42,2) -> 0.45 | H42: ca | I42: TRUE | J42: 10% de roçada com enxada
A43: SICRO | B43: 4915776 | C43: Roçada com roçadeira costal | D43: ha | E43: =0.0001*0.9 -> 9e-05 | F43: 765.76 | G43: =TRUNC(E43*F43,2) -> 0.06 | H43: ca | I43: FALSE | J43: 90% de roçada com roçadeira
A44: PRÓPRIA | B44: CODE | C44: Hospedagem | D44: un | E44: ='Memorial de cálculo'!D31*'Memorial de cálculo'!H31+'Memorial de cálculo'!D32*'Memorial de cálculo'!H32 -> 0.002833333333 | F44: ='CPU HOSPEDAGEM'!C19 -> 94.08609848 | G44: 0.26 | H44: ca | I44: TRUE
A45: PRÓPRIA | B45: CODE | C45: Veículo para serviço tipo pick-up, cabine dupla - 2.0 16V 4x4 diesel Aut. | D45: dia | E45: =LARGE('Memorial de cálculo'!H31:H32,1) -> 0.00125 | F45: ='CPU-VEICULO_Serviços'!$C$11 -> 166.8570842 | G45: 0.2 | H45: ca | I45: TRUE
A46: SINAPI | B46: 93589 | C46: =PROPER(IF(H46="i",VLOOKUP(B46,'Ins SINAPI AL 07-2025 Onerado'!$B$11:$F$49999,2,0),VLOOKUP(B46,'Comp SINAPI AL 07-2025 Onerado'!$B$11:$C$50004,2,0))) -> Transporte Com Caminhão Basculante De 10 M³, Em Via Urbana Em Revestimento Primário (Unidade: M3Xkm). Af_07/2020 | D46: =IF(H46="i",VLOOKUP(B46,'Ins SINAPI AL 07-2025 Onerado'!$B$11:$F$49999,2,0),VLOOKUP(B46,'Comp SINAPI AL 07-2025 Onerado'!$B$11:$H$50004,3,0)) -> M3XKM | E46: =15*0.005 -> 0.075 | F46: =IF(H46="i",VLOOKUP(B46,'Ins SINAPI AL 07-2025 Onerado'!$B$11:$F$49999,5,0),VLOOKUP(B46,'Comp SINAPI AL 07-2025 Onerado'!$B$11:$E$50004,4,0)) -> 2.68 | G46: 0.2 | H46: ca | I46: TRUE | J46: considerando 5 mm de altura da vegetação e 15 km para bota-fora
A47: =B38 -> CPU.04 | C47: MÃO DE OBRA | G47: 0 | H47: mdo | I47: FALSE
I48: FALSE
B49: CPU.05 | C49: Corte de tronco e remoção de raiz | D49: un | E49: 1 | G49: =SUM(G60,G52,G51,G50) -> 286.54 | H49: S | I49: FALSE
A50: =B49 -> CPU.05 | C50: MATERIAL | G50: 0 | H50: ss | I50: FALSE
A51: =B49 -> CPU.05 | C51: EQUIPAMENTOS | G51: 0 | H51: ss | I51: FALSE
A52: =B49 -> CPU.05 | C52: SERVIÇOS | G52: =SUM(G53:G59) -> 286.54 | H52: ss | I52: FALSE
A53: SINAPI | B53: 98529 | C53: =PROPER(IF(H53="i",VLOOKUP(B53,'Ins SINAPI AL 07-2025 Onerado'!$B$11:$F$49999,2,0),VLOOKUP(B53,'Comp SINAPI AL 07-2025 Onerado'!$B$11:$C$50004,2,0))) -> Corte Raso E Recorte De Árvore Com Diâmetro De Tronco Maior Ou Igual A 0,20 M E Menor Que 0,40 M. Af_03/2024 | D53: =IF(H53="i",VLOOKUP(B53,'Ins SINAPI AL 07-2025 Onerado'!$B$11:$F$49999,2,0),VLOOKUP(B53,'Comp SINAPI AL 07-2025 Onerado'!$B$11:$H$50004,3,0)) -> UN | E53: 1 | F53: =IF(H53="i",VLOOKUP(B53,'Ins SINAPI AL 07-2025 Onerado'!$B$11:$F$49999,5,0),VLOOKUP(B53,'Comp SINAPI AL 07-2025 Onerado'!$B$11:$E$50004,4,0)) -> 71.98 | G53: =TRUNC(E53*F53,2) -> 71.98 | H53: ca | I53: TRUE
A54: SINAPI | B54: 98526 | C54: =PROPER(IF(H54="i",VLOOKUP(B54,'Ins SINAPI AL 07-2025 Onerado'!$B$11:$F$49999,2,0),VLOOKUP(B54,'Comp SINAPI AL 07-2025 Onerado'!$B$11:$C$50004,2,0))) -> Remoção De Raízes Remanescentes De Tronco De Árvore Com Diâmetro Maior Ou Igual A 0,20 M E Menor Que 0,40 M. Af_03/2024 | D54: =IF(H54="i",VLOOKUP(B54,'Ins SINAPI AL 07-2025 Onerado'!$B$11:$F$49999,2,0),VLOOKUP(B54,'Comp SINAPI AL 07-2025 Onerado'!$B$11:$H$50004,3,0)) -> UN | E54: 1 | F54: =IF(H54="i",VLOOKUP(B54,'Ins SINAPI AL 07-2025 Onerado'!$B$11:$F$49999,5,0),VLOOKUP(B54,'Comp SINAPI AL 07-2025 Onerado'!$B$11:$E$50004,4,0)) -> 121.65 | G54: 121.65 | H54: ca | I54: TRUE
A55: SINAPI | B55: 6081 | C55: =PROPER(IF(H55="i",VLOOKUP(B55,'Ins SINAPI AL 07-2025 Onerado'!$B$11:$F$49999,2,0),VLOOKUP(B55,'Comp SINAPI AL 07-2025 Onerado'!$G$11:$H$50004,2,0))) -> Argila Ou Barro Para Aterro/Reaterro (Com Transporte Ate 10 Km) | D55: =IF(H55="i",VLOOKUP(B55,'Ins SINAPI AL 07-2025 Onerado'!$B$11:$F$49999,3,0),VLOOKUP(B55,'Comp SINAPI AL 07-2025 Onerado'!$G$11:$H$50004,3,0)) -> M3 | E55: =0.5*0.5*1 -> 0.25 | F55: 54.26 | G55: 13.56 | H55: i | I55: FALSE | J55: considerando 0,25 m3 por árvore
A56: SINAPI | B56: 93382 | C56: =PROPER(IF(H56="i",VLOOKUP(B56,'Ins SINAPI AL 07-2025 Onerado'!$B$11:$F$49999,2,0),VLOOKUP(B56,'Comp SINAPI AL 07-2025 Onerado'!$B$11:$C$50004,2,0))) -> Reaterro Manual De Valas, Com Compactador De Solos De Percussão. Af_08/2023 | D56: =IF(H56="i",VLOOKUP(B56,'Ins SINAPI AL 07-2025 Onerado'!$B$11:$F$49999,2,0),VLOOKUP(B56,'Comp SINAPI AL 07-2025 Onerado'!$B$11:$H$50004,3,0)) -> M3 | E56: 0.25 | F56: =IF(H56="i",VLOOKUP(B56,'Ins SINAPI AL 07-2025 Onerado'!$B$11:$F$49999,5,0),VLOOKUP(B56,'Comp SINAPI AL 07-2025 Onerado'!$B$11:$E$50004,4,0)) -> 24.78 | G56: 6.19 | H56: ca | I56: TRUE
A57: PRÓPRIA | B57: CODE | C57: Hospedagem | D57: un | E57: ='Memorial de cálculo'!D36*'Memorial de cálculo'!H36+'Memorial de cálculo'!D37*'Memorial de cálculo'!H37 -> 0.41525 | F57: ='CPU HOSPEDAGEM'!$C$19 -> 94.08609848 | G57: 39.06 | H57: ca | I57: TRUE
A58: PRÓPRIA | B58: CODE | C58: Veículo para serviço tipo pick-up, cabine dupla - 2.0 16V 4x4 diesel Aut. | D58: dia | E58: =LARGE('Memorial de cálculo'!H36:H37,1) -> 0.1441875 | F58: ='CPU-VEICULO_Serviços'!$C$11 -> 166.8570842 | G58: 24.05 | H58: ca | I58: TRUE
A59: SINAPI | B59: 93589 | C59: =PROPER(IF(H59="i",VLOOKUP(B59,'Ins SINAPI AL 07-2025 Onerado'!$B$11:$F$49999,2,0),VLOOKUP(B59,'Comp SINAPI AL 07-2025 Onerado'!$B$11:$C$50004,2,0))) -> Transporte Com Caminhão Basculante De 10 M³, Em Via Urbana Em Revestimento Primário (Unidade: M3Xkm). Af_07/2020 | D59: =IF(H59="i",VLOOKUP(B59,'Ins SINAPI AL 07-2025 Onerado'!$B$11:$F$49999,2,0),VLOOKUP(B59,'Comp SINAPI AL 07-2025 Onerado'!$B$11:$H$50004,3,0)) -> M3XKM | E59: =15*0.25 -> 3.75 | F59: =IF(H59="i",VLOOKUP(B59,'Ins SINAPI AL 07-2025 Onerado'!$B$11:$F$49999,5,0),VLOOKUP(B59,'Comp SINAPI AL 07-2025 Onerado'!$B$11:$E$50004,4,0)) -> 2.68 | G59: 10.05 | H59: ca | I59: TRUE | J59: considerando 0,25 m3 por árvore e 15 km para bota-fora
A60: =B49 -> CPU.05 | C60: MÃO DE OBRA | G60: 0 | H60: mdo | I60: FALSE
I61: FALSE
I62: FALSE
B63: CPU.06 | C63: Enrocamento c/ pedra de mão c/ fornecimento e assentamento | D63: m3 | E63: 1 | G63: =SUM(G73,G67,G66,G64) -> 166.84 | H63: S | I63: FALSE
A64: =B63 -> CPU.06 | C64: MATERIAL | G64: =SUM(G65) -> 86.95 | H64: ss | I64: FALSE
A65: SINAPI | B65: 4730 | C65: =PROPER(IF(H65="i",VLOOKUP(B65,'Ins SINAPI AL 07-2025 Onerado'!$B$11:$F$49999,2,0),VLOOKUP(B65,'Comp SINAPI AL 07-2025 Onerado'!$G$11:$H$50004,2,0))) -> Pedra De Mao Ou Pedra Rachao Para Arrimo/Fundacao (Posto Pedreira/Fornecedor, Sem Frete) | D65: =IF(H65="i",VLOOKUP(B65,'Ins SINAPI AL 07-2025 Onerado'!$B$11:$F$49999,3,0),VLOOKUP(B65,'Comp SINAPI AL 07-2025 Onerado'!$G$11:$H$50004,3,0)) -> M3 | E65: 1 | F65: =IF(H65="i",VLOOKUP(B65,'Ins SINAPI AL 07-2025 Onerado'!$B$11:$F$49999,5,0),VLOOKUP(B65,'Comp SINAPI AL 07-2025 Onerado'!$G$11:$H$50004,5,0)) -> 86.95 | G65: =TRUNC(E65*F65,2) -> 86.95 | H65: i | I65: TRUE
A66: =B63 -> CPU.06 | C66: EQUIPAMENTOS | G66: 0 | H66: ss | I66: FALSE
A67: =B63 -> CPU.06 | C67: SERVIÇOS | G67: =SUM(G68:G72) -> 70.31 | H67: ss | I67: FALSE
A68: SINAPI | B68: 93592 | C68: =PROPER(IF(H68="i",VLOOKUP(B68,'Ins SINAPI AL 07-2025 Onerado'!$B$11:$F$49999,2,0),VLOOKUP(B68,'Comp SINAPI AL 07-2025 Onerado'!$B$11:$C$50004,2,0))) -> Transporte Com Caminhão Basculante De 14 M³, Em Via Urbana Em Revestimento Primário (Unidade: M3Xkm). Af_07/2020 | D68: =IF(H68="i",VLOOKUP(B68,'Ins SINAPI AL 07-2025 Onerado'!$B$11:$F$49999,2,0),VLOOKUP(B68,'Comp SINAPI AL 07-2025 Onerado'!$B$11:$H$50004,3,0)) -> M3XKM | E68: ='Memorial de cálculo'!H8 -> 10 | F68: =IF(H68="i",VLOOKUP(B68,'Ins SINAPI AL 07-2025 Onerado'!$B$11:$F$49999,5,0),VLOOKUP(B68,'Comp SINAPI AL 07-2025 Onerado'!$B$11:$E$50004,4,0)) -> 2.37 | G68: =TRUNC(E68*F68,2) -> 23.7 | H68: ca | I68: TRUE
A69: SINAPI | B69: 95876 | C69: =PROPER(IF(H69="i",VLOOKUP(B69,'Ins SINAPI AL 07-2025 Onerado'!$B$11:$F$49999,2,0),VLOOKUP(B69,'Comp SINAPI AL 07-2025 Onerado'!$B$11:$C$50004,2,0))) -> Transporte Com Caminhão Basculante De 14 M³, Em Via Urbana Pavimentada, Dmt Até 30 Km (Unidade: M3Xkm). Af_07/2020 | D69: =IF(H69="i",VLOOKUP(B69,'Ins SINAPI AL 07-2025 Onerado'!$B$11:$F$49999,2,0),VLOOKUP(B69,'Comp SINAPI AL 07-2025 Onerado'!$B$11:$H$50004,3,0)) -> M3XKM | E69: ='Memorial de cálculo'!H7 -> 14.46666667 | F69: =IF(H69="i",VLOOKUP(B69,'Ins SINAPI AL 07-2025 Onerado'!$B$11:$F$49999,5,0),VLOOKUP(B69,'Comp SINAPI AL 07-2025 Onerado'!$B$11:$E$50004,4,0)) -> 2.15 | G69: 31.1 | H69: ca | I69: TRUE
A70: SINAPI | B70: 100979 | C70: =PROPER(IF(H70="i",VLOOKUP(B70,'Ins SINAPI AL 07-2025 Onerado'!$B$11:$F$49999,2,0),VLOOKUP(B70,'Comp SINAPI AL 07-2025 Onerado'!$B$11:$C$50004,2,0))) -> Carga, Manobra E Descarga De Solos E Materiais Granulares Em Caminhão Basculante 14 M³ - Carga Com Escavadeira Hidráulica (Caçamba De 1,20 M³ / 155 Hp) E Descarga Livre (Unidade: M3). Af_07/2020 | D70: =IF(H70="i",VLOOKUP(B70,'Ins SINAPI AL 07-2025 Onerado'!$B$11:$F$49999,2,0),VLOOKUP(B70,'Comp SINAPI AL 07-2025 Onerado'!$B$11:$H$50004,3,0)) -> M3 | E70: 1 | F70: =IF(H70="i",VLOOKUP(B70,'Ins SINAPI AL 07-2025 Onerado'!$B$11:$F$49999,5,0),VLOOKUP(B70,'Comp SINAPI AL 07-2025 Onerado'!$B$11:$E$50004,4,0)) -> 6.64 | G70: =TRUNC(E70*F70,2) -> 6.64 | H70: ca | I70: TRUE
A71: PRÓPRIA | B71: CODE | C71: Hospedagem | D71: un | E71: ='Memorial de cálculo'!D41*'Memorial de cálculo'!H41+'Memorial de cálculo'!D42*'Memorial de cálculo'!H42 -> 0.05 | F71: ='CPU HOSPEDAGEM'!C19 -> 94.08609848 | G71: 4.7 | H71: ca | I71: TRUE
A72: PRÓPRIA | B72: CODE | C72: Veículo para serviço tipo pick-up, cabine dupla - 2.0 16V 4x4 diesel Aut. | D72: dia | E72: =LARGE('Memorial de cálculo'!H41:H42,1) -> 0.025 | F72: ='CPU-VEICULO_Serviços'!$C$11 -> 166.8570842 | G72: 4.17 | H72: ca | I72: TRUE
A73: =B63 -> CPU.06 | C73: MÃO DE OBRA | G73: =SUM(G74:G75) -> 9.58 | H73: mdo | I73: FALSE
A74: SINAPI | B74: 88309 | C74: =PROPER(IF(H74="i",VLOOKUP(B74,'Ins SINAPI AL 07-2025 Onerado'!$B$11:$F$49999,2,0),VLOOKUP(B74,'Comp SINAPI AL 07-2025 Onerado'!$B$11:$C$50004,2,0))) -> Pedreiro Com Encargos Complementares | D74: =IF(H74="i",VLOOKUP(B74,'Ins SINAPI AL 07-2025 Onerado'!$B$11:$F$49999,2,0),VLOOKUP(B74,'Comp SINAPI AL 07-2025 Onerado'!$B$11:$H$50004,3,0)) -> H | E74: 0.2 | F74: =IF(H74="i",VLOOKUP(B74,'Ins SINAPI AL 07-2025 Onerado'!$B$11:$F$49999,5,0),VLOOKUP(B74,'Comp SINAPI AL 07-2025 Onerado'!$B$11:$E$50004,4,0)) -> 26.59 | G74: 5.31 | H74: ca | I74: TRUE
A75: SINAPI | B75: 88316 | C75: =PROPER(IF(H75="i",VLOOKUP(B75,'Ins SINAPI AL 07-2025 Onerado'!$B$11:$F$49999,2,0),VLOOKUP(B75,'Comp SINAPI AL 07-2025 Onerado'!$B$11:$C$50004,2,0))) -> Servente Com Encargos Complementares | D75: =IF(H75="i",VLOOKUP(B75,'Ins SINAPI AL 07-2025 Onerado'!$B$11:$F$49999,2,0),VLOOKUP(B75,'Comp SINAPI AL 07-2025 Onerado'!$B$11:$H$50004,3,0)) -> H | E75: 0.2 | F75: =IF(H75="i",VLOOKUP(B75,'Ins SINAPI AL 07-2025 Onerado'!$B$11:$F$49999,5,0),VLOOKUP(B75,'Comp SINAPI AL 07-2025 Onerado'!$B$11:$E$50004,4,0)) -> 21.35 | G75: 4.27 | H75: ca | I75: =_xlfn.ISFORMULA(F75) -> TRUE
I76: FALSE
B77: CPU.07 | C77: Entrada para descida d’água tipo EDA 01 B | D77: un | E77: 1 | G77: =SUM(G82,G80,G79,G78) -> 289.23 | H77: S | I77: =_xlfn.ISFORMULA(F77) -> FALSE
A78: =B110 | C78: MATERIAL | G78: 0 | H78: ss | I78: FALSE
A79: =B77 -> CPU.07 | C79: EQUIPAMENTOS | G79: 0 | H79: ss | I79: FALSE
A80: =B77 -> CPU.07 | C80: SERVIÇOS | G80: =SUM(G81:G81) -> 289.23 | H80: ss | I80: FALSE
A81: SICRO | B81: 2003115 | C81: Entrada para descida d'água - EDA 01 B - areia e brita comerciais | D81: un | E81: 1 | F81: 289.23 | G81: =TRUNC(E81*F81,2) -> 289.23 | H81: ca | I81: FALSE
A82: =B77 -> CPU.07 | C82: MÃO DE OBRA | G82: 0 | H82: mdo | I82: FALSE
I83: FALSE
B84: CPU.08 | C84: Plantio de vegetação tipo gramínea para proteção de talude com hidrossemeadura, inclusive adubação e transporte | D84: m2 | E84: 1 | G84: =SUM(G91,G87,G86,G85) -> 7.11 | H84: S | I84: FALSE
A85: =B120 | C85: MATERIAL | G85: 0 | H85: ss | I85: FALSE
A86: =B84 -> CPU.08 | C86: EQUIPAMENTOS | G86: 0 | H86: ss | I86: FALSE
A87: =B84 -> CPU.08 | C87: SERVIÇOS | G87: =SUM(G88:G90) -> 7.11 | H87: ss | I87: FALSE
A88: SICRO | B88: 4413905 | C88: Hidrossemeadura | D88: M2 | E88: 1 | F88: 6.76 | G88: =TRUNC(E88*F88,2) -> 6.76 | H88: ca | I88: FALSE
A89: PRÓPRIA | B89: CODE | C89: Hospedagem | D89: un | E89: ='Memorial de cálculo'!D55*'Memorial de cálculo'!H55 -> 0.002409638554 | F89: ='CPU HOSPEDAGEM'!C19 -> 94.08609848 | G89: 0.22 | H89: ca | I89: TRUE
A90: PRÓPRIA | B90: CODE | C90: Veículo para serviço tipo pick-up, cabine dupla - 2.0 16V 4x4 diesel Aut. | D90: dia | E90: =LARGE('Memorial de cálculo'!H55:H55,1) -> 0.0008032128514 | F90: ='CPU-VEICULO_Serviços'!$C$11 -> 166.8570842 | G90: 0.13 | H90: ca | I90: TRUE
A91: =B84 -> CPU.08 | C91: MÃO DE OBRA | G91: 0 | H91: mdo | I91: FALSE
I92: FALSE
B93: CPU.09 | C93: Recomposição das erosões, inclusive, regularização da superfície e reaterro | D93: m3 | E93: 1 | G93: =SUM(G106,G97,G96,G94) -> 135.42 | H93: S | I93: FALSE
A94: =B93 -> CPU.09 | C94: MATERIAL | G94: =SUM(G95) -> 54.26 | H94: ss | I94: FALSE
A95: SINAPI | B95: 6081 | C95: =PROPER(IF(H95="i",VLOOKUP(B95,'Ins SINAPI AL 07-2025 Onerado'!$B$11:$F$49999,2,0),VLOOKUP(B95,'Comp SINAPI AL 07-2025 Onerado'!$G$11:$H$50004,2,0))) -> Argila Ou Barro Para Aterro/Reaterro (Com Transporte Ate 10 Km) | D95: =IF(H95="i",VLOOKUP(B95,'Ins SINAPI AL 07-2025 Onerado'!$B$11:$F$49999,3,0),VLOOKUP(B95,'Comp SINAPI AL 07-2025 Onerado'!$G$11:$H$50004,3,0)) -> M3 | E95: 1 | F95: 54.26 | G95: =TRUNC(E95*F95,2) -> 54.26 | H95: i | I95: FALSE
A96: =B93 -> CPU.09 | C96: EQUIPAMENTOS | G96: 0 | H96: ss | I96: FALSE
A97: =B93 -> CPU.09 | C97: SERVIÇOS | G97: =SUM(G98:G105) -> 81.16 | H97: ss | I97: FALSE
A98: SINAPI | B98: 101230 | C98: =PROPER(IF(H98="i",VLOOKUP(B98,'Ins SINAPI AL 07-2025 Onerado'!$B$11:$F$49999,2,0),VLOOKUP(B98,'Comp SINAPI AL 07-2025 Onerado'!$B$11:$C$50004,2,0))) -> Escavação Vertical Para Infraestrutura, Com Carga, Descarga E Transporte De Solo De 1ª Categoria, Com Escavadeira Hidráulica (Caçamba: 0,8 M³ / 111 Hp), Frota De 3 Caminhões Basculantes De 14 M³, Dmt Até 1 Km E Velocidade Média14 Km/H. Af_05/2020 | D98: =IF(H98="i",VLOOKUP(B98,'Ins SINAPI AL 07-2025 Onerado'!$B$11:$F$49999,2,0),VLOOKUP(B98,'Comp SINAPI AL 07-2025 Onerado'!$B$11:$H$50004,3,0)) -> M3 | E98: 0.1 | F98: =IF(H98="i",VLOOKUP(B98,'Ins SINAPI AL 07-2025 Onerado'!$B$11:$F$49999,5,0),VLOOKUP(B98,'Comp SINAPI AL 07-2025 Onerado'!$B$11:$E$50004,4,0)) -> 11.1 | G98: =TRUNC(E98*F98,2) -> 1.11 | H98: ca | I98: TRUE | J98: Preparação da superfície 10%
A99: SINAPI | B99: 100976 | C99: =PROPER(IF(H99="i",VLOOKUP(B99,'Ins SINAPI AL 07-2025 Onerado'!$B$11:$F$49999,2,0),VLOOKUP(B99,'Comp SINAPI AL 07-2025 Onerado'!$B$11:$C$50004,2,0))) -> Carga, Manobra E Descarga De Solos E Materiais Granulares Em Caminhão Basculante 18 M³ - Carga Com Pá Carregadeira (Caçamba De 1,7 A 2,8 M³ / 128 Hp) E Descarga Livre (Unidade: M3). Af_07/2020 | D99: =IF(H99="i",VLOOKUP(B99,'Ins SINAPI AL 07-2025 Onerado'!$B$11:$F$49999,2,0),VLOOKUP(B99,'Comp SINAPI AL 07-2025 Onerado'!$B$11:$H$50004,3,0)) -> M3 | E99: 1 | F99: =IF(H99="i",VLOOKUP(B99,'Ins SINAPI AL 07-2025 Onerado'!$B$11:$F$49999,5,0),VLOOKUP(B99,'Comp SINAPI AL 07-2025 Onerado'!$B$11:$E$50004,4,0)) -> 8.27 | G99: 8.27 | H99: ca | I99: TRUE
A100: SINAPI | B100: 95875 | C100: =PROPER(IF(H100="i",VLOOKUP(B100,'Ins SINAPI AL 07-2025 Onerado'!$B$11:$F$49999,2,0),VLOOKUP(B100,'Comp SINAPI AL 07-2025 Onerado'!$B$11:$C$50004,2,0))) -> Transporte Com Caminhão Basculante De 10 M³, Em Via Urbana Pavimentada, Dmt Até 30 Km (Unidade: M3Xkm). Af_07/2020 | D100: =IF(H100="i",VLOOKUP(B100,'Ins SINAPI AL 07-2025 Onerado'!$B$11:$F$49999,2,0),VLOOKUP(B100,'Comp SINAPI AL 07-2025 Onerado'!$B$11:$H$50004,3,0)) -> M3XKM | E100: ='Memorial de cálculo'!$H$7 -> 14.46666667 | F100: =IF(H100="i",VLOOKUP(B100,'Ins SINAPI AL 07-2025 Onerado'!$B$11:$F$49999,5,0),VLOOKUP(B100,'Comp SINAPI AL 07-2025 Onerado'!$B$11:$E$50004,4,0)) -> 2.47 | G100: =TRUNC(E100*F100,2) -> 35.73 | H100: ca | I100: TRUE | J100: Transporte da argila
A101: SINAPI | B101: 100951 | C101: =PROPER(IF(H101="i",VLOOKUP(B101,'Ins SINAPI AL 07-2025 Onerado'!$B$11:$F$49999,2,0),VLOOKUP(B101,'Comp SINAPI AL 07-2025 Onerado'!$B$11:$C$50004,2,0))) -> Transporte Com Caminhão Carroceria Com Guindauto (Munck), Momento Máximo De Carga 11,7 Tm, Em Via Urbana Em Revestimento Primário (Unidade: Txkm). Af_07/2020 | D101: =IF(H101="i",VLOOKUP(B101,'Ins SINAPI AL 07-2025 Onerado'!$B$11:$F$49999,2,0),VLOOKUP(B101,'Comp SINAPI AL 07-2025 Onerado'!$B$11:$H$50004,3,0)) -> TXKM | E101: =2*(1.5*'Memorial de cálculo'!$H$8)/AVERAGE('Memorial de cálculo'!I57:K57) -> 3 | F101: =IF(H101="i",VLOOKUP(B101,'Ins SINAPI AL 07-2025 Onerado'!$B$11:$F$49999,5,0),VLOOKUP(B101,'Comp SINAPI AL 07-2025 Onerado'!$B$11:$E$50004,4,0)) -> 3.08 | G101: 9.24 | H101: ca | I101: TRUE | J101: Tonelada da máquina | L101: 1.5 | N101: (Ida e volta)
A102: SINAPI | B102: 100952 | C102: =PROPER(IF(H102="i",VLOOKUP(B102,'Ins SINAPI AL 07-2025 Onerado'!$B$11:$F$49999,2,0),VLOOKUP(B102,'Comp SINAPI AL 07-2025 Onerado'!$B$11:$C$50004,2,0))) -> Transporte Com Caminhão Carroceria Com Guindauto (Munck), Momento Máximo De Carga 11,7 Tm, Em Via Urbana Pavimentada, Dmt Até 30Km (Unidade: Txkm). Af_07/2020 | D102: =IF(H102="i",VLOOKUP(B102,'Ins SINAPI AL 07-2025 Onerado'!$B$11:$F$49999,2,0),VLOOKUP(B102,'Comp SINAPI AL 07-2025 Onerado'!$B$11:$H$50004,3,0)) -> TXKM | E102: =2*(1.5*('Memorial de cálculo'!$H$7))/AVERAGE('Memorial de cálculo'!I57:K57) -> 4.34 | F102: =IF(H102="i",VLOOKUP(B102,'Ins SINAPI AL 07-2025 Onerado'!$B$11:$F$49999,5,0),VLOOKUP(B102,'Comp SINAPI AL 07-2025 Onerado'!$B$11:$E$50004,4,0)) -> 2.84 | G102: =TRUNC(E102*F102,2) -> 12.32 | H102: ca | I102: TRUE | J102: Tonelada da máquina | L102: 1.5 | N102: (Ida e volta)
A103: SINAPI | B103: 96385 | C103: =PROPER(IF(H103="i",VLOOKUP(B103,'Ins SINAPI AL 07-2025 Onerado'!$B$11:$F$49999,2,0),VLOOKUP(B103,'Comp SINAPI AL 07-2025 Onerado'!$B$11:$C$50004,2,0))) -> Execução E Compactação De Corpo De Aterro De Aterro (95% De Energia Do Proctor Normal) Com Solo Predominantemente Argiloso Espessura 15 Cm - Exclusive Material, Escavação, Carga E Transporte. Af_09/2024 | D103: =IF(H103="i",VLOOKUP(B103,'Ins SINAPI AL 07-2025 Onerado'!$B$11:$F$49999,2,0),VLOOKUP(B103,'Comp SINAPI AL 07-2025 Onerado'!$B$11:$H$50004,3,0)) -> M3 | E103: 1 | F103: =IF(H103="i",VLOOKUP(B103,'Ins SINAPI AL 07-2025 Onerado'!$B$11:$F$49999,5,0),VLOOKUP(B103,'Comp SINAPI AL 07-2025 Onerado'!$B$11:$E$50004,4,0)) -> 12.06 | G103: 12.06 | H103: ca | I103: TRUE
A104: PRÓPRIA | B104: CODE | C104: Hospedagem | D104: un | E104: ='Memorial de cálculo'!D59*'Memorial de cálculo'!H59+'Memorial de cálculo'!D60*'Memorial de cálculo'!H60+'Memorial de cálculo'!D61*'Memorial de cálculo'!H61 -> 0.0153585375 | F104: ='CPU HOSPEDAGEM'!C19 -> 94.08609848 | G104: 1.44 | H104: ca | I104: TRUE
A105: PRÓPRIA | B105: CODE | C105: Veículo para serviço tipo pick-up, cabine dupla - 2.0 16V 4x4 diesel Aut. | D105: dia | E105: =LARGE('Memorial de cálculo'!H59:H61,1) -> 0.0059586125 | F105: ='CPU-VEICULO_Serviços'!$C$11 -> 166.8570842 | G105: 0.99 | H105: ca | I105: TRUE
A106: =B93 -> CPU.09 | C106: MÃO DE OBRA | G106: 0 | H106: mdo | I106: FALSE
I107: FALSE
B108: CPU.10 | C108: Regularização e compactação da crista | D108: m2 | E108: 1 | G108: =SUM(G115,G111,G110,G109) -> 2.94 | H108: S | I108: FALSE
A109: =B108 -> CPU.10 | C109: MATERIAL | G109: 0 | H109: ss | I109: FALSE
A110: =B108 -> CPU.10 | C110: EQUIPAMENTOS | G110: 0 | H110: ss | I110: FALSE
A111: =B108 -> CPU.10 | C111: SERVIÇOS | G111: =SUM(G112:G114) -> 2.94 | H111: ss | I111: FALSE
A112: SINAPI | B112: 100576 | C112: =PROPER(IF(H112="i",VLOOKUP(B112,'Ins SINAPI AL 07-2025 Onerado'!$B$11:$F$49999,2,0),VLOOKUP(B112,'Comp SINAPI AL 07-2025 Onerado'!$B$11:$C$50004,2,0))) -> Regularização E Compactação De Subleito De Solo Predominantemente Argiloso, Para Obras De Construção De Pavimentos. Af_09/2024 | D112: =IF(H112="i",VLOOKUP(B112,'Ins SINAPI AL 07-2025 Onerado'!$B$11:$F$49999,2,0),VLOOKUP(B112,'Comp SINAPI AL 07-2025 Onerado'!$B$11:$H$50004,3,0)) -> M2 | E112: 1 | F112: =IF(H112="i",VLOOKUP(B112,'Ins SINAPI AL 07-2025 Onerado'!$B$11:$F$49999,5,0),VLOOKUP(B112,'Comp SINAPI AL 07-2025 Onerado'!$B$11:$E$50004,4,0)) -> 2.76 | G112: =TRUNC(E112*F112,2) -> 2.76 | H112: ca | I112: TRUE
A113: PRÓPRIA | B113: CODE | C113: Hospedagem | D113: un | E113: ='Memorial de cálculo'!D65*'Memorial de cálculo'!H65 -> 0.0010769 | F113: ='CPU HOSPEDAGEM'!C19 -> 94.08609848 | G113: 0.1 | H113: ca | I113: TRUE
A114: PRÓPRIA | B114: CODE | C114: Veículo para serviço tipo pick-up, cabine dupla - 2.0 16V 4x4 diesel Aut. | D114: dia | E114: =LARGE('Memorial de cálculo'!H65,1) -> 0.00053845 | F114: ='CPU-VEICULO_Serviços'!$C$11 -> 166.8570842 | G114: 0.08 | H114: ca | I114: TRUE
A115: =B108 -> CPU.10 | C115: MÃO DE OBRA | G115: 0 | H115: mdo | I115: FALSE
I116: FALSE
B117: CPU.11 | C117: Execução de Revestimento em BGTC com 10 cm de espessura | D117: m3 | E117: 1 | G117: =SUM(G127,G120,G119,G118) -> 302.69 | H117: S | I117: FALSE
A118: =B117 -> CPU.11 | C118: MATERIAL | G118: 0 | H118: ss | I118: FALSE
A119: =B117 -> CPU.11 | C119: EQUIPAMENTOS | G119: 0 | H119: ss | I119: FALSE
A120: =B117 -> CPU.11 | C120: SERVIÇOS | G120: =SUM(G121:G126) -> 302.69 | H120: ss | I120: FALSE
A121: SINAPI | B121: 105732 | C121: =PROPER(IF(H121="i",VLOOKUP(B121,'Ins SINAPI AL 07-2025 Onerado'!$B$11:$F$49999,2,0),VLOOKUP(B121,'Comp SINAPI AL 07-2025 Onerado'!$B$11:$C$50004,2,0))) -> Construção De Base E Sub-Base Para Pavimentação De Brita Graduada Simples Tratada Com Cimento, Com Espessura De 10 Cm - Exclusive Carga E Transporte. Af_09/2024 | D121: =IF(H121="i",VLOOKUP(B121,'Ins SINAPI AL 07-2025 Onerado'!$B$11:$F$49999,2,0),VLOOKUP(B121,'Comp SINAPI AL 07-2025 Onerado'!$B$11:$H$50004,3,0)) -> M3 | E121: =1 -> 1 | F121: =IF(H121="i",VLOOKUP(B121,'Ins SINAPI AL 07-2025 Onerado'!$B$11:$F$49999,5,0),VLOOKUP(B121,'Comp SINAPI AL 07-2025 Onerado'!$B$11:$E$50004,4,0)) -> 238.44 | G121: =TRUNC(E121*F121,2) -> 238.44 | H121: ca | I121: TRUE
A122: SINAPI | B122: 93592 | C122: =PROPER(IF(H122="i",VLOOKUP(B122,'Ins SINAPI AL 07-2025 Onerado'!$B$11:$F$49999,2,0),VLOOKUP(B122,'Comp SINAPI AL 07-2025 Onerado'!$B$11:$C$50004,2,0))) -> Transporte Com Caminhão Basculante De 14 M³, Em Via Urbana Em Revestimento Primário (Unidade: M3Xkm). Af_07/2020 | D122: =IF(H122="i",VLOOKUP(B122,'Ins SINAPI AL 07-2025 Onerado'!$B$11:$F$49999,2,0),VLOOKUP(B122,'Comp SINAPI AL 07-2025 Onerado'!$B$11:$H$50004,3,0)) -> M3XKM | E122: ='Memorial de cálculo'!$H$8 -> 10 | F122: =IF(H122="i",VLOOKUP(B122,'Ins SINAPI AL 07-2025 Onerado'!$B$11:$F$49999,5,0),VLOOKUP(B122,'Comp SINAPI AL 07-2025 Onerado'!$B$11:$E$50004,4,0)) -> 2.37 | G122: 23.7 | H122: ca | I122: TRUE
A123: SINAPI | B123: 95876 | C123: =PROPER(IF(H123="i",VLOOKUP(B123,'Ins SINAPI AL 07-2025 Onerado'!$B$11:$F$49999,2,0),VLOOKUP(B123,'Comp SINAPI AL 07-2025 Onerado'!$B$11:$C$50004,2,0))) -> Transporte Com Caminhão Basculante De 14 M³, Em Via Urbana Pavimentada, Dmt Até 30 Km (Unidade: M3Xkm). Af_07/2020 | D123: =IF(H123="i",VLOOKUP(B123,'Ins SINAPI AL 07-2025 Onerado'!$B$11:$F$49999,2,0),VLOOKUP(B123,'Comp SINAPI AL 07-2025 Onerado'!$B$11:$H$50004,3,0)) -> M3XKM | E123: =('Memorial de cálculo'!$H$7) -> 14.46666667 | F123: =IF(H123="i",VLOOKUP(B123,'Ins SINAPI AL 07-2025 Onerado'!$B$11:$F$49999,5,0),VLOOKUP(B123,'Comp SINAPI AL 07-2025 Onerado'!$B$11:$E$50004,4,0)) -> 2.15 | G123: =TRUNC(E123*F123,2) -> 31.1 | H123: ca | I123: TRUE
A124: SINAPI | B124: 100976 | C124: =PROPER(IF(H124="i",VLOOKUP(B124,'Ins SINAPI AL 07-2025 Onerado'!$B$11:$F$49999,2,0),VLOOKUP(B124,'Comp SINAPI AL 07-2025 Onerado'!$B$11:$C$50004,2,0))) -> Carga, Manobra E Descarga De Solos E Materiais Granulares Em Caminhão Basculante 18 M³ - Carga Com Pá Carregadeira (Caçamba De 1,7 A 2,8 M³ / 128 Hp) E Descarga Livre (Unidade: M3). Af_07/2020 | D124: =IF(H124="i",VLOOKUP(B124,'Ins SINAPI AL 07-2025 Onerado'!$B$11:$F$49999,2,0),VLOOKUP(B124,'Comp SINAPI AL 07-2025 Onerado'!$B$11:$H$50004,3,0)) -> M3 | E124: =1 -> 1 | F124: =IF(H124="i",VLOOKUP(B124,'Ins SINAPI AL 07-2025 Onerado'!$B$11:$F$49999,5,0),VLOOKUP(B124,'Comp SINAPI AL 07-2025 Onerado'!$B$11:$E$50004,4,0)) -> 8.27 | G124: 8.27 | H124: ca | I124: TRUE
A125: PRÓPRIA | B125: CODE | C125: Hospedagem | D125: un | E125: ='Memorial de cálculo'!D69*'Memorial de cálculo'!H69 -> 0.004568675 | F125: ='CPU HOSPEDAGEM'!C19 -> 94.08609848 | G125: 0.42 | H125: ca | I125: TRUE
A126: PRÓPRIA | B126: CODE | C126: Veículo para serviço tipo pick-up, cabine dupla - 2.0 16V 4x4 diesel Aut. | D126: dia | E126: =LARGE('Memorial de cálculo'!H69,1) -> 0.004568675 | F126: ='CPU-VEICULO_Serviços'!$C$11 -> 166.8570842 | G126: 0.76 | H126: ca | I126: TRUE
A127: =B117 -> CPU.11 | C127: MÃO DE OBRA | G127: 0 | H127: mdo | I127: FALSE
I128: FALSE
B129: CPU.12 | C129: Projeto geométrico | D129: un | E129: 1 | G129: =SUM(G133,G132,G131,G130) -> 9898.9 | H129: S | I129: FALSE
A130: =B129 -> CPU.12 | C130: MATERIAL | G130: 0 | H130: ss | I130: FALSE
A131: =B129 -> CPU.12 | C131: EQUIPAMENTOS | G131: 0 | H131: ss | I131: FALSE
A132: =B129 -> CPU.12 | C132: SERVIÇOS | G132: 0 | H132: ss | I132: FALSE
A133: =B129 -> CPU.12 | C133: MÃO DE OBRA | G133: =SUM(G134:G136) -> 9898.9 | H133: mdo | I133: FALSE
A134: SINAPI | B134: 90777 | C134: =PROPER(IF(H134="i",VLOOKUP(B134,'Ins SINAPI AL 07-2025 Onerado'!$B$11:$F$49999,2,0),VLOOKUP(B134,'Comp SINAPI AL 07-2025 Onerado'!$B$11:$C$50004,2,0))) -> Engenheiro Civil De Obra Junior Com Encargos Complementares | D134: =IF(H134="i",VLOOKUP(B134,'Ins SINAPI AL 07-2025 Onerado'!$B$11:$F$49999,2,0),VLOOKUP(B134,'Comp SINAPI AL 07-2025 Onerado'!$B$11:$H$50004,3,0)) -> H | E134: 30 | F134: =IF(H134="i",VLOOKUP(B134,'Ins SINAPI AL 07-2025 Onerado'!$B$11:$F$49999,5,0),VLOOKUP(B134,'Comp SINAPI AL 07-2025 Onerado'!$B$11:$E$50004,4,0)) -> 137.29 | G134: =TRUNC(E134*F134,2) -> 4118.7 | H134: ca | I134: TRUE
A135: SINAPI | B135: 90779 | C135: =PROPER(IF(H135="i",VLOOKUP(B135,'Ins SINAPI AL 07-2025 Onerado'!$B$11:$F$49999,2,0),VLOOKUP(B135,'Comp SINAPI AL 07-2025 Onerado'!$B$11:$C$50004,2,0))) -> Engenheiro Civil De Obra Senior Com Encargos Complementares | D135: =IF(H135="i",VLOOKUP(B135,'Ins SINAPI AL 07-2025 Onerado'!$B$11:$F$49999,2,0),VLOOKUP(B135,'Comp SINAPI AL 07-2025 Onerado'!$B$11:$H$50004,3,0)) -> H | E135: 20 | F135: =IF(H135="i",VLOOKUP(B135,'Ins SINAPI AL 07-2025 Onerado'!$B$11:$F$49999,5,0),VLOOKUP(B135,'Comp SINAPI AL 07-2025 Onerado'!$B$11:$E$50004,4,0)) -> 171.47 | G135: 3429.4 | H135: ca | I135: TRUE
A136: SINAPI | B136: 90775 | C136: =PROPER(IF(H136="i",VLOOKUP(B136,'Ins SINAPI AL 07-2025 Onerado'!$B$11:$F$49999,2,0),VLOOKUP(B136,'Comp SINAPI AL 07-2025 Onerado'!$B$11:$C$50004,2,0))) -> Desenhista Projetista Com Encargos Complementares | D136: =IF(H136="i",VLOOKUP(B136,'Ins SINAPI AL 07-2025 Onerado'!$B$11:$F$49999,2,0),VLOOKUP(B136,'Comp SINAPI AL 07-2025 Onerado'!$B$11:$H$50004,3,0)) -> H | E136: 60 | F136: =IF(H136="i",VLOOKUP(B136,'Ins SINAPI AL 07-2025 Onerado'!$B$11:$F$49999,5,0),VLOOKUP(B136,'Comp SINAPI AL 07-2025 Onerado'!$B$11:$E$50004,4,0)) -> 39.18 | G136: 2350.8 | H136: ca | I136: TRUE
I137: FALSE
B138: CPU.13 | C138: Fornecimento e Assentamento de Guia (meio-fio) Pré-fabricado, dimensões 100X15X13X30 Cm (Comprimento X Base Inferior X Base Superior X Altura) | D138: m | E138: 1 | G138: =SUM(G147,G141,G140,G139) -> 64.85 | H138: S | I138: FALSE
A139: =B138 -> CPU.13 | C139: MATERIAL | G139: 0 | H139: ss | I139: FALSE
A140: =B138 -> CPU.13 | C140: EQUIPAMENTOS | G140: 0 | H140: ss | I140: FALSE
A141: =B138 -> CPU.13 | C141: SERVIÇOS | G141: =SUM(G142:G146) -> 64.85 | H141: ss | I141: =_xlfn.ISFORMULA(F141) -> FALSE
A142: SINAPI | B142: 94273 | C142: =PROPER(IF(H142="i",VLOOKUP(B142,'Ins SINAPI AL 07-2025 Onerado'!$B$11:$F$49999,2,0),VLOOKUP(B142,'Comp SINAPI AL 07-2025 Onerado'!$B$11:$C$50004,2,0))) -> Assentamento De Guia (Meio-Fio) Em Trecho Reto, Confeccionada Em Concreto Pré-Fabricado, Dimensões 100X15X13X30 Cm (Comprimento X Base Inferior X Base Superior X Altura). Af_01/2024 | D142: =IF(H142="i",VLOOKUP(B142,'Ins SINAPI AL 07-2025 Onerado'!$B$11:$F$49999,2,0),VLOOKUP(B142,'Comp SINAPI AL 07-2025 Onerado'!$B$11:$H$50004,3,0)) -> M | E142: 1 | F142: =IF(H142="i",VLOOKUP(B142,'Ins SINAPI AL 07-2025 Onerado'!$B$11:$F$49999,5,0),VLOOKUP(B142,'Comp SINAPI AL 07-2025 Onerado'!$B$11:$E$50004,4,0)) -> 55.05 | G142: =TRUNC(E142*F142,2) -> 55.05 | H142: ca | I142: TRUE
A143: SINAPI | B143: 93595 | C143: =PROPER(IF(H143="i",VLOOKUP(B143,'Ins SINAPI AL 07-2025 Onerado'!$B$11:$F$49999,2,0),VLOOKUP(B143,'Comp SINAPI AL 07-2025 Onerado'!$B$11:$C$50004,2,0))) -> Transporte Com Caminhão Basculante De 10 M³, Em Via Urbana Em Revestimento Primário (Unidade: Txkm). Af_07/2020 | D143: =IF(H143="i",VLOOKUP(B143,'Ins SINAPI AL 07-2025 Onerado'!$B$11:$F$49999,2,0),VLOOKUP(B143,'Comp SINAPI AL 07-2025 Onerado'!$B$11:$H$50004,3,0)) -> TXKM | E143: =('Memorial de cálculo'!$H$8)*0.067 -> 0.67 | F143: =IF(H143="i",VLOOKUP(B143,'Ins SINAPI AL 07-2025 Onerado'!$B$11:$F$49999,5,0),VLOOKUP(B143,'Comp SINAPI AL 07-2025 Onerado'!$B$11:$E$50004,4,0)) -> 1.82 | G143: =TRUNC(E143*F143,2) -> 1.21 | H143: ca | I143: TRUE | J143: Transporte do meio-fio pré fabricado (PESO = 67 KG)
A144: SINAPI | B144: 95878 | C144: =PROPER(IF(H144="i",VLOOKUP(B144,'Ins SINAPI AL 07-2025 Onerado'!$B$11:$F$49999,2,0),VLOOKUP(B144,'Comp SINAPI AL 07-2025 Onerado'!$B$11:$C$50004,2,0))) -> Transporte Com Caminhão Basculante De 10 M³, Em Via Urbana Pavimentada, Dmt Até 30 Km (Unidade: Txkm). Af_07/2020 | D144: =IF(H144="i",VLOOKUP(B144,'Ins SINAPI AL 07-2025 Onerado'!$B$11:$F$49999,2,0),VLOOKUP(B144,'Comp SINAPI AL 07-2025 Onerado'!$B$11:$H$50004,3,0)) -> TXKM | E144: =('Memorial de cálculo'!$H$7)*0.067 -> 0.9692666667 | F144: =IF(H144="i",VLOOKUP(B144,'Ins SINAPI AL 07-2025 Onerado'!$B$11:$F$49999,5,0),VLOOKUP(B144,'Comp SINAPI AL 07-2025 Onerado'!$B$11:$E$50004,4,0)) -> 1.66 | G144: =TRUNC(E144*F144,2) -> 1.6 | H144: ca | I144: TRUE | J144: Transporte do meio-fio pré fabricado (PESO = 67 KG)
A145: PRÓPRIA | B145: CODE | C145: Hospedagem | D145: un | E145: ='Memorial de cálculo'!D79*'Memorial de cálculo'!H79+'Memorial de cálculo'!D80*'Memorial de cálculo'!H80 -> 0.0574 | F145: ='CPU HOSPEDAGEM'!C19 -> 94.08609848 | G145: =TRUNC(E145*F145,2) -> 5.4 | H145: ca | I145: TRUE
A146: PRÓPRIA | B146: CODE | C146: Veículo para serviço tipo pick-up, cabine dupla - 2.0 16V 4x4 diesel Aut. | D146: dia | E146: =LARGE('Memorial de cálculo'!H79:H80,1) -> 0.009566666667 | F146: ='CPU-VEICULO_Serviços'!$C$11 -> 166.8570842 | G146: =TRUNC(E146*F146,2) -> 1.59 | H146: ca | I146: TRUE
A147: =B138 -> CPU.13 | C147: MÃO DE OBRA | G147: 0 | H147: mdo | I147: FALSE
I148: FALSE
B149: CPU.14 | C149: Disponibilidade de veículo para apoio a fiscalização, inclusive combustível | D149: un | E149: 1 | G149: =SUM(G154,G152,G151,G150) -> 154.48 | H149: S | I149: FALSE
A150: =B149 -> CPU.14 | C150: MATERIAL | G150: 0 | H150: ss | I150: FALSE
A151: =B149 -> CPU.14 | C151: EQUIPAMENTOS | G151: 0 | H151: ss | I151: FALSE
A152: =B149 -> CPU.14 | C152: SERVIÇOS | G152: =SUM(G153) -> 154.48 | H152: ss | I152: FALSE
A153: PRÓPRIA | B153: CODE | C153: Veículo para fiscalização tipo pick-up, cabine dupla - 2.0 16V 4x4 diesel Aut. | D153: dia | E153: 1 | F153: ='CPU-VEICULO_Fiscalização'!$C$11 -> 154.4809324 | G153: =TRUNC(E153*F153,2) -> 154.48 | H153: ca | I153: TRUE
A154: =B149 -> CPU.14 | C154: MÃO DE OBRA | G154: 0 | H154: mdo | I154: FALSE
I155: FALSE
B156: CPU.15 | C156: Selagem de fissuras com resina epóxi | D156: m | E156: 1 | G156: =SUM(G161,G159,G158,G157) -> 26.38 | H156: S | I156: FALSE
A157: =B156 -> CPU.15 | C157: MATERIAL | G157: 0 | H157: ss | I157: FALSE
A158: =B156 -> CPU.15 | C158: EQUIPAMENTOS | G158: 0 | H158: ss | I158: FALSE
A159: =B156 -> CPU.15 | C159: SERVIÇOS | G159: =SUM(G160) -> 22.17 | H159: ss | I159: FALSE
A160: SICRO3 | B160: 4915653 | C160: Selagem superficial de fissuras com adesivo estrutural à base de resina epóxi de alta viscosidade, inclusive limpeza superficial - fornecimento e aplicação | D160: kg | E160: 0.3 | F160: 68.47 | G160: 22.17 | H160: ca | I160: FALSE
A161: =B156 -> CPU.15 | C161: MÃO DE OBRA | G161: =SUM(G162:G163) -> 4.21 | H161: mdo | I161: FALSE
A162: PRÓPRIA | B162: CODE | C162: Hospedagem | D162: un | E162: ='Memorial de cálculo'!D84*'Memorial de cálculo'!H84 -> 0.02374574951 | F162: ='CPU HOSPEDAGEM'!$C$19 -> 94.08609848 | G162: =TRUNC(E162*F162,2) -> 2.23 | H162: ca | I162: TRUE
A163: PRÓPRIA | B163: CODE | C163: Veículo para serviço tipo pick-up, cabine dupla - 2.0 16V 4x4 diesel Aut. | D163: dia | E163: =LARGE('Memorial de cálculo'!H84:H84,1) -> 0.01187287476 | F163: ='CPU-VEICULO_Serviços'!$C$11 -> 166.8570842 | G163: =TRUNC(E163*F163,2) -> 1.98 | H163: ca | I163: TRUE
I164: FALSE
B165: CPU.16 | C165: Irrigação - inclusive transporte | D165: m3 | E165: 1 | G165: =SUM(G172,G168,G167,G166) -> 93.86 | H165: S | I165: FALSE
A166: =B165 -> CPU.16 | C166: MATERIAL | G166: 0 | H166: ss | I166: FALSE
A167: =B165 -> CPU.16 | C167: EQUIPAMENTOS | G167: 0 | H167: ss | I167: FALSE
A168: =B165 -> CPU.16 | C168: SERVIÇOS | G168: =SUM(G169:G171) -> 93.86 | H168: ss | I168: FALSE
A169: SINAPI | B169: 101006 | C169: =PROPER(IF(H169="i",VLOOKUP(B169,'Ins SINAPI AL 07-2025 Onerado'!$B$11:$F$49999,2,0),VLOOKUP(B169,'Comp SINAPI AL 07-2025 Onerado'!$B$11:$C$50004,2,0))) -> Carga, Manobra E Descarga De Água Em Caminhão Pipa 10 M³. Af_07/2020 | D169: =IF(H169="i",VLOOKUP(B169,'Ins SINAPI AL 07-2025 Onerado'!$B$11:$F$49999,2,0),VLOOKUP(B169,'Comp SINAPI AL 07-2025 Onerado'!$B$11:$H$50004,3,0)) -> M3 | E169: 1 | F169: =IF(H169="i",VLOOKUP(B169,'Ins SINAPI AL 07-2025 Onerado'!$B$11:$F$49999,5,0),VLOOKUP(B169,'Comp SINAPI AL 07-2025 Onerado'!$B$11:$E$50004,4,0)) -> 20.7 | G169: =TRUNC(E169*F169,2) -> 20.7 | H169: ca | I169: TRUE
A170: SINAPI | B170: 100961 | C170: =PROPER(IF(H170="i",VLOOKUP(B170,'Ins SINAPI AL 07-2025 Onerado'!$B$11:$F$49999,2,0),VLOOKUP(B170,'Comp SINAPI AL 07-2025 Onerado'!$B$11:$C$50004,2,0))) -> Transporte Com Caminhão Pipa De 10 M³, Em Via Urbana Em Revestimento Primário (Unidade: M3Xkm). Af_07/2020 | D170: =IF(H170="i",VLOOKUP(B170,'Ins SINAPI AL 07-2025 Onerado'!$B$11:$F$49999,2,0),VLOOKUP(B170,'Comp SINAPI AL 07-2025 Onerado'!$B$11:$H$50004,3,0)) -> M3XKM | E170: ='Memorial de cálculo'!H8 -> 10 | F170: =IF(H170="i",VLOOKUP(B170,'Ins SINAPI AL 07-2025 Onerado'!$B$11:$F$49999,5,0),VLOOKUP(B170,'Comp SINAPI AL 07-2025 Onerado'!$B$11:$E$50004,4,0)) -> 3.15 | G170: =TRUNC(E170*F170,2) -> 31.5 | H170: ca | I170: TRUE
A171: SINAPI | B171: 100962 | C171: =PROPER(IF(H171="i",VLOOKUP(B171,'Ins SINAPI AL 07-2025 Onerado'!$B$11:$F$49999,2,0),VLOOKUP(B171,'Comp SINAPI AL 07-2025 Onerado'!$B$11:$C$50004,2,0))) -> Transporte Com Caminhão Pipa De 10 M³, Em Via Urbana Pavimentada, Dmt Até 30Km (Unidade: M3Xkm). Af_07/2020 | D171: =IF(H171="i",VLOOKUP(B171,'Ins SINAPI AL 07-2025 Onerado'!$B$11:$F$49999,2,0),VLOOKUP(B171,'Comp SINAPI AL 07-2025 Onerado'!$B$11:$H$50004,3,0)) -> M3XKM | E171: ='Memorial de cálculo'!H7 -> 14.46666667 | F171: =IF(H171="i",VLOOKUP(B171,'Ins SINAPI AL 07-2025 Onerado'!$B$11:$F$49999,5,0),VLOOKUP(B171,'Comp SINAPI AL 07-2025 Onerado'!$B$11:$E$50004,4,0)) -> 2.88 | G171: 41.66 | H171: ca | I171: TRUE
A172: =B165 -> CPU.16 | C172: MÃO DE OBRA | G172: 0 | H172: mdo | I172: FALSE
I173: FALSE
B174: CPU.17 | C174: Injeção de nata de cimento em buracos | D174: m3 | E174: 1 | G174: =SUM(G181,G177,G176,G175) -> 1049.53 | H174: S | I174: FALSE
A175: =B174 -> CPU.17 | C175: MATERIAL | G175: 0 | H175: ss | I175: FALSE
A176: =B174 -> CPU.17 | C176: EQUIPAMENTOS | G176: 0 | H176: ss | I176: FALSE
A177: =B174 -> CPU.17 | C177: SERVIÇOS | G177: =SUM(G178:G180) -> 1049.53 | H177: ss | I177: FALSE
A178: SICRO | B178: 3816196 | C178: Injeção de nata de cimento | D178: m3 | E178: 1 | F178: 1016.92 | G178: =TRUNC(E178*F178,2) -> 1016.92 | H178: ca | I178: FALSE
A179: PRÓPRIA | B179: CODE | C179: Hospedagem | D179: un | E179: ='Memorial de cálculo'!D88*'Memorial de cálculo'!H88 -> 0.125 | F179: ='CPU HOSPEDAGEM'!$C$19 -> 94.08609848 | G179: =TRUNC(E179*F179,2) -> 11.76 | H179: ca | I179: TRUE
A180: PRÓPRIA | B180: CODE | C180: Veículo para serviço tipo pick-up, cabine dupla - 2.0 16V 4x4 diesel Aut. | D180: dia | E180: =LARGE('Memorial de cálculo'!H88:H88,1) -> 0.125 | F180: ='CPU-VEICULO_Serviços'!$C$11 -> 166.8570842 | G180: =TRUNC(E180*F180,2) -> 20.85 | H180: ca | I180: TRUE
A181: =B174 -> CPU.17 | C181: MÃO DE OBRA | G181: 0 | H181: mdo | I181: FALSE
I182: FALSE
B183: CPU.18 | C183: Recuperação com uso de argamassa | D183: m3 | E183: 1 | G183: =SUM(G190,G186,G185,G184) -> 1586.72 | H183: S | I183: FALSE
A184: =B183 -> CPU.18 | C184: MATERIAL | G184: 0 | H184: ss | I184: FALSE
A185: =B183 -> CPU.18 | C185: EQUIPAMENTOS | G185: 0 | H185: ss | I185: FALSE
A186: =B183 -> CPU.18 | C186: SERVIÇOS | G186: =SUM(G187:G189) -> 1245.12 | H186: ss | I186: FALSE
A187: SINAPI | B187: 100480 | C187: =PROPER(IF(H187="i",VLOOKUP(B187,'Ins SINAPI AL 07-2025 Onerado'!$B$11:$F$49999,2,0),VLOOKUP(B187,'Comp SINAPI AL 07-2025 Onerado'!$B$11:$C$50004,2,0))) -> Argamassa Traço 1:3 (Em Volume De Cimento E Areia Média Úmida) Com Adição De Impermeabilizante, Preparo Manual. Af_08/2019 | D187: =IF(H187="i",VLOOKUP(B187,'Ins SINAPI AL 07-2025 Onerado'!$B$11:$F$49999,2,0),VLOOKUP(B187,'Comp SINAPI AL 07-2025 Onerado'!$B$11:$H$50004,3,0)) -> M3 | E187: 1 | F187: =IF(H187="i",VLOOKUP(B187,'Ins SINAPI AL 07-2025 Onerado'!$B$11:$F$9999,5,0),VLOOKUP(B187,'Comp SINAPI AL 07-2025 Onerado'!$B$11:$E$10004,4,0)) -> 890.1 | G187: =TRUNC(E187*F187,2) -> 890.1 | H187: ca | I187: TRUE
A188: PRÓPRIA | B188: CODE | C188: Hospedagem | D188: un | E188: ='Memorial de cálculo'!D93*'Memorial de cálculo'!H93 -> 2 | F188: ='CPU HOSPEDAGEM'!$C$19 -> 94.08609848 | G188: =TRUNC(E188*F188,2) -> 188.17 | H188: ca | I188: TRUE
A189: PRÓPRIA | B189: CODE | C189: Veículo para serviço tipo pick-up, cabine dupla - 2.0 16V 4x4 diesel Aut. | D189: dia | E189: =LARGE('Memorial de cálculo'!H93:H93,1) -> 1 | F189: ='CPU-VEICULO_Serviços'!$C$11 -> 166.8570842 | G189: =TRUNC(E189*F189,2) -> 166.85 | H189: ca | I189: TRUE
A190: =B183 -> CPU.18 | C190: MÃO DE OBRA | G190: =SUM(G191) -> 341.6 | H190: mdo | I190: FALSE
A191: SINAPI | B191: 88316 | C191: =PROPER(IF(H191="i",VLOOKUP(B191,'Ins SINAPI AL 07-2025 Onerado'!$B$11:$F$49999,2,0),VLOOKUP(B191,'Comp SINAPI AL 07-2025 Onerado'!$B$11:$C$50004,2,0))) -> Servente Com Encargos Complementares | D191: =IF(H191="i",VLOOKUP(B191,'Ins SINAPI AL 07-2025 Onerado'!$B$11:$F$49999,2,0),VLOOKUP(B191,'Comp SINAPI AL 07-2025 Onerado'!$B$11:$H$50004,3,0)) -> H | E191: 16 | F191: =IF(H191="i",VLOOKUP(B191,'Ins SINAPI AL 07-2025 Onerado'!$B$11:$F$9999,5,0),VLOOKUP(B191,'Comp SINAPI AL 07-2025 Onerado'!$B$11:$E$10004,4,0)) -> 21.35 | G191: =TRUNC(E191*F191,2) -> 341.6 | H191: ca | I191: TRUE
I192: FALSE
B193: CPU.19 | C193: Régua Linimétrica Padrão “ANA”, Aço Carbono - 2 X 70 X 1000 mm (Fornecimento e Instalação) | D193: un | E193: 1 | G193: =SUM(G202,G198,G197,G194) -> 350.04 | H193: S | I193: FALSE
A194: =B193 -> CPU.19 | C194: MATERIAL | G194: =SUM(G195:G196) -> 232.54 | H194: ss | I194: FALSE
A195: 2025-05-16 | B195: cotação | C195: RÉGUA LINIMÉTRICA PADRÃO “ANA”, AÇO CARBONO - 2 X 70 X 1000MM | D195: un | E195: 1 | F195: =Cotação!O11 -> 176.62 | G195: =TRUNC(E195*F195,2) -> 176.62 | H195: ca | I195: TRUE
A196: SINAPI | B196: 2747 | C196: =PROPER(IF(H196="i",VLOOKUP(B196,'Ins SINAPI AL 07-2025 Onerado'!$B$11:$F$49999,2,0),VLOOKUP(B196,'Comp SINAPI AL 07-2025 Onerado'!$B$11:$C$50004,2,0))) -> Mourao Rolico De Madeira Tratada, D = 16 A 20 Cm, H = 2,20 M, Em Eucalipto Ou Equivalente Da Regiao (Para Cerca) | D196: =IF(H196="i",VLOOKUP(B196,'Ins SINAPI AL 07-2025 Onerado'!$B$11:$F$49999,3,0),VLOOKUP(B196,'Comp SINAPI AL 07-2025 Onerado'!$B$11:$H$50004,3,0)) -> M | E196: 1.5 | F196: =IF(H196="i",VLOOKUP(B196,'Ins SINAPI AL 07-2025 Onerado'!$B$11:$F$9999,5,0),VLOOKUP(B196,'Comp SINAPI AL 07-2025 Onerado'!$B$11:$E$10004,4,0)) -> 37.28 | G196: =TRUNC(E196*F196,2) -> 55.92 | H196: i | I196: TRUE
A197: =B193 -> CPU.19 | C197: EQUIPAMENTOS | G197: 0 | H197: ss | I197: FALSE
A198: =B193 -> CPU.19 | C198: SERVIÇOS | G198: =SUM(G199:G201) -> 49.86 | H198: ss | I198: FALSE
A199: SINAPI | B199: 94975 | C199: =PROPER(IF(H199="i",VLOOKUP(B199,'Ins SINAPI AL 07-2025 Onerado'!$B$11:$F$49999,2,0),VLOOKUP(B199,'Comp SINAPI AL 07-2025 Onerado'!$B$11:$C$50004,2,0))) -> Concreto Fck = 15Mpa, Traço 1:3,4:3,5 (Em Massa Seca De Cimento/ Areia Média/ Brita 1) - Preparo Manual. Af_05/2021 | D199: =IF(H199="i",VLOOKUP(B199,'Ins SINAPI AL 07-2025 Onerado'!$B$11:$F$49999,2,0),VLOOKUP(B199,'Comp SINAPI AL 07-2025 Onerado'!$B$11:$H$50004,3,0)) -> M3 | E199: 0.01 | F199: =IF(H199="i",VLOOKUP(B199,'Ins SINAPI AL 07-2025 Onerado'!$B$11:$F$9999,5,0),VLOOKUP(B199,'Comp SINAPI AL 07-2025 Onerado'!$B$11:$E$10004,4,0)) -> 496.73 | G199: =TRUNC(E199*F199,2) -> 4.96 | H199: ca | I199: TRUE
A200: PRÓPRIA | B200: CODE | C200: Hospedagem | D200: un | E200: ='Memorial de cálculo'!D97*'Memorial de cálculo'!H97+'Memorial de cálculo'!D98*'Memorial de cálculo'!H98 -> 0.3 | F200: ='CPU HOSPEDAGEM'!$C$19 -> 94.08609848 | G200: =TRUNC(E200*F200,2) -> 28.22 | H200: ca | I200: TRUE
A201: PRÓPRIA | B201: CODE | C201: Veículo para serviço tipo pick-up, cabine dupla - 2.0 16V 4x4 diesel Aut. | D201: dia | E201: =LARGE('Memorial de cálculo'!H97:H98,1) -> 0.1 | F201: ='CPU-VEICULO_Serviços'!$C$11 -> 166.8570842 | G201: =TRUNC(E201*F201,2) -> 16.68 | H201: ca | I201: TRUE
... 136 more rows

Sheet COMPOSICÕES MODIFICADAS
A3: Código | D3: 93212 ADAPTADO
A4: Descrição | D4: EXECUÇÃO DE SANITÁRIO E VESTIÁRIO EM CANTEIRO DE OBRA EM CHAPA DE MADEIRA COMPENSADA, NÃO INCLUSO MOBILIÁRIO. AF_02/2016
A5: Data | D5: 2025-10-01
A6: Estado | D6: Alagoas
A7: Tipo | D7: CANT - CANTEIRO DE OBRAS
A8: Unidade | D8: m²
A9: Valor sem Desoneração | D9: =SUM(I12,I16,I20:I54,I58:I61,I65:I78,I85:I105) -> 1010.21
A11: Natureza | B11: Fonte | C11: codigo | D11: Descrição | E11: Tipo | F11: Unidade | G11: Valor sem Desoneração | H11: Coeficiente | I11: Preço sem Desoneração
A12: C | B12: SINAPI | C12: 89173 | D12: (COMPOSIÇÃO REPRESENTATIVA) DO SERVIÇO DE EMBOÇO/MASSA ÚNICA, APLICADO MANUALMENTE, TRAÇO 1:2:8, EM BETONEIRA DE 400L, PAREDES INTERNAS, COM EXECUÇÃO DE TALISCAS, EDIFICAÇÃO HABITACIONAL UNIFAMILIAR (CASAS) E EDIFICAÇÃO PÚBLICA PADRÃO. AF_12/2014 - ADAPTADO | E12: REVE - REVESTIMENTO E TRATAMENTO DE SUPERFÍCIES | F12: m² | G12: =SUM(I13:I15) -> 34.55 | H12: 0.7679 | I12: =ROUND(G12*H12,2) -> 26.53 | K12: =_xlfn.ISFORMULA(G12) -> TRUE
A13: C | B13: SINAPI | C13: 87531 | D13: =VLOOKUP(C13,'Comp SINAPI AL 07-2025 Onerado'!$B$11:$F$9696,2,FALSE) -> EMBOÇO, EM ARGAMASSA TRAÇO 1:2:8, PREPARO MECÂNICO, APLICADO MANUALMENTE EM PAREDES INTERNAS DE AMBIENTES COM ÁREA ENTRE 5M² E 10M², E = 17,5MM, COM TALISCAS. AF_03/2024 | E13: REVE - REVESTIMENTO E TRATAMENTO DE SUPERFÍCIES | F13: m² | G13: =VLOOKUP(C13,'Comp SINAPI AL 07-2025 Onerado'!$B$11:$F$9696,4,FALSE) -> 33.2 | H13: 0.154 | I13: =ROUND(G13*H13,2) -> 5.11 | K13: =_xlfn.ISFORMULA(G13) -> TRUE
A14: C | B14: SINAPI | C14: 87527 | D14: =VLOOKUP(C14,'Comp SINAPI AL 07-2025 Onerado'!$B$11:$F$9696,2,FALSE) -> EMBOÇO, EM ARGAMASSA TRAÇO 1:2:8, PREPARO MECÂNICO, APLICADO MANUALMENTE EM PAREDES INTERNAS DE AMBIENTES COM ÁREA MENOR QUE 5M², E =17,5MM, COM TALISCAS. AF_03/2024 | E14: REVE - REVESTIMENTO E TRATAMENTO DE SUPERFÍCIES | F14: m² | G14: =VLOOKUP(C14,'Comp SINAPI AL 07-2025 Onerado'!$B$11:$F$9696,4,FALSE) -> 37.35 | H14: 0.1121 | I14: =ROUND(G14*H14,2) -> 4.19 | K14: TRUE
A15: C | B15: SINAPI | C15: 87529 | D15: =VLOOKUP(C15,'Comp SINAPI AL 07-2025 Onerado'!$B$11:$F$9696,2,FALSE) -> MASSA ÚNICA, EM ARGAMASSA TRAÇO 1:2:8, PREPARO MECÂNICO, APLICADA MANUALMENTE EM PAREDES INTERNAS DE AMBIENTES COM ÁREA ENTRE 5M² E 10M², E = 17,5MM, COM TALISCAS. AF_03/2024 | E15: REVE - REVESTIMENTO E TRATAMENTO DE SUPERFÍCIES | F15: m² | G15: =VLOOKUP(C15,'Comp SINAPI AL 07-2025 Onerado'!$B$11:$F$9696,4,FALSE) -> 34.41 | H15: 0.7339 | I15: 25.25 | K15: TRUE
A16: C | B16: SINAPI | C16: 89171 | D16: (COMPOSIÇÃO REPRESENTATIVA) DO SERVIÇO DE REVESTIMENTO CERÂMICO PARA PISO COM PLACAS TIPO ESMALTADA EXTRA DE DIMENSÕES 35X35 CM, PARA EDIFICAÇÃO HABITACIONAL UNIFAMILIAR (CASA) E EDIFICAÇÃO PÚBLICA PADRÃO. AF_11/2014 - ADAPTADO | E16: PISO - PISOS | F16: m² | G16: =SUM(I17:I19) -> 57.32 | H16: 0.4628 | I16: 26.53 | K16: TRUE
A17: C | B17: SINAPI | C17: 87247 | D17: =VLOOKUP(C17,'Comp SINAPI AL 07-2025 Onerado'!$B$11:$F$9696,2,FALSE) -> REVESTIMENTO CERÂMICO PARA PISO COM PLACAS TIPO ESMALTADA DE DIMENSÕES 35X35 CM APLICADA EM AMBIENTES DE ÁREA ENTRE 5 M2 E 10 M2. AF_02/2023_PE | E17: PISO - PISOS | F17: m² | G17: =VLOOKUP(C17,'Comp SINAPI AL 07-2025 Onerado'!$B$11:$F$9696,4,FALSE) -> 61.21 | H17: 0.3365 | I17: =ROUND(G17*H17,2) -> 20.6 | K17: TRUE
A18: C | B18: SINAPI | C18: 87248 | D18: =VLOOKUP(C18,'Comp SINAPI AL 07-2025 Onerado'!$B$11:$F$9696,2,FALSE) -> REVESTIMENTO CERÂMICO PARA PISO COM PLACAS TIPO ESMALTADA DE DIMENSÕES 35X35 CM APLICADA EM AMBIENTES DE ÁREA MAIOR QUE 10 M2. AF_02/2023_PE | E18: PISO - PISOS | F18: m² | G18: =VLOOKUP(C18,'Comp SINAPI AL 07-2025 Onerado'!$B$11:$F$9696,4,FALSE) -> 54.22 | H18: 0.6087 | I18: =ROUND(G18*H18,2) -> 33 | K18: TRUE
A19: C | B19: SINAPI | C19: 87246 | D19: =VLOOKUP(C19,'Comp SINAPI AL 07-2025 Onerado'!$B$11:$F$9696,2,FALSE) -> REVESTIMENTO CERÂMICO PARA PISO COM PLACAS TIPO ESMALTADA DE DIMENSÕES 35X35 CM APLICADA EM AMBIENTES DE ÁREA MENOR QUE 5 M2. AF_02/2023_PE | E19: PISO - PISOS | F19: m² | G19: =VLOOKUP(C19,'Comp SINAPI AL 07-2025 Onerado'!$B$11:$F$9696,4,FALSE) -> 67.92 | H19: 0.0548 | I19: 3.72 | K19: TRUE
A20: C | B20: SINAPI | C20: 101165 | D20: =VLOOKUP(C20,'Comp SINAPI AL 07-2025 Onerado'!$B$11:$F$9696,2,FALSE) -> ALVENARIA DE EMBASAMENTO COM BLOCO ESTRUTURAL DE CONCRETO, DE 14X19X29CM E ARGAMASSA DE ASSENTAMENTO COM PREPARO EM BETONEIRA. AF_05/2020 | E20: FUES - FUNDAÇÕES E ESTRUTURAS | F20: m³ | G20: =VLOOKUP(C20,'Comp SINAPI AL 07-2025 Onerado'!$B$11:$F$9696,4,FALSE) -> 926.32 | H20: 0.0286 | I20: 26.49 | K20: TRUE
A21: C | B21: SINAPI | C21: 103328 | D21: =VLOOKUP(C21,'Comp SINAPI AL 07-2025 Onerado'!$B$11:$F$9696,2,FALSE) -> ALVENARIA DE VEDAÇÃO DE BLOCOS CERÂMICOS FURADOS NA HORIZONTAL DE 9X19X19 CM (ESPESSURA 9 CM) E ARGAMASSA DE ASSENTAMENTO COM PREPARO EM BETONEIRA. AF_12/2021 | E21: PARE - PAREDES/PAINEIS | F21: m² | G21: =VLOOKUP(C21,'Comp SINAPI AL 07-2025 Onerado'!$B$11:$F$9696,4,FALSE) -> 94.01 | H21: 0.4675 | I21: 43.95 | K21: TRUE
A22: C | B22: SINAPI | C22: 91924 | D22: =VLOOKUP(C22,'Comp SINAPI AL 07-2025 Onerado'!$B$11:$F$9696,2,FALSE) -> CABO DE COBRE FLEXÍVEL ISOLADO, 1,5 MM², ANTI-CHAMA 450/750 V, PARA CIRCUITOS TERMINAIS - FORNECIMENTO E INSTALAÇÃO. AF_03/2023 | E22: INEL - INSTALAÇÃO ELÉTRICA/ELETRIFICAÇÃO E ILUMINAÇÃO EXTERNA | F22: M | G22: =VLOOKUP(C22,'Comp SINAPI AL 07-2025 Onerado'!$B$11:$F$9696,4,FALSE) -> 3.49 | H22: 1.253 | I22: 4.37 | K22: TRUE
A23: C | B23: SINAPI | C23: 101561 | D23: =VLOOKUP(C23,'Comp SINAPI AL 07-2025 Onerado'!$B$11:$F$9696,2,FALSE) -> CABO DE COBRE FLEXÍVEL ISOLADO, 16 MM², 0,6/1,0 KV, PARA REDE AÉREA DE DISTRIBUIÇÃO DE ENERGIA ELÉTRICA DE BAIXA TENSÃO - FORNECIMENTO E INSTALAÇÃO. AF_07/2020 | E23: INEL - INSTALAÇÃO ELÉTRICA/ELETRIFICAÇÃO E ILUMINAÇÃO EXTERNA | F23: M | G23: =VLOOKUP(C23,'Comp SINAPI AL 07-2025 Onerado'!$B$11:$F$9696,4,FALSE) -> 20.17 | H23: 0.2611 | I23: 5.27 | K23: TRUE
A24: C | B24: SINAPI | C24: 91926 | D24: =VLOOKUP(C24,'Comp SINAPI AL 07-2025 Onerado'!$B$11:$F$9696,2,FALSE) -> CABO DE COBRE FLEXÍVEL ISOLADO, 2,5 MM², ANTI-CHAMA 450/750 V, PARA CIRCUITOS TERMINAIS - FORNECIMENTO E INSTALAÇÃO. AF_03/2023 | E24: INEL - INSTALAÇÃO ELÉTRICA/ELETRIFICAÇÃO E ILUMINAÇÃO EXTERNA | F24: M | G24: =VLOOKUP(C24,'Comp SINAPI AL 07-2025 Onerado'!$B$11:$F$9696,4,FALSE) -> 5.11 | H24: 0.4699 | I24: 2.4 | K24: TRUE
A25: C | B25: SINAPI | C25: 91928 | D25: =VLOOKUP(C25,'Comp SINAPI AL 07-2025 Onerado'!$B$11:$F$9696,2,FALSE) -> CABO DE COBRE FLEXÍVEL ISOLADO, 4 MM², ANTI-CHAMA 450/750 V, PARA CIRCUITOS TERMINAIS - FORNECIMENTO E INSTALAÇÃO. AF_03/2023 | E25: INEL - INSTALAÇÃO ELÉTRICA/ELETRIFICAÇÃO E ILUMINAÇÃO EXTERNA | F25: M | G25: =VLOOKUP(C25,'Comp SINAPI AL 07-2025 Onerado'!$B$11:$F$9696,4,FALSE) -> 7.95 | H25: 1.0442 | I25: 8.3 | K25: TRUE
A26: C | B26: SINAPI | C26: 97886 | D26: =VLOOKUP(C26,'Comp SINAPI AL 07-2025 Onerado'!$B$11:$F$9696,2,FALSE) -> CAIXA ENTERRADA ELÉTRICA RETANGULAR, EM ALVENARIA COM TIJOLOS CERÂMICOS MACIÇOS, FUNDO COM BRITA, DIMENSÕES INTERNAS: 0,3X0,3X0,3 M. AF_12/2020 | E26: INEL - INSTALAÇÃO ELÉTRICA/ELETRIFICAÇÃO E ILUMINAÇÃO EXTERNA | F26: UN | G26: =VLOOKUP(C26,'Comp SINAPI AL 07-2025 Onerado'!$B$11:$F$9696,4,FALSE) -> 165.82 | H26: 0.0522 | I26: 8.66 | K26: TRUE
A27: C | B27: SINAPI | C27: 97906 | D27: =VLOOKUP(C27,'Comp SINAPI AL 07-2025 Onerado'!$B$11:$F$9696,2,FALSE) -> CAIXA ENTERRADA HIDRÁULICA RETANGULAR, EM ALVENARIA COM BLOCOS DE CONCRETO, DIMENSÕES INTERNAS: 0,6X0,6X0,6 M PARA REDE DE ESGOTO. AF_12/2020 | E27: INHI - INSTALAÇÕES HIDROS SANITÁRIAS | F27: UN | G27: =VLOOKUP(C27,'Comp SINAPI AL 07-2025 Onerado'!$B$11:$F$9696,4,FALSE) -> 437.24 | H27: 0.0348 | I27: 15.22 | K27: TRUE
A28: C | B28: SINAPI | C28: 91937 | D28: =VLOOKUP(C28,'Comp SINAPI AL 07-2025 Onerado'!$B$11:$F$9696,2,FALSE) -> CAIXA OCTOGONAL 3" X 3", PVC, INSTALADA EM LAJE - FORNECIMENTO E INSTALAÇÃO. AF_03/2023 | E28: INEL - INSTALAÇÃO ELÉTRICA/ELETRIFICAÇÃO E ILUMINAÇÃO EXTERNA | F28: UN | G28: =VLOOKUP(C28,'Comp SINAPI AL 07-2025 Onerado'!$B$11:$F$9696,4,FALSE) -> 15.56 | H28: 0.1392 | I28: 2.17 | K28: TRUE
A29: C | B29: SINAPI | C29: 87903 | D29: =VLOOKUP(C29,'Comp SINAPI AL 07-2025 Onerado'!$B$11:$F$9696,2,FALSE) -> CHAPISCO APLICADO EM ALVENARIA (COM PRESENÇA DE VÃOS) E ESTRUTURAS DE CONCRETO DE FACHADA, COM ROLO PARA TEXTURA ACRÍLICA. ARGAMASSA INDUSTRIALIZADA COM PREPARO EM MISTURADOR 300 KG. AF_10/2022 | E29: REVE - REVESTIMENTO E TRATAMENTO DE SUPERFÍCIES | F29: m² | G29: =VLOOKUP(C29,'Comp SINAPI AL 07-2025 Onerado'!$B$11:$F$9696,4,FALSE) -> 12.81 | H29: 0.1681 | I29: 2.15 | K29: TRUE
A30: C | B30: SINAPI | C30: 87885 | D30: =VLOOKUP(C30,'Comp SINAPI AL 07-2025 Onerado'!$B$11:$F$9696,2,FALSE) -> CHAPISCO APLICADO NO TETO OU EM ALVENARIA E ESTRUTURA, COM ROLO PARA TEXTURA ACRÍLICA. ARGAMASSA INDUSTRIALIZADA COM PREPARO EM MISTURADOR 300 KG. AF_10/2022 | E30: REVE - REVESTIMENTO E TRATAMENTO DE SUPERFÍCIES | F30: m² | G30: =VLOOKUP(C30,'Comp SINAPI AL 07-2025 Onerado'!$B$11:$F$9696,4,FALSE) -> 10.54 | H30: 0.7679 | I30: 8.09 | K30: TRUE
A31: C | B31: SINAPI | C31: 90466 | D31: =VLOOKUP(C31,'Comp SINAPI AL 07-2025 Onerado'!$B$11:$F$9696,2,FALSE) -> CHUMBAMENTO LINEAR EM ALVENARIA PARA RAMAIS/DISTRIBUIÇÃO DE INSTALAÇÕES HIDRÁULICAS COM DIÂMETROS MENORES OU IGUAIS A 40 MM. AF_09/2023 | E31: INHI - INSTALAÇÕES HIDROS SANITÁRIAS | F31: M | G31: =VLOOKUP(C31,'Comp SINAPI AL 07-2025 Onerado'!$B$11:$F$9696,4,FALSE) -> 16.7 | H31: 0.0722 | I31: 1.21 | K31: TRUE
A32: C | B32: SINAPI | C32: 100860 | D32: =VLOOKUP(C32,'Comp SINAPI AL 07-2025 Onerado'!$B$11:$F$9696,2,FALSE) -> CHUVEIRO ELÉTRICO COMUM CORPO PLÁSTICO, TIPO DUCHA - FORNECIMENTO E INSTALAÇÃO. AF_01/2020 | E32: INHI - INSTALAÇÕES HIDROS SANITÁRIAS | F32: UN | G32: =VLOOKUP(C32,'Comp SINAPI AL 07-2025 Onerado'!$B$11:$F$9696,4,FALSE) -> 117.02 | H32: 0.0696 | I32: 8.14 | K32: TRUE
A33: C | B33: SINAPI | C33: 95805 | D33: =VLOOKUP(C33,'Comp SINAPI AL 07-2025 Onerado'!$B$11:$F$9696,2,FALSE) -> CONDULETE DE PVC, TIPO B, PARA ELETRODUTO DE PVC SOLDÁVEL DN 25 MM (3/4''), APARENTE - FORNECIMENTO E INSTALAÇÃO. AF_10/2022 | E33: INEL - INSTALAÇÃO ELÉTRICA/ELETRIFICAÇÃO E ILUMINAÇÃO EXTERNA | F33: UN | G33: =VLOOKUP(C33,'Comp SINAPI AL 07-2025 Onerado'!$B$11:$F$9696,4,FALSE) -> 21.43 | H33: 0.0174 | I33: 0.37 | K33: TRUE
A34: C | B34: SINAPI | C34: 95811 | D34: =VLOOKUP(C34,'Comp SINAPI AL 07-2025 Onerado'!$B$11:$F$9696,2,FALSE) -> CONDULETE DE PVC, TIPO LB, PARA ELETRODUTO DE PVC SOLDÁVEL DN 25 MM (3/4''), APARENTE - FORNECIMENTO E INSTALAÇÃO. AF_10/2022 | E34: INEL - INSTALAÇÃO ELÉTRICA/ELETRIFICAÇÃO E ILUMINAÇÃO EXTERNA | F34: UN | G34: =VLOOKUP(C34,'Comp SINAPI AL 07-2025 Onerado'!$B$11:$F$9696,4,FALSE) -> 17.25 | H34: 0.0522 | I34: 0.9 | K34: TRUE
A35: C | B35: SINAPI | C35: 91911 | D35: =VLOOKUP(C35,'Comp SINAPI AL 07-2025 Onerado'!$B$11:$F$9696,2,FALSE) -> CURVA 90 GRAUS PARA ELETRODUTO, PVC, ROSCÁVEL, DN 20 MM (1/2"), PARA CIRCUITOS TERMINAIS, INSTALADA EM PAREDE - FORNECIMENTO E INSTALAÇÃO. AF_03/2023 | E35: INEL - INSTALAÇÃO ELÉTRICA/ELETRIFICAÇÃO E ILUMINAÇÃO EXTERNA | F35: UN | G35: =VLOOKUP(C35,'Comp SINAPI AL 07-2025 Onerado'!$B$11:$F$9696,4,FALSE) -> 17.14 | H35: 0.0696 | I35: 1.19 | K35: TRUE
A36: C | B36: SINAPI | C36: 91890 | D36: =VLOOKUP(C36,'Comp SINAPI AL 07-2025 Onerado'!$B$11:$F$9696,2,FALSE) -> CURVA 90 GRAUS PARA ELETRODUTO, PVC, ROSCÁVEL, DN 25 MM (3/4"), PARA CIRCUITOS TERMINAIS, INSTALADA EM FORRO - FORNECIMENTO E INSTALAÇÃO. AF_03/2023 | E36: INEL - INSTALAÇÃO ELÉTRICA/ELETRIFICAÇÃO E ILUMINAÇÃO EXTERNA | F36: UN | G36: =VLOOKUP(C36,'Comp SINAPI AL 07-2025 Onerado'!$B$11:$F$9696,4,FALSE) -> 13.53 | H36: 0.0174 | I36: 0.24 | K36: TRUE
A37: C | B37: SINAPI | C37: 89748 | D37: =VLOOKUP(C37,'Comp SINAPI AL 07-2025 Onerado'!$B$11:$F$9696,2,FALSE) -> CURVA CURTA 90 GRAUS, PVC, SERIE NORMAL, ESGOTO PREDIAL, DN 100 MM, JUNTA ELÁSTICA, FORNECIDO E INSTALADO EM RAMAL DE DESCARGA OU RAMAL DE ESGOTO SANITÁRIO. AF_08/2022 | E37: INHI - INSTALAÇÕES HIDROS SANITÁRIAS | F37: UN | G37: =VLOOKUP(C37,'Comp SINAPI AL 07-2025 Onerado'!$B$11:$F$9696,4,FALSE) -> 43.2 | H37: 0.0522 | I37: 2.26 | K37: TRUE
A38: C | B38: SINAPI | C38: 101891 | D38: =VLOOKUP(C38,'Comp SINAPI AL 07-2025 Onerado'!$B$11:$F$9696,2,FALSE) -> DISJUNTOR MONOPOLAR TIPO NEMA, CORRENTE NOMINAL DE 35 ATÉ 50A - FORNECIMENTO E INSTALAÇÃO. AF_07/2025 | E38: INEL - INSTALAÇÃO ELÉTRICA/ELETRIFICAÇÃO E ILUMINAÇÃO EXTERNA | F38: UN | G38: =VLOOKUP(C38,'Comp SINAPI AL 07-2025 Onerado'!$B$11:$F$9696,4,FALSE) -> 31.83 | H38: 0.1044 | I38: 3.32 | K38: TRUE
A39: C | B39: SINAPI | C39: 91862 | D39: =VLOOKUP(C39,'Comp SINAPI AL 07-2025 Onerado'!$B$11:$F$9696,2,FALSE) -> ELETRODUTO RÍGIDO ROSCÁVEL, PVC, DN 20 MM (1/2"), PARA CIRCUITOS TERMINAIS, INSTALADO EM FORRO - FORNECIMENTO E INSTALAÇÃO. AF_03/2023 | E39: INEL - INSTALAÇÃO ELÉTRICA/ELETRIFICAÇÃO E ILUMINAÇÃO EXTERNA | F39: M | G39: =VLOOKUP(C39,'Comp SINAPI AL 07-2025 Onerado'!$B$11:$F$9696,4,FALSE) -> 10.87 | H39: 0.3307 | I39: 3.59 | K39: TRUE
A40: C | B40: SINAPI | C40: 91870 | D40: =VLOOKUP(C40,'Comp SINAPI AL 07-2025 Onerado'!$B$11:$F$9696,2,FALSE) -> ELETRODUTO RÍGIDO ROSCÁVEL, PVC, DN 20 MM (1/2"), PARA CIRCUITOS TERMINAIS, INSTALADO EM PAREDE - FORNECIMENTO E INSTALAÇÃO. AF_03/2023 | E40: INEL - INSTALAÇÃO ELÉTRICA/ELETRIFICAÇÃO E ILUMINAÇÃO EXTERNA | F40: M | G40: =VLOOKUP(C40,'Comp SINAPI AL 07-2025 Onerado'!$B$11:$F$9696,4,FALSE) -> 14.08 | H40: 0.1566 | I40: 2.2 | K40: TRUE
A41: C | B41: SINAPI | C41: 91863 | D41: =VLOOKUP(C41,'Comp SINAPI AL 07-2025 Onerado'!$B$11:$F$9696,2,FALSE) -> ELETRODUTO RÍGIDO ROSCÁVEL, PVC, DN 25 MM (3/4"), PARA CIRCUITOS TERMINAIS, INSTALADO EM FORRO - FORNECIMENTO E INSTALAÇÃO. AF_03/2023 | E41: INEL - INSTALAÇÃO ELÉTRICA/ELETRIFICAÇÃO E ILUMINAÇÃO EXTERNA | F41: M | G41: =VLOOKUP(C41,'Comp SINAPI AL 07-2025 Onerado'!$B$11:$F$9696,4,FALSE) -> 12.88 | H41: 0.1305 | I41: 1.68 | K41: TRUE
A42: C | B42: SINAPI | C42: 91871 | D42: =VLOOKUP(C42,'Comp SINAPI AL 07-2025 Onerado'!$B$11:$F$9696,2,FALSE) -> ELETRODUTO RÍGIDO ROSCÁVEL, PVC, DN 25 MM (3/4"), PARA CIRCUITOS TERMINAIS, INSTALADO EM PAREDE - FORNECIMENTO E INSTALAÇÃO. AF_03/2023 | E42: INEL - INSTALAÇÃO ELÉTRICA/ELETRIFICAÇÃO E ILUMINAÇÃO EXTERNA | F42: M | G42: =VLOOKUP(C42,'Comp SINAPI AL 07-2025 Onerado'!$B$11:$F$9696,4,FALSE) -> 16.1 | H42: 0.0261 | I42: 0.42 | K42: TRUE
A43: C | B43: SINAPI | C43: 87777 | D43: =VLOOKUP(C43,'Comp SINAPI AL 07-2025 Onerado'!$B$11:$F$9696,2,FALSE) -> EMBOÇO OU MASSA ÚNICA EM ARGAMASSA TRAÇO 1:2:8, PREPARO MANUAL, APLICADA MANUALMENTE EM PANOS DE FACHADA COM PRESENÇA DE VÃOS, ESPESSURA DE 25 MM. AF_08/2022 | E43: REVE - REVESTIMENTO E TRATAMENTO DE SUPERFÍCIES | F43: m² | G43: =VLOOKUP(C43,'Comp SINAPI AL 07-2025 Onerado'!$B$11:$F$9696,4,FALSE) -> 56.99 | H43: 0.1681 | I43: 9.58 | K43: TRUE
A44: C | B44: SINAPI | C44: 93358 | D44: =VLOOKUP(C44,'Comp SINAPI AL 07-2025 Onerado'!$B$11:$F$9696,2,FALSE) -> ESCAVAÇÃO MANUAL DE VALA. AF_09/2024 | E44: MOVT - MOVIMENTO DE TERRA | F44: m³ | G44: =VLOOKUP(C44,'Comp SINAPI AL 07-2025 Onerado'!$B$11:$F$9696,4,FALSE) -> 84.45 | H44: 0.0279 | I44: 2.36 | K44: TRUE
A45: C | B45: SINAPI | C45: 91305 | D45: =VLOOKUP(C45,'Comp SINAPI AL 07-2025 Onerado'!$B$11:$F$9696,2,FALSE) -> FECHADURA DE EMBUTIR PARA PORTA DE BANHEIRO, COMPLETA, ACABAMENTO PADRÃO POPULAR, INCLUSO EXECUÇÃO DE FURO - FORNECIMENTO E INSTALAÇÃO. AF_12/2019 | E45: ESQV - ESQUADRIAS/FERRAGENS/VIDROS | F45: UN | G45: =VLOOKUP(C45,'Comp SINAPI AL 07-2025 Onerado'!$B$11:$F$9696,4,FALSE) -> 106.36 | H45: 0.0522 | I45: 5.55 | K45: TRUE
A46: C | B46: SINAPI | C46: 91170 | D46: =VLOOKUP(C46,'Comp SINAPI AL 07-2025 Onerado'!$B$11:$F$9696,2,FALSE) -> FIXAÇÃO DE TUBOS HORIZONTAIS DE PVC ÁGUA, PVC ESGOTO, PVC ÁGUA PLUVIAL, CPVC, PPR, COBRE OU AÇO, DIÂMETROS MENORES OU IGUAIS A 40 MM, COM ABRAÇADEIRA METÁLICA RÍGIDA TIPO U PERFIL 1 1/4", FIXADA EM PERFILADO EM LAJE. AF_09/2023_PS | E46: INHI - INSTALAÇÕES HIDROS SANITÁRIAS | F46: M | G46: =VLOOKUP(C46,'Comp SINAPI AL 07-2025 Onerado'!$B$11:$F$9696,4,FALSE) -> 10.62 | H46: 0.4612 | I46: 4.9 | K46: TRUE
A47: C | B47: SINAPI | C47: 91173 | D47: =VLOOKUP(C47,'Comp SINAPI AL 07-2025 Onerado'!$B$11:$F$9696,2,FALSE) -> FIXAÇÃO DE TUBOS VERTICAIS DE PVC ÁGUA, PVC ESGOTO, PVC ÁGUA PLUVIAL, CPVC, PPR, COBRE OU AÇO, DIÂMETROS MENORES OU IGUAIS A 40 MM, COM ABRAÇADEIRA METÁLICA RÍGIDA TIPO U PERFIL 1 1/4", FIXADA EM PERFILADO EM PAREDE. AF_09/2023_PS | E47: INHI - INSTALAÇÕES HIDROS SANITÁRIAS | F47: M | G47: =VLOOKUP(C47,'Comp SINAPI AL 07-2025 Onerado'!$B$11:$F$9696,4,FALSE) -> 3.96 | H47: 0.1827 | I47: 0.72 | K47: TRUE
A48: C | B48: SINAPI | C48: 96985 | D48: =VLOOKUP(C48,'Comp SINAPI AL 07-2025 Onerado'!$B$11:$F$9696,2,FALSE) -> HASTE DE ATERRAMENTO, DIÂMETRO 5/8", COM 3 METROS - FORNECIMENTO E INSTALAÇÃO. AF_08/2023 | E48: INEL - INSTALAÇÃO ELÉTRICA/ELETRIFICAÇÃO E ILUMINAÇÃO EXTERNA | F48: UN | G48: =VLOOKUP(C48,'Comp SINAPI AL 07-2025 Onerado'!$B$11:$F$9696,4,FALSE) -> 60.78 | H48: 0.0522 | I48: 3.17 | K48: TRUE
A49: C | B49: SINAPI | C49: 91959 | D49: =VLOOKUP(C49,'Comp SINAPI AL 07-2025 Onerado'!$B$11:$F$9696,2,FALSE) -> INTERRUPTOR SIMPLES (2 MÓDULOS), 10A/250V, INCLUINDO SUPORTE E PLACA - FORNECIMENTO E INSTALAÇÃO. AF_03/2023 | E49: INEL - INSTALAÇÃO ELÉTRICA/ELETRIFICAÇÃO E ILUMINAÇÃO EXTERNA | F49: UN | G49: =VLOOKUP(C49,'Comp SINAPI AL 07-2025 Onerado'!$B$11:$F$9696,4,FALSE) -> 56.4 | H49: 0.0174 | I49: 0.98 | K49: TRUE
A50: C | B50: SINAPI | C50: 91967 | D50: =VLOOKUP(C50,'Comp SINAPI AL 07-2025 Onerado'!$B$11:$F$9696,2,FALSE) -> INTERRUPTOR SIMPLES (3 MÓDULOS), 10A/250V, INCLUINDO SUPORTE E PLACA - FORNECIMENTO E INSTALAÇÃO. AF_03/2023 | E50: INEL - INSTALAÇÃO ELÉTRICA/ELETRIFICAÇÃO E ILUMINAÇÃO EXTERNA | F50: UN | G50: =VLOOKUP(C50,'Comp SINAPI AL 07-2025 Onerado'!$B$11:$F$9696,4,FALSE) -> 76.05 | H50: 0.0174 | I50: 1.32 | K50: TRUE
A51: C | B51: SINAPI | C51: 94559 | D51: =VLOOKUP(C51,'Comp SINAPI AL 07-2025 Onerado'!$B$11:$F$9696,2,FALSE) -> JANELA DE AÇO TIPO BASCULANTE, PARA VIDROS (VIDROS NÃO INCLUSOS), BATENTE/ REQUADRO INCLUSO (6,5 A 14 CM), DIMENSÕES 60X60 CM, COM COM PINTURA ANTICORROSIVA, SEM ACABAMENTO, COM FERRAGENS, FIXAÇÃO COM ARGAMASSA, EXCLUSIVE CONTRAMARCO - FORNECIMENTO E INSTALAÇÃO. AF_11/2024 | E51: ESQV - ESQUADRIAS/FERRAGENS/VIDROS | F51: m² | G51: =VLOOKUP(C51,'Comp SINAPI AL 07-2025 Onerado'!$B$11:$F$9696,4,FALSE) -> 717.42 | H51: 0.0905 | I51: 64.93 | K51: TRUE
A52: C | B52: SINAPI | C52: 89724 | D52: =VLOOKUP(C52,'Comp SINAPI AL 07-2025 Onerado'!$B$11:$F$9696,2,FALSE) -> JOELHO 90 GRAUS, PVC, SERIE NORMAL, ESGOTO PREDIAL, DN 40 MM, JUNTA SOLDÁVEL, FORNECIDO E INSTALADO EM RAMAL DE DESCARGA OU RAMAL DE ESGOTO SANITÁRIO. AF_08/2022 | E52: INHI - INSTALAÇÕES HIDROS SANITÁRIAS | F52: UN | G52: =VLOOKUP(C52,'Comp SINAPI AL 07-2025 Onerado'!$B$11:$F$9696,4,FALSE) -> 10.25 | H52: 0.174 | I52: 1.78 | K52: TRUE
A53: C | B53: SINAPI | C53: 89731 | D53: =VLOOKUP(C53,'Comp SINAPI AL 07-2025 Onerado'!$B$11:$F$9696,2,FALSE) -> JOELHO 90 GRAUS, PVC, SERIE NORMAL, ESGOTO PREDIAL, DN 50 MM, JUNTA ELÁSTICA, FORNECIDO E INSTALADO EM RAMAL DE DESCARGA OU RAMAL DE ESGOTO SANITÁRIO. AF_08/2022 | E53: INHI - INSTALAÇÕES HIDROS SANITÁRIAS | F53: UN | G53: =VLOOKUP(C53,'Comp SINAPI AL 07-2025 Onerado'!$B$11:$F$9696,4,FALSE) -> 15.67 | H53: 0.0174 | I53: 0.27 | K53: TRUE
A54: C | B54: SINAPI | C54: 89970 | D54: KIT DE REGISTRO DE PRESSÃO BRUTO DE LATÃO ¾", INCLUSIVE CONEXÕES, ROSCÁVEL, INSTALADO EM RAMAL DE ÁGUA FRIA - FORNECIMENTO E INSTALAÇÃO. AF_12/2014 | E54: INHI - INSTALAÇÕES HIDROS SANITÁRIAS | F54: UN | G54: =SUM(I55:I57) -> 49.6 | H54: 0.0696 | I54: 3.45 | K54: TRUE
A55: C | B55: SINAPI | C55: 89383 | D55: =VLOOKUP(C55,'Comp SINAPI AL 07-2025 Onerado'!$B$11:$F$9696,2,FALSE) -> ADAPTADOR CURTO COM BOLSA E ROSCA PARA REGISTRO, PVC, SOLDÁVEL, DN 25MM X 3/4, INSTALADO EM RAMAL OU SUB-RAMAL DE ÁGUA - FORNECIMENTO E INSTALAÇÃO. AF_06/2022 | E55: INHI - INSTALAÇÕES HIDROS SANITÁRIAS | F55: UN | G55: =VLOOKUP(C55,'Comp SINAPI AL 07-2025 Onerado'!$B$11:$F$9696,4,FALSE) -> 6.72 | H55: 1 | I55: =ROUND(G55*H55,2) -> 6.72 | K55: TRUE
A56: C | B56: SINAPI | C56: 89385 | D56: =VLOOKUP(C56,'Comp SINAPI AL 07-2025 Onerado'!$B$11:$F$9696,2,FALSE) -> LUVA SOLDÁVEL E COM ROSCA, PVC, SOLDÁVEL, DN 25MM X 3/4, INSTALADO EM RAMAL OU SUB-RAMAL DE ÁGUA - FORNECIMENTO E INSTALAÇÃO. AF_06/2022 | E56: INHI - INSTALAÇÕES HIDROS SANITÁRIAS | F56: UN | G56: =VLOOKUP(C56,'Comp SINAPI AL 07-2025 Onerado'!$B$11:$F$9696,4,FALSE) -> 7.37 | H56: 1 | I56: =ROUND(G56*H56,2) -> 7.37 | K56: TRUE
A57: C | B57: SINAPI | C57: 89351 | D57: =VLOOKUP(C57,'Comp SINAPI AL 07-2025 Onerado'!$B$11:$F$9696,2,FALSE) -> REGISTRO DE PRESSÃO BRUTO, LATÃO, ROSCÁVEL, 3/4'' - FORNECIMENTO E INSTALAÇÃO. AF_08/2021 | E57: INHI - INSTALAÇÕES HIDROS SANITÁRIAS | F57: UN | G57: =VLOOKUP(C57,'Comp SINAPI AL 07-2025 Onerado'!$B$11:$F$9696,4,FALSE) -> 35.51 | H57: 1 | I57: 35.51 | K57: TRUE
A58: C | B58: SINAPI | C58: 95240 | D58: =VLOOKUP(C58,'Comp SINAPI AL 07-2025 Onerado'!$B$11:$F$9696,2,FALSE) -> LASTRO DE CONCRETO MAGRO, APLICADO EM PISOS, LAJES SOBRE SOLO OU RADIERS, ESPESSURA DE 3 CM. AF_01/2024 | E58: FUES - FUNDAÇÕES E ESTRUTURAS | F58: m² | G58: =VLOOKUP(C58,'Comp SINAPI AL 07-2025 Onerado'!$B$11:$F$9696,4,FALSE) -> 18.35 | H58: 0.0064 | I58: 0.12 | K58: TRUE
A59: C | B59: SINAPI | C59: 95241 | D59: =VLOOKUP(C59,'Comp SINAPI AL 07-2025 Onerado'!$B$11:$F$9696,2,FALSE) -> LASTRO DE CONCRETO MAGRO, APLICADO EM PISOS, LAJES SOBRE SOLO OU RADIERS, ESPESSURA DE 5 CM. AF_01/2024 | E59: FUES - FUNDAÇÕES E ESTRUTURAS | F59: m² | G59: =VLOOKUP(C59,'Comp SINAPI AL 07-2025 Onerado'!$B$11:$F$9696,4,FALSE) -> 35.34 | H59: 1.3328 | I59: 47.1 | K59: TRUE
A60: C | B60: SINAPI | C60: 86943 | D60: =VLOOKUP(C60,'Comp SINAPI AL 07-2025 Onerado'!$B$11:$F$9696,2,FALSE) -> LAVATÓRIO LOUÇA BRANCA SUSPENSO, 29,5 X 39CM OU EQUIVALENTE, PADRÃO POPULAR, INCLUSO SIFÃO FLEXÍVEL EM PVC, VÁLVULA E ENGATE FLEXÍVEL 30CM EM PLÁSTICO E TORNEIRA CROMADA DE MESA, PADRÃO POPULAR - FORNECIMENTO E INSTALAÇÃO. AF_01/2020 | E60: INHI - INSTALAÇÕES HIDROS SANITÁRIAS | F60: UN | G60: =VLOOKUP(C60,'Comp SINAPI AL 07-2025 Onerado'!$B$11:$F$9696,4,FALSE) -> 264.18 | H60: 0.0522 | I60: 13.79 | K60: TRUE
A61: C | B61: SINAPI | C61: 97586 | D61: LUMINÁRIA TIPO CALHA, DE SOBREPOR, COM 2 LÂMPADAS TUBULARES FLUORESCENTES DE 36 W, COM REATOR DE PARTIDA RÁPIDA - FORNECIMENTO E INSTALAÇÃO. AF_02/2020 | E61: INEL - INSTALAÇÃO ELÉTRICA/ELETRIFICAÇÃO E ILUMINAÇÃO EXTERNA | F61: UN | G61: =SUM(I62:I64) -> 223.18 | H61: 0.1392 | I61: 31.07 | K61: TRUE
A62: C | B62: SINAPI | C62: 88247 | D62: =VLOOKUP(C62,'Comp SINAPI AL 07-2025 Onerado'!$B$11:$F$9696,2,FALSE) -> AUXILIAR DE ELETRICISTA COM ENCARGOS COMPLEMENTARES | E62: SEDI - SERVIÇOS DIVERSOS | F62: H | G62: =VLOOKUP(C62,'Comp SINAPI AL 07-2025 Onerado'!$B$11:$F$9696,4,FALSE) -> 22.83 | H62: 0.1727 | I62: =ROUND(G62*H62,2) -> 3.94 | K62: TRUE
A63: C | B63: SINAPI | C63: 88264 | D63: =VLOOKUP(C63,'Comp SINAPI AL 07-2025 Onerado'!$B$11:$F$9696,2,FALSE) -> ELETRICISTA COM ENCARGOS COMPLEMENTARES | E63: SEDI - SERVIÇOS DIVERSOS | F63: H | G63: =VLOOKUP(C63,'Comp SINAPI AL 07-2025 Onerado'!$B$11:$F$9696,4,FALSE) -> 32.43 | H63: 0.4144 | I63: =ROUND(G63*H63,2) -> 13.44 | K63: TRUE
A64: I | B64: SINAPI | C64: 3780 | D64: =VLOOKUP(C64,'Ins SINAPI AL 07-2025 Onerado'!$B$11:$F$9692,2,FALSE) -> LUMINARIA DE SOBREPOR EM CHAPA DE ACO PARA 1 LAMPADA FLUORESCENTE DE *36* W, ALETADA, COMPLETA (LAMPADA E REATOR INCLUSOS) | E64: Material | F64: UN | G64: 102.9 | H64: 2 | I64: =ROUND(G64*H64,2) -> 205.8 | K64: FALSE
A65: C | B65: SINAPI | C65: 91882 | D65: =VLOOKUP(C65,'Comp SINAPI AL 07-2025 Onerado'!$B$11:$F$9696,2,FALSE) -> LUVA PARA ELETRODUTO, PVC, ROSCÁVEL, DN 20 MM (1/2"), PARA CIRCUITOS TERMINAIS, INSTALADA EM PAREDE - FORNECIMENTO E INSTALAÇÃO. AF_03/2023 | E65: INEL - INSTALAÇÃO ELÉTRICA/ELETRIFICAÇÃO E ILUMINAÇÃO EXTERNA | F65: UN | G65: =VLOOKUP(C65,'Comp SINAPI AL 07-2025 Onerado'!$B$11:$F$9696,4,FALSE) -> 10.62 | H65: 0.0348 | I65: 0.37 | K65: TRUE
A66: C | B66: SINAPI | C66: 91875 | D66: =VLOOKUP(C66,'Comp SINAPI AL 07-2025 Onerado'!$B$11:$F$9696,2,FALSE) -> LUVA PARA ELETRODUTO, PVC, ROSCÁVEL, DN 25 MM (3/4"), PARA CIRCUITOS TERMINAIS, INSTALADA EM FORRO - FORNECIMENTO E INSTALAÇÃO. AF_03/2023 | E66: INEL - INSTALAÇÃO ELÉTRICA/ELETRIFICAÇÃO E ILUMINAÇÃO EXTERNA | F66: UN | G66: =VLOOKUP(C66,'Comp SINAPI AL 07-2025 Onerado'!$B$11:$F$9696,4,FALSE) -> 8.49 | H66: 0.0348 | I66: 0.3 | K66: TRUE
A67: C | B67: SINAPI | C67: 87548 | D67: =VLOOKUP(C67,'Comp SINAPI AL 07-2025 Onerado'!$B$11:$F$9696,2,FALSE) -> MASSA ÚNICA, EM ARGAMASSA TRAÇO 1:2:8, PREPARO MANUAL, APLICADA MANUALMENTE EM PAREDES INTERNAS DE AMBIENTES COM ÁREA ENTRE 5M² E 10M², E = 10MM, COM TALISCAS. AF_03/2024 | E67: REVE - REVESTIMENTO E TRATAMENTO DE SUPERFÍCIES | F67: m² | G67: =VLOOKUP(C67,'Comp SINAPI AL 07-2025 Onerado'!$B$11:$F$9696,4,FALSE) -> 27.63 | H67: 0.1894 | I67: 5.23 | K67: TRUE
A68: C | B68: SINAPI | C68: 98445 | D68: =VLOOKUP(C68,'Comp SINAPI AL 07-2025 Onerado'!$B$11:$F$9696,2,FALSE) -> PAREDE DE MADEIRA COMPENSADA PARA CONSTRUÇÃO TEMPORÁRIA EM CHAPA SIMPLES, EXTERNA, COM ÁREA LÍQUIDA MAIOR OU IGUAL A 6 M², COM VÃO. AF_03/2024 | E68: CANT - CANTEIRO DE OBRAS | F68: m² | G68: =VLOOKUP(C68,'Comp SINAPI AL 07-2025 Onerado'!$B$11:$F$9696,4,FALSE) -> 129.4 | H68: 0.4081 | I68: 52.81 | K68: TRUE
A69: C | B69: SINAPI | C69: 98441 | D69: =VLOOKUP(C69,'Comp SINAPI AL 07-2025 Onerado'!$B$11:$F$9696,2,FALSE) -> PAREDE DE MADEIRA COMPENSADA PARA CONSTRUÇÃO TEMPORÁRIA EM CHAPA SIMPLES, EXTERNA, SEM VÃO. AF_03/2024 | E69: CANT - CANTEIRO DE OBRAS | F69: m² | G69: =VLOOKUP(C69,'Comp SINAPI AL 07-2025 Onerado'!$B$11:$F$9696,4,FALSE) -> 111.79 | H69: 0.2612 | I69: 29.2 | K69: TRUE
A70: C | B70: SINAPI | C70: 98446 | D70: =VLOOKUP(C70,'Comp SINAPI AL 07-2025 Onerado'!$B$11:$F$9696,2,FALSE) -> PAREDE DE MADEIRA COMPENSADA PARA CONSTRUÇÃO TEMPORÁRIA EM CHAPA SIMPLES, EXTERNA, COM ÁREA LÍQUIDA MENOR QUE 6 M², COM VÃO. AF_03/2024 | E70: CANT - CANTEIRO DE OBRAS | F70: m² | G70: =VLOOKUP(C70,'Comp SINAPI AL 07-2025 Onerado'!$B$11:$F$9696,4,FALSE) -> 160.99 | H70: 0.3182 | I70: 51.23 | K70: TRUE
A71: C | B71: SINAPI | C71: 98441 | D71: =VLOOKUP(C71,'Comp SINAPI AL 07-2025 Onerado'!$B$11:$F$9696,2,FALSE) -> PAREDE DE MADEIRA COMPENSADA PARA CONSTRUÇÃO TEMPORÁRIA EM CHAPA SIMPLES, EXTERNA, SEM VÃO. AF_03/2024 | E71: CANT - CANTEIRO DE OBRAS | F71: m² | G71: =VLOOKUP(C71,'Comp SINAPI AL 07-2025 Onerado'!$B$11:$F$9696,4,FALSE) -> 111.79 | H71: 0.3007 | I71: 33.62 | K71: TRUE
A72: C | B72: SINAPI | C72: 98447 | D72: =VLOOKUP(C72,'Comp SINAPI AL 07-2025 Onerado'!$B$11:$F$9696,2,FALSE) -> PAREDE DE MADEIRA COMPENSADA PARA CONSTRUÇÃO TEMPORÁRIA EM CHAPA SIMPLES, INTERNA, COM ÁREA LÍQUIDA MAIOR OU IGUAL A 6 M², COM VÃO. AF_03/2024 | E72: CANT - CANTEIRO DE OBRAS | F72: m² | G72: =VLOOKUP(C72,'Comp SINAPI AL 07-2025 Onerado'!$B$11:$F$9696,4,FALSE) -> 106.39 | H72: 0.1297 | I72: 13.8 | K72: TRUE
A73: C | B73: SINAPI | C73: 98443 | D73: =VLOOKUP(C73,'Comp SINAPI AL 07-2025 Onerado'!$B$11:$F$9696,2,FALSE) -> PAREDE DE MADEIRA COMPENSADA PARA CONSTRUÇÃO TEMPORÁRIA EM CHAPA SIMPLES, INTERNA, SEM VÃO. AF_03/2024 | E73: CANT - CANTEIRO DE OBRAS | F73: m² | G73: =VLOOKUP(C73,'Comp SINAPI AL 07-2025 Onerado'!$B$11:$F$9696,4,FALSE) -> 91.87 | H73: 0.083 | I73: 7.63 | K73: TRUE
A74: C | B74: SINAPI | C74: 98448 | D74: =VLOOKUP(C74,'Comp SINAPI AL 07-2025 Onerado'!$B$11:$F$9696,2,FALSE) -> PAREDE DE MADEIRA COMPENSADA PARA CONSTRUÇÃO TEMPORÁRIA EM CHAPA SIMPLES, INTERNA, COM ÁREA LÍQUIDA MENOR QUE 6 M², COM VÃO. AF_03/2024 | E74: CANT - CANTEIRO DE OBRAS | F74: m² | G74: =VLOOKUP(C74,'Comp SINAPI AL 07-2025 Onerado'!$B$11:$F$9696,4,FALSE) -> 132.74 | H74: 0.1011 | I74: 13.42 | K74: TRUE
A75: C | B75: SINAPI | C75: 98443 | D75: =VLOOKUP(C75,'Comp SINAPI AL 07-2025 Onerado'!$B$11:$F$9696,2,FALSE) -> PAREDE DE MADEIRA COMPENSADA PARA CONSTRUÇÃO TEMPORÁRIA EM CHAPA SIMPLES, INTERNA, SEM VÃO. AF_03/2024 | E75: CANT - CANTEIRO DE OBRAS | F75: m² | G75: =VLOOKUP(C75,'Comp SINAPI AL 07-2025 Onerado'!$B$11:$F$9696,4,FALSE) -> 91.87 | H75: 0.0956 | I75: 8.78 | K75: TRUE
A76: C | B76: SINAPI | C76: 88489 | D76: =VLOOKUP(C76,'Comp SINAPI AL 07-2025 Onerado'!$B$11:$F$9696,2,FALSE) -> PINTURA LÁTEX ACRÍLICA PREMIUM, APLICAÇÃO MANUAL EM PAREDES, DUAS DEMÃOS. AF_04/2023 | E76: PINT - PINTURAS | F76: m² | G76: =VLOOKUP(C76,'Comp SINAPI AL 07-2025 Onerado'!$B$11:$F$9696,4,FALSE) -> 13.26 | H76: 2.4442 | I76: =ROUND(G76*H76,2) -> 32.41 | K76: TRUE
A77: C | B77: SINAPI | C77: 98679 | D77: =VLOOKUP(C77,'Comp SINAPI AL 07-2025 Onerado'!$B$11:$F$9696,2,FALSE) -> PISO CIMENTADO, TRAÇO 1:3 (CIMENTO E AREIA), ACABAMENTO LISO, ESPESSURA 2,0 CM, PREPARO MECÂNICO DA ARGAMASSA. AF_09/2020 | E77: PISO - PISOS | F77: m² | G77: =VLOOKUP(C77,'Comp SINAPI AL 07-2025 Onerado'!$B$11:$F$9696,4,FALSE) -> 36.97 | H77: 0.5134 | I77: 18.98 | K77: =_xlfn.ISFORMULA(G77) -> TRUE
A78: C | B78: SINAPI | C78: 89957 | D78: PONTO DE CONSUMO TERMINAL DE ÁGUA FRIA (SUBRAMAL) COM TUBULAÇÃO DE PVC, DN 25 MM, INSTALADO EM RAMAL DE ÁGUA, INCLUSOS RASGO E CHUMBAMENTO EM ALVENARIA. AF_12/2014 (ADAPTADO) | E78: INHI - INSTALAÇÕES HIDROS SANITÁRIAS | F78: UN | G78: =SUM(I79:I84) -> 147.68 | H78: 0.174 | I78: 25.7 | K78: TRUE
A79: C | B79: SINAPI | C79: 90466 | D79: =VLOOKUP(C79,'Comp SINAPI AL 07-2025 Onerado'!$B$11:$F$9696,2,FALSE) -> CHUMBAMENTO LINEAR EM ALVENARIA PARA RAMAIS/DISTRIBUIÇÃO DE INSTALAÇÕES HIDRÁULICAS COM DIÂMETROS MENORES OU IGUAIS A 40 MM. AF_09/2023 | E79: Material | F79: M | G79: =VLOOKUP(C79,'Comp SINAPI AL 07-2025 Onerado'!$B$11:$F$9696,4,FALSE) -> 16.7 | H79: 2.14 | I79: 35.74 | K79: TRUE
A80: C | B80: SINAPI | C80: 89366 | D80: =VLOOKUP(C80,'Comp SINAPI AL 07-2025 Onerado'!$B$11:$F$9696,2,FALSE) -> JOELHO 90 GRAUS COM BUCHA DE LATÃO, PVC, SOLDÁVEL, DN 25MM, X 3/4 INSTALADO EM RAMAL OU SUB-RAMAL DE ÁGUA - FORNECIMENTO E INSTALAÇÃO. AF_06/2022 | E80: Material | F80: UN | G80: =VLOOKUP(C80,'Comp SINAPI AL 07-2025 Onerado'!$B$11:$F$9696,4,FALSE) -> 16.65 | H80: 1 | I80: 16.65 | K80: TRUE
A81: C | B81: SINAPI | C81: 89362 | D81: =VLOOKUP(C81,'Comp SINAPI AL 07-2025 Onerado'!$B$11:$F$9696,2,FALSE) -> JOELHO 90 GRAUS, PVC, SOLDÁVEL, DN 25MM, INSTALADO EM RAMAL OU SUB-RAMAL DE ÁGUA - FORNECIMENTO E INSTALAÇÃO. AF_06/2022 | E81: Material | F81: UN | G81: =VLOOKUP(C81,'Comp SINAPI AL 07-2025 Onerado'!$B$11:$F$9696,4,FALSE) -> 9.72 | H81: 1.18 | I81: 11.47 | K81: TRUE
A82: C | B82: SINAPI | C82: 90443 | D82: =VLOOKUP(C82,'Comp SINAPI AL 07-2025 Onerado'!$B$11:$F$9696,2,FALSE) -> RASGO LINEAR MANUAL EM ALVENARIA, PARA RAMAIS/ DISTRIBUIÇÃO DE INSTALAÇÕES HIDRÁULICAS, DIÂMETROS MENORES OU IGUAIS A 40 MM. AF_09/2023 | E82: Material | F82: M | G82: =VLOOKUP(C82,'Comp SINAPI AL 07-2025 Onerado'!$B$11:$F$9696,4,FALSE) -> 8.77 | H82: 2.14 | I82: 18.77 | K82: TRUE
A83: C | B83: SINAPI | C83: 89395 | D83: =VLOOKUP(C83,'Comp SINAPI AL 07-2025 Onerado'!$B$11:$F$9696,2,FALSE) -> TE, PVC, SOLDÁVEL, DN 25MM, INSTALADO EM RAMAL OU SUB-RAMAL DE ÁGUA - FORNECIMENTO E INSTALAÇÃO. AF_06/2022 | E83: Material | F83: UN | G83: =VLOOKUP(C83,'Comp SINAPI AL 07-2025 Onerado'!$B$11:$F$9696,4,FALSE) -> 13.36 | H83: 0.89 | I83: 11.89 | K83: TRUE
A84: C | B84: SINAPI | C84: 89356 | D84: =VLOOKUP(C84,'Comp SINAPI AL 07-2025 Onerado'!$B$11:$F$9696,2,FALSE) -> TUBO, PVC, SOLDÁVEL, DE 25MM, INSTALADO EM RAMAL OU SUB-RAMAL DE ÁGUA - FORNECIMENTO E INSTALAÇÃO. AF_06/2022 | E84: Material | F84: M | G84: =VLOOKUP(C84,'Comp SINAPI AL 07-2025 Onerado'!$B$11:$F$9696,4,FALSE) -> 24.84 | H84: 2.14 | I84: 53.16 | K84: TRUE
A85: C | B85: SINAPI | C85: 90822 | D85: =VLOOKUP(C85,'Comp SINAPI AL 07-2025 Onerado'!$B$11:$F$9696,2,FALSE) -> PORTA DE MADEIRA PARA PINTURA, SEMI-OCA (LEVE OU MÉDIA), 80X210CM, ESPESSURA DE 3,5CM, INCLUSO DOBRADIÇAS - FORNECIMENTO E INSTALAÇÃO. AF_12/2019 | E85: ESQV - ESQUADRIAS/FERRAGENS/VIDROS | F85: UN | G85: =VLOOKUP(C85,'Comp SINAPI AL 07-2025 Onerado'!$B$11:$F$9696,4,FALSE) -> 334.67 | H85: 0.0348 | I85: 11.65 | K85: TRUE
A86: C | B86: SINAPI | C86: 101876 | D86: =VLOOKUP(C86,'Comp SINAPI AL 07-2025 Onerado'!$B$11:$F$9696,2,FALSE) -> QUADRO DE DISTRIBUIÇÃO DE ENERGIA EM PVC, DE EMBUTIR, SEM BARRAMENTO, PARA 6 DISJUNTORES - FORNECIMENTO E INSTALAÇÃO. AF_07/2025 | E86: INEL - INSTALAÇÃO ELÉTRICA/ELETRIFICAÇÃO E ILUMINAÇÃO EXTERNA | F86: UN | G86: =VLOOKUP(C86,'Comp SINAPI AL 07-2025 Onerado'!$B$11:$F$9696,4,FALSE) -> 119.69 | H86: 0.0174 | I86: 2.08 | K86: TRUE
A87: C | B87: SINAPI | C87: 89709 | D87: =VLOOKUP(C87,'Comp SINAPI AL 07-2025 Onerado'!$B$11:$F$9696,2,FALSE) -> RALO SIFONADO, PVC, DN 100 X 40 MM, JUNTA SOLDÁVEL, FORNECIDO E INSTALADO EM RAMAL DE DESCARGA OU EM RAMAL DE ESGOTO SANITÁRIO. AF_08/2022 | E87: INHI - INSTALAÇÕES HIDROS SANITÁRIAS | F87: UN | G87: =VLOOKUP(C87,'Comp SINAPI AL 07-2025 Onerado'!$B$11:$F$9696,4,FALSE) -> 19.62 | H87: 0.0696 | I87: 1.37 | K87: TRUE
A88: C | B88: SINAPI | C88: 90443 | D88: =VLOOKUP(C88,'Comp SINAPI AL 07-2025 Onerado'!$B$11:$F$9696,2,FALSE) -> RASGO LINEAR MANUAL EM ALVENARIA, PARA RAMAIS/ DISTRIBUIÇÃO DE INSTALAÇÕES HIDRÁULICAS, DIÂMETROS MENORES OU IGUAIS A 40 MM. AF_09/2023 | E88: INHI - INSTALAÇÕES HIDROS SANITÁRIAS | F88: M | G88: =VLOOKUP(C88,'Comp SINAPI AL 07-2025 Onerado'!$B$11:$F$9696,4,FALSE) -> 8.77 | H88: 0.0722 | I88: 0.63 | K88: TRUE
A89: C | B89: SINAPI | C89: 93382 | D89: =VLOOKUP(C89,'Comp SINAPI AL 07-2025 Onerado'!$B$11:$F$9696,2,FALSE) -> REATERRO MANUAL DE VALAS, COM COMPACTADOR DE SOLOS DE PERCUSSÃO. AF_08/2023 | E89: MOVT - MOVIMENTO DE TERRA | F89: m³ | G89: =VLOOKUP(C89,'Comp SINAPI AL 07-2025 Onerado'!$B$11:$F$9696,4,FALSE) -> 24.78 | H89: 0.0072 | I89: 0.18 | K89: TRUE
A90: C | B90: SINAPI | C90: 89784 | D90: =VLOOKUP(C90,'Comp SINAPI AL 07-2025 Onerado'!$B$11:$F$9696,2,FALSE) -> TE, PVC, SERIE NORMAL, ESGOTO PREDIAL, DN 50 X 50 MM, JUNTA ELÁSTICA, FORNECIDO E INSTALADO EM RAMAL DE DESCARGA OU RAMAL DE ESGOTO SANITÁRIO. AF_08/2022 | E90: INHI - INSTALAÇÕES HIDROS SANITÁRIAS | F90: UN | G90: =VLOOKUP(C90,'Comp SINAPI AL 07-2025 Onerado'!$B$11:$F$9696,4,FALSE) -> 25.15 | H90: 0.0174 | I90: 0.44 | K90: TRUE
A91: C | B91: SINAPI | C91: 94210 | D91: =VLOOKUP(C91,'Comp SINAPI AL 07-2025 Onerado'!$B$11:$F$9696,2,FALSE) -> TELHAMENTO COM TELHA ONDULADA DE FIBROCIMENTO E = 6 MM, COM RECOBRIMENTO LATERAL DE 1 1/4 DE ONDA PARA TELHADO COM INCLINAÇÃO MÁXIMA DE 10°, COM ATÉ 2 ÁGUAS, INCLUSO IÇAMENTO. AF_07/2019 | E91: COBE - COBERTURA | F91: m² | G91: =VLOOKUP(C91,'Comp SINAPI AL 07-2025 Onerado'!$B$11:$F$9696,4,FALSE) -> 67.22 | H91: 1.3566 | I91: 91.19 | K91: TRUE
A92: C | B92: SINAPI | C92: 92000 | D92: =VLOOKUP(C92,'Comp SINAPI AL 07-2025 Onerado'!$B$11:$F$9696,2,FALSE) -> TOMADA BAIXA DE EMBUTIR (1 MÓDULO), 2P+T 10 A, INCLUINDO SUPORTE E PLACA - FORNECIMENTO E INSTALAÇÃO. AF_03/2023 | E92: INEL - INSTALAÇÃO ELÉTRICA/ELETRIFICAÇÃO E ILUMINAÇÃO EXTERNA | F92: UN | G92: =VLOOKUP(C92,'Comp SINAPI AL 07-2025 Onerado'!$B$11:$F$9696,4,FALSE) -> 38.72 | H92: 0.0348 | I92: 1.35 | K92: TRUE
A93: C | B93: SINAPI | C93: 92543 | D93: =VLOOKUP(C93,'Comp SINAPI AL 07-2025 Onerado'!$B$11:$F$9696,2,FALSE) -> TRAMA DE MADEIRA COMPOSTA POR TERÇAS PARA TELHADOS DE ATÉ 2 ÁGUAS PARA TELHA ONDULADA DE FIBROCIMENTO, METÁLICA, PLÁSTICA OU TERMOACÚSTICA, INCLUSO TRANSPORTE VERTICAL. AF_07/2019 | E93: COBE - COBERTURA | F93: m² | G93: =VLOOKUP(C93,'Comp SINAPI AL 07-2025 Onerado'!$B$11:$F$9696,4,FALSE) -> 18.55 | H93: 1.3566 | I93: 25.16 | K93: TRUE
A94: C | B94: SINAPI | C94: 89714 | D94: =VLOOKUP(C94,'Comp SINAPI AL 07-2025 Onerado'!$B$11:$F$9696,2,FALSE) -> TUBO PVC, SERIE NORMAL, ESGOTO PREDIAL, DN 100 MM, FORNECIDO E INSTALADO EM RAMAL DE DESCARGA OU RAMAL DE ESGOTO SANITÁRIO. AF_08/2022 | E94: INHI - INSTALAÇÕES HIDROS SANITÁRIAS | F94: M | G94: =VLOOKUP(C94,'Comp SINAPI AL 07-2025 Onerado'!$B$11:$F$9696,4,FALSE) -> 39.1 | H94: 0.047 | I94: 1.84 | K94: TRUE
A95: C | B95: SINAPI | C95: 89711 | D95: =VLOOKUP(C95,'Comp SINAPI AL 07-2025 Onerado'!$B$11:$F$9696,2,FALSE) -> TUBO PVC, SERIE NORMAL, ESGOTO PREDIAL, DN 40 MM, FORNECIDO E INSTALADO EM RAMAL DE DESCARGA OU RAMAL DE ESGOTO SANITÁRIO. AF_08/2022 | E95: INHI - INSTALAÇÕES HIDROS SANITÁRIAS | F95: M | G95: =VLOOKUP(C95,'Comp SINAPI AL 07-2025 Onerado'!$B$11:$F$9696,4,FALSE) -> 22.33 | H95: 0.1631 | I95: 3.64 | K95: TRUE
A96: C | B96: SINAPI | C96: 89712 | D96: =VLOOKUP(C96,'Comp SINAPI AL 07-2025 Onerado'!$B$11:$F$9696,2,FALSE) -> TUBO PVC, SERIE NORMAL, ESGOTO PREDIAL, DN 50 MM, FORNECIDO E INSTALADO EM RAMAL DE DESCARGA OU RAMAL DE ESGOTO SANITÁRIO. AF_08/2022 | E96: INHI - INSTALAÇÕES HIDROS SANITÁRIAS | F96: M | G96: =VLOOKUP(C96,'Comp SINAPI AL 07-2025 Onerado'!$B$11:$F$9696,4,FALSE) -> 28.07 | H96: 0.2235 | I96: 6.27 | K96: TRUE
A97: C | B97: SINAPI | C97: 86888 | D97: =VLOOKUP(C97,'Comp SINAPI AL 07-2025 Onerado'!$B$11:$F$9696,2,FALSE) -> VASO SANITÁRIO SIFONADO COM CAIXA ACOPLADA LOUÇA BRANCA - FORNECIMENTO E INSTALAÇÃO. AF_01/2020 | E97: INHI - INSTALAÇÕES HIDROS SANITÁRIAS | F97: UN | G97: =VLOOKUP(C97,'Comp SINAPI AL 07-2025 Onerado'!$B$11:$F$9696,4,FALSE) -> 498.2 | H97: 0.0522 | I97: 26.01 | K97: TRUE
A98: I | B98: SINAPI | C98: 11712 | D98: =VLOOKUP(C98,'Ins SINAPI AL 07-2025 Onerado'!$B$11:$F$9692,2,FALSE) -> CAIXA SIFONADA, PVC, 150 X 150 X 50 MM, COM GRELHA QUADRADA, BRANCA (NBR 5688) | E98: Material | F98: UN | G98: =VLOOKUP(C98,'Ins SINAPI AL 07-2025 Onerado'!$B$11:$F$9692,5,FALSE) -> 37.65 | H98: 0.0348 | I98: 1.31 | K98: TRUE
A99: I | B99: SINAPI | C99: 3080 | D99: =VLOOKUP(C99,'Ins SINAPI AL 07-2025 Onerado'!$B$11:$F$9692,2,FALSE) -> FECHADURA ESPELHO PARA PORTA EXTERNA, EM ACO INOX (MAQUINA, TESTA E CONTRA-TESTA) E EM ZAMAC (MACANETA, LINGUETA E TRINCOS) COM ACABAMENTO CROMADO, MAQUINA DE 40 MM, INCLUINDO CHAVE TIPO CILINDRO | E99: Material | F99: CJ | G99: =VLOOKUP(C99,'Ins SINAPI AL 07-2025 Onerado'!$B$11:$F$9692,5,FALSE) -> 70.38 | H99: 0.0348 | I99: 2.45 | K99: TRUE
A100: I | B100: SINAPI | C100: 11587 | D100: =VLOOKUP(C100,'Ins SINAPI AL 07-2025 Onerado'!$B$11:$F$9692,2,FALSE) -> FORRO DE PVC LISO, BRANCO, REGUA DE 10 CM, ESPESSURA APROXIMADA DE 8 MM (COM COLOCACAO / SEM ESTRUTURA METALICA) | E100: Material | F100: m² | G100: =VLOOKUP(C100,'Ins SINAPI AL 07-2025 Onerado'!$B$11:$F$9692,5,FALSE) -> 117.31 | H100: 0.9762 | I100: 114.52 | K100: TRUE
A101: I | B101: SINAPI | C101: 3659 | D101: =VLOOKUP(C101,'Ins SINAPI AL 07-2025 Onerado'!$B$11:$F$9692,2,FALSE) -> JUNCAO SIMPLES DE REDUCAO, PVC, DN 100 X 50 MM, SERIE NORMAL PARA ESGOTO PREDIAL | E101: Material | F101: UN | G101: =VLOOKUP(C101,'Ins SINAPI AL 07-2025 Onerado'!$B$11:$F$9692,5,FALSE) -> 18.41 | H101: 0.0174 | I101: 0.32 | K101: TRUE
A102: I | B102: SINAPI | C102: 3670 | D102: =VLOOKUP(C102,'Ins SINAPI AL 07-2025 Onerado'!$B$11:$F$9692,2,FALSE) -> JUNCAO SIMPLES, PVC, 45 GRAUS, DN 100 X 100 MM, SERIE NORMAL PARA ESGOTO PREDIAL | E102: Material | F102: UN | G102: =VLOOKUP(C102,'Ins SINAPI AL 07-2025 Onerado'!$B$11:$F$9692,5,FALSE) -> 23.64 | H102: 0.0348 | I102: 0.82 | K102: TRUE
A103: I | B103: SINAPI | C103: 11697 | D103: =VLOOKUP(C103,'Ins SINAPI AL 07-2025 Onerado'!$B$11:$F$9692,2,FALSE) -> MICTORIO COLETIVO ACO INOX (AISI 304), E = 0,8 MM, DE *100 X 40 X 30* CM (C X A X P) | E103: Material | F103: UN | G103: =VLOOKUP(C103,'Ins SINAPI AL 07-2025 Onerado'!$B$11:$F$9692,5,FALSE) -> 709.82 | H103: 0.0174 | I103: 12.35 | K103: TRUE
A104: I | B104: SINAPI | C104: 43777 | D104: =VLOOKUP(C104,'Ins SINAPI AL 07-2025 Onerado'!$B$11:$F$9692,2,FALSE) -> PORTA DE MADEIRA, FOLHA LEVE (NBR 15930), DE 600 X 2100 MM, E = 35 MM, NUCLEO COLMEIA, CAPA LISA EM HDF, ACABAMENTO MELAMINICO EM PADRAO MADEIRA | E104: Material | F104: UN | G104: =VLOOKUP(C104,'Ins SINAPI AL 07-2025 Onerado'!$B$11:$F$9692,5,FALSE) -> 250.47 | H104: 0.0447618 | I104: 11.21 | K104: TRUE
A105: I | B105: SINAPI | C105: 21112 | D105: =VLOOKUP(C105,'Ins SINAPI AL 07-2025 Onerado'!$B$11:$F$9692,2,FALSE) -> VALVULA DE DESCARGA EM METAL CROMADO PARA MICTORIO COM ACIONAMENTO POR PRESSAO E FECHAMENTO AUTOMATICO | E105: Material | F105: UN | G105: =VLOOKUP(C105,'Ins SINAPI AL 07-2025 Onerado'!$B$11:$F$9692,5,FALSE) -> 298.7 | H105: 0.0174 | I105: 5.2 | K105: TRUE
K106: FALSE
K107: FALSE
A108: Código | D108: 93583 ADAPTADO | K108: FALSE
A109: Descrição | D109: EXECUÇÃO DE CENTRAL DE FÔRMAS, PRODUÇÃO DE ARGAMASSA OU CONCRETO EM CANTEIRO DE OBRA, NÃO INCLUSO MOBILIÁRIO E EQUIPAMENTOS. AF_04/2016 | K109: FALSE
A110: Data | D110: 2025-10-01 | K110: FALSE
A111: Estado | D111: Alagoas | K111: FALSE
A112: Tipo | D112: CANT - CANTEIRO DE OBRAS | K112: FALSE
A113: Unidade | D113: m² | K113: FALSE
A114: Valor sem Desoneração | D114: =SUM(I117:I131,I135:I145) -> 527.88 | K114: FALSE
K115: FALSE
A116: Natureza | B116: Fonte | C116: codigo | D116: Descrição | E116: Tipo | F116: Unidade | G116: Valor sem Desoneração | H116: Coeficiente | I116: Valor sem Desoneração | K116: FALSE
A117: C | B117: SINAPI | C117: 91924 | D117: =VLOOKUP(C117,'Comp SINAPI AL 07-2025 Onerado'!$B$11:$F$9696,2,FALSE) -> CABO DE COBRE FLEXÍVEL ISOLADO, 1,5 MM², ANTI-CHAMA 450/750 V, PARA CIRCUITOS TERMINAIS - FORNECIMENTO E INSTALAÇÃO. AF_03/2023 | E117: INEL - INSTALAÇÃO ELÉTRICA/ELETRIFICAÇÃO E ILUMINAÇÃO EXTERNA | F117: M | G117: =VLOOKUP(C117,'Comp SINAPI AL 07-2025 Onerado'!$B$11:$F$9696,4,FALSE) -> 3.49 | H117: 1,0821 | I117: 2.91 | K117: TRUE
A118: C | B118: SINAPI | C118: 101561 | D118: =VLOOKUP(C118,'Comp SINAPI AL 07-2025 Onerado'!$B$11:$F$9696,2,FALSE) -> CABO DE COBRE FLEXÍVEL ISOLADO, 16 MM², 0,6/1,0 KV, PARA REDE AÉREA DE DISTRIBUIÇÃO DE ENERGIA ELÉTRICA DE BAIXA TENSÃO - FORNECIMENTO E INSTALAÇÃO. AF_07/2020 | E118: INEL - INSTALAÇÃO ELÉTRICA/ELETRIFICAÇÃO E ILUMINAÇÃO EXTERNA | F118: M | G118: =VLOOKUP(C118,'Comp SINAPI AL 07-2025 Onerado'!$B$11:$F$9696,4,FALSE) -> 20.17 | H118: 0,4831 | I118: 6.66 | K118: TRUE
A119: C | B119: SINAPI | C119: 91926 | D119: =VLOOKUP(C119,'Comp SINAPI AL 07-2025 Onerado'!$B$11:$F$9696,2,FALSE) -> CABO DE COBRE FLEXÍVEL ISOLADO, 2,5 MM², ANTI-CHAMA 450/750 V, PARA CIRCUITOS TERMINAIS - FORNECIMENTO E INSTALAÇÃO. AF_03/2023 | E119: INEL - INSTALAÇÃO ELÉTRICA/ELETRIFICAÇÃO E ILUMINAÇÃO EXTERNA | F119: M | G119: =VLOOKUP(C119,'Comp SINAPI AL 07-2025 Onerado'!$B$11:$F$9696,4,FALSE) -> 5.11 | H119: 2,087 | I119: 8.05 | K119: TRUE
A120: C | B120: SINAPI | C120: 97886 | D120: =VLOOKUP(C120,'Comp SINAPI AL 07-2025 Onerado'!$B$11:$F$9696,2,FALSE) -> CAIXA ENTERRADA ELÉTRICA RETANGULAR, EM ALVENARIA COM TIJOLOS CERÂMICOS MACIÇOS, FUNDO COM BRITA, DIMENSÕES INTERNAS: 0,3X0,3X0,3 M. AF_12/2020 | E120: INEL - INSTALAÇÃO ELÉTRICA/ELETRIFICAÇÃO E ILUMINAÇÃO EXTERNA | F120: UN | G120: =VLOOKUP(C120,'Comp SINAPI AL 07-2025 Onerado'!$B$11:$F$9696,4,FALSE) -> 165.82 | H120: 0,0966 | I120: 14.63 | K120: TRUE
A121: C | B121: SINAPI | C121: 95805 | D121: =VLOOKUP(C121,'Comp SINAPI AL 07-2025 Onerado'!$B$11:$F$9696,2,FALSE) -> CONDULETE DE PVC, TIPO B, PARA ELETRODUTO DE PVC SOLDÁVEL DN 25 MM (3/4''), APARENTE - FORNECIMENTO E INSTALAÇÃO. AF_10/2022 | E121: INEL - INSTALAÇÃO ELÉTRICA/ELETRIFICAÇÃO E ILUMINAÇÃO EXTERNA | F121: UN | G121: =VLOOKUP(C121,'Comp SINAPI AL 07-2025 Onerado'!$B$11:$F$9696,4,FALSE) -> 21.43 | H121: 0,3865 | I121: 9.89 | K121: TRUE
A122: C | B122: SINAPI | C122: 101891 | D122: =VLOOKUP(C122,'Comp SINAPI AL 07-2025 Onerado'!$B$11:$F$9696,2,FALSE) -> DISJUNTOR MONOPOLAR TIPO NEMA, CORRENTE NOMINAL DE 35 ATÉ 50A - FORNECIMENTO E INSTALAÇÃO. AF_07/2025 | E122: INEL - INSTALAÇÃO ELÉTRICA/ELETRIFICAÇÃO E ILUMINAÇÃO EXTERNA | F122: UN | G122: =VLOOKUP(C122,'Comp SINAPI AL 07-2025 Onerado'!$B$11:$F$9696,4,FALSE) -> 31.83 | H122: 0,2899 | I122: 9.01 | K122: TRUE
A123: C | B123: SINAPI | C123: 91862 | D123: =VLOOKUP(C123,'Comp SINAPI AL 07-2025 Onerado'!$B$11:$F$9696,2,FALSE) -> ELETRODUTO RÍGIDO ROSCÁVEL, PVC, DN 20 MM (1/2"), PARA CIRCUITOS TERMINAIS, INSTALADO EM FORRO - FORNECIMENTO E INSTALAÇÃO. AF_03/2023 | E123: INEL - INSTALAÇÃO ELÉTRICA/ELETRIFICAÇÃO E ILUMINAÇÃO EXTERNA | F123: M | G123: =VLOOKUP(C123,'Comp SINAPI AL 07-2025 Onerado'!$B$11:$F$9696,4,FALSE) -> 10.87 | H123: 0,4251 | I123: 3.91 | K123: TRUE
A124: C | B124: SINAPI | C124: 91870 | D124: =VLOOKUP(C124,'Comp SINAPI AL 07-2025 Onerado'!$B$11:$F$9696,2,FALSE) -> ELETRODUTO RÍGIDO ROSCÁVEL, PVC, DN 20 MM (1/2"), PARA CIRCUITOS TERMINAIS, INSTALADO EM PAREDE - FORNECIMENTO E INSTALAÇÃO. AF_03/2023 | E124: INEL - INSTALAÇÃO ELÉTRICA/ELETRIFICAÇÃO E ILUMINAÇÃO EXTERNA | F124: M | G124: =VLOOKUP(C124,'Comp SINAPI AL 07-2025 Onerado'!$B$11:$F$9696,4,FALSE) -> 14.08 | H124: 0,4638 | I124: 5.53 | K124: TRUE
A125: C | B125: SINAPI | C125: 93358 | D125: =VLOOKUP(C125,'Comp SINAPI AL 07-2025 Onerado'!$B$11:$F$9696,2,FALSE) -> ESCAVAÇÃO MANUAL DE VALA. AF_09/2024 | E125: MOVT - MOVIMENTO DE TERRA | F125: m³ | G125: =VLOOKUP(C125,'Comp SINAPI AL 07-2025 Onerado'!$B$11:$F$9696,4,FALSE) -> 84.45 | H125: 0,0078 | I125: 0.62 | K125: TRUE
A126: C | B126: SINAPI | C126: 91170 | D126: =VLOOKUP(C126,'Comp SINAPI AL 07-2025 Onerado'!$B$11:$F$9696,2,FALSE) -> FIXAÇÃO DE TUBOS HORIZONTAIS DE PVC ÁGUA, PVC ESGOTO, PVC ÁGUA PLUVIAL, CPVC, PPR, COBRE OU AÇO, DIÂMETROS MENORES OU IGUAIS A 40 MM, COM ABRAÇADEIRA METÁLICA RÍGIDA TIPO U PERFIL 1 1/4", FIXADA EM PERFILADO EM LAJE. AF_09/2023_PS | E126: INHI - INSTALAÇÕES HIDROS SANITÁRIAS | F126: M | G126: =VLOOKUP(C126,'Comp SINAPI AL 07-2025 Onerado'!$B$11:$F$9696,4,FALSE) -> 10.62 | H126: 0,4251 | I126: 4.54 | K126: TRUE
A127: C | B127: SINAPI | C127: 91173 | D127: =VLOOKUP(C127,'Comp SINAPI AL 07-2025 Onerado'!$B$11:$F$9696,2,FALSE) -> FIXAÇÃO DE TUBOS VERTICAIS DE PVC ÁGUA, PVC ESGOTO, PVC ÁGUA PLUVIAL, CPVC, PPR, COBRE OU AÇO, DIÂMETROS MENORES OU IGUAIS A 40 MM, COM ABRAÇADEIRA METÁLICA RÍGIDA TIPO U PERFIL 1 1/4", FIXADA EM PERFILADO EM PAREDE. AF_09/2023_PS | E127: INHI - INSTALAÇÕES HIDROS SANITÁRIAS | F127: M | G127: =VLOOKUP(C127,'Comp SINAPI AL 07-2025 Onerado'!$B$11:$F$9696,4,FALSE) -> 3.96 | H127: 0,4638 | I127: 1.84 | K127: TRUE
A128: C | B128: SINAPI | C128: 96985 | D128: =VLOOKUP(C128,'Comp SINAPI AL 07-2025 Onerado'!$B$11:$F$9696,2,FALSE) -> HASTE DE ATERRAMENTO, DIÂMETRO 5/8", COM 3 METROS - FORNECIMENTO E INSTALAÇÃO. AF_08/2023 | E128: INEL - INSTALAÇÃO ELÉTRICA/ELETRIFICAÇÃO E ILUMINAÇÃO EXTERNA | F128: UN | G128: =VLOOKUP(C128,'Comp SINAPI AL 07-2025 Onerado'!$B$11:$F$9696,4,FALSE) -> 60.78 | H128: 0,0966 | I128: 10.39 | K128: TRUE
A129: C | B129: SINAPI | C129: 92023 | D129: =VLOOKUP(C129,'Comp SINAPI AL 07-2025 Onerado'!$B$11:$F$9696,2,FALSE) -> INTERRUPTOR SIMPLES (1 MÓDULO) COM 1 TOMADA DE EMBUTIR 2P+T 10 A, INCLUINDO SUPORTE E PLACA - FORNECIMENTO E INSTALAÇÃO. AF_03/2023 | E129: INEL - INSTALAÇÃO ELÉTRICA/ELETRIFICAÇÃO E ILUMINAÇÃO EXTERNA | F129: UN | G129: =VLOOKUP(C129,'Comp SINAPI AL 07-2025 Onerado'!$B$11:$F$9696,4,FALSE) -> 62.47 | H129: 0,0966 | I129: 4.67 | K129: TRUE
A130: C | B130: SINAPI | C130: 95241 | D130: =VLOOKUP(C130,'Comp SINAPI AL 07-2025 Onerado'!$B$11:$F$9696,2,FALSE) -> LASTRO DE CONCRETO MAGRO, APLICADO EM PISOS, LAJES SOBRE SOLO OU RADIERS, ESPESSURA DE 5 CM. AF_01/2024 | E130: FUES - FUNDAÇÕES E ESTRUTURAS | F130: m² | G130: =VLOOKUP(C130,'Comp SINAPI AL 07-2025 Onerado'!$B$11:$F$9696,4,FALSE) -> 35.34 | H130: 1,9256 | I130: 59.65 | K130: TRUE
A131: C | B131: SINAPI | C131: 97586 | D131: LUMINÁRIA TIPO CALHA, DE SOBREPOR, COM 2 LÂMPADAS TUBULARES FLUORESCENTES DE 36 W, COM REATOR DE PARTIDA RÁPIDA - FORNECIMENTO E INSTALAÇÃO. AF_02/2020 | E131: INEL - INSTALAÇÃO ELÉTRICA/ELETRIFICAÇÃO E ILUMINAÇÃO EXTERNA | F131: UN | G131: =SUM(I132:I134) -> 223.18 | H131: 0.1392 | I131: =ROUND(G131*H131,2) -> 31.07 | K131: TRUE
A132: C | B132: SINAPI | C132: 88247 | D132: =VLOOKUP(C132,'Comp SINAPI AL 07-2025 Onerado'!$B$11:$F$9696,2,FALSE) -> AUXILIAR DE ELETRICISTA COM ENCARGOS COMPLEMENTARES | E132: SEDI - SERVIÇOS DIVERSOS | F132: H | G132: =VLOOKUP(C132,'Comp SINAPI AL 07-2025 Onerado'!$B$11:$F$9696,4,FALSE) -> 22.83 | H132: 0.1727 | I132: =ROUND(G132*H132,2) -> 3.94 | K132: TRUE
A133: C | B133: SINAPI | C133: 88264 | D133: =VLOOKUP(C133,'Comp SINAPI AL 07-2025 Onerado'!$B$11:$F$9696,2,FALSE) -> ELETRICISTA COM ENCARGOS COMPLEMENTARES | E133: SEDI - SERVIÇOS DIVERSOS | F133: H | G133: =VLOOKUP(C133,'Comp SINAPI AL 07-2025 Onerado'!$B$11:$F$9696,4,FALSE) -> 32.43 | H133: 0.4144 | I133: =ROUND(G133*H133,2) -> 13.44 | K133: TRUE
A134: C | B134: SINAPI | C134: 3780 | D134: =VLOOKUP(C134,'Ins SINAPI AL 07-2025 Onerado'!$B$11:$F$9692,2,FALSE) -> LUMINARIA DE SOBREPOR EM CHAPA DE ACO PARA 1 LAMPADA FLUORESCENTE DE *36* W, ALETADA, COMPLETA (LAMPADA E REATOR INCLUSOS) | E134: Material | F134: UN | G134: =G64 -> 102.9 | H134: 2 | I134: =ROUND(G134*H134,2) -> 205.8 | K134: TRUE
A135: C | B135: SINAPI | C135: 98445 | D135: =VLOOKUP(C135,'Comp SINAPI AL 07-2025 Onerado'!$B$11:$F$9696,2,FALSE) -> PAREDE DE MADEIRA COMPENSADA PARA CONSTRUÇÃO TEMPORÁRIA EM CHAPA SIMPLES, EXTERNA, COM ÁREA LÍQUIDA MAIOR OU IGUAL A 6 M², COM VÃO. AF_03/2024 | E135: CANT - CANTEIRO DE OBRAS | F135: m² | G135: =VLOOKUP(C135,'Comp SINAPI AL 07-2025 Onerado'!$B$11:$F$9696,4,FALSE) -> 129.4 | H135: 0,1508 | I135: 28.43 | K135: TRUE
A136: C | B136: SINAPI | C136: 98441 | D136: =VLOOKUP(C136,'Comp SINAPI AL 07-2025 Onerado'!$B$11:$F$9696,2,FALSE) -> PAREDE DE MADEIRA COMPENSADA PARA CONSTRUÇÃO TEMPORÁRIA EM CHAPA SIMPLES, EXTERNA, SEM VÃO. AF_03/2024 | E136: CANT - CANTEIRO DE OBRAS | F136: m² | G136: =VLOOKUP(C136,'Comp SINAPI AL 07-2025 Onerado'!$B$11:$F$9696,4,FALSE) -> 111.79 | H136: 0,0966 | I136: 15.02 | K136: TRUE
A137: C | B137: SINAPI | C137: 98446 | D137: =VLOOKUP(C137,'Comp SINAPI AL 07-2025 Onerado'!$B$11:$F$9696,2,FALSE) -> PAREDE DE MADEIRA COMPENSADA PARA CONSTRUÇÃO TEMPORÁRIA EM CHAPA SIMPLES, EXTERNA, COM ÁREA LÍQUIDA MENOR QUE 6 M², COM VÃO. AF_03/2024 | E137: CANT - CANTEIRO DE OBRAS | F137: m² | G137: =VLOOKUP(C137,'Comp SINAPI AL 07-2025 Onerado'!$B$11:$F$9696,4,FALSE) -> 160.99 | H137: 0,1176 | I137: 28.54 | K137: TRUE
A138: C | B138: SINAPI | C138: 98441 | D138: =VLOOKUP(C138,'Comp SINAPI AL 07-2025 Onerado'!$B$11:$F$9696,2,FALSE) -> PAREDE DE MADEIRA COMPENSADA PARA CONSTRUÇÃO TEMPORÁRIA EM CHAPA SIMPLES, EXTERNA, SEM VÃO. AF_03/2024 | E138: CANT - CANTEIRO DE OBRAS | F138: m² | G138: =VLOOKUP(C138,'Comp SINAPI AL 07-2025 Onerado'!$B$11:$F$9696,4,FALSE) -> 111.79 | H138: 0.3007 | I138: =ROUND(G138*H138,2) -> 33.62 | K138: TRUE
A139: C | B139: SINAPI | C139: 88489 | D139: =VLOOKUP(C139,'Comp SINAPI AL 07-2025 Onerado'!$B$11:$F$9696,2,FALSE) -> PINTURA LÁTEX ACRÍLICA PREMIUM, APLICAÇÃO MANUAL EM PAREDES, DUAS DEMÃOS. AF_04/2023 | E139: PINT - PINTURAS | F139: m² | G139: =VLOOKUP(C139,'Comp SINAPI AL 07-2025 Onerado'!$B$11:$F$9696,4,FALSE) -> 13.26 | H139: 0,4761 | I139: 6.35 | K139: TRUE
A140: C | B140: SINAPI | C140: 101876 | D140: =VLOOKUP(C140,'Comp SINAPI AL 07-2025 Onerado'!$B$11:$F$9696,2,FALSE) -> QUADRO DE DISTRIBUIÇÃO DE ENERGIA EM PVC, DE EMBUTIR, SEM BARRAMENTO, PARA 6 DISJUNTORES - FORNECIMENTO E INSTALAÇÃO. AF_07/2025 | E140: INEL - INSTALAÇÃO ELÉTRICA/ELETRIFICAÇÃO E ILUMINAÇÃO EXTERNA | F140: UN | G140: =VLOOKUP(C140,'Comp SINAPI AL 07-2025 Onerado'!$B$11:$F$9696,4,FALSE) -> 119.69 | H140: 0,0966 | I140: 10.05 | K140: TRUE
A141: C | B141: SINAPI | C141: 94210 | D141: =VLOOKUP(C141,'Comp SINAPI AL 07-2025 Onerado'!$B$11:$F$9696,2,FALSE) -> TELHAMENTO COM TELHA ONDULADA DE FIBROCIMENTO E = 6 MM, COM RECOBRIMENTO LATERAL DE 1 1/4 DE ONDA PARA TELHADO COM INCLINAÇÃO MÁXIMA DE 10°, COM ATÉ 2 ÁGUAS, INCLUSO IÇAMENTO. AF_07/2019 | E141: COBE - COBERTURA | F141: m² | G141: =VLOOKUP(C141,'Comp SINAPI AL 07-2025 Onerado'!$B$11:$F$9696,4,FALSE) -> 67.22 | H141: 1,9256 | I141: 125 | K141: =_xlfn.ISFORMULA(G141) -> TRUE
A142: C | B142: SINAPI | C142: 92008 | D142: =VLOOKUP(C142,'Comp SINAPI AL 07-2025 Onerado'!$B$11:$F$9696,2,FALSE) -> TOMADA BAIXA DE EMBUTIR (2 MÓDULOS), 2P+T 10 A, INCLUINDO SUPORTE E PLACA - FORNECIMENTO E INSTALAÇÃO. AF_03/2023 | E142: INEL - INSTALAÇÃO ELÉTRICA/ELETRIFICAÇÃO E ILUMINAÇÃO EXTERNA | F142: UN | G142: =VLOOKUP(C142,'Comp SINAPI AL 07-2025 Onerado'!$B$11:$F$9696,4,FALSE) -> 60.3 | H142: 0,2899 | I142: 13.41 | K142: TRUE
A143: C | B143: SINAPI | C143: 92543 | D143: =VLOOKUP(C143,'Comp SINAPI AL 07-2025 Onerado'!$B$11:$F$9696,2,FALSE) -> TRAMA DE MADEIRA COMPOSTA POR TERÇAS PARA TELHADOS DE ATÉ 2 ÁGUAS PARA TELHA ONDULADA DE FIBROCIMENTO, METÁLICA, PLÁSTICA OU TERMOACÚSTICA, INCLUSO TRANSPORTE VERTICAL. AF_07/2019 | E143: COBE - COBERTURA | F143: m² | G143: =VLOOKUP(C143,'Comp SINAPI AL 07-2025 Onerado'!$B$11:$F$9696,4,FALSE) -> 18.55 | H143: 1,9256 | I143: 49.21 | K143: TRUE
A144: I | B144: SINAPI | C144: 10886 | D144: =VLOOKUP(C144,'Ins SINAPI AL 07-2025 Onerado'!$B$11:$F$9692,2,FALSE) -> EXTINTOR DE INCENDIO PORTATIL COM CARGA DE AGUA PRESSURIZADA DE 10 L, CLASSE A | E144: Material | F144: UN | G144: =VLOOKUP(C144,'Ins SINAPI AL 07-2025 Onerado'!$B$11:$F$9692,5,FALSE) -> 242.81 | H144: 0,0966 | I144: 22.82 | K144: TRUE
A145: I | B145: SINAPI | C145: 10891 | D145: =VLOOKUP(C145,'Ins SINAPI AL 07-2025 Onerado'!$B$11:$F$9692,2,FALSE) -> EXTINTOR DE INCENDIO PORTATIL COM CARGA DE PO QUIMICO SECO (PQS) DE 4 KG, CLASSE BC | E145: Material | F145: UN | G145: =VLOOKUP(C145,'Ins SINAPI AL 07-2025 Onerado'!$B$11:$F$9692,5,FALSE) -> 234.8 | H145: 0,0966 | I145: 22.06 | K145: TRUE
K146: FALSE
K147: FALSE
A148: Código | D148: 93210 ADAPTADO | K148: FALSE
A149: Descrição | D149: EXECUÇÃO DE REFEITÓRIO EM CANTEIRO DE OBRA EM CHAPA DE MADEIRA COMPENSADA, NÃO INCLUSO MOBILIÁRIO E EQUIPAMENTOS. AF_02/2016 | K149: FALSE
A150: Data | D150: 2025-10-01 | K150: FALSE
A151: Estado | D151: Alagoas | K151: FALSE
A152: Tipo | D152: CANT - CANTEIRO DE OBRAS | K152: FALSE
A153: Unidade | D153: m² | K153: FALSE
A154: Valor sem Desoneração | D154: =SUM(I157:I179,I183:I188,I195:I208) -> 629.3204458 | K154: FALSE
K155: FALSE
A156: Natureza | B156: Fonte | C156: codigo | D156: Descrição | E156: Tipo | F156: Unidade | G156: Valor sem Desoneração | H156: Coeficiente | I156: Valor sem Desoneração | K156: FALSE
A157: C | B157: SINAPI | C157: 101165 | D157: =VLOOKUP(C157,'Comp SINAPI AL 07-2025 Onerado'!$B$11:$F$9696,2,FALSE) -> ALVENARIA DE EMBASAMENTO COM BLOCO ESTRUTURAL DE CONCRETO, DE 14X19X29CM E ARGAMASSA DE ASSENTAMENTO COM PREPARO EM BETONEIRA. AF_05/2020 | E157: FUES - FUNDAÇÕES E ESTRUTURAS | F157: m³ | G157: =VLOOKUP(C157,'Comp SINAPI AL 07-2025 Onerado'!$B$11:$F$9696,4,FALSE) -> 926.32 | H157: 0.04 | I157: =G157*H157 -> 37.0528 | K157: TRUE
A158: C | B158: SINAPI | C158: 86934 | D158: =VLOOKUP(C158,'Comp SINAPI AL 07-2025 Onerado'!$B$11:$F$9696,2,FALSE) -> BANCADA DE MÁRMORE SINTÉTICO 120 X 60CM, COM CUBA INTEGRADA, INCLUSO SIFÃO TIPO FLEXÍVEL EM PVC, VÁLVULA EM PLÁSTICO CROMADO TIPO AMERICANA E TORNEIRA CROMADA LONGA, DE PAREDE, PADRÃO POPULAR - FORNECIMENTO E INSTALAÇÃO. AF_01/2020 | E158: INHI - INSTALAÇÕES HIDROS SANITÁRIAS | F158: UN | G158: =VLOOKUP(C158,'Comp SINAPI AL 07-2025 Onerado'!$B$11:$F$9696,4,FALSE) -> 386.09 | H158: 0.0268 | I158: =G158*H158 -> 10.347212 | K158: TRUE
A159: C | B159: SINAPI | C159: 91924 | D159: =VLOOKUP(C159,'Comp SINAPI AL 07-2025 Onerado'!$B$11:$F$9696,2,FALSE) -> CABO DE COBRE FLEXÍVEL ISOLADO, 1,5 MM², ANTI-CHAMA 450/750 V, PARA CIRCUITOS TERMINAIS - FORNECIMENTO E INSTALAÇÃO. AF_03/2023 | E159: INEL - INSTALAÇÃO ELÉTRICA/ELETRIFICAÇÃO E ILUMINAÇÃO EXTERNA | F159: M | G159: =VLOOKUP(C159,'Comp SINAPI AL 07-2025 Onerado'!$B$11:$F$9696,4,FALSE) -> 3.49 | H159: 0.8591 | I159: 2.998259 | K159: TRUE
A160: C | B160: SINAPI | C160: 91926 | D160: =VLOOKUP(C160,'Comp SINAPI AL 07-2025 Onerado'!$B$11:$F$9696,2,FALSE) -> CABO DE COBRE FLEXÍVEL ISOLADO, 2,5 MM², ANTI-CHAMA 450/750 V, PARA CIRCUITOS TERMINAIS - FORNECIMENTO E INSTALAÇÃO. AF_03/2023 | E160: INEL - INSTALAÇÃO ELÉTRICA/ELETRIFICAÇÃO E ILUMINAÇÃO EXTERNA | F160: M | G160: =VLOOKUP(C160,'Comp SINAPI AL 07-2025 Onerado'!$B$11:$F$9696,4,FALSE) -> 5.11 | H160: 2.5503 | I160: 13.032033 | K160: TRUE
A161: C | B161: SINAPI | C161: 98102 | D161: =VLOOKUP(C161,'Comp SINAPI AL 07-2025 Onerado'!$B$11:$F$9696,2,FALSE) -> CAIXA DE GORDURA SIMPLES, CIRCULAR, EM CONCRETO PRÉ-MOLDADO, DIÂMETRO INTERNO = 0,4 M, ALTURA INTERNA = 0,4 M. AF_12/2020 | E161: INHI - INSTALAÇÕES HIDROS SANITÁRIAS | F161: UN | G161: =VLOOKUP(C161,'Comp SINAPI AL 07-2025 Onerado'!$B$11:$F$9696,4,FALSE) -> 130.98 | H161: 0.0268 | I161: 3.510264 | K161: TRUE
A162: C | B162: SINAPI | C162: 97906 | D162: =VLOOKUP(C162,'Comp SINAPI AL 07-2025 Onerado'!$B$11:$F$9696,2,FALSE) -> CAIXA ENTERRADA HIDRÁULICA RETANGULAR, EM ALVENARIA COM BLOCOS DE CONCRETO, DIMENSÕES INTERNAS: 0,6X0,6X0,6 M PARA REDE DE ESGOTO. AF_12/2020 | E162: INHI - INSTALAÇÕES HIDROS SANITÁRIAS | F162: UN | G162: =VLOOKUP(C162,'Comp SINAPI AL 07-2025 Onerado'!$B$11:$F$9696,4,FALSE) -> 437.24 | H162: 0.0268 | I162: 11.718032 | K162: TRUE
A163: C | B163: SINAPI | C163: 91937 | D163: =VLOOKUP(C163,'Comp SINAPI AL 07-2025 Onerado'!$B$11:$F$9696,2,FALSE) -> CAIXA OCTOGONAL 3" X 3", PVC, INSTALADA EM LAJE - FORNECIMENTO E INSTALAÇÃO. AF_03/2023 | E163: INEL - INSTALAÇÃO ELÉTRICA/ELETRIFICAÇÃO E ILUMINAÇÃO EXTERNA | F163: UN | G163: =VLOOKUP(C163,'Comp SINAPI AL 07-2025 Onerado'!$B$11:$F$9696,4,FALSE) -> 15.56 | H163: 0.1611 | I163: 2.506716 | K163: TRUE
A164: C | B164: SINAPI | C164: 88262 | D164: =VLOOKUP(C164,'Comp SINAPI AL 07-2025 Onerado'!$B$11:$F$9696,2,FALSE) -> CARPINTEIRO DE FORMAS COM ENCARGOS COMPLEMENTARES | E164: SEDI - SERVIÇOS DIVERSOS | F164: H | G164: =VLOOKUP(C164,'Comp SINAPI AL 07-2025 Onerado'!$B$11:$F$9696,4,FALSE) -> 26.18 | H164: 1.1155 | I164: 29.20379 | K164: TRUE
A165: C | B165: SINAPI | C165: 95805 | D165: =VLOOKUP(C165,'Comp SINAPI AL 07-2025 Onerado'!$B$11:$F$9696,2,FALSE) -> CONDULETE DE PVC, TIPO B, PARA ELETRODUTO DE PVC SOLDÁVEL DN 25 MM (3/4''), APARENTE - FORNECIMENTO E INSTALAÇÃO. AF_10/2022 | E165: INEL - INSTALAÇÃO ELÉTRICA/ELETRIFICAÇÃO E ILUMINAÇÃO EXTERNA | F165: UN | G165: =VLOOKUP(C165,'Comp SINAPI AL 07-2025 Onerado'!$B$11:$F$9696,4,FALSE) -> 21.43 | H165: 0.1879 | I165: 4.026697 | K165: TRUE
A166: C | B166: SINAPI | C166: 95811 | D166: =VLOOKUP(C166,'Comp SINAPI AL 07-2025 Onerado'!$B$11:$F$9696,2,FALSE) -> CONDULETE DE PVC, TIPO LB, PARA ELETRODUTO DE PVC SOLDÁVEL DN 25 MM (3/4''), APARENTE - FORNECIMENTO E INSTALAÇÃO. AF_10/2022 | E166: INEL - INSTALAÇÃO ELÉTRICA/ELETRIFICAÇÃO E ILUMINAÇÃO EXTERNA | F166: UN | G166: =VLOOKUP(C166,'Comp SINAPI AL 07-2025 Onerado'!$B$11:$F$9696,4,FALSE) -> 17.25 | H166: 0.0268 | I166: 0.4623 | K166: TRUE
A167: C | B167: SINAPI | C167: 91911 | D167: =VLOOKUP(C167,'Comp SINAPI AL 07-2025 Onerado'!$B$11:$F$9696,2,FALSE) -> CURVA 90 GRAUS PARA ELETRODUTO, PVC, ROSCÁVEL, DN 20 MM (1/2"), PARA CIRCUITOS TERMINAIS, INSTALADA EM PAREDE - FORNECIMENTO E INSTALAÇÃO. AF_03/2023 | E167: INEL - INSTALAÇÃO ELÉTRICA/ELETRIFICAÇÃO E ILUMINAÇÃO EXTERNA | F167: UN | G167: =VLOOKUP(C167,'Comp SINAPI AL 07-2025 Onerado'!$B$11:$F$9696,4,FALSE) -> 17.14 | H167: 0.1074 | I167: 1.840836 | K167: TRUE
A168: C | B168: SINAPI | C168: 101891 | D168: =VLOOKUP(C168,'Comp SINAPI AL 07-2025 Onerado'!$B$11:$F$9696,2,FALSE) -> DISJUNTOR MONOPOLAR TIPO NEMA, CORRENTE NOMINAL DE 35 ATÉ 50A - FORNECIMENTO E INSTALAÇÃO. AF_07/2025 | E168: INEL - INSTALAÇÃO ELÉTRICA/ELETRIFICAÇÃO E ILUMINAÇÃO EXTERNA | F168: UN | G168: =VLOOKUP(C168,'Comp SINAPI AL 07-2025 Onerado'!$B$11:$F$9696,4,FALSE) -> 31.83 | H168: 0.1074 | I168: 3.418542 | K168: TRUE
A169: C | B169: SINAPI | C169: 91862 | D169: =VLOOKUP(C169,'Comp SINAPI AL 07-2025 Onerado'!$B$11:$F$9696,2,FALSE) -> ELETRODUTO RÍGIDO ROSCÁVEL, PVC, DN 20 MM (1/2"), PARA CIRCUITOS TERMINAIS, INSTALADO EM FORRO - FORNECIMENTO E INSTALAÇÃO. AF_03/2023 | E169: INEL - INSTALAÇÃO ELÉTRICA/ELETRIFICAÇÃO E ILUMINAÇÃO EXTERNA | F169: M | G169: =VLOOKUP(C169,'Comp SINAPI AL 07-2025 Onerado'!$B$11:$F$9696,4,FALSE) -> 10.87 | H169: 0.3221 | I169: 3.501227 | K169: TRUE
A170: C | B170: SINAPI | C170: 91870 | D170: =VLOOKUP(C170,'Comp SINAPI AL 07-2025 Onerado'!$B$11:$F$9696,2,FALSE) -> ELETRODUTO RÍGIDO ROSCÁVEL, PVC, DN 20 MM (1/2"), PARA CIRCUITOS TERMINAIS, INSTALADO EM PAREDE - FORNECIMENTO E INSTALAÇÃO. AF_03/2023 | E170: INEL - INSTALAÇÃO ELÉTRICA/ELETRIFICAÇÃO E ILUMINAÇÃO EXTERNA | F170: M | G170: =VLOOKUP(C170,'Comp SINAPI AL 07-2025 Onerado'!$B$11:$F$9696,4,FALSE) -> 14.08 | H170: 0.5369 | I170: 7.559552 | K170: TRUE
A171: C | B171: SINAPI | C171: 93358 | D171: =VLOOKUP(C171,'Comp SINAPI AL 07-2025 Onerado'!$B$11:$F$9696,2,FALSE) -> ESCAVAÇÃO MANUAL DE VALA. AF_09/2024 | E171: MOVT - MOVIMENTO DE TERRA | F171: m³ | G171: =VLOOKUP(C171,'Comp SINAPI AL 07-2025 Onerado'!$B$11:$F$9696,4,FALSE) -> 84.45 | H171: 0.039 | I171: 3.29355 | K171: TRUE
A172: C | B172: SINAPI | C172: 91170 | D172: =VLOOKUP(C172,'Comp SINAPI AL 07-2025 Onerado'!$B$11:$F$9696,2,FALSE) -> FIXAÇÃO DE TUBOS HORIZONTAIS DE PVC ÁGUA, PVC ESGOTO, PVC ÁGUA PLUVIAL, CPVC, PPR, COBRE OU AÇO, DIÂMETROS MENORES OU IGUAIS A 40 MM, COM ABRAÇADEIRA METÁLICA RÍGIDA TIPO U PERFIL 1 1/4", FIXADA EM PERFILADO EM LAJE. AF_09/2023_PS | E172: INHI - INSTALAÇÕES HIDROS SANITÁRIAS | F172: M | G172: =VLOOKUP(C172,'Comp SINAPI AL 07-2025 Onerado'!$B$11:$F$9696,4,FALSE) -> 10.62 | H172: 0.3221 | I172: 3.420702 | K172: TRUE
A173: C | B173: SINAPI | C173: 91173 | D173: =VLOOKUP(C173,'Comp SINAPI AL 07-2025 Onerado'!$B$11:$F$9696,2,FALSE) -> FIXAÇÃO DE TUBOS VERTICAIS DE PVC ÁGUA, PVC ESGOTO, PVC ÁGUA PLUVIAL, CPVC, PPR, COBRE OU AÇO, DIÂMETROS MENORES OU IGUAIS A 40 MM, COM ABRAÇADEIRA METÁLICA RÍGIDA TIPO U PERFIL 1 1/4", FIXADA EM PERFILADO EM PAREDE. AF_09/2023_PS | E173: INHI - INSTALAÇÕES HIDROS SANITÁRIAS | F173: M | G173: =VLOOKUP(C173,'Comp SINAPI AL 07-2025 Onerado'!$B$11:$F$9696,4,FALSE) -> 3.96 | H173: 0.5369 | I173: 2.126124 | K173: TRUE
A174: C | B174: SINAPI | C174: 92023 | D174: =VLOOKUP(C174,'Comp SINAPI AL 07-2025 Onerado'!$B$11:$F$9696,2,FALSE) -> INTERRUPTOR SIMPLES (1 MÓDULO) COM 1 TOMADA DE EMBUTIR 2P+T 10 A, INCLUINDO SUPORTE E PLACA - FORNECIMENTO E INSTALAÇÃO. AF_03/2023 | E174: INEL - INSTALAÇÃO ELÉTRICA/ELETRIFICAÇÃO E ILUMINAÇÃO EXTERNA | F174: UN | G174: =VLOOKUP(C174,'Comp SINAPI AL 07-2025 Onerado'!$B$11:$F$9696,4,FALSE) -> 62.47 | H174: 0.0268 | I174: 1.674196 | K174: TRUE
A175: C | B175: SINAPI | C175: 89724 | D175: =VLOOKUP(C175,'Comp SINAPI AL 07-2025 Onerado'!$B$11:$F$9696,2,FALSE) -> JOELHO 90 GRAUS, PVC, SERIE NORMAL, ESGOTO PREDIAL, DN 40 MM, JUNTA SOLDÁVEL, FORNECIDO E INSTALADO EM RAMAL DE DESCARGA OU RAMAL DE ESGOTO SANITÁRIO. AF_08/2022 | E175: INHI - INSTALAÇÕES HIDROS SANITÁRIAS | F175: UN | G175: =VLOOKUP(C175,'Comp SINAPI AL 07-2025 Onerado'!$B$11:$F$9696,4,FALSE) -> 10.25 | H175: 0.0537 | I175: 0.550425 | K175: TRUE
A176: C | B176: SINAPI | C176: 95240 | D176: =VLOOKUP(C176,'Comp SINAPI AL 07-2025 Onerado'!$B$11:$F$9696,2,FALSE) -> LASTRO DE CONCRETO MAGRO, APLICADO EM PISOS, LAJES SOBRE SOLO OU RADIERS, ESPESSURA DE 3 CM. AF_01/2024 | E176: FUES - FUNDAÇÕES E ESTRUTURAS | F176: m² | G176: =VLOOKUP(C176,'Comp SINAPI AL 07-2025 Onerado'!$B$11:$F$9696,4,FALSE) -> 18.35 | H176: 0.009 | I176: 0.16515 | K176: TRUE
A177: C | B177: SINAPI | C177: 95241 | D177: =VLOOKUP(C177,'Comp SINAPI AL 07-2025 Onerado'!$B$11:$F$9696,2,FALSE) -> LASTRO DE CONCRETO MAGRO, APLICADO EM PISOS, LAJES SOBRE SOLO OU RADIERS, ESPESSURA DE 5 CM. AF_01/2024 | E177: FUES - FUNDAÇÕES E ESTRUTURAS | F177: m² | G177: =VLOOKUP(C177,'Comp SINAPI AL 07-2025 Onerado'!$B$11:$F$9696,4,FALSE) -> 35.34 | H177: 1.451 | I177: 51.27834 | K177: TRUE
A178: C | B178: SINAPI | C178: 86943 | D178: =VLOOKUP(C178,'Comp SINAPI AL 07-2025 Onerado'!$B$11:$F$9696,2,FALSE) -> LAVATÓRIO LOUÇA BRANCA SUSPENSO, 29,5 X 39CM OU EQUIVALENTE, PADRÃO POPULAR, INCLUSO SIFÃO FLEXÍVEL EM PVC, VÁLVULA E ENGATE FLEXÍVEL 30CM EM PLÁSTICO E TORNEIRA CROMADA DE MESA, PADRÃO POPULAR - FORNECIMENTO E INSTALAÇÃO. AF_01/2020 | E178: INHI - INSTALAÇÕES HIDROS SANITÁRIAS | F178: UN | G178: =VLOOKUP(C178,'Comp SINAPI AL 07-2025 Onerado'!$B$11:$F$9696,4,FALSE) -> 264.18 | H178: 0.0268 | I178: 7.080024 | K178: TRUE
A179: C | B179: SINAPI | C179: 97586 | D179: LUMINÁRIA TIPO CALHA, DE SOBREPOR, COM 2 LÂMPADAS TUBULARES FLUORESCENTES DE 36 W, COM REATOR DE PARTIDA RÁPIDA - FORNECIMENTO E INSTALAÇÃO. AF_02/2020 ADAPTADA | E179: INEL - INSTALAÇÃO ELÉTRICA/ELETRIFICAÇÃO E ILUMINAÇÃO EXTERNA | F179: UN | G179: =SUM(I180:I182) -> 120.281733 | H179: 0.1611 | I179: 19.37738719 | K179: TRUE
A180: C | B180: SINAPI | C180: 88247 | D180: =VLOOKUP(C180,'Comp SINAPI AL 07-2025 Onerado'!$B$11:$F$9696,2,FALSE) -> AUXILIAR DE ELETRICISTA COM ENCARGOS COMPLEMENTARES | E180: SEDI - SERVIÇOS DIVERSOS | F180: H | G180: =VLOOKUP(C180,'Comp SINAPI AL 07-2025 Onerado'!$B$11:$F$9696,4,FALSE) -> 22.83 | H180: 0.1727 | I180: 3.942741 | K180: TRUE
A181: C | B181: SINAPI | C181: 88264 | D181: =VLOOKUP(C181,'Comp SINAPI AL 07-2025 Onerado'!$B$11:$F$9696,2,FALSE) -> ELETRICISTA COM ENCARGOS COMPLEMENTARES | E181: SEDI - SERVIÇOS DIVERSOS | F181: H | G181: =VLOOKUP(C181,'Comp SINAPI AL 07-2025 Onerado'!$B$11:$F$9696,4,FALSE) -> 32.43 | H181: 0.4144 | I181: 13.438992 | K181: TRUE
A182: C | B182: SINAPI | C182: 3780 | D182: =VLOOKUP(C182,'Ins SINAPI AL 07-2025 Onerado'!$B$11:$F$9692,2,FALSE) -> LUMINARIA DE SOBREPOR EM CHAPA DE ACO PARA 1 LAMPADA FLUORESCENTE DE *36* W, ALETADA, COMPLETA (LAMPADA E REATOR INCLUSOS) | E182: Material | F182: UN | G182: =G134 -> 102.9 | H182: 1 | I182: 102.9 | K182: TRUE
A183: C | B183: SINAPI | C183: 98445 | D183: =VLOOKUP(C183,'Comp SINAPI AL 07-2025 Onerado'!$B$11:$F$9696,2,FALSE) -> PAREDE DE MADEIRA COMPENSADA PARA CONSTRUÇÃO TEMPORÁRIA EM CHAPA SIMPLES, EXTERNA, COM ÁREA LÍQUIDA MAIOR OU IGUAL A 6 M², COM VÃO. AF_03/2024 | E183: CANT - CANTEIRO DE OBRAS | F183: m² | G183: =VLOOKUP(C183,'Comp SINAPI AL 07-2025 Onerado'!$B$11:$F$9696,4,FALSE) -> 129.4 | H183: 0.2264 | I183: 29.29616 | K183: TRUE
A184: C | B184: SINAPI | C184: 98441 | D184: =VLOOKUP(C184,'Comp SINAPI AL 07-2025 Onerado'!$B$11:$F$9696,2,FALSE) -> PAREDE DE MADEIRA COMPENSADA PARA CONSTRUÇÃO TEMPORÁRIA EM CHAPA SIMPLES, EXTERNA, SEM VÃO. AF_03/2024 | E184: CANT - CANTEIRO DE OBRAS | F184: m² | G184: =VLOOKUP(C184,'Comp SINAPI AL 07-2025 Onerado'!$B$11:$F$9696,4,FALSE) -> 111.79 | H184: 0.1449 | I184: 16.198371 | K184: TRUE
A185: C | B185: SINAPI | C185: 98446 | D185: =VLOOKUP(C185,'Comp SINAPI AL 07-2025 Onerado'!$B$11:$F$9696,2,FALSE) -> PAREDE DE MADEIRA COMPENSADA PARA CONSTRUÇÃO TEMPORÁRIA EM CHAPA SIMPLES, EXTERNA, COM ÁREA LÍQUIDA MENOR QUE 6 M², COM VÃO. AF_03/2024 | E185: CANT - CANTEIRO DE OBRAS | F185: m² | G185: =VLOOKUP(C185,'Comp SINAPI AL 07-2025 Onerado'!$B$11:$F$9696,4,FALSE) -> 160.99 | H185: 0.1765 | I185: 28.414735 | K185: TRUE
A186: C | B186: SINAPI | C186: 98441 | D186: =VLOOKUP(C186,'Comp SINAPI AL 07-2025 Onerado'!$B$11:$F$9696,2,FALSE) -> PAREDE DE MADEIRA COMPENSADA PARA CONSTRUÇÃO TEMPORÁRIA EM CHAPA SIMPLES, EXTERNA, SEM VÃO. AF_03/2024 | E186: CANT - CANTEIRO DE OBRAS | F186: m² | G186: =VLOOKUP(C186,'Comp SINAPI AL 07-2025 Onerado'!$B$11:$F$9696,4,FALSE) -> 111.79 | H186: 0.1668 | I186: 18.646572 | K186: TRUE
A187: C | B187: SINAPI | C187: 88489 | D187: =VLOOKUP(C187,'Comp SINAPI AL 07-2025 Onerado'!$B$11:$F$9696,2,FALSE) -> PINTURA LÁTEX ACRÍLICA PREMIUM, APLICAÇÃO MANUAL EM PAREDES, DUAS DEMÃOS. AF_04/2023 | E187: PINT - PINTURAS | F187: m² | G187: =VLOOKUP(C187,'Comp SINAPI AL 07-2025 Onerado'!$B$11:$F$9696,4,FALSE) -> 13.26 | H187: 1.4293 | I187: 18.952518 | K187: TRUE
A188: C | B188: SINAPI | C188: 89957 | D188: PONTO DE CONSUMO TERMINAL DE ÁGUA FRIA (SUBRAMAL) COM TUBULAÇÃO DE PVC, DN 25 MM, INSTALADO EM RAMAL DE ÁGUA, INCLUSOS RASGO E CHUMBAMENTO EM ALVENARIA. AF_12/2014 ATUALIZADA | E188: INHI - INSTALAÇÕES HIDROS SANITÁRIAS | F188: UN | G188: =SUM(I189:I194) -> 147.6734 | H188: 0.0537 | I188: 7.93006158 | K188: TRUE
A189: C | B189: SINAPI | C189: 90466 | D189: =VLOOKUP(C189,'Comp SINAPI AL 07-2025 Onerado'!$B$11:$F$9696,2,FALSE) -> CHUMBAMENTO LINEAR EM ALVENARIA PARA RAMAIS/DISTRIBUIÇÃO DE INSTALAÇÕES HIDRÁULICAS COM DIÂMETROS MENORES OU IGUAIS A 40 MM. AF_09/2023 | E189: INHI - INSTALAÇÕES HIDROS SANITÁRIAS | F189: M | G189: =VLOOKUP(C189,'Comp SINAPI AL 07-2025 Onerado'!$B$11:$F$9696,4,FALSE) -> 16.7 | H189: 2.14 | I189: 35.738 | K189: TRUE
A190: C | B190: SINAPI | C190: 89366 | D190: =VLOOKUP(C190,'Comp SINAPI AL 07-2025 Onerado'!$B$11:$F$9696,2,FALSE) -> JOELHO 90 GRAUS COM BUCHA DE LATÃO, PVC, SOLDÁVEL, DN 25MM, X 3/4 INSTALADO EM RAMAL OU SUB-RAMAL DE ÁGUA - FORNECIMENTO E INSTALAÇÃO. AF_06/2022 | E190: INHI - INSTALAÇÕES HIDROS SANITÁRIAS | F190: UN | G190: =VLOOKUP(C190,'Comp SINAPI AL 07-2025 Onerado'!$B$11:$F$9696,4,FALSE) -> 16.65 | H190: 1 | I190: 16.65 | K190: TRUE
A191: C | B191: SINAPI | C191: 89362 | D191: =VLOOKUP(C191,'Comp SINAPI AL 07-2025 Onerado'!$B$11:$F$9696,2,FALSE) -> JOELHO 90 GRAUS, PVC, SOLDÁVEL, DN 25MM, INSTALADO EM RAMAL OU SUB-RAMAL DE ÁGUA - FORNECIMENTO E INSTALAÇÃO. AF_06/2022 | E191: INHI - INSTALAÇÕES HIDROS SANITÁRIAS | F191: UN | G191: =VLOOKUP(C191,'Comp SINAPI AL 07-2025 Onerado'!$B$11:$F$9696,4,FALSE) -> 9.72 | H191: 1.18 | I191: 11.4696 | K191: TRUE
A192: C | B192: SINAPI | C192: 90443 | D192: =VLOOKUP(C192,'Comp SINAPI AL 07-2025 Onerado'!$B$11:$F$9696,2,FALSE) -> RASGO LINEAR MANUAL EM ALVENARIA, PARA RAMAIS/ DISTRIBUIÇÃO DE INSTALAÇÕES HIDRÁULICAS, DIÂMETROS MENORES OU IGUAIS A 40 MM. AF_09/2023 | E192: INHI - INSTALAÇÕES HIDROS SANITÁRIAS | F192: M | G192: =VLOOKUP(C192,'Comp SINAPI AL 07-2025 Onerado'!$B$11:$F$9696,4,FALSE) -> 8.77 | H192: 2.14 | I192: 18.7678 | K192: TRUE
A193: C | B193: SINAPI | C193: 89395 | D193: =VLOOKUP(C193,'Comp SINAPI AL 07-2025 Onerado'!$B$11:$F$9696,2,FALSE) -> TE, PVC, SOLDÁVEL, DN 25MM, INSTALADO EM RAMAL OU SUB-RAMAL DE ÁGUA - FORNECIMENTO E INSTALAÇÃO. AF_06/2022 | E193: INHI - INSTALAÇÕES HIDROS SANITÁRIAS | F193: UN | G193: =VLOOKUP(C193,'Comp SINAPI AL 07-2025 Onerado'!$B$11:$F$9696,4,FALSE) -> 13.36 | H193: 0.89 | I193: 11.8904 | K193: TRUE
A194: C | B194: SINAPI | C194: 89356 | D194: =VLOOKUP(C194,'Comp SINAPI AL 07-2025 Onerado'!$B$11:$F$9696,2,FALSE) -> TUBO, PVC, SOLDÁVEL, DE 25MM, INSTALADO EM RAMAL OU SUB-RAMAL DE ÁGUA - FORNECIMENTO E INSTALAÇÃO. AF_06/2022 | E194: INHI - INSTALAÇÕES HIDROS SANITÁRIAS | F194: M | G194: =VLOOKUP(C194,'Comp SINAPI AL 07-2025 Onerado'!$B$11:$F$9696,4,FALSE) -> 24.84 | H194: 2.14 | I194: 53.1576 | K194: TRUE
A195: C | B195: SINAPI | C195: 90822 | D195: =VLOOKUP(C195,'Comp SINAPI AL 07-2025 Onerado'!$B$11:$F$9696,2,FALSE) -> PORTA DE MADEIRA PARA PINTURA, SEMI-OCA (LEVE OU MÉDIA), 80X210CM, ESPESSURA DE 3,5CM, INCLUSO DOBRADIÇAS - FORNECIMENTO E INSTALAÇÃO. AF_12/2019 | E195: ESQV - ESQUADRIAS/FERRAGENS/VIDROS | F195: UN | G195: =VLOOKUP(C195,'Comp SINAPI AL 07-2025 Onerado'!$B$11:$F$9696,4,FALSE) -> 334.67 | H195: 0.0268 | I195: 8.969156 | K195: TRUE
A196: C | B196: SINAPI | C196: 101876 | D196: =VLOOKUP(C196,'Comp SINAPI AL 07-2025 Onerado'!$B$11:$F$9696,2,FALSE) -> QUADRO DE DISTRIBUIÇÃO DE ENERGIA EM PVC, DE EMBUTIR, SEM BARRAMENTO, PARA 6 DISJUNTORES - FORNECIMENTO E INSTALAÇÃO. AF_07/2025 | E196: INEL - INSTALAÇÃO ELÉTRICA/ELETRIFICAÇÃO E ILUMINAÇÃO EXTERNA | F196: UN | G196: =VLOOKUP(C196,'Comp SINAPI AL 07-2025 Onerado'!$B$11:$F$9696,4,FALSE) -> 119.69 | H196: 0.0268 | I196: 3.207692 | K196: TRUE
A197: C | B197: SINAPI | C197: 93382 | D197: =VLOOKUP(C197,'Comp SINAPI AL 07-2025 Onerado'!$B$11:$F$9696,2,FALSE) -> REATERRO MANUAL DE VALAS, COM COMPACTADOR DE SOLOS DE PERCUSSÃO. AF_08/2023 | E197: MOVT - MOVIMENTO DE TERRA | F197: m³ | G197: =VLOOKUP(C197,'Comp SINAPI AL 07-2025 Onerado'!$B$11:$F$9696,4,FALSE) -> 24.78 | H197: 0.01 | I197: 0.2478 | K197: TRUE
A198: C | B198: SINAPI | C198: 94210 | D198: =VLOOKUP(C198,'Comp SINAPI AL 07-2025 Onerado'!$B$11:$F$9696,2,FALSE) -> TELHAMENTO COM TELHA ONDULADA DE FIBROCIMENTO E = 6 MM, COM RECOBRIMENTO LATERAL DE 1 1/4 DE ONDA PARA TELHADO COM INCLINAÇÃO MÁXIMA DE 10°, COM ATÉ 2 ÁGUAS, INCLUSO IÇAMENTO. AF_07/2019 | E198: COBE - COBERTURA | F198: m² | G198: =VLOOKUP(C198,'Comp SINAPI AL 07-2025 Onerado'!$B$11:$F$9696,4,FALSE) -> 67.22 | H198: 1.451 | I198: 97.53622 | K198: TRUE
A199: C | B199: SINAPI | C199: 92000 | D199: =VLOOKUP(C199,'Comp SINAPI AL 07-2025 Onerado'!$B$11:$F$9696,2,FALSE) -> TOMADA BAIXA DE EMBUTIR (1 MÓDULO), 2P+T 10 A, INCLUINDO SUPORTE E PLACA - FORNECIMENTO E INSTALAÇÃO. AF_03/2023 | E199: INEL - INSTALAÇÃO ELÉTRICA/ELETRIFICAÇÃO E ILUMINAÇÃO EXTERNA | F199: UN | G199: =VLOOKUP(C199,'Comp SINAPI AL 07-2025 Onerado'!$B$11:$F$9696,4,FALSE) -> 38.72 | H199: 0.0268 | I199: 1.037696 | K199: TRUE
A200: C | B200: SINAPI | C200: 92008 | D200: =VLOOKUP(C200,'Comp SINAPI AL 07-2025 Onerado'!$B$11:$F$9696,2,FALSE) -> TOMADA BAIXA DE EMBUTIR (2 MÓDULOS), 2P+T 10 A, INCLUINDO SUPORTE E PLACA - FORNECIMENTO E INSTALAÇÃO. AF_03/2023 | E200: INEL - INSTALAÇÃO ELÉTRICA/ELETRIFICAÇÃO E ILUMINAÇÃO EXTERNA | F200: UN | G200: =VLOOKUP(C200,'Comp SINAPI AL 07-2025 Onerado'!$B$11:$F$9696,4,FALSE) -> 60.3 | H200: 0.1342 | I200: 8.09226 | K200: TRUE
A201: C | B201: SINAPI | C201: 92543 | D201: =VLOOKUP(C201,'Comp SINAPI AL 07-2025 Onerado'!$B$11:$F$9696,2,FALSE) -> TRAMA DE MADEIRA COMPOSTA POR TERÇAS PARA TELHADOS DE ATÉ 2 ÁGUAS PARA TELHA ONDULADA DE FIBROCIMENTO, METÁLICA, PLÁSTICA OU TERMOACÚSTICA, INCLUSO TRANSPORTE VERTICAL. AF_07/2019 | E201: COBE - COBERTURA | F201: m² | G201: =VLOOKUP(C201,'Comp SINAPI AL 07-2025 Onerado'!$B$11:$F$9696,4,FALSE) -> 18.55 | H201: 1.451 | I201: 26.91605 | K201: TRUE
A202: C | B202: SINAPI | C202: 89714 | D202: =VLOOKUP(C202,'Comp SINAPI AL 07-2025 Onerado'!$B$11:$F$9696,2,FALSE) -> TUBO PVC, SERIE NORMAL, ESGOTO PREDIAL, DN 100 MM, FORNECIDO E INSTALADO EM RAMAL DE DESCARGA OU RAMAL DE ESGOTO SANITÁRIO. AF_08/2022 | E202: INHI - INSTALAÇÕES HIDROS SANITÁRIAS | F202: M | G202: =VLOOKUP(C202,'Comp SINAPI AL 07-2025 Onerado'!$B$11:$F$9696,4,FALSE) -> 39.1 | H202: 0.1423 | I202: 5.56393 | K202: TRUE
A203: C | B203: SINAPI | C203: 89711 | D203: =VLOOKUP(C203,'Comp SINAPI AL 07-2025 Onerado'!$B$11:$F$9696,2,FALSE) -> TUBO PVC, SERIE NORMAL, ESGOTO PREDIAL, DN 40 MM, FORNECIDO E INSTALADO EM RAMAL DE DESCARGA OU RAMAL DE ESGOTO SANITÁRIO. AF_08/2022 | E203: INHI - INSTALAÇÕES HIDROS SANITÁRIAS | F203: M | G203: =VLOOKUP(C203,'Comp SINAPI AL 07-2025 Onerado'!$B$11:$F$9696,4,FALSE) -> 22.33 | H203: 0.0886 | I203: 1.978438 | K203: TRUE
... 5 more rows

Sheet Cotação
A1: Ministério da Integração e do Desenvolvimento Regional
A2: Companhia de Desenvolvimento dos Vales do São Francisco e do Parnaíba
A4: ITEM | B4: EMPRESA | G4: ORÇADO POR | H4: DESCRIÇÃO / OBSERVAÇÃO | I4: UNID | J4: QUANT | K4: LINK OU LOCAL DO ARQUIVO | L4: VALOR
B5: DATA | C5: EMPRESA / CNPJ | D5: RESPONSÁVEL | E5: ENDEREÇO | F5: CONTATO | L5: MAT | M5: MDO | N5: TRANSPORTE | O5: TOTAL
A6: 1 | B6: 2025-07-31 | C6: POLIMEDIÇÃO COMERCIAL | D6: Preço na loja online | E6: R. Arlete, 151 - Jardim Penha - São Paulo - SP | F6: Tel: (11) 4328-3003 WhatsApp: (11) 98575-6343 polimedicao@gmail.com | G6: Murilo | H6: Régua Fluviométrica-linimétrica/alumínio 2x70x1000 Mm ( Ana) | I6: un | J6: 1 | K6: https://produto.mercadolivre.com.br/MLB-2779894267-regua-fluviometrica-linimetricaaluminio-2x70x1000-mm-ana-_JM?searchVariation=179904169563#polycard_client=search-nordic&searchVariation=179904169563&position=14&search_layout=stack&type=item&tracking_id=fc659489-e61e-4c1e-9f07-18621b543351 | L6: 134.96 | O6: =SUM(L6:N6) -> 134.96
A7: 2 | B7: 2025-10-07 | C7: Gravametal | D7: Preço na loja online | E7: Rua Uniflor, 1012 - Emiliano Perneta Pinhais - Paraná - CEP: 83324-227 | F7: ☎ (41) 3403-0144 ✆ (41) 99672-9692 ✉ gravametal@gmail.com | G7: Murilo | H7: Régua linimétrica em alumínio 2 X 70 X 1000MM | I7: un | J7: 1 | K7: https://www.gravametal.com.br/product-page/r%C3%A9gua-linim%C3%A9trica-fluviom%C3%A9trica-1000x70x2mm | L7: 209.9 | O7: =SUM(L7:N7) -> 209.9
A8: 3 | B8: 2025-05-16 | C8: Dualbase | D8: Consulta via email | E8: Av. Gentil Reinaldo Cordioli, 157 - CEP 88133-500 - Palhoça/SC | F8: Tel: (48) 3342 5202 adriano@dualbase.com.br | G8: JUL/2025 - SICRO3 | H8: Régua linimétrica em alumínio 2 X 70 X 1000MM | I8: un | J8: 1 | K8: www.dualbase.com.br | L8: 185 | O8: =SUM(L8:N8) -> 185
N9: Média | O9: =AVERAGE(O6:O8) -> 176.62
N10: Mediana | O10: =MEDIAN(O6:O8) -> 185
N11: Menor | O11: =SMALL(O9:O10,1) -> 176.62

Sheet CPU HOSPEDAGEM
B2: Engenharia Consultiva da Codevasf
B3: CPU - HOSPEDAGEM EQUIPE DE CAMPO (4 PESSOAS/MÊS) | D3: Código/Referencia
B4: ALUGUEL | C4: 3074.56 | D4: F020003334/EMBASA insumo
B5: Aquisição de Mobiliário | C5: =41.81*C16 -> 167.24 | D5: B8954/DNIT
B6: Material de limpeza e diarista | C6: =131.08+(123*8) -> 1115.08 | D6: 10563/ORSE - E200300131/EMBASA
B7: 2025-10-07 | C7: 2975.61 | D7: 41096/SINAPI
B8: Energia | C8: 180 | D8: 10555/ORSE | G8: JUL/2025 - SICRO3
B9: Água | C9: 394.99 | D9: 10554/ORSE
B10: telefone/Internet | C10: =154.99+89 -> 243.99 | D10: 10557/10558/ORSE
B11: IPTU (mês) | C11: =(C4*0.5)/12 -> 128.1066667
B13: Custo Mensal: | C13: =SUM(C4:C12) -> 8279.576667
B14: Custo Mensal por pessoa: | C14: =C13/C16 -> 2069.894167
B15: Custo diário por pessoa: | C15: =C14/22 -> 94.08609848
B16: número de pessoas: | C16: 4
B17: Alimentação: | C17: 0 | D17: Tabela Diária Codevasf 2025
B19: Diária Total (alimentação + hospedagem): | C19: =C15+C17 -> 94.08609848

Sheet CPU-VEICULO_Serviços
A5: Composição de Preços de Locação de Veículo tipo pick-up | D5: Composição de Preços de Locação de Veículo tipo pick-up | J5: Composição de Preços de Locação de Veículo tipo pick-up | U5: Composição de Preços de Locação de Veículo tipo pick-up | AF5: Composição de Preços de Locação de Veículo tipo pick-up
B6: Data de atualização: | C6: 2025-01-22 | E6: CV | F6: Média | G6: Mediana | K6: CV | L6: Média | M6: Mediana | V6: CV | W6: Média | X6: Mediana
A7: CODEVASF | E7: =_xlfn.STDEV.S(E10:H10)/AVERAGE(E10:H10) -> 0.09461804749 | F7: =AVERAGE(E10:H10) -> 200477 | G7: =MEDIAN(E10:H10) -> 205565.5 | K7: =_xlfn.STDEV.S(L9:S9)/AVERAGE(L9:S9) -> 0.2049193683 | L7: =AVERAGE(L9:S9) -> 34.54857143 | M7: =MEDIAN(L9:S9) -> 30.91 | V7: =_xlfn.STDEV.S(W9:AD9)/AVERAGE(W9:AD9) -> 0.1241023561 | W7: =AVERAGE(W9:AD9) -> 499.0190625 | X7: =MEDIAN(W9:AD9) -> 499.45
A8: OBS: Preço sem BDI e sem motorista BDI= | E8: Preço FIPE | J8: PRODUTO | K8: MENOR (MÉDIA, MEDIANA) | L8: COT. 1 | M8: COT. 2 | N8: COT. 3 | O8: COT. 4 | P8: COT. 5 | Q8: COT. 6 | R8: COT. 7 | S8: COT. 8 | U8: PRODUTO | V8: MENOR (MÉDIA, MEDIANA) | W8: COT. 1 | X8: COT. 2 | Y8: COT. 3 | Z8: COT. 4 | AA8: COT. 5 | AB8: COT. 6 | AC8: COT. 7 | AD8: COT. 8
A9: Veículo para serviço tipo pick-up, cabine dupla - 2.0 16V 4x4 diesel Aut. | E9: Toro Ultra 2.0 16V 4x4 TB Diesel Aut. | F9: Toro Freedom 2.0 16V 4x4 TB Diesel Aut. | G9: Toro Volcano 2.0 16V 4x4 TB Diesel Aut. | H9: Toro Ranch 2.0 16V 4x4 TB Diesel Aut. | J9: LUBRIFICANTE 5W30 | K9: =SMALL(L7:M7,1) -> 30.91 | L9: 33.33 | M9: 26.9 | N9: 30.9 | O9: 30.9 | P9: 30.91 | Q9: 46 | R9: 42.9 | U9: Pneu 225/65 R17 | V9: =SMALL(W7:X7,1) -> 499.0190625 | W9: 499 | X9: 479.9 | Y9: 565.25 | Z9: 393.38 | AA9: 449.9 | AB9: =2059.44/4 -> 514.86 | AC9: =2359.85/4 -> 589.9625 | AD9: 499.9
B10: Custo Mensal (R$): | C10: =C51 -> 3670.855853 | E10: 215525 | F10: 175252 | G10: 196485 | H10: 214646
B11: Custo Diária (R$): | C11: =C10/22 -> 166.8570842
B12: Custo Horário (R$): | C12: =C10/176 -> 20.85713553
A13: A | B13: Depreciação mensal do equipamento
A14: A1 | B14: Preço de Aquisição | C14: =SMALL(F7:G7,1) -> 200477
A15: A2 | B15: Tempo previsto de vida útil (meses) | C15: 36
A16: A3 | B16: Previsão de recup. Na venda do bem usado | C16: 0.7
A17: A4 | B17: Custo mensal [A1-(A3xA1)]/A2 | C17: =(C14-(C16*C14))/C15 -> 1670.641667
A18: B | B18: Juros pelo Capital empregado
A19: B1 | B19: Taxa mensal de Juros * | C19: =POWER(1+C56,1/12)-1 -> 0.01171491692
A20: B2 | B20: Juros s/depreciação/aluguel (B1xA4) | C20: =C19*C17 -> 19.57142833
A21: C | B21: Conservação e manutenção ** | C21: 0.75
A22: C1 | B22: Taxa de gastos s/a deprec. Inc. seguros (%) | C22: =C21 -> 0.75
A23: C2 | B23: Incidência mensal (C1xA4) | C23: =C22*C17 -> 1252.98125
A24: D | B24: Combustível | AF24: PREÇO DO DIESEL | AG24: 6.06
A25: D1 | B25: Média mensal de quilômetro por veículo | C25: ='Memorial de cálculo'!H6*2*22 -> 1076.533333 | AF25: https://precos.petrobras.com.br/w/diesel/mg
A26: D2 | B26: Preço do litro de combustível | C26: =AG24 -> 6.06
A27: D3 | B27: Quilômetros rodados com um litro combustivel | C27: 10
A28: D4 | B28: Combustivel (D1/D3)*D2 | C28: =(C25/C27)*C26 -> 652.3792
A29: E | B29: Lubrificantes
A30: E1 | B30: Quilometragem do Contrato (D1*12) | C30: =C25*36 -> 38755.2
A31: E2 | B31: Franquia por troca de óleo (km) | C31: 10000
A32: E3 | B32: Preço do litro de óleo | C32: =K9 -> 30.91
A33: E4 | B33: Quantidade de litros de óleo por troca | C33: 5
A34: E5 | B34: Quantidade de dias do Contrato | C34: =365*3 -> 1095
A35: E6 | B35: Lubrificantes E = (E1*E3*E4*30)/E2*E5 | C35: =(C30*C32*C33*30)/(C31*C34) -> 16.40990729
A36: F | B36: Pneus
A37: F1 | B37: Quilometragem do Contrato | C37: =C30 -> 38755.2
A38: F2 | B38: Vida do Pneu em quilômetros | C38: 45000
A39: F3 | B39: Quantidade de pneus | C39: 5
A40: F4 | B40: Preço do Pneu | C40: =V9 -> 499.0190625
A41: F5 | B41: Quantidade de dias do contrato | C41: =C34 -> 1095
A42: F6 | B42: Pneus = (F1*F3*F4*30)/(F2*F5) | C42: =(C37*C39*C40*30)/(C38*C41) -> 58.87240052
A43: G | B43: Motorista
A44: G1 | B44: Salário com encargos sociais | C44: 0
A45: H | B45: Custo Mensal
B46: Sem Motorista (A4+B2+C2+D4+E6+F6) | C46: =C17+C20+C23+C28+C35+C42 -> 3670.855853
B47: Com Motorista (A4+B2+C2+D4+E6+F6+G1) | C47: =C17+C20+C23+C28+C35+C42+C44 -> 3670.855853
A48: I | B48: Custo Direto p/ km Rodado
B49: Sem Motorista | C49: =C46/C25 -> 3.409885917 | J49: https://www.google.com/search?q=lubrificante+5w30+1l&sa=X&sca_esv=c77f5342bf7e367a&tbm=shop&ei=e0uKZ-DcDNKp5OUPkOKj6QY&ved=0ahUKEwighoOy3_yKAxXSFLkGHRDxKG0Q4dUDCAg&uact=5&oq=lubrificante+5w30+1l&gs_lp=Egtwcm9kdWN0cy1jYyIUbHVicmlmaWNhbnRlIDV3MzAgMWxIgQ9Q4AlY8Q1wAHgAkAEAmAFroAGgA6oBAzEuM7gBA8gBAPgBAZgCAqAC0gHCAgUQABiABMICBhAAGAcYHsICBhAAGAgYHsICBhAAGBYYHpgDAIgGAZIHAzEuMaAHxQU&sclient=products-cc
B50: Com Motorista | C50: =C47/C25 -> 3.409885917
A51: J | B51: Preço cobrado sem BDI | C51: =C46*(1+C8) -> 3670.855853 | V51: https://www.google.com/search?q=pneu+225%2F65+R17&sa=X&biw=1600&bih=757&tbm=shop&sxsrf=AJOqlzWsb-d4PS1_OUOEhKmRc2RbtSg3RQ%3A1677092596279&ei=9Gb2Y9K5ENTa5OUPvLykGA&ved=0ahUKEwjSg9Pj6Kn9AhVULbkGHTweCQMQ4dUDCAg&uact=5&oq=pneu+225%2F65+R17&gs_lcp=Cgtwcm9kdWN0cy1jYxADMgsIABCABBCxAxCDATIFCAAQgAQyBwgAEIAEEAoyBwgAEIAEEAoyBwgAEIAEEAoyBwgAEIAEEAoyBwgAEIAEEAoyBQgAEIAEMgcIABCABBAKMgcIABCABBAKOgQIIxAnOgQIABBDSgQIQRgAUABYoTJgqUBoAHAAeACAAdIFiAGUKZIBDTAuMi42LjIuMi4yLjGYAQCgAQHAAQE&sclient=products-cc
A52: J1 | B52: Sem Motorista | C52: =C51 -> 3670.855853
A53: J2 | B53: Com Motorista | C53: =C47 -> 3670.855853
B55: OBSERVAÇÕES:
A56: * | B56: Calculado com base na taxa SELIC SETEMBRO/2025: | C56: 0.15
B57: Taxa de Juros Selic — Português (Brasil) (www.gov.br)
A58: ** | B58: Conservação e manutenção - é calculado com o uso de um coeficiente multiplicador "k", conforme tabela abaixo, sobre a
B59: depreciação mensal do equipamento (Item A da planilha de composição de preços). Os valores de K são fornecidos por
B60: fabricantes.
B61: Metodologia conforme a bibliografia "Como Preparar Orçamentos de Obras", 3 edição, Aldo Dórea Mattos, 2019.

Sheet CPU-VEICULO_Fiscalização
A5: Composição de Preços de Locação de Veículo tipo pick-up | D5: Composição de Preços de Locação de Veículo tipo pick-up | J5: Composição de Preços de Locação de Veículo tipo pick-up | U5: Composição de Preços de Locação de Veículo tipo pick-up | AF5: Composição de Preços de Locação de Veículo tipo pick-up
B6: Data de atualização: | C6: 2025-01-22 | E6: CV | F6: Média | G6: Mediana | K6: CV | L6: Média | M6: Mediana | V6: CV | W6: Média | X6: Mediana
A7: CODEVASF | E7: =_xlfn.STDEV.S(E10:H10)/AVERAGE(E10:H10) -> 0.09461804749 | F7: =AVERAGE(E10:H10) -> 200477 | G7: =MEDIAN(E10:H10) -> 205565.5 | K7: =_xlfn.STDEV.S(L9:S9)/AVERAGE(L9:S9) -> 0.2049193683 | L7: =AVERAGE(L9:S9) -> 34.54857143 | M7: =MEDIAN(L9:S9) -> 30.91 | V7: =_xlfn.STDEV.S(W9:AD9)/AVERAGE(W9:AD9) -> 0.1241023561 | W7: =AVERAGE(W9:AD9) -> 499.0190625 | X7: =MEDIAN(W9:AD9) -> 499.45
A8: OBS: Preço sem BDI e sem motorista BDI= | E8: Preço FIPE | J8: PRODUTO | K8: MENOR (MÉDIA, MEDIANA) | L8: COT. 1 | M8: COT. 2 | N8: COT. 3 | O8: COT. 4 | P8: COT. 5 | Q8: COT. 6 | R8: COT. 7 | S8: COT. 8 | U8: PRODUTO | V8: MENOR (MÉDIA, MEDIANA) | W8: COT. 1 | X8: COT. 2 | Y8: COT. 3 | Z8: COT. 4 | AA8: COT. 5 | AB8: COT. 6 | AC8: COT. 7 | AD8: COT. 8
A9: Veículo para fiscalização tipo pick-up, cabine dupla - 2.0 16V 4x4 diesel Aut. | E9: Toro Ultra 2.0 16V 4x4 TB Diesel Aut. | F9: Toro Freedom 2.0 16V 4x4 TB Diesel Aut. | G9: Toro Volcano 2.0 16V 4x4 TB Diesel Aut. | H9: Toro Ranch 2.0 16V 4x4 TB Diesel Aut. | J9: LUBRIFICANTE 5W30 | K9: =SMALL(L7:M7,1) -> 30.91 | L9: 33.33 | M9: 26.9 | N9: 30.9 | O9: 30.9 | P9: 30.91 | Q9: 46 | R9: 42.9 | U9: Pneu 225/65 R17 | V9: =SMALL(W7:X7,1) -> 499.0190625 | W9: 499 | X9: 479.9 | Y9: 565.25 | Z9: 393.38 | AA9: 449.9 | AB9: =2059.44/4 -> 514.86 | AC9: =2359.85/4 -> 589.9625 | AD9: 499.9
B10: Custo Mensal (R$): | C10: =C51 -> 3398.580512 | E10: 215525 | F10: 175252 | G10: 196485 | H10: 214646
B11: Custo Diária (R$): | C11: =C10/22 -> 154.4809324
B12: Custo Horário (R$): | C12: =C10/176 -> 19.31011655
A13: A | B13: Depreciação mensal do equipamento
A14: A1 | B14: Preço de Aquisição | C14: =SMALL(F7:G7,1) -> 200477
A15: A2 | B15: Tempo previsto de vida útil (meses) | C15: 36
A16: A3 | B16: Previsão de recup. Na venda do bem usado | C16: 0.7
A17: A4 | B17: Custo mensal [A1-(A3xA1)]/A2 | C17: =(C14-(C16*C14))/C15 -> 1670.641667
A18: B | B18: Juros pelo Capital empregado
A19: B1 | B19: Taxa mensal de Juros * | C19: =POWER(1+C56,1/12)-1 -> 0.01171491692
A20: B2 | B20: Juros s/depreciação/aluguel (B1xA4) | C20: =C19*C17 -> 19.57142833
A21: C | B21: Conservação e manutenção ** | C21: 0.75
A22: C1 | B22: Taxa de gastos s/a deprec. Inc. seguros (%) | C22: =C21 -> 0.75
A23: C2 | B23: Incidência mensal (C1xA4) | C23: =C22*C17 -> 1252.98125
A24: D | B24: Combustível | AF24: PREÇO DO DIESEL | AG24: 6.06
A25: D1 | B25: Média mensal de quilômetro por veículo | C25: ='Memorial de cálculo'!H5*2*22 -> 6512 | AF25: https://precos.petrobras.com.br/w/diesel/mg
A26: D2 | B26: Preço do litro de combustível | C26: =AG22 -> 0
A27: D3 | B27: Quilômetros rodados com um litro combustivel | C27: 10
A28: D4 | B28: Combustivel (D1/D3)*D2 | C28: =(C25/C27)*C26 -> 0
A29: E | B29: Lubrificantes
A30: E1 | B30: Quilometragem do Contrato (D1*12) | C30: =C25*36 -> 234432
A31: E2 | B31: Franquia por troca de óleo (km) | C31: 10000
A32: E3 | B32: Preço do litro de óleo | C32: =K9 -> 30.91
A33: E4 | B33: Quantidade de litros de óleo por troca | C33: 5
A34: E5 | B34: Quantidade de dias do Contrato | C34: =365*3 -> 1095
A35: E6 | B35: Lubrificantes E = (E1*E3*E4*30)/E2*E5 | C35: =(C30*C32*C33*30)/(C31*C34) -> 99.26428932
A36: F | B36: Pneus
A37: F1 | B37: Quilometragem do Contrato | C37: =C30 -> 234432
A38: F2 | B38: Vida do Pneu em quilômetros | C38: 45000
A39: F3 | B39: Quantidade de pneus | C39: 5
A40: F4 | B40: Preço do Pneu | C40: =V9 -> 499.0190625
A41: F5 | B41: Quantidade de dias do contrato | C41: =C34 -> 1095
A42: F6 | B42: Pneus = (F1*F3*F4*30)/(F2*F5) | C42: =(C37*C39*C40*30)/(C38*C41) -> 356.1218778
A43: G | B43: Motorista
A44: G1 | B44: Salário com encargos sociais | C44: 0
A45: H | B45: Custo Mensal
B46: Sem Motorista (A4+B2+C2+D4+E6+F6) | C46: =C17+C20+C23+C28+C35+C42 -> 3398.580512
B47: Com Motorista (A4+B2+C2+D4+E6+F6+G1) | C47: =C17+C20+C23+C28+C35+C42+C44 -> 3398.580512
A48: I | B48: Custo Direto p/ km Rodado
B49: Sem Motorista | C49: =C46/C25 -> 0.5218950418
B50: Com Motorista | C50: =C47/C25 -> 0.5218950418
A51: J | B51: Preço cobrado sem BDI | C51: =C46*(1+C8) -> 3398.580512
A52: J1 | B52: Sem Motorista | C52: =C51 -> 3398.580512
A53: J2 | B53: Com Motorista | C53: =C47 -> 3398.580512 | J53: https://www.google.com/search?q=lubrificante+5w30+1l&sa=X&sca_esv=c77f5342bf7e367a&tbm=shop&ei=e0uKZ-DcDNKp5OUPkOKj6QY&ved=0ahUKEwighoOy3_yKAxXSFLkGHRDxKG0Q4dUDCAg&uact=5&oq=lubrificante+5w30+1l&gs_lp=Egtwcm9kdWN0cy1jYyIUbHVicmlmaWNhbnRlIDV3MzAgMWxIgQ9Q4AlY8Q1wAHgAkAEAmAFroAGgA6oBAzEuM7gBA8gBAPgBAZgCAqAC0gHCAgUQABiABMICBhAAGAcYHsICBhAAGAgYHsICBhAAGBYYHpgDAIgGAZIHAzEuMaAHxQU&sclient=products-cc | U53: https://www.google.com/search?q=pneu+225%2F65+R17&sa=X&biw=1600&bih=757&tbm=shop&sxsrf=AJOqlzWsb-d4PS1_OUOEhKmRc2RbtSg3RQ%3A1677092596279&ei=9Gb2Y9K5ENTa5OUPvLykGA&ved=0ahUKEwjSg9Pj6Kn9AhVULbkGHTweCQMQ4dUDCAg&uact=5&oq=pneu+225%2F65+R17&gs_lcp=Cgtwcm9kdWN0cy1jYxADMgsIABCABBCxAxCDATIFCAAQgAQyBwgAEIAEEAoyBwgAEIAEEAoyBwgAEIAEEAoyBwgAEIAEEAoyBwgAEIAEEAoyBQgAEIAEMgcIABCABBAKMgcIABCABBAKOgQIIxAnOgQIABBDSgQIQRgAUABYoTJgqUBoAHAAeACAAdIFiAGUKZIBDTAuMi42LjIuMi4yLjGYAQCgAQHAAQE&sclient=products-cc
B55: OBSERVAÇÕES:
A56: * | B56: Calculado com base na taxa SELIC SETEMBRO/2025: | C56: 0.15
B57: Taxa de Juros Selic — Português (Brasil) (www.gov.br)
A58: ** | B58: Conservação e manutenção - é calculado com o uso de um coeficiente multiplicador "k", conforme tabela abaixo, sobre a
B59: depreciação mensal do equipamento (Item A da planilha de composição de preços). Os valores de K são fornecidos por
B60: fabricantes.
B61: Metodologia conforme a bibliografia "Como Preparar Orçamentos de Obras", 3 edição, Aldo Dórea Mattos, 2019.

Sheet Memorial de cálculo
A1: Ministério da Integração e do Desenvolvimento Regional
A2: Companhia de desenvolvimento dos Vales do São Francisco e do Parnaíba | I2: Quantitativos por Barragem
I3: ='MARCADO DOS PEREIRAS'!B9 -> Marcado dos Pereiras | J3: ='MARCADO GRANDE'!B9 -> Marcado Grande | K3: =ITAPICURU!B9 -> Itapicuru
A4: MEMORIAL DE CÁLCULO | I4: Arapiraca | J4: Arapiraca | K4: Arapiraca | L4: Município polo mais próximo da barragem
A5: ='MARCADO DOS PEREIRAS'!A5 -> OBRA: | B5: =Resumo!B5 -> Contratação de empresa para execução de manutenção e recuperação nas barragens de Itapicuru, Marcado dos Pereiras e Marcado Grande no estado de Alagoas. | D5: DESLOCAMENTO -SR para Barragem (km): | H5: =AVERAGE(I5:K5) -> 148 | I5: 148 | J5: 149 | K5: 147
A6: ='MARCADO DOS PEREIRAS'!A6 -> LOCAL: | B6: =Resumo!B6 -> Barragens de Alagoas | D6: DESLOCAMENTO - Cidade mais próxima para Barragem (km): | H6: =AVERAGE(I6:K6) -> 24.46666667 | I6: 24.7 | J6: 25.7 | K6: 23
A7: ='MARCADO DOS PEREIRAS'!A7 -> DATA BASE: | B7: 2025-10-07 | D7: VIA URBANA PAVIMENTADA - Cidade mais próxima para Barragem (km): | H7: =AVERAGE(I7:K7) -> 14.46666667 | I7: =I6-I8 -> 14.7 | J7: =J6-J8 -> 15.7 | K7: =K6-K8 -> 13
A8: ='MARCADO DOS PEREIRAS'!A8 -> PRAZO: | B8: =Resumo!B8 -> 150 dias | D8: REVESTIMENTO PRIMÁRIO - Cidade mais próxima para Barragem (km): | H8: =AVERAGE(I8:K8) -> 10 | I8: 10 | J8: 10 | K8: 10
A9: ITEM | B9: DESCRIÇÃO | C9: UNID. | D9: PARÂMETRO 1 | E9: PARÂMETRO 2 | F9: PARÂMETRO 3 | G9: PARÂMETRO 4 | H9: TOTAL
A11: =CPU!B10 -> CPU.01 | B11: =VLOOKUP(A11,CPU!$B$10:$G$5142,2,0) -> Administração Local | C11: =VLOOKUP(A11,CPU!$B$10:$G$5142,3,0) -> mês | D11: QUANT.PESSOAS | E11: HORAS DIÁRIA | F11: DIAS TRABALHADOS NO MÊS | G11: MESES | H11: 3
B12: =CPU!C15 -> Engenheiro Civil De Obra Pleno Com Encargos Complementares | C12: h | D12: 1 | E12: 1.5 | F12: =4*5 -> 20 | H12: =D12*E12*F12 -> 30
B13: =CPU!C16 -> Encarregado Geral De Obras Com Encargos Complementares | C13: mês | D13: 1 | G13: 0.8 | H13: =D13*G13 -> 0.8
B14: =CPU!C17 -> VIGIA - AN | C14: h | D14: 4 | E14: 12 | F14: 15 | H14: =D14*E14*F14 -> 720
B15: A escala de trabalho 12x36 para vigias noturnos consiste em trabalhar 12 horas seguidas e folgar 36 horas
A17: =CPU!B19 -> CPU.02 | B17: =VLOOKUP(A17,CPU!$B$10:$G$5142,2,0) -> Mobilização e desmobilização de instalação do canteiro | C17: =VLOOKUP(A17,CPU!$B$10:$G$5142,3,0) -> un | H17: 1
A18: 100946 | B18: =IF(K18="ca",VLOOKUP(A18,'Comp SINAPI AL 07-2025 Onerado'!B:C,2,0),VLOOKUP(A18,'Ins SINAPI AL 07-2025 Onerado'!B:C,2,0)) -> TRANSPORTE COM CAMINHÃO CARROCERIA 9T, EM VIA URBANA EM REVESTIMENTO PRIMÁRIO (UNIDADE: TXKM). AF_07/2020 | C18: =IF(K18="ca",VLOOKUP(A18,'Comp SINAPI AL 07-2025 Onerado'!B:D,3,0),VLOOKUP(A18,'Ins SINAPI AL 07-2025 Onerado'!B:D,3,0)) -> TXKM | H18: =$C$20*$D$20*$E$20 -> 100 | I18: ca | J18: ca | K18: ca
C19: T | D19: km | E19: N. viagens
C20: 5 | D20: =H8 -> 10 | E20: 2
A22: =CPU!B27 -> CPU.03 | B22: =VLOOKUP(A22,CPU!$B$10:$G$5142,2,0) -> Execução de canteiro de obras, inclusive, limpeza, refeitório, sanitários e central de formas | C22: =VLOOKUP(A22,CPU!$B$10:$G$5142,3,0) -> m2 | H22: =SUM(H23:H25) -> 28.5
B23: Área do Refeitório Em Canteiro De Obra | C23: m2 | D23: 1 | E23: 3 | F23: 2.5 | H23: =D23*E23*F23 -> 7.5
B24: Área do Sanitário Em Canteiro De Obra | C24: m2 | D24: 1 | E24: 4.5 | F24: 2 | H24: =D24*E24*F24 -> 9
B25: Área da Central de Fôrmas Em Canteiro De Obra | C25: m2 | D25: 1 | E25: 4 | F25: 3 | H25: =D25*E25*F25 -> 12
B26: Mao de obra | C26: m2 | D26: QUANT.PESSOAS | E26: RENDIMENTO (H/M2) | F26: m2 | G26: HORAS | H26: DIAS | I26: DIAS | J26: DIAS | K26: DIAS
B27: Carpinteiro | C27: h | D27: 2 | E27: =1.1155/D27 -> 0.55775 | F27: 1 | G27: =F27*(E27) -> 0.55775 | H27: =G27/8 -> 0.06971875 | I27: =$H$22*$E$27/8 -> 1.986984375 | J27: =$H$22*$E$27/8 -> 1.986984375 | K27: =$H$22*$E$27/8 -> 1.986984375
A29: =CPU!B38 -> CPU.04 | B29: =VLOOKUP(A29,CPU!$B$10:$G$5142,2,0) -> Limpeza de vegetação | C29: =VLOOKUP(A29,CPU!$B$10:$G$5142,3,0) -> m2 | I29: ='MARCADO DOS PEREIRAS'!F27 -> 10160 | J29: ='MARCADO GRANDE'!F27 -> 10975 | K29: =ITAPICURU!F27 -> 9470
B30: Mao de obra | C30: m2 | D30: QUANT.PESSOAS | E30: RENDIMENTO (H/M2) | F30: m2 | G30: HORAS | H30: DIAS | I30: DIAS | J30: DIAS | K30: DIAS
A31: Enxada | B31: Servente | C31: h | D31: 2 | E31: =20/1000/D31 -> 0.01 | F31: 1 | G31: =F31*(E31) -> 0.01 | H31: =G31/8 -> 0.00125 | I31: =0.1*I29*$E$31/8 -> 1.27 | J31: =0.1*J29*$E$31/8 -> 1.371875 | K31: =0.1*K29*$E$31/8 -> 1.18375
A32: Roçadeira | B32: Servente | C32: h | D32: 2 | E32: =(8/(0.3*10000))/D32 -> 0.001333333333 | F32: 1 | G32: =F32*(E32) -> 0.001333333333 | H32: =G32/8 -> 0.0001666666667 | I32: =0.9*I29*$E$32/8 -> 1.524 | J32: =0.9*J29*$E$32/8 -> 1.64625 | K32: =0.9*K29*$E$32/8 -> 1.4205
B33: Rendimento 400 m² por dia por servente para roçada com enaxada e 3000 m² com roçadeira
A34: =CPU!B49 -> CPU.05 | B34: =VLOOKUP(A34,CPU!$B$10:$G$5142,2,0) -> Corte de tronco e remoção de raiz | C34: =VLOOKUP(A34,CPU!$B$10:$G$5142,3,0) -> un | I34: ='MARCADO DOS PEREIRAS'!F28 -> 20 | J34: ='MARCADO GRANDE'!F28 -> 20 | K34: =ITAPICURU!F28 -> 30
B35: Mão de obra | D35: QUANT.PESSOAS | E35: RENDIMENTO (H/un) | F35: un | G35: HORAS | H35: DIAS | I35: DIAS | J35: DIAS | K35: DIAS
B36: Servente | C36: h | D36: 2 | E36: =2.1685/D36 -> 1.08425 | F36: 1 | G36: =F36*(E36) -> 1.08425 | H36: =G36/8 -> 0.13553125 | I36: =I34*$E$36/8 -> 2.710625 | J36: =J34*$E$36/8 -> 2.710625 | K36: =K34*$E$36/8 -> 4.0659375
B37: Jardineiro | C37: h | D37: 1 | E37: =1.1535/D37 -> 1.1535 | F37: 1 | G37: =F37*(E37) -> 1.1535 | H37: =G37/8 -> 0.1441875 | I37: =I34*$E$37/8 -> 2.88375 | J37: =J34*$E$37/8 -> 2.88375 | K37: =K34*$E$37/8 -> 4.325625
A39: =CPU!B63 -> CPU.06 | B39: =VLOOKUP(A39,CPU!$B$10:$G$5142,2,0) -> Enrocamento c/ pedra de mão c/ fornecimento e assentamento | C39: =VLOOKUP(A39,CPU!$B$10:$G$5142,3,0) -> m3 | I39: ='MARCADO DOS PEREIRAS'!F49 -> 106 | J39: ='MARCADO GRANDE'!F48+'MARCADO GRANDE'!F64 -> 143
B40: Mao de obra | D40: QUANT.PESSOAS | E40: RENDIMENTO (H/M3) | F40: m3 | G40: HORAS | H40: DIAS | I40: DIAS | J40: DIAS | K40: DIAS
B41: Pedreiro | D41: 1 | E41: =0.2/D41 -> 0.2 | F41: 1 | G41: =F41*(E41) -> 0.2 | H41: =G41/8 -> 0.025 | I41: =I39*$E$41/8 -> 2.65 | J41: =J39*$E$41/8 -> 3.575 | K41: =K39*$E$41/8 -> 0
B42: Servente | D42: 1 | E42: =0.2/D42 -> 0.2 | F42: 1 | G42: =F42*(E42) -> 0.2 | H42: =G42/8 -> 0.025 | I42: =I39*$E$42/8 -> 2.65 | J42: =J39*$E$42/8 -> 3.575 | K42: =K39*$E$42/8 -> 0
A44: =CPU!B77 -> CPU.07 | B44: =VLOOKUP(A44,CPU!$B$10:$G$5142,2,0) -> Entrada para descida d’água tipo EDA 01 B | C44: =VLOOKUP(A44,CPU!$B$10:$G$5142,3,0) -> un | I44: ='MARCADO DOS PEREIRAS'!F42 -> 8 | J44: ='MARCADO GRANDE'!F41 -> 7
B45: Mao de obra | D45: QUANT.PESSOAS | E45: RENDIMENTO (H/m3) | F45: m3 | G45: HORAS | H45: DIAS | I45: DIAS | J45: DIAS | K45: DIAS
A46: escavação | B46: Servente | D46: 3 | E46: =(1/0.5)/D46 -> 0.6666666667 | F46: 0.1939 | G46: =F46*(E46) -> 0.1292666667 | H46: =G46/8 -> 0.01615833333 | I46: =$I$44*E46/8 -> 0.6666666667 | J46: =$J$44*E46/8 -> 0.5833333333 | K46: =$K$44*E46/8 -> 0
A47: apiloamento | B47: Servente | D47: 1 | E47: =(1/4.44444)/D47 -> 0.225000225 | F47: 1.9387 | G47: =F47*(E47) -> 0.4362079362 | H47: =G47/8 -> 0.05452599203 | I47: =$I$44*E47/8 -> 0.225000225 | J47: =$J$44*E47/8 -> 0.1968751969 | K47: =$K$44*E47/8 -> 0
A48: forma | B48: Ajudante de carpinteiro | D48: 1 | E48: =(0.9/1)/D48 -> 0.9 | F48: 1.8172 | G48: =F48*(E48) -> 1.63548 | H48: =G48/8 -> 0.204435 | I48: 0.9 | J48: =$J$44*E48/8 -> 0.7875 | K48: 0
A49: forma | B49: Carpinteiro | D49: 1 | E49: =(0.9/1)/D49 -> 0.9 | F49: 1.8172 | G49: =F49*(E49) -> 1.63548 | H49: =G49/8 -> 0.204435 | I49: =$I$44*E49/8 -> 0.9 | J49: =$J$44*E49/8 -> 0.7875 | K49: 0
A50: concreto | B50: Pedreiro | D50: 1 | E50: =(1/3.9289)/D50 -> 0.2545241671 | F50: 0.2746 | G50: =F50*(E50) -> 0.06989233628 | H50: =G50/8 -> 0.008736542035 | I50: =$I$44*E50/8 -> 0.2545241671 | J50: =$J$44*E50/8 -> 0.2227086462 | K50: =$K$44*E50/8 -> 0
A51: concreto | B51: Servente | D51: 3 | E51: =(9/3.9289)/D51 -> 0.7635725012 | F51: 0.2746 | G51: =F51*(E51) -> 0.2096770088 | H51: =G51/8 -> 0.0262096261 | I51: =$I$44*E51/8 -> 0.7635725012 | J51: 0.6681259386 | K51: =$K$44*E51/8 -> 0
A53: =CPU!B84 -> CPU.08 | B53: =VLOOKUP(A53,CPU!$B$10:$G$5142,2,0) -> Plantio de vegetação tipo gramínea para proteção de talude com hidrossemeadura, inclusive adubação e transporte | C53: =VLOOKUP(A53,CPU!$B$10:$G$5142,3,0) -> m2 | I53: ='MARCADO DOS PEREIRAS'!F53 -> 2115 | J53: ='MARCADO GRANDE'!F52 -> 1768 | K53: =ITAPICURU!F54 -> 2240
B54: Mao de obra | D54: QUANT.PESSOAS | E54: RENDIMENTO (H/m2) | F54: m2 | G54: HORAS | H54: DIAS | I54: DIAS | J54: DIAS | K54: DIAS
B55: Servente | D55: 3 | E55: =(8/415)/D55 -> 0.006425702811 | F55: 1 | G55: =F55*(E55) -> 0.006425702811 | H55: =G55/8 -> 0.0008032128514 | I55: =I53*$E$55/8 -> 1.698795181 | J55: =J53*$E$55/8 -> 1.420080321 | K55: =K53*$E$55/8 -> 1.799196787
A57: =CPU!B93 -> CPU.09 | B57: =VLOOKUP(A57,CPU!$B$10:$G$5142,2,0) -> Recomposição das erosões, inclusive, regularização da superfície e reaterro | C57: =VLOOKUP(A57,CPU!$B$10:$G$5142,3,0) -> m3 | I57: ='MARCADO DOS PEREIRAS'!F34 -> 10 | J57: ='MARCADO GRANDE'!F34 -> 10 | K57: =ITAPICURU!F33 -> 10
B58: Mao de obra | D58: QUANT.PESSOAS | E58: RENDIMENTO (H/M3) | F58: m3 | G58: HORAS | H58: DIAS | I58: DIAS | J58: DIAS | K58: DIAS
B59: Servente | D59: 1 | E59: =(0.012+0.0356689)/D59 -> 0.0476689 | F59: 1 | G59: =F59*(E59) -> 0.0476689 | H59: =G59/8 -> 0.0059586125 | I59: =I57*$E$59/8 -> 0.059586125 | J59: =J57*$E$59/8 -> 0.059586125 | K59: =K57*$E$59/8 -> 0.059586125
B60: Motorista | D60: 1 | E60: =(0.0228+0.0153+0.004257)/D60 -> 0.042357 | F60: 1 | G60: =F60*(E60) -> 0.042357 | H60: =G60/8 -> 0.005294625 | I60: =I57*$E$60/8 -> 0.05294625 | J60: =J57*$E$60/8 -> 0.05294625 | K60: =K57*$E$60/8 -> 0.05294625
B61: Operador de máquina | D61: 1 | E61: =(0.0096+0.0083+0.0045112+0.0104312)/D61 -> 0.0328424 | F61: 1 | G61: =F61*(E61) -> 0.0328424 | H61: =G61/8 -> 0.0041053 | I61: =I57*$E$61/8 -> 0.041053 | J61: =J57*$E$61/8 -> 0.041053 | K61: =K57*$E$61/8 -> 0.041053
B62: rolo compactador + motoniveladora
A63: =CPU!B108 -> CPU.10 | B63: =VLOOKUP(A63,CPU!$B$10:$G$5142,2,0) -> Regularização e compactação da crista | C63: =VLOOKUP(A63,CPU!$B$10:$G$5142,3,0) -> m2 | I63: ='MARCADO DOS PEREIRAS'!F39 -> 741 | J63: ='MARCADO GRANDE'!F38 -> 718
B64: Mao de obra | C64: m2 | D64: QUANT.PESSOAS | E64: RENDIMENTO (H/M2) | F64: m2 | G64: HORAS | H64: DIAS | I64: DIAS | J64: DIAS | K64: DIAS
B65: Servente | C65: h | D65: 2 | E65: =0.0086152/D65 -> 0.0043076 | F65: 1 | G65: =F65*(E65) -> 0.0043076 | H65: =G65/8 -> 0.00053845 | I65: =I63*$E$65/8 -> 0.39899145 | J65: =J63*$E$65/8 -> 0.3866071 | K65: =K63*$E$65/8 -> 0
A67: =CPU!B117 -> CPU.11 | B67: =VLOOKUP(A67,CPU!$B$10:$G$5142,2,0) -> Execução de Revestimento em BGTC com 10 cm de espessura | C67: =VLOOKUP(A67,CPU!$B$10:$G$5142,3,0) -> m3 | I67: ='MARCADO DOS PEREIRAS'!F45 -> 74 | J67: ='MARCADO GRANDE'!F44 -> 72
B68: Mao de obra | C68: m3 | D68: QUANT.PESSOAS | E68: RENDIMENTO (H/M3) | F68: m3 | G68: HORAS | H68: DIAS | I68: DIAS | J68: DIAS | K68: DIAS
B69: Servente | C69: h | D69: 1 | E69: =0.0365494/D69 -> 0.0365494 | F69: 1 | G69: =F69*(E69) -> 0.0365494 | H69: =G69/8 -> 0.004568675 | I69: =I67*$E$69/8 -> 0.33808195 | J69: =J67*$E$69/8 -> 0.3289446 | K69: =K67*$E$69/8 -> 0
A71: =CPU!B129 -> CPU.12 | B71: =VLOOKUP(A71,CPU!$B$10:$G$5142,2,0) -> Projeto geométrico | C71: =VLOOKUP(A71,CPU!$B$10:$G$5142,3,0) -> un | I71: ='MARCADO DOS PEREIRAS'!F71 -> 1 | J71: ='MARCADO GRANDE'!F74 -> 1 | K71: =ITAPICURU!F85 -> 1
B72: Mao de obra | D72: QUANT.PESSOAS | E72: RENDIMENTO (H/un) | F72: un | G72: HORAS | H72: DIAS
B73: Engenheiro Civil De Obra Junior Com Encargos Complementares | D73: 1 | E73: =CPU!E134/D73 -> 30 | F73: 1 | G73: =F73*(E73) -> 30 | H73: =G73/8 -> 3.75 | I73: =I71*$E$73/8 -> 3.75 | J73: =J71*$E$73/8 -> 3.75 | K73: =K71*$E$73/8 -> 3.75
B74: Engenheiro Civil De Obra Senior Com Encargos Complementares | D74: 1 | E74: =CPU!E135/D74 -> 20 | F74: 1 | G74: =F74*(E74) -> 20 | H74: =G74/8 -> 2.5 | I74: =I71*$E$74/8 -> 2.5 | J74: =J71*$E$74/8 -> 2.5 | K74: =K71*$E$74/8 -> 2.5
B75: Desenhista Projetista Com Encargos Complementares | D75: 1 | E75: =CPU!E136/D75 -> 60 | F75: 1 | G75: =F75*(E75) -> 60 | H75: =G75/8 -> 7.5 | I75: =I71*$E$75/8 -> 7.5 | J75: =J71*$E$75/8 -> 7.5 | K75: =K71*$E$75/8 -> 7.5
A77: =CPU!B138 -> CPU.13 | B77: =VLOOKUP(A77,CPU!$B$10:$G$5142,2,0) -> Fornecimento e Assentamento de Guia (meio-fio) Pré-fabricado, dimensões 100X15X13X30 Cm (Comprimento X Base Inferior X Base Superior X Altura) | C77: =VLOOKUP(A77,CPU!$B$10:$G$5142,3,0) -> m | I77: ='MARCADO DOS PEREIRAS'!F41 -> 453 | J77: ='MARCADO GRANDE'!F40 -> 410
B78: Mao de obra | D78: QUANT.PESSOAS | E78: RENDIMENTO (H/M) | F78: m | G78: HORAS | H78: DIAS | I78: DIAS | J78: DIAS | K78: DIAS
B79: Servente | D79: 3 | E79: =(0.2296)/D79 -> 0.07653333333 | F79: 1 | G79: =F79*(E79) -> 0.07653333333 | H79: =G79/8 -> 0.009566666667 | I79: =$I$77*E79/8 -> 4.3337 | J79: =$J$77*E79/8 -> 3.922333333 | K79: =$K$77*E79/8 -> 0
B80: Pedreiro | D80: 3 | E80: =(0.2296)/D80 -> 0.07653333333 | F80: 1 | G80: =F80*(E80) -> 0.07653333333 | H80: =G80/8 -> 0.009566666667 | I80: =$I$77*E80/8 -> 4.3337 | J80: =$J$77*E80/8 -> 3.922333333 | K80: =$K$77*E80/8 -> 0
A82: =CPU!B156 -> CPU.15 | B82: =VLOOKUP(A82,CPU!$B$10:$G$5142,2,0) -> Selagem de fissuras com resina epóxi | C82: =VLOOKUP(A82,CPU!$B$10:$G$5142,3,0) -> m | K82: =ITAPICURU!F62 -> 100
B83: Mao de obra | D83: QUANT.PESSOAS | E83: RENDIMENTO (H/kg) | F83: kg | G83: HORAS | H83: DIAS | I83: DIAS | J83: DIAS | K83: DIAS
B84: Servente | D84: 2 | E84: =(2/3.15846)/D84 -> 0.3166099935 | F84: 0.3 | G84: =F84*(E84) -> 0.09498299804 | H84: =G84/8 -> 0.01187287476 | I84: =I82*E84/8 -> 0 | J84: =J82*$E$84/8 -> 0 | K84: =K82*$E$84/8 -> 3.957624918
A86: =CPU!B174 -> CPU.17 | B86: =VLOOKUP(A86,CPU!$B$10:$G$5142,2,0) -> Injeção de nata de cimento em buracos | C86: =VLOOKUP(A86,CPU!$B$10:$G$5142,3,0) -> m3 | K86: =ITAPICURU!F35 -> 0.5
B87: Mao de obra | D87: QUANT.PESSOAS | E87: RENDIMENTO (H/m3) | F87: m3 | G87: HORAS | H87: DIAS
B88: Servente | D88: 1 | E88: =1/D88 -> 1 | F88: 1 | G88: =F88*(E88) -> 1 | H88: =G88/8 -> 0.125 | I88: =$I$86*E88/8 -> 0 | J88: =$J$86*E88/8 -> 0 | K88: =$K$86*E88/8 -> 0.0625
A90: =CPU!B183 -> CPU.18 | B90: =VLOOKUP(A90,CPU!$B$10:$G$5142,2,0) -> Recuperação com uso de argamassa | C90: =VLOOKUP(A90,CPU!$B$10:$G$5142,3,0) -> m3 | K90: =ITAPICURU!F42+ITAPICURU!F48+ITAPICURU!F64 -> 5.56
B91: Mao de obra | D91: QUANT.PESSOAS | E91: RENDIMENTO (H/m3) | F91: m3 | G91: HORAS | H91: DIAS
B92: Servente | D92: 1 | E92: =8.9/D92 -> 8.9 | F92: 1 | G92: =F92*(E92) -> 8.9 | H92: =G92/8 -> 1.1125 | I92: =$I$90*E92/8 -> 0 | J92: =$J$90*E92/8 -> 0 | K92: =$K$90*E92/8 -> 6.1855
B93: Servente | D93: 2 | E93: =16/D93 -> 8 | F93: 1 | G93: =F93*(E93) -> 8 | H93: =G93/8 -> 1 | I93: =$I$90*E93/8 -> 0 | J93: =$J$90*E93/8 -> 0 | K93: =$K$90*E93/8 -> 5.56
A95: =CPU!B193 -> CPU.19 | B95: =VLOOKUP(A95,CPU!$B$10:$G$5142,2,0) -> Régua Linimétrica Padrão “ANA”, Aço Carbono - 2 X 70 X 1000 mm (Fornecimento e Instalação) | C95: =VLOOKUP(A95,CPU!$B$10:$G$5142,3,0) -> un | I95: ='MARCADO DOS PEREIRAS'!F66 -> 14 | J95: ='MARCADO GRANDE'!F69 -> 13 | K95: =ITAPICURU!F80 -> 15
B96: Mao de obra | D96: QUANT.PESSOAS | E96: RENDIMENTO (H/m) | F96: m | G96: HORAS | H96: DIAS
B97: Topógrafo | D97: 1 | E97: =0.8/D97 -> 0.8 | F97: 1 | G97: =F97*(E97) -> 0.8 | H97: =G97/8 -> 0.1 | I97: =$I$95*E97/8 -> 1.4 | J97: =$J$95*E97/8 -> 1.3 | K97: =$K$95*E97/8 -> 1.5
B98: Servente | D98: 2 | E98: =1.6/D98 -> 0.8 | F98: 1 | G98: =F98*(E98) -> 0.8 | H98: =G98/8 -> 0.1 | I98: =$I$95*E98/8 -> 1.4 | J98: =$J$95*E98/8 -> 1.3 | K98: =$K$95*E98/8 -> 1.5
A100: =CPU!B206 -> CPU.20 | B100: =VLOOKUP(A100,CPU!$B$10:$G$5142,2,0) -> Pintura do meio-fio | C100: =VLOOKUP(A100,CPU!$B$10:$G$5142,3,0) -> m | I100: ='MARCADO DOS PEREIRAS'!F43 -> 453 | J100: ='MARCADO GRANDE'!F42 -> 410 | K100: =ITAPICURU!F43 -> 394
B101: Mao de obra | D101: QUANT.PESSOAS | E101: RENDIMENTO (H/m) | F101: m | G101: HORAS | H101: DIAS
B102: PINTOR | D102: 2 | E102: =0.037/D102 -> 0.0185 | F102: 1 | G102: =F102*(E102) -> 0.0185 | H102: =G102/8 -> 0.0023125 | I102: =$I$100*E102/8 -> 1.0475625 | J102: =$J$100*E102/8 -> 0.948125 | K102: =$K$100*E102/8 -> 0.911125
B103: SERVENTE | D103: 1 | E103: =0.016 /D103 -> 0.016 | F103: 1 | G103: =F103*(E103) -> 0.016 | H103: =G103/8 -> 0.002 | I103: =$I$100*E103/8 -> 0.906 | J103: =$J$100*E103/8 -> 0.82 | K103: =$K$100*E103/8 -> 0.788
A105: =CPU!B215 -> CPU.21 | B105: =VLOOKUP(A105,CPU!$B$10:$G$5142,2,0) -> Apicoamento da superfície | C105: =VLOOKUP(A105,CPU!$B$10:$G$5142,3,0) -> m2 | K105: =ITAPICURU!F60 -> 55
B106: Mao de obra | D106: QUANT.PESSOAS | E106: RENDIMENTO (H/m2) | F106: m | G106: HORAS | H106: DIAS
B107: PEDREIRO | D107: 1 | E107: =0.1151/D107 -> 0.1151 | F107: 1 | G107: =F107*(E107) -> 0.1151 | H107: =G107/8 -> 0.0143875 | I107: =$I$105*E107/8 -> 0 | J107: =$J$105*E107/8 -> 0 | K107: =$K$105*E107/8 -> 0.7913125
B108: SERVENTE | D108: 3 | E108: =0.3872/D108 -> 0.1290666667 | F108: 1 | G108: =F108*(E108) -> 0.1290666667 | H108: =G108/8 -> 0.01613333333 | I108: =$I$105*E108/8 -> 0 | J108: =$J$105*E108/8 -> 0 | K108: =$K$105*E108/8 -> 0.8873333333
A110: =CPU!B225 -> CPU.22 | B110: =VLOOKUP(A110,CPU!$B$10:$G$5142,2,0) -> Limpeza da superfície | C110: =VLOOKUP(A110,CPU!$B$10:$G$5142,3,0) -> m2 | K110: =ITAPICURU!F61+ITAPICURU!F68 -> 127
B111: Mao de obra | D111: QUANT.PESSOAS | E111: RENDIMENTO (H/m2) | F111: m | G111: HORAS | H111: DIAS
B112: SERVENTE | D112: 4 | E112: =0.089/D112 -> 0.02225 | F112: 1 | G112: =F112*(E112) -> 0.02225 | H112: =G112/8 -> 0.00278125 | I112: =$I$110*E112/8 -> 0 | J112: =$J$110*E112/8 -> 0 | K112: =$K$110*E112/8 -> 0.35321875
A114: =CPU!B234 -> CPU.23 | B114: =VLOOKUP(A114,CPU!$B$10:$G$5142,2,0) -> Tratamento para impermeabilização de fissuras com injeção de poliuretano | C114: =VLOOKUP(A114,CPU!$B$10:$G$5142,3,0) -> m | K114: =ITAPICURU!F63 -> 20
B115: Mao de obra | D115: QUANT.PESSOAS | E115: RENDIMENTO (H/kg) | F115: kg | G115: HORAS | H115: DIAS
B116: Servente | C116: h | D116: 2 | E116: =0.5/D116 -> 0.25 | F116: 0.8 | G116: =F116*(E116) -> 0.2 | H116: =G116/8 -> 0.025 | I116: =$I$114*E116/8 -> 0 | J116: =$J$114*E116/8 -> 0 | K116: =$K$114*E116/8 -> 0.625
A118: =CPU!B244 -> CPU.24 | B118: =VLOOKUP(A118,CPU!$B$10:$G$5142,2,0) -> Remoção de vegetação aquática | C118: =VLOOKUP(A118,CPU!$B$10:$G$5142,3,0) -> m2 | I118: ='MARCADO DOS PEREIRAS'!F30 -> 2000 | J118: ='MARCADO GRANDE'!F30 -> 2000
B119: Mao de obra | D119: QUANT.PESSOAS | E119: RENDIMENTO (H/m2) | F119: m2 | G119: HORAS | H119: DIAS
B120: Servente | C120: h | D120: 4 | E120: =0.1/D120 -> 0.025 | F120: 1 | G120: =F120*(E120) -> 0.025 | H120: =G120/8 -> 0.003125 | I120: =$I$118*E120/8 -> 6.25 | J120: =$J$118*E120/8 -> 6.25 | K120: =$K$118*E120/8 -> 0
A122: =CPU!B255 -> CPU.25 | B122: =VLOOKUP(A122,CPU!$B$10:$G$5142,2,0) -> Demolição e remoção de guias | C122: =VLOOKUP(A122,CPU!$B$10:$G$5142,3,0) -> m | I122: ='MARCADO DOS PEREIRAS'!F38 -> 150
B123: Mao de obra | D123: QUANT.PESSOAS | E123: RENDIMENTO (H/m) | F123: m | G123: HORAS | H123: DIAS
B124: Pedreiro | C124: h | D124: 1 | E124: =0.1759/D124 -> 0.1759 | F124: 1 | G124: =F124*(E124) -> 0.1759 | H124: =G124/8 -> 0.0219875 | I124: =$I$122*E124/8 -> 3.298125 | J124: =$J$122*E124/8 -> 0 | K124: =$K$122*E124/8 -> 0
B125: Servente | C125: h | D125: 1 | E125: =0.1759/D125 -> 0.1759 | F125: 1 | G125: =F125*(E125) -> 0.1759 | H125: =G125/8 -> 0.0219875 | I125: =$I$122*E125/8 -> 3.298125 | J125: =$J$122*E125/8 -> 0 | K125: =$K$122*E125/8 -> 0
A127: =CPU!B265 -> CPU.26 | B127: =VLOOKUP(A127,CPU!$B$10:$G$5142,2,0) -> Fornecimento e implantação de estaca pré-moldada de concreto armado | C127: =VLOOKUP(A127,CPU!$B$10:$G$5142,3,0) -> un | I127: ='MARCADO DOS PEREIRAS'!F59 -> 20 | J127: ='MARCADO GRANDE'!F58 -> 20 | K127: =ITAPICURU!F73 -> 20
B128: Mao de obra | D128: QUANT.PESSOAS | E128: RENDIMENTO (H/un) | F128: un | G128: HORAS | H128: DIAS
B129: Pedreiro | C129: h | D129: 2 | E129: =0.6/D129 -> 0.3 | F129: 1 | G129: =F129*(E129) -> 0.3 | H129: =G129/8 -> 0.0375 | I129: =$I$127*E129/8 -> 0.75 | J129: =$J$127*E129/8 -> 0.75 | K129: =$K$127*E129/8 -> 0.75
B130: Servente | C130: h | D130: 2 | E130: =0.6/D130 -> 0.3 | F130: 1 | G130: =F130*(E130) -> 0.3 | H130: =G130/8 -> 0.0375 | I130: =$I$127*E130/8 -> 0.75 | J130: =$J$127*E130/8 -> 0.75 | K130: =$K$127*E130/8 -> 0.75
A132: =CPU!B274 -> CPU.27 | B132: =VLOOKUP(A132,CPU!$B$10:$G$5142,2,0) -> Recuperação de arame das cercas | C132: =VLOOKUP(A132,CPU!$B$10:$G$5142,3,0) -> m | I132: ='MARCADO DOS PEREIRAS'!F61 -> 100 | J132: ='MARCADO GRANDE'!F60 -> 100 | K132: =ITAPICURU!F75 -> 100
B133: Mao de obra | D133: QUANT.PESSOAS | E133: RENDIMENTO (H/m) | F133: m | G133: HORAS | H133: DIAS
B134: Servente | C134: h | D134: 2 | E134: =(10/40)/D134 -> 0.125 | F134: 1 | G134: =F134*(E134) -> 0.125 | H134: =G134/8 -> 0.015625 | I134: =$I$132*E134/8 -> 1.5625 | J134: =$J$132*E134/8 -> 1.5625 | K134: =$K$132*E134/8 -> 1.5625
A136: =CPU!B283 -> CPU.28 | B136: =VLOOKUP(A136,CPU!$B$10:$G$5142,2,0) -> Recuperação da crista com concreto | C136: =VLOOKUP(A136,CPU!$B$10:$G$5142,3,0) -> m2 | K136: =ITAPICURU!F39 -> 610
B137: Mao de obra | D137: QUANT.PESSOAS | E137: RENDIMENTO (H/m2) | F137: m2 | G137: HORAS | H137: DIAS
B138: Pedreiro | C138: h | D138: 2 | E138: =0.1483/D138 -> 0.07415 | F138: 1 | G138: =F138*(E138) -> 0.07415 | H138: =G138/8 -> 0.00926875 | I138: =$I$136*E138/8 -> 0 | J138: =$J$136*E138/8 -> 0 | K138: =$K$136*E138/8 -> 5.6539375
B139: Servente | C139: h | D139: 3 | E139: =0.2459/D139 -> 0.08196666667 | F139: 1 | G139: =F139*(E139) -> 0.08196666667 | H139: =G139/8 -> 0.01024583333 | I139: 0 | J139: 0 | K139: 6.249958333
A141: =CPU!B292 -> CPU.29 | B141: =VLOOKUP(A141,CPU!$B$10:$G$5142,2,0) -> Limpeza de sarjeta e meio-fio | C141: =VLOOKUP(A141,CPU!$B$10:$G$5142,3,0) -> m | K141: =ITAPICURU!F41 -> 394
B142: Mao de obra | D142: QUANT.PESSOAS | E142: RENDIMENTO (H/m) | F142: m | G142: HORAS | H142: DIAS
B143: Servente | C143: h | D143: 2 | E143: =(10/300)/D143 -> 0.01666666667 | F143: 1 | G143: =F143*(E143) -> 0.01666666667 | H143: =G143/8 -> 0.002083333333 | I143: =$I$141*E143/8 -> 0 | J143: =$J$141*E143/8 -> 0 | K143: =$K$141*E143/8 -> 0.8208333333
A145: =CPU!B301 -> CPU.30 | B145: =VLOOKUP(A145,CPU!$B$10:$G$5142,2,0) -> Descida d'água de aterros tipo rápido | C145: =VLOOKUP(A145,CPU!$B$10:$G$5142,3,0) -> m | K145: =ITAPICURU!F50 -> 40
B146: Mao de obra | D146: QUANT.PESSOAS | E146: RENDIMENTO (H/m) | F146: m | G146: HORAS | H146: DIAS
B147: Armador | C147: h | D147: 1 | E147: =0.1461*0.124/D147 -> 0.0181164 | F147: 1 | G147: =F147*(E147) -> 0.0181164 | H147: =G147/8 -> 0.00226455 | I147: =$I$145*E147/8 -> 0 | J147: =$J$145*E147/8 -> 0 | K147: =$K$145*E147/8 -> 0.090582
B148: Pedreiro | C148: h | D148: 1 | E148: =0.8927*0.124/D148 -> 0.1106948 | F148: 1 | G148: =F148*(E148) -> 0.1106948 | H148: =G148/8 -> 0.01383685 | I148: =$I$145*E148/8 -> 0 | J148: =$J$145*E148/8 -> 0 | K148: =$K$145*E148/8 -> 0.553474
B149: Servente | C149: h | D149: 2 | E149: =1.7854*0.124/D149 -> 0.1106948 | F149: 1 | G149: =F149*(E149) -> 0.1106948 | H149: =G149/8 -> 0.01383685 | I149: =$I$145*E149/8 -> 0 | J149: =$J$145*E149/8 -> 0 | K149: =$K$145*E149/8 -> 0.553474
A151: =CPU!B310 -> CPU.31 | B151: =VLOOKUP(A151,CPU!$B$10:$G$5142,2,0) -> Limpeza/desobstrução de enrocamento | C151: =VLOOKUP(A151,CPU!$B$10:$G$5142,3,0) -> m2 | K151: =ITAPICURU!F29 -> 1430
B152: Mao de obra | D152: QUANT.PESSOAS | E152: RENDIMENTO (H/m2) | F152: m2 | G152: HORAS | H152: DIAS
B153: Servente | C153: h | D153: 4 | E153: =(1/6)/D153 -> 0.04166666667 | F153: 1 | G153: =F153*(E153) -> 0.04166666667 | H153: =G153/8 -> 0.005208333333 | I153: =$I$151*E153/8 -> 0 | J153: =$J$151*E153/8 -> 0 | K153: =$K$151*E153/8 -> 7.447916667
A155: =CPU!B319 -> CPU.32 | B155: =VLOOKUP(A155,CPU!$B$10:$G$5142,2,0) -> Limpeza de descida d'água | C155: =VLOOKUP(A155,CPU!$B$10:$G$5142,3,0) -> m | K155: =ITAPICURU!F47 -> 50
B156: Mao de obra | D156: QUANT.PESSOAS | E156: RENDIMENTO (H/m) | F156: m | G156: HORAS | H156: DIAS
B157: Servente | C157: h | D157: 2 | E157: =(10/150)/D157 -> 0.03333333333 | F157: 1 | G157: =F157*(E157) -> 0.03333333333 | H157: =G157/8 -> 0.004166666667 | I157: =$I$155*E157/8 -> 0 | J157: =$J$155*E157/8 -> 0 | K157: =$K$155*E157/8 -> 0.2083333333
A159: =CPU!B328 -> CPU.33 | B159: =VLOOKUP(A159,CPU!$B$10:$G$5142,2,0) -> Proteção de pé de canal de restituição em concreto ciclópico | C159: =VLOOKUP(A159,CPU!$B$10:$G$5142,3,0) -> m3 | K159: =ITAPICURU!F69 -> 11
B160: Mao de obra | D160: QUANT.PESSOAS | E160: RENDIMENTO (H/m3) | F160: m3 | G160: HORAS | H160: DIAS
B161: Pedreiro | C161: h | D161: 1 | E161: =1.6702/D161 -> 1.6702 | F161: 1 | G161: =F161*(E161) -> 1.6702 | H161: =G161/8 -> 0.208775 | I161: =$I$159*E161/8 -> 0 | J161: =$J$159*E161/8 -> 0 | K161: =$K$159*E161/8 -> 2.296525
B162: Servente | C162: h | D162: 3 | E162: =6.4684/D162 -> 2.156133333 | F162: 1 | G162: =F162*(E162) -> 2.156133333 | H162: =G162/8 -> 0.2695166667 | I162: =$I$159*E162/8 -> 0 | J162: =$J$159*E162/8 -> 0 | K162: =$K$159*E162/8 -> 2.964683333

Sheet BDI serv
A1: ='MARCADO DOS PEREIRAS'!A1:I1 -> Ministério da Integração e do Desenvolvimento Regional
A2: ='MARCADO DOS PEREIRAS'!A2:I2 -> Companhia de Desenvolvimento dos Vales do São Francisco e do Parnaíba
A4: COMPOSIÇÃO DE BDI - SERVIÇOS - NÃO DESONERADO
A5: ='MARCADO DOS PEREIRAS'!A5 -> OBRA: | B5: =Resumo!B5 -> Contratação de empresa para execução de manutenção e recuperação nas barragens de Itapicuru, Marcado dos Pereiras e Marcado Grande no estado de Alagoas. | D5: BDI (serv.): | E5: =D23 -> 0.2321
A6: ='MARCADO DOS PEREIRAS'!A6 -> LOCAL: | B6: =Resumo!B6 -> Barragens de Alagoas | D6: BDI (forn.): | E6: ='BDI forn'!E6 -> 0.1469
A7: ='MARCADO DOS PEREIRAS'!A7 -> DATA BASE: | B7: 2025-10-07
A8: ='MARCADO DOS PEREIRAS'!A8 -> PRAZO: | B8: =Resumo!B8 -> 150 dias | G8: JUL/2025 - SICRO3
A9: ITEM | B9: DESCRIÇÃO | C9: SIGLA | D9: % APLICADO | E9: REFERÊNCIA TCU (ACÓRDÃO Nº 2622/2013)
E10: 1º QUARTIL | F10: 2º QUARTIL | G10: 3º QUARTIL
A11: 1 | B11: ADMINISTRAÇÃO CENTRAL | C11: AC | D11: =E11 -> 0.04 | E11: 0.04 | F11: 0.0552 | G11: 0.0785
A12: 2 | B12: IMPOSTOS | C12: T | D12: =SUM(D13:D16) -> 0.0665
A13: 2.1 | B13: ISS (*) | D13: 0.03 | E13: - | F13: - | G13: -
A14: 2.2 | B14: PIS | D14: 0.0065 | E14: - | F14: - | G14: -
A15: 2.3 | B15: Cofins | D15: 0.03 | E15: - | F15: - | G15: -
A16: 2.4 | B16: Contribuição previdênciária sobre a receita bruta (CPRB) | E16: - | F16: - | G16: -
A17: 3 | B17: SEGURO, GARANTIA E RISCO | D17: =SUM(D18:D20) -> 0.0227
A18: 3.1 | B18: Seguro | C18: S | D18: =E18 -> 0.0081 | E18: 0.0081 | F18: 0.0122 | G18: 0.0199
A19: 3.2 | B19: Garantia | C19: G
A20: 3.3 | B20: Risco | C20: R | D20: =E20 -> 0.0146 | E20: 0.0146 | F20: 0.0232 | G20: 0.0316
A21: 4 | B21: DESPESAS FINANCEIRAS | C21: DF | D21: =F21 -> 0.0102 | E21: 0.0094 | F21: 0.0102 | G21: 0.01363
A22: 5 | B22: LUCRO | C22: L | D22: =E22 -> 0.0714 | E22: 0.0714 | F22: 0.084 | G22: 0.1043
B23: BDI ADOTADO: | D23: =ROUND(((((1+D11+D17)*(1+D21)*(1+D22))/(1-D12))-1),4) -> 0.2321
A24: Considerações: O BDI foi calculado através da seguinte fórmula, regulamentada pelo Acórdão Nº 2622/2013 – TCU.
H173: =SUM(H174:H177) -> 0
D177: mec | F177: 2 | G177: 128

Sheet BDI forn
A1: ='MARCADO DOS PEREIRAS'!A1:I1 -> Ministério da Integração e do Desenvolvimento Regional
A2: ='MARCADO DOS PEREIRAS'!A2:I2 -> Companhia de Desenvolvimento dos Vales do São Francisco e do Parnaíba
A4: COMPOSIÇÃO DE BDI - FORNECIMENTO - NÃO DESONERADO
A5: ='MARCADO DOS PEREIRAS'!A5 -> OBRA: | B5: =Resumo!B5 -> Contratação de empresa para execução de manutenção e recuperação nas barragens de Itapicuru, Marcado dos Pereiras e Marcado Grande no estado de Alagoas. | D5: BDI (serv.): | E5: ='BDI serv'!E5 -> 0.2321
A6: ='MARCADO DOS PEREIRAS'!A6 -> LOCAL: | B6: =Resumo!B6 -> Barragens de Alagoas | D6: BDI (forn.): | E6: =D23 -> 0.1469
A7: ='MARCADO DOS PEREIRAS'!A7 -> DATA BASE: | B7: 2025-10-07
A8: ='MARCADO DOS PEREIRAS'!A8 -> PRAZO: | B8: =Resumo!B8 -> 150 dias | G8: JUL/2025 - SICRO3
A9: ITEM | B9: DESCRIÇÃO | C9: SIGLA | D9: % APLICADO | E9: REFERÊNCIA TCU (ACÓRDÃO Nº 2622/2013)
E10: 1º QUARTIL | F10: 2º QUARTIL | G10: 3º QUARTIL
A11: 1 | B11: ADMINISTRAÇÃO CENTRAL | C11: AC | D11: 0.03 | E11: 0.015 | F11: 0.0345 | G11: 0.0449
A12: 2 | B12: IMPOSTOS | C12: T | D12: =SUM(D13:D16) -> 0.0365
A13: 2.1 | B13: ISS (*) | E13: - | F13: - | G13: -
A14: 2.2 | B14: PIS | D14: 0.0065 | E14: - | F14: - | G14: -
A15: 2.3 | B15: Cofins | D15: 0.03 | E15: - | F15: - | G15: -
A16: 2.4 | B16: Contribuição previdênciária sobre a receita bruta (CPRB) | E16: - | F16: - | G16: -
A17: 3 | B17: SEGURO, GARANTIA E RISCO | D17: =SUM(D18:D20) -> 0.0086
A18: 3.1 | B18: Seguro | C18: S | D18: =E18 -> 0.003 | E18: 0.003 | F18: 0.0048 | G18: 0.0082
A19: 3.2 | B19: Garantia | C19: G
A20: 3.3 | B20: Risco | C20: R | D20: =E20 -> 0.0056 | E20: 0.0056 | F20: 0.0085 | G20: 0.0089
A21: 4 | B21: DESPESAS FINANCEIRAS | C21: DF | D21: =F21 -> 0.0085 | E21: 0.0085 | F21: 0.0085 | G21: 0.0111
A22: 5 | B22: LUCRO | C22: L | D22: 0.055 | E22: 0.035 | F22: 0.0511 | G22: 0.0622
B23: BDI ADOTADO: | D23: =ROUND(((((1+D11+D17)*(1+D21)*(1+D22))/(1-D12))-1),4) -> 0.1469
A24: Considerações: O BDI foi calculado através da seguinte fórmula, regulamentada pelo Acórdão Nº 2622/2013 – TCU.
H173: =SUM(H174:H177) -> 0
D177: mec | F177: 2 | G177: 128

Sheet Encargos Sociais
A1: Ministério da Integração e do Desenvolvimento Regional
A2: Companhia de Desenvolvimento dos Vales do São Francisco e do Parnaíba
A4: COMPOSIÇÃO DE ENCARGOS SOCIAIS SOBRE A MÃO DE OBRA
A5: ='MARCADO DOS PEREIRAS'!A5 -> OBRA: | B5: =Resumo!B5 -> Contratação de empresa para execução de manutenção e recuperação nas barragens de Itapicuru, Marcado dos Pereiras e Marcado Grande no estado de Alagoas.
A6: ='MARCADO DOS PEREIRAS'!A6 -> LOCAL: | B6: =Resumo!B6 -> Barragens de Alagoas
A7: ='MARCADO DOS PEREIRAS'!A7 -> DATA BASE: | B7: 2025-10-07
A8: ='MARCADO DOS PEREIRAS'!A8 -> PRAZO: | B8: =Resumo!B8 -> 150 dias | G8: JUL/2025 - SICRO3
A11: Encargos Sociais – ALAGOAS VIGÊNCIA A PARTIR DE 01/2025
A12: ENCARGOS SOCIAIS SOBRE A MÃO DE OBRA
A13: CÓDIGO | B13: DESCRIÇÃO | C13: COM DESONERAÇÃO | E13: SEM DESONERAÇÃO
C14: HORISTA % | D14: MENSALISTA % | E14: HORISTA % | F14: MENSALISTA %
A15: GRUPO A
A16: A1 | B16: INSS | C16: 0.05 | D16: 0.05 | E16: 0.2 | F16: 0.2
A17: A2 | B17: SESI | C17: 0.015 | D17: 0.015 | E17: 0.015 | F17: 0.015
A18: A3 | B18: SENAI | C18: 0.01 | D18: 0.01 | E18: 0.01 | F18: 0.01
A19: A4 | B19: INCRA | C19: 0.002 | D19: 0.002 | E19: 0.002 | F19: 0.002
A20: A5 | B20: SEBRAE | C20: 0.006 | D20: 0.006 | E20: 0.006 | F20: 0.006
A21: A6 | B21: Salário Educação | C21: 0.025 | D21: 0.025 | E21: 0.025 | F21: 0.025
A22: A7 | B22: Seguro Contra Acidentes de Trabalho | C22: 0.03 | D22: 0.03 | E22: 0.03 | F22: 0.03
A23: A8 | B23: FGTS | C23: 0.08 | D23: 0.08 | E23: 0.08 | F23: 0.08
A24: A9 | B24: SECONCI | C24: 0 | D24: 0 | E24: 0 | F24: 0
A25: A | B25: Total | C25: =SUM(C16:C24) -> 0.218 | D25: =SUM(D16:D24) -> 0.218 | E25: =SUM(E16:E24) -> 0.368 | F25: =SUM(F16:F24) -> 0.368
A26: GRUPO B
A27: B1 | B27: Repouso Semanal Remunerado | C27: 0.1805 | D27: Não incide | E27: 0.1805 | F27: Não incide
A28: B2 | B28: Feriados | C28: 0.0467 | D28: Não incide | E28: 0.0467 | F28: Não incide
A29: B3 | B29: Auxílio - Enfermidade | C29: 0.0086 | D29: 0.0065 | E29: 0.0086 | F29: 0.0065
A30: B4 | B30: 13º Salário | C30: 0.1102 | D30: 0.0833 | E30: 0.1102 | F30: 0.0833
A31: B5 | B31: Licença Paternidade | C31: 0.0007 | D31: 0.0005 | E31: 0.0007 | F31: 0.0005
A32: B6 | B32: Faltas Justificadas | C32: 0.0073 | D32: 0.0056 | E32: 0.0073 | F32: 0.0056
A33: B7 | B33: Dias de Chuvas | C33: 0.0181 | D33: Não incide | E33: 0.0181 | F33: Não incide
A34: B8 | B34: Auxílio Acidente de Trabalho | C34: 0.001 | D34: 0.0007 | E34: 0.001 | F34: 0.0007
A35: B9 | B35: Férias Gozadas | C35: 0.1051 | D35: 0.0795 | E35: 0.1051 | F35: 0.0795
A36: B10 | B36: Salário Maternidade | C36: 0.0003 | D36: 0.0003 | E36: 0.0003 | F36: 0.0003
A37: B | B37: Total | C37: =SUM(C27:C36) -> 0.4785 | D37: =SUM(D27:D36) -> 0.1764 | E37: =SUM(E27:E36) -> 0.4785 | F37: =SUM(F27:F36) -> 0.1764
A38: GRUPO C
A39: C1 | B39: Aviso Prévio Indenizado | C39: 0.0479 | D39: 0.0362 | E39: 0.0479 | F39: 0.0362
A40: C2 | B40: Aviso Prévio Trabalhado | C40: 0.0011 | D40: 0.0009 | E40: 0.0011 | F40: 0.0009
A41: C3 | B41: Férias Indenizadas | C41: 0.0351 | D41: 0.0265 | E41: 0.0351 | F41: 0.0265
A42: C4 | B42: Depósito Rescisão Sem Justa Causa | C42: 0.0292 | D42: 0.0221 | E42: 0.0292 | F42: 0.0221
A43: C5 | B43: Indenização Adicional | C43: 0.004 | D43: 0.003 | E43: 0.004 | F43: 0.003
A44: C | B44: Total | C44: =SUM(C39:C43) -> 0.1173 | D44: =SUM(D39:D43) -> 0.0887 | E44: =SUM(E39:E43) -> 0.1173 | F44: =SUM(F39:F43) -> 0.0887
A45: GRUPO D
A46: D1 | B46: Reincidência de Grupo A sobre Grupo B | C46: 0.0988 | D46: 0.0343 | E46: 0.1761 | F46: 0.0649
A47: D2 | B47: Reincidência de Grupo A sobre Aviso Prévio Trabalhado e Reincidência do FGTS sobre Aviso Prévio Indenizado | C47: 0.0041 | D47: 0.0031 | E47: 0.0042 | F47: 0.0032
A48: D | B48: Total | C48: =SUM(C46:C47) -> 0.1029 | D48: =SUM(D46:D47) -> 0.0374 | E48: =SUM(E46:E47) -> 0.1803 | F48: =SUM(F46:F47) -> 0.0681
A49: TOTAL(A+B+C+D) | C49: =C25+C37+C44+C48 -> 0.9167 | D49: =D25+D37+D44+D48 -> 0.5205 | E49: =E25+E37+E44+E48 -> 1.1441 | F49: =F25+F37+F44+F48 -> 0.7012
A50: Fonte: Informação Dias de Chuva – INMET

Sheet Cronograma Itapicuru
A1: Ministério da Integração e do Desenvolvimento Regional
A2: Companhia de Desenvolvimento dos Vales do São Francisco e do Parnaíba
A4: CRONOGRAMA FÍSICO-FINANCEIRO NÃO DESONERADO
A5: ='MARCADO DOS PEREIRAS'!A5 -> OBRA: | B5: =ITAPICURU!B5:F5 -> Contratação de empresa para execução de manutenção e recuperação nas barragens de Itapicuru, Marcado dos Pereiras e Marcado Grande no estado de Alagoas.
A6: ='MARCADO DOS PEREIRAS'!A6 -> LOCAL: | B6: =ITAPICURU!B6 -> Barragem Itapicuru, localizada no município de Campo Grande - AL
A7: ='MARCADO DOS PEREIRAS'!A7 -> DATA BASE: | B7: 2025-10-07
A8: ='MARCADO DOS PEREIRAS'!A8 -> PRAZO: | B8: =ITAPICURU!B8 -> 120 dias | G8: JUL/2025 - SICRO3
B9: =ITAPICURU!B9 -> Itapicuru
A10: ITEM | B10: DESCRIÇÃO | C10: TOTAL POR ETAPA | D10: MESES | H10: TOTAL
D11: 1 | E11: 2 | F11: 3 | G11: 4
A12: 1 | B12: =VLOOKUP(A12,ITAPICURU!A:I,4) -> ADMINISTRAÇÃO DA OBRA | C12: =VLOOKUP(A12,ITAPICURU!A$11:I$1031,9) -> 139370.48 | D12: =$C12*D13 -> 24534.95766 | E12: =$C12*E13 -> 42009.0709 | F12: =$C12*F13 -> 23928.90249 | G12: =$C12*G13 -> 48897.54895 | H12: =SUM(D12:G12) -> 139370.48 | I12: R$
C13: =C12/C12 -> 1 | D13: =SUMIF($I$14:$I$37,"R$",D$14:D$37)/$C$38 -> 0.1760412798 | E13: =SUMIF($I$14:$I$37,"R$",E$14:E$37)/$C$38+D40-D13 -> 0.3014201494 | F13: =SUMIF($I$14:$I$37,"R$",F$14:F$37)/$C$38+E40-E13 -> 0.1716927609 | G13: =1-SUM(D13:F13) -> 0.35084581 | H13: 1 | I13: %
A14: 2 | B14: =VLOOKUP(A14,ITAPICURU!A:I,4) -> SERVIÇOS PRELIMINARES | C14: =VLOOKUP(A14,ITAPICURU!A$11:I$1031,9) -> 27298.63 | D14: =$C14*D15 -> 27298.63 | H14: 27298.63 | I14: R$
C15: =C14/C14 -> 1 | D15: 1 | H15: 1 | I15: %
A16: 3 | B16: =VLOOKUP(A16,ITAPICURU!A:I,4) -> CORTE DA VEGETAÇÃO E REMOÇÃO DAS RAIZES | C16: =VLOOKUP(A16,ITAPICURU!A$11:I$1031,9) -> 34452.5 | D16: =$C16*D17 -> 34452.5 | H16: 34452.5 | I16: R$
C17: =C16/C16 -> 1 | D17: 1 | H17: 1 | I17: %
A18: 4 | B18: =VLOOKUP(A18,ITAPICURU!A:I,4) -> RECUPERAÇÃO DO MACIÇO | C18: =VLOOKUP(A18,ITAPICURU!A$11:I$1031,9) -> 2315.06 | D18: =$C18*D19 -> 2315.06 | H18: 2315.06 | I18: R$
C19: =C18/C18 -> 1 | D19: 1 | H19: 1 | I19: %
A20: 5 | B20: =VLOOKUP(A20,ITAPICURU!A:I,4) -> RECUPERAÇÃO DA CRISTA | C20: =VLOOKUP(A20,ITAPICURU!A$11:I$1031,9) -> 70122.66 | E20: =$C20*E21 -> 70122.66 | H20: 70122.66 | I20: R$
C21: =C20/C20 -> 1 | E21: 1 | H21: 1 | I21: %
A22: 6 | B22: =VLOOKUP(A22,ITAPICURU!A:I,4) -> DRENAGEM SUPERFICIAL DO TALUDE DE JUSANTE | C22: =VLOOKUP(A22,ITAPICURU!A$11:I$1031,9) -> 15498.78 | E22: =$C22*E23 -> 15498.78 | H22: 15498.78 | I22: R$
C23: =C22/C22 -> 1 | E23: 1 | H23: 1 | I23: %
A24: 7 | B24: =VLOOKUP(A24,ITAPICURU!A:I,4) -> PROTEÇÃO SUPERFICIAL DO TALUDE DE JUSANTE | C24: =VLOOKUP(A24,ITAPICURU!A$11:I$1031,9) -> 21935.2 | F24: =$C24*F25 -> 21935.2 | H24: 21935.2 | I24: R$
C25: =C24/C24 -> 1 | F25: 1 | H25: 1 | I25: %
A26: 8 | B26: =VLOOKUP(A26,ITAPICURU!A:I,4) -> RECUPERAÇÃO DO VERTEDOURO | C26: =VLOOKUP(A26,ITAPICURU!A$11:I$1031,9) -> 12880.62 | F26: =$C26*F27 -> 12880.62 | H26: =SUM(D26:G26) -> 12880.62 | I26: R$
C27: =C26/C26 -> 1 | F27: 1 | H27: 1 | I27: %
A28: 9 | B28: =VLOOKUP(A28,ITAPICURU!A:I,4) -> RECUPERAÇÃO DO CANAL DE RESTITUIÇÃO | C28: =VLOOKUP(A28,ITAPICURU!A$11:I$1031,9) -> 10374.64 | F28: =$C28*F29 -> 10374.64 | H28: 10374.64 | I28: R$
C29: =C28/C28 -> 1 | F29: 1 | H29: 1 | I29: %
A30: 10 | B30: =VLOOKUP(A30,ITAPICURU!A:I,4) -> RECUPERAÇÃO DE CERCA EXISTENTE | C30: =VLOOKUP(A30,ITAPICURU!A$11:I$1031,9) -> 5054 | G30: =$C30*G31 -> 5054 | H30: 5054 | I30: R$
C31: =C30/C30 -> 1 | G31: 1 | H31: 1 | I31: %
A32: 11 | B32: =VLOOKUP(A32,ITAPICURU!A:I,4) -> SERVIÇOS COMPLEMENTARES | C32: =VLOOKUP(A32,ITAPICURU!A$11:I$1031,9) -> 8761.44 | G32: =$C32*G33 -> 8761.44 | H32: 8761.44 | I32: R$
C33: =C32/C32 -> 1 | G33: 1 | H33: 1 | I33: %
A34: 12 | B34: =VLOOKUP(A34,ITAPICURU!A:I,4) -> PROJETO "AS IS" | C34: =VLOOKUP(A34,ITAPICURU!A$11:I$1031,9) -> 16883.43 | G34: =$C34*G35 -> 16883.43 | H34: 16883.43 | I34: R$
C35: =C34/C34 -> 1 | G35: 1 | H35: 1 | I35: %
A36: 13 | B36: =VLOOKUP(A36,ITAPICURU!A:I,4) -> FISCALIZAÇÃO E ACOMPANHAMENTO | C36: =VLOOKUP(A36,ITAPICURU!A$11:I$1031,9) -> 1141.98 | D36: =$C36*D37 -> 380.66 | E36: =$C36*E37 -> 190.33 | F36: =$C36*F37 -> 190.33 | G36: =$C36*G37 -> 380.66 | H36: 1141.98 | I36: R$
C37: =C36/C36 -> 1 | D37: =2/6 -> 0.3333333333 | E37: =1/6 -> 0.1666666667 | F37: =1/6 -> 0.1666666667 | G37: =2/6 -> 0.3333333333 | H37: 1 | I37: %
B38: VALOR TOTAL: | C38: =SUMIF($I$12:$I$37,"R$",C$12:C$37) -> 366089.42 | D38: 88981.80766 | E38: 127820.8409 | F38: 69309.69249 | G38: 79977.07895 | H38: 366089.42
B39: VALOR ACUMULADO: | D39: =D38 -> 88981.80766 | E39: =E38+C39 -> 127820.8409 | F39: =F38+D39 -> 158291.5002 | G39: =G38+F39 -> 238268.5791 | H39: =H38 -> 366089.42 | M39: =IF(H39=ITAPICURU!I93,"ok","verificar") -> ok
B40: FÍSICO PARCIAL: | D40: =SUMIF($I$12:$I$37,"R$",D$12:D$37)/$C$38 -> 0.2430603093 | E40: =SUMIF($I$12:$I$37,"R$",E$12:E$37)/$C$38 -> 0.3491519665 | F40: =SUMIF($I$12:$I$37,"R$",F$12:F$37)/$C$38 -> 0.1893244893 | G40: =SUMIF($I$12:$I$37,"R$",G$12:G$37)/$C$38 -> 0.2184632349 | H40: =SUMIF($I$12:$I$37,"R$",H$12:H$37)/$C$38 -> 1
B41: AVANÇO FÍSICO: | D41: =D40 -> 0.2430603093 | E41: =E40+D41 -> 0.5922122758 | F41: =F40+E41 -> 0.7815367651 | G41: =G40+F41 -> 1

Sheet Cronograma Marcado dos Pereiras
A1: Ministério da Integração e do Desenvolvimento Regional
A2: Companhia de Desenvolvimento dos Vales do São Francisco e do Parnaíba
A4: CRONOGRAMA FÍSICO-FINANCEIRO NÃO DESONERADO
A5: ='MARCADO DOS PEREIRAS'!A5 -> OBRA: | B5: ='MARCADO DOS PEREIRAS'!B5:F5 -> Contratação de empresa para execução de manutenção e recuperação nas barragens de Itapicuru, Marcado dos Pereiras e Marcado Grande no estado de Alagoas.
A6: ='MARCADO DOS PEREIRAS'!A6 -> LOCAL: | B6: ='MARCADO DOS PEREIRAS'!B6 -> Barragem Marcado dos Pereiras, localizada no município de Feira Grande - AL
A7: ='MARCADO DOS PEREIRAS'!A7 -> DATA BASE: | B7: 2025-10-07
A8: ='MARCADO DOS PEREIRAS'!A8 -> PRAZO: | B8: ='MARCADO DOS PEREIRAS'!B8 -> 90 dias | G8: JUL/2025 - SICRO3
B9: ='MARCADO DOS PEREIRAS'!B9 -> Marcado dos Pereiras
A10: ITEM | B10: DESCRIÇÃO | C10: TOTAL POR ETAPA | D10: MESES | G10: TOTAL
D11: 1 | E11: 2 | F11: 3
A12: 1 | B12: =VLOOKUP(A12,'MARCADO DOS PEREIRAS'!A:I,4) -> ADMINISTRAÇÃO DA OBRA | C12: =VLOOKUP(A12,'MARCADO DOS PEREIRAS'!A$11:I$1029,9) -> 104527.86 | D12: =$C12*D13 -> 24692.97976 | E12: =$C12*E13 -> 45056.87567 | F12: =$C12*F13 -> 34778.00458 | G12: =SUM(D12:F12) -> 104527.86 | H12: R$
C13: =C12/C12 -> 1 | D13: =SUMIF($H$14:$H$33,"R$",D$14:D$33)/$C$34 -> 0.2362334765 | E13: =SUMIF($H$14:$H$33,"R$",E$14:E$33)/$C$34+D36-D13 -> 0.4310513548 | F13: =1-SUM(D13:E13) -> 0.3327151687 | G13: 1 | H13: %
A14: 2 | B14: =VLOOKUP(A14,'MARCADO DOS PEREIRAS'!A:I,4) -> SERVIÇOS PRELIMINARES | C14: =VLOOKUP(A14,'MARCADO DOS PEREIRAS'!A$11:I$1029,9) -> 27298.63 | D14: =$C14*D15 -> 27298.63 | G14: 27298.63 | H14: R$
C15: =C14/C14 -> 1 | D15: 1 | G15: 1 | H15: %
A16: 3 | B16: =VLOOKUP(A16,'MARCADO DOS PEREIRAS'!A:I,4) -> CORTE DA VEGETAÇÃO E REMOÇÃO DAS RAIZES | C16: =VLOOKUP(A16,'MARCADO DOS PEREIRAS'!A$11:I$1029,9) -> 48871.2 | D16: =$C16*D17 -> 48871.2 | G16: 48871.2 | H16: R$
C17: =C16/C16 -> 1 | D17: 1 | G17: 1 | H17: %
A18: 4 | B18: =VLOOKUP(A18,'MARCADO DOS PEREIRAS'!A:I,4) -> RECUPERAÇÃO DO MACIÇO | C18: =VLOOKUP(A18,'MARCADO DOS PEREIRAS'!A$11:I$1029,9) -> 1668.5 | D18: =$C18*D19 -> 1668.5 | G18: 1668.5 | H18: R$
C19: =C18/C18 -> 1 | D19: 1 | G19: 1 | H19: %
A20: 5 | B20: =VLOOKUP(A20,'MARCADO DOS PEREIRAS'!A:I,4) -> REGULARIZAÇÃO E PAVIMENTAÇÃO DA CRISTA | C20: =VLOOKUP(A20,'MARCADO DOS PEREIRAS'!A$11:I$1029,9) -> 75212.04 | E20: =$C20*E21 -> 75212.04 | G20: 75212.04 | H20: R$
C21: =C20/C20 -> 1 | E21: 1 | G21: 1 | H21: %
A22: 6 | B22: =VLOOKUP(A22,'MARCADO DOS PEREIRAS'!A:I,4) -> MANUTENÇÃO NO TALUDE DE MONTANTE | C22: =VLOOKUP(A22,'MARCADO DOS PEREIRAS'!A$11:I$1029,9) -> 21789.36 | E22: =$C22*E23 -> 21789.36 | G22: 21789.36 | H22: R$
C23: =C22/C22 -> 1 | E23: 1 | G23: 1 | H23: %
A24: 7 | B24: =VLOOKUP(A24,'MARCADO DOS PEREIRAS'!A:I,4) -> PROTEÇÃO SUPERFICIAL DO TALUDE DE JUSANTE | C24: =VLOOKUP(A24,'MARCADO DOS PEREIRAS'!A$11:I$1029,9) -> 20840.2 | E24: =$C24*E25 -> 20840.2 | G24: 20840.2 | H24: R$
C25: =C24/C24 -> 1 | E25: 1 | G25: 1 | H25: %
A26: 8 | B26: =VLOOKUP(A26,'MARCADO DOS PEREIRAS'!A:I,4) -> RECUPERAÇÃO DE CERCA EXISTENTE | C26: =VLOOKUP(A26,'MARCADO DOS PEREIRAS'!A$11:I$1029,9) -> 5054 | F26: =$C26*F27 -> 5054 | G26: 5054 | H26: R$
C27: =C26/C26 -> 1 | F27: 1 | G27: 1 | H27: %
A28: 9 | B28: =VLOOKUP(A28,'MARCADO DOS PEREIRAS'!A:I,4) -> SERVIÇOS COMPLEMENTARES | C28: =VLOOKUP(A28,'MARCADO DOS PEREIRAS'!A$11:I$1029,9) -> 8330.16 | F28: =$C28*F29 -> 8330.16 | G28: =SUM(D28:F28) -> 8330.16 | H28: R$
C29: =C28/C28 -> 1 | F29: 1 | G29: 1 | H29: %
A30: 10 | B30: =VLOOKUP(A30,'MARCADO DOS PEREIRAS'!A:I,4) -> PROJETO "AS IS" | C30: =VLOOKUP(A30,'MARCADO DOS PEREIRAS'!A$11:I$1029,9) -> 16565.23 | F30: =$C30*F31 -> 16565.23 | G30: 16565.23 | H30: R$
C31: 1 | F31: 1 | G31: 1 | H31: %
A32: 11 | B32: =VLOOKUP(A32,'MARCADO DOS PEREIRAS'!A:I,4) -> FISCALIZAÇÃO E ACOMPANHAMENTO | C32: =VLOOKUP(A32,'MARCADO DOS PEREIRAS'!A$11:I$1029,9) -> 951.65 | D32: =$C32*D33 -> 380.66 | E32: =$C32*E33 -> 190.33 | F32: =$C32*F33 -> 380.66 | G32: 951.65 | H32: R$
C33: 1 | D33: =2/5 -> 0.4 | E33: =1/5 -> 0.2 | F33: =2/5 -> 0.4 | G33: 1 | H33: %
B34: VALOR TOTAL: | C34: =SUMIF($H$12:$H$33,"R$",C$12:C$33) -> 331108.83 | D34: =SUMIF($H$12:$H$33,"R$",D$12:D$33) -> 102911.9698 | E34: =SUMIF($H$12:$H$33,"R$",E$12:E$33) -> 163088.8057 | F34: =SUMIF($H$12:$H$33,"R$",F$12:F$33) -> 65108.05458 | G34: =SUMIF($H$12:$H$33,"R$",G$12:G$33) -> 331108.83
B35: VALOR ACUMULADO: | D35: =D34 -> 102911.9698 | E35: =E34+D35 -> 266000.7754 | F35: =F34+E35 -> 331108.83 | G35: =G34 -> 331108.83 | L35: =IF(G35='MARCADO DOS PEREIRAS'!I79,"ok","verificar") -> ok
B36: FÍSICO PARCIAL: | D36: =SUMIF($H$12:$H$33,"R$",D$12:D$33)/$C$34 -> 0.3108101036 | E36: =SUMIF($H$12:$H$33,"R$",E$12:E$33)/$C$34 -> 0.4925534776 | F36: =SUMIF($H$12:$H$33,"R$",F$12:F$33)/$C$34 -> 0.1966364188 | G36: =SUMIF($H$12:$H$33,"R$",G$12:G$33)/$C$34 -> 1
B37: AVANÇO FÍSICO: | D37: =D36 -> 0.3108101036 | E37: =E36+D37 -> 0.8033635812 | F37: =F36+E37 -> 1

Sheet Cronograma Marcado Grande
A1: Ministério da Integração e do Desenvolvimento Regional
A2: Companhia de Desenvolvimento dos Vales do São Francisco e do Parnaíba
A4: CRONOGRAMA FÍSICO-FINANCEIRO NÃO DESONERADO
A5: ='MARCADO DOS PEREIRAS'!A5 -> OBRA: | B5: ='MARCADO GRANDE'!B5:F5 -> Contratação de empresa para execução de manutenção e recuperação nas barragens de Itapicuru, Marcado dos Pereiras e Marcado Grande no estado de Alagoas.
A6: ='MARCADO DOS PEREIRAS'!A6 -> LOCAL: | B6: ='MARCADO GRANDE'!B6 -> Barragem Marcado Grande, localizada no município de Campo Grande - AL
A7: ='MARCADO DOS PEREIRAS'!A7 -> DATA BASE: | B7: 2025-10-07
A8: ='MARCADO DOS PEREIRAS'!A8 -> PRAZO: | B8: ='MARCADO GRANDE'!B8 -> 90 dias | G8: JUL/2025 - SICRO3
B9: ='MARCADO GRANDE'!B9 -> Marcado Grande
A10: ITEM | B10: DESCRIÇÃO | C10: TOTAL POR ETAPA | D10: MESES | G10: TOTAL
D11: 1 | E11: 2 | F11: 3
A12: 1 | B12: =VLOOKUP(A12,'MARCADO GRANDE'!A:I,4) -> ADMINISTRAÇÃO DA OBRA | C12: =VLOOKUP(A12,'MARCADO GRANDE'!A$11:I$1033,9) -> 104527.86 | D12: =$C12*D13 -> 26528.10941 | E12: =$C12*E13 -> 37227.69047 | F12: =$C12*F13 -> 40772.06012 | G12: =SUM(D12:F12) -> 104527.86 | H12: R$
C13: =C12/C12 -> 1 | D13: =SUMIF($H$14:$H$35,"R$",D$14:D$35)/$C$36 -> 0.2537898452 | E13: =SUMIF($H$14:$H$35,"R$",E$14:E$35)/$C$36+D38-D13 -> 0.356150891 | F13: =1-SUM(D13:E13) -> 0.3900592638 | G13: =SUM(D13:F13) -> 1 | H13: %
A14: 2 | B14: =VLOOKUP(A14,'MARCADO GRANDE'!A:I,4) -> SERVIÇOS PRELIMINARES | C14: =VLOOKUP(A14,'MARCADO GRANDE'!A$11:I$1033,9) -> 27298.63 | D14: =$C14*D15 -> 27298.63 | G14: 27298.63 | H14: R$
C15: =C14/C14 -> 1 | D15: 1 | G15: 1 | H15: %
A16: 3 | B16: =VLOOKUP(A16,'MARCADO GRANDE'!A:I,4) -> CORTE DA VEGETAÇÃO E REMOÇÃO DAS RAIZES | C16: =VLOOKUP(A16,'MARCADO GRANDE'!A$11:I$1033,9) -> 50044.8 | D16: =$C16*D17 -> 50044.8 | G16: 50044.8 | H16: R$
C17: =C16/C16 -> 1 | D17: 1 | G17: 1 | H17: %
A18: 4 | B18: =VLOOKUP(A18,'MARCADO GRANDE'!A:I,4) -> RECUPERAÇÃO DO MACIÇO | C18: =VLOOKUP(A18,'MARCADO GRANDE'!A$11:I$1033,9) -> 1668.5 | D18: =$C18*D19 -> 1668.5 | G18: 1668.5 | H18: R$
C19: =C18/C18 -> 1 | D19: 1 | G19: 1 | H19: %
A20: 5 | B20: =VLOOKUP(A20,'MARCADO GRANDE'!A:I,4) -> REGULARIZAÇÃO E PAVIMENTAÇÃO DA CRISTA | C20: =VLOOKUP(A20,'MARCADO GRANDE'!A$11:I$1033,9) -> 65999.96 | E20: =$C20*E21 -> 65999.96 | G20: =SUM(D20:F20) -> 65999.96 | H20: R$
C21: 1 | E21: 1 | G21: 1 | H21: %
A22: 6 | B22: =VLOOKUP(A22,'MARCADO GRANDE'!A:I,4) -> MANUTENÇÃO NO TALUDE DE MONTANTE | C22: =VLOOKUP(A22,'MARCADO GRANDE'!A$11:I$1033,9) -> 15622.56 | E22: =$C22*E23 -> 15622.56 | G22: =SUM(D22:F22) -> 15622.56 | H22: R$
C23: 1 | E23: 1 | G23: 1 | H23: %
A24: 7 | B24: =VLOOKUP(A24,'MARCADO GRANDE'!A:I,4) -> PROTEÇÃO SUPERFICIAL DO TALUDE DE JUSANTE | C24: =VLOOKUP(A24,'MARCADO GRANDE'!A$11:I$1033,9) -> 3073.04 | E24: =$C24*E25 -> 3073.04 | G24: 3073.04 | H24: R$
C25: =C24/C24 -> 1 | E25: 1 | G25: 1 | H25: %
A26: 8 | B26: =VLOOKUP(A26,'MARCADO GRANDE'!A:I,4) -> RECUPERAÇÃO DE CERCA EXISTENTE | C26: =VLOOKUP(A26,'MARCADO GRANDE'!A$11:I$1033,9) -> 5054 | F26: =$C26*F27 -> 5054 | G26: =SUM(D26:F26) -> 5054 | H26: R$
C27: =C26/C26 -> 1 | F27: 1 | G27: 1 | H27: %
A28: 9 | B28: =VLOOKUP(A28,'MARCADO GRANDE'!A:I,4) -> IMPLANTAÇÃO DE COLCHÃO DRENANTE EM ENROCAMENTO PARA DISSIPAÇÃO DE ENERGIA DO FLUXO DO CANAL | C28: =VLOOKUP(A28,'MARCADO GRANDE'!A$11:I$1033,9) -> 13772.52 | F28: =$C28*F29 -> 13772.52 | G28: 13772.52 | H28: R$
C29: =C28/C28 -> 1 | F29: 1 | G29: 1 | H29: %
A30: 10 | B30: =VLOOKUP(A30,'MARCADO GRANDE'!A:I,4) -> SERVIÇOS COMPLEMENTARES | C30: =VLOOKUP(A30,'MARCADO GRANDE'!A$11:I$1033,9) -> 7898.88 | F30: =$C30*F31 -> 7898.88 | G30: 7898.88 | H30: R$
C31: =C30/C30 -> 1 | F31: 1 | G31: 1 | H31: %
A32: 11 | B32: =VLOOKUP(A32,'MARCADO GRANDE'!A:I,4) -> PROJETO "AS IS" | C32: =VLOOKUP(A32,'MARCADO GRANDE'!A$11:I$1033,9) -> 16915.68 | F32: =$C32*F33 -> 16915.68 | G32: 16915.68 | H32: R$
C33: =C32/C32 -> 1 | F33: 1 | G33: 1 | H33: %
A34: 12 | B34: =VLOOKUP(A34,'MARCADO GRANDE'!A:I,4) -> FISCALIZAÇÃO E ACOMPANHAMENTO | C34: =VLOOKUP(A34,'MARCADO GRANDE'!A$11:I$1033,9) -> 951.65 | D34: =$C34*D35 -> 380.66 | E34: =$C34*E35 -> 190.33 | F34: =$C34*F35 -> 380.66 | G34: 951.65 | H34: R$
C35: =C34/C34 -> 1 | D35: =2/5 -> 0.4 | E35: =1/5 -> 0.2 | F35: =2/5 -> 0.4 | G35: 1 | H35: %
B36: VALOR TOTAL: | C36: =SUMIF($H$12:$H$35,"R$",C$12:C$35) -> 312828.08 | D36: =SUMIF($H$12:$H$35,"R$",D$12:D$35) -> 105920.6994 | E36: =SUMIF($H$12:$H$35,"R$",E$12:E$35) -> 122113.5805 | F36: =SUMIF($H$12:$H$35,"R$",F$12:F$35) -> 84793.80012 | G36: =SUMIF($H$12:$H$35,"R$",G$12:G$35) -> 312828.08
B37: VALOR ACUMULADO: | D37: =D36 -> 105920.6994 | E37: =E36+D37 -> 228034.2799 | F37: =F36+E37 -> 312828.08 | G37: =G36 -> 312828.08 | L37: =IF(G37='MARCADO GRANDE'!I82,"ok","verificar") -> ok
B38: FÍSICO PARCIAL: | D38: =SUMIF($H$12:$H$35,"R$",D$12:D$35)/$C$36 -> 0.3385907666 | E38: =SUMIF($H$12:$H$35,"R$",E$12:E$35)/$C$36 -> 0.3903536424 | F38: =SUMIF($H$12:$H$35,"R$",F$12:F$35)/$C$36 -> 0.2710555911 | G38: =SUMIF($H$12:$H$35,"R$",G$12:G$35)/$C$36 -> 1
B39: AVANÇO FÍSICO: | D39: =D38 -> 0.3385907666 | E39: =E38+D39 -> 0.7289444089 | F39: =F38+E39 -> 1

Sheet Cronograma Geral
A1: Ministério da Integração e do Desenvolvimento Regional
A2: Companhia de Desenvolvimento dos Vales do São Francisco e do Parnaíba
A4: CRONOGRAMA FÍSICO-FINANCEIRO NÃO DESONERADO
A5: OBRA: | B5: =Resumo!B5 -> Contratação de empresa para execução de manutenção e recuperação nas barragens de Itapicuru, Marcado dos Pereiras e Marcado Grande no estado de Alagoas.
A6: LOCAL: | B6: =Resumo!B6 -> Barragens de Alagoas
A7: DATA BASE: | B7: 2025-10-07
A8: PRAZO | B8: =Resumo!B8 -> 150 dias | G8: JUL/2025 - SICRO3
A9: ITEM | B9: DESCRIÇÃO | C9: TOTAL POR ETAPA | D9: MESES | I9: TOTAL
D10: 1 | E10: 2 | F10: 3 | G10: 4 | H10: 5
A11: 1.1 | B11: =VLOOKUP(A11,Resumo!A$13:I$1010,2) -> Itapicuru | C11: =VLOOKUP(A11,Resumo!A$13:I$1010,7) -> 366089.42 | D11: =$C11*D12 -> 88981.80766 | E11: =$C11*E12 -> 127820.8409 | F11: =$C11*F12 -> 69309.69249 | G11: =$C11*G12 -> 79977.07895 | I11: =SUM(D11:G11) -> 366089.42 | J11: R$
C12: =C11/C11 -> 1 | D12: ='Cronograma Itapicuru'!D40:G40 -> 0.2430603093 | E12: ='Cronograma Itapicuru'!E40:H40 -> 0.3491519665 | F12: ='Cronograma Itapicuru'!F40:I40 -> 0.1893244893 | G12: ='Cronograma Itapicuru'!G40:J40 -> 0.2184632349 | I12: =SUM(D12:G12) -> 1 | J12: %
A13: 1.2 | B13: =VLOOKUP(A13,Resumo!A$13:I$1010,2) -> Marcado dos Pereiras | C13: =VLOOKUP(A13,Resumo!A$13:I$1010,7) -> 331108.83 | E13: =$C13*E14 -> 102911.9698 | F13: =$C13*F14 -> 163088.8057 | G13: =$C13*G14 -> 65108.05458 | I13: =SUM(E13:G13) -> 331108.83 | J13: R$
C14: =C13/C13 -> 1 | E14: ='Cronograma Marcado dos Pereiras'!D36 -> 0.3108101036 | F14: ='Cronograma Marcado dos Pereiras'!E36 -> 0.4925534776 | G14: ='Cronograma Marcado dos Pereiras'!F36 -> 0.1966364188 | I14: =SUM(E14:G14) -> 1 | J14: %
A15: 1.3 | B15: =VLOOKUP(A15,Resumo!A$13:I$1010,2) -> Marcado Grande | C15: =VLOOKUP(A15,Resumo!A$13:I$1010,7) -> 312828.08 | F15: =$C15*F16 -> 105920.6994 | G15: =$C15*G16 -> 122113.5805 | H15: =$C15*H16 -> 84793.80012 | I15: =SUM(F15:H15) -> 312828.08 | J15: R$
C16: =C15/C15 -> 1 | F16: ='Cronograma Marcado Grande'!D38 -> 0.3385907666 | G16: ='Cronograma Marcado Grande'!E38 -> 0.3903536424 | H16: ='Cronograma Marcado Grande'!F38 -> 0.2710555911 | I16: =SUM(F16:H16) -> 1 | J16: %
B17: VALOR TOTAL: | C17: =SUMIF($J$11:$J$16,"R$",C$11:C$16) -> 1010026.33 | D17: =SUMIF($J$11:$J$16,"R$",D$11:D$16) -> 88981.80766 | E17: =SUMIF($J$11:$J$16,"R$",E$11:E$16) -> 230732.8107 | F17: =SUMIF($J$11:$J$16,"R$",F$11:F$16) -> 338319.1976 | G17: =SUMIF($J$11:$J$16,"R$",G$11:G$16) -> 267198.714 | H17: =SUMIF($J$11:$J$16,"R$",H$11:H$16) -> 84793.80012 | I17: =SUMIF($J$11:$J$16,"R$",I$11:I$16) -> 1010026.33
B18: VALOR ACUMULADO: | D18: =D17 -> 88981.80766 | E18: =E17+D18 -> 319714.6183 | F18: =F17+E18 -> 658033.8159 | G18: 925232.5299 | H18: 1010026.33 | I18: =H18 -> 1010026.33 | L18: =IF(I18=Resumo!G20,"ok","ERRO") -> ok
B19: FÍSICO PARCIAL: | D19: =SUMIF($J$11:$J$16,"R$",D$11:D$16)/$C$17 -> 0.088098503 | E19: =SUMIF($J$11:$J$16,"R$",E$11:E$16)/$C$17 -> 0.228442372 | F19: 0.3349607703 | G19: 0.2645462856 | H19: =SUMIF($J$11:$J$16,"R$",H$11:H$16)/$C$17 -> 0.08395206897 | I19: =SUMIF($J$11:$J$16,"R$",I$11:I$16)/$C$17 -> 1
B20: AVANÇO FÍSICO: | D20: =D19 -> 0.088098503 | E20: =E19+D20 -> 0.316540875 | F20: =F19+E20 -> 0.6515016454 | G20: 0.916047931 | H20: =H19+G20 -> 1

Sheet Comp SINAPI AL 07-2025 Onerado
A1: SINAPI - Sistema Nacional de Pesquisa de Custos e Índices da Construção Civil
A2: RELATÓRIO DE CUSTOS DE COMPOSIÇÕES - ENCARGOS SOCIAIS SEM DESONERAÇÃO
A3: Mês de Referência: | B3: 08/2025 | D3: Encargos sociais sobre a mão de obra:
A4: Data de emissão: | B4: 10/09/2025 | D4: (SEM DESONERAÇÃO) | E4: AL
D5: Localidade | E5: MACEIO
A6: Observação: | B6: %AS (porcentagem Atribuído São Paulo) corresponde a porcentagem do custo total da | D6: Horista | E6: 1.1441
B7: composição que foi obtida utilizando preços de insumos de São Paulo por indisponibilidade | D7: Mensalista | E7: 0.7012
B8: dos preços de insumos necessários à composição no estado em questão. Custo zerado (hífen)
B9: indica que pelo menos um dos itens da composição não tem custo/preço. | E9: AL
A10: Grupo | B10: Código da Composição | C10: Descrição | D10: Unidade | E10: Custo (R$) | F10: %AS
A11: Acessibilidade | B11: 104658 | C11: PISO PODOTÁTIL DE ALERTA OU DIRECIONAL, DE CONCRETO, ASSENTADO SOBRE ARGAMASSA. AF_03/2024 | D11: M2 | E11: 152.82 | F11: 0
A12: Acessibilidade | B12: 105002 | C12: RAMPA DE ACESSIBILIDADE EM CONCRETO MOLDADO IN LOCO, EM CALÇADA NOVA COM LARGURA MAIOR OU IGUAL À 3,00 M, FCK 25MPA, COM PISO PODOTÁTIL. AF_03/2024 | D12: UN | E12: 703.84 | F12: 0
A13: Acessibilidade | B13: 105004 | C13: RAMPA DE ACESSIBILIDADE EM CONCRETO MOLDADO IN LOCO, EM CALÇADA NOVA COM LARGURA MENOR À 3,00 M, FCK 25MPA, COM PISO PODOTÁTIL. AF_03/2024 | D13: M2 | E13: 119.18 | F13: 0
A14: Acessibilidade | B14: 105003 | C14: RAMPA DE ACESSIBILIDADE EM CONCRETO MOLDADO IN LOCO, EM CALÇADA PRÉ EXISTENTE COM LARGURA MAIOR OU IGUAL À 3,00 M, FCK 25MPA, COM PISO PODOTÁTIL. AF_03/2024 | D14: UN | E14: 1099.68 | F14: 0.0606
A15: Acessibilidade | B15: 105005 | C15: RAMPA DE ACESSIBILIDADE EM CONCRETO MOLDADO IN LOCO, EM CALÇADA PRÉ EXISTENTE COM LARGURA MENOR À 3,00 M, FCK 25MPA, COM PISO PODOTÁTIL. AF_03/2024 | D15: M2 | E15: 192.46 | F15: 0.064
A16: Acessibilidade | B16: 105006 | C16: RAMPA DE ACESSIBILIDADE EM CONCRETO PRÉ MOLDADO, EM CALÇADA NOVA COM LARGURA MAIOR OU IGUAL À 3,00 M, FCK 25MPA, COM PISO PODOTÁTIL. AF_03/2024 | D16: UN | E16: 0
A17: Acessibilidade | B17: 104999 | C17: RAMPA DE ACESSIBILIDADE EM CONCRETO PRÉ MOLDADO, EM CALÇADA PRÉ EXISTENTE COM LARGURA MAIOR OU IGUAL À 3,00 M, FCK 25MPA, COM PISO PODOTÁTIL. AF_03/2024 | D17: UN | E17: 0
A18: Acessibilidade | B18: 105000 | C18: RAMPA DE ACESSIBILIDADE PARA ACESSO A EDIFICAÇÕES COM INCLINAÇÃO DE 8,33% EM CONCRETO MOLDADO IN LOCO, COM LARGURA DE 1,20M, FCK 25MPA, NÃO ARMADA, COM JUNTA A CADA 2M COM CORTE À SECO. AF_03/2024 | D18: M | E18: 1365.32 | F18: 0.4535
A19: Acessibilidade | B19: 105001 | C19: RAMPA DE ACESSIBILIDADE PARA ACESSO A EDIFICAÇÕES COM INCLINAÇÃO DE 8,33% EM CONCRETO MOLDADO IN LOCO, COM LARGURA DE 1,50M, FCK 25MPA, NÃO ARMADA, COM JUNTA A CADA 2M COM CORTE À SECO. AF_03/2024 | D19: M | E19: 1396.73 | F19: 0.4433
A20: Alvenaria Estrutural - Blocos Cerâmicos | B20: 89306 | C20: ALVENARIA ESTRUTURAL DE BLOCOS CERÂMICOS 14X19X29, (ESPESSURA DE 14 CM), UTILIZANDO COLHER DE PEDREIRO E ARGAMASSA DE ASSENTAMENTO COM PREPARO EM BETONEIRA. AF_03/2023 | D20: M2 | E20: 98.8 | F20: 0
A21: Alvenaria Estrutural - Blocos Cerâmicos | B21: 89307 | C21: ALVENARIA ESTRUTURAL DE BLOCOS CERÂMICOS 14X19X29, (ESPESSURA DE 14 CM), UTILIZANDO COLHER DE PEDREIRO E ARGAMASSA DE ASSENTAMENTO COM PREPARO MANUAL. AF_03/2023 | D21: M2 | E21: 101.47 | F21: 0
A22: Alvenaria Estrutural - Blocos Cerâmicos | B22: 89290 | C22: ALVENARIA ESTRUTURAL DE BLOCOS CERÂMICOS 14X19X29, (ESPESSURA DE 14 CM), UTILIZANDO PALHETA E ARGAMASSA DE ASSENTAMENTO COM PREPARO EM BETONEIRA. AF_03/2023 | D22: M2 | E22: 83.39 | F22: 0
A23: Alvenaria Estrutural - Blocos Cerâmicos | B23: 89291 | C23: ALVENARIA ESTRUTURAL DE BLOCOS CERÂMICOS 14X19X29, (ESPESSURA DE 14 CM), UTILIZANDO PALHETA E ARGAMASSA DE ASSENTAMENTO COM PREPARO MANUAL. AF_03/2023 | D23: M2 | E23: 85.37 | F23: 0
A24: Alvenaria Estrutural - Blocos Cerâmicos | B24: 89298 | C24: ALVENARIA ESTRUTURAL DE BLOCOS CERÂMICOS 14X19X39, (ESPESSURA DE 14 CM), UTILIZANDO COLHER DE PEDREIRO E ARGAMASSA DE ASSENTAMENTO COM PREPARO EM BETONEIRA. AF_03/2023 | D24: M2 | E24: 86.9 | F24: 0
A25: Alvenaria Estrutural - Blocos Cerâmicos | B25: 89299 | C25: ALVENARIA ESTRUTURAL DE BLOCOS CERÂMICOS 14X19X39, (ESPESSURA DE 14 CM), UTILIZANDO COLHER DE PEDREIRO E ARGAMASSA DE ASSENTAMENTO COM PREPARO MANUAL. AF_03/2023 | D25: M2 | E25: 89.29 | F25: 0
A26: Alvenaria Estrutural - Blocos Cerâmicos | B26: 89282 | C26: ALVENARIA ESTRUTURAL DE BLOCOS CERÂMICOS 14X19X39, (ESPESSURA DE 14 CM), UTILIZANDO PALHETA E ARGAMASSA DE ASSENTAMENTO COM PREPARO EM BETONEIRA. AF_03/2023 | D26: M2 | E26: 76.04 | F26: 0
A27: Alvenaria Estrutural - Blocos Cerâmicos | B27: 89283 | C27: ALVENARIA ESTRUTURAL DE BLOCOS CERÂMICOS 14X19X39, (ESPESSURA DE 14 CM), UTILIZANDO PALHETA E ARGAMASSA DE ASSENTAMENTO COM PREPARO MANUAL. AF_03/2023 | D27: M2 | E27: 77.83 | F27: 0
A28: Alvenaria Estrutural - Blocos de Concreto | B28: 89480 | C28: ALVENARIA DE BLOCOS DE CONCRETO ESTRUTURAL 14X19X29 CM (ESPESSURA 14 CM), FBK = 14 MPA, UTILIZANDO COLHER DE PEDREIRO. AF_10/2022 | D28: M2 | E28: 147.1 | F28: 0
A29: Alvenaria Estrutural - Blocos de Concreto | B29: 89464 | C29: ALVENARIA DE BLOCOS DE CONCRETO ESTRUTURAL 14X19X29 CM (ESPESSURA 14 CM), FBK = 14,0 MPA, UTILIZANDO PALHETA. AF_10/2022 | D29: M2 | E29: 127.89 | F29: 0
A30: Alvenaria Estrutural - Blocos de Concreto | B30: 89478 | C30: ALVENARIA DE BLOCOS DE CONCRETO ESTRUTURAL 14X19X29 CM (ESPESSURA 14 CM), FBK = 4,5 MPA, UTILIZANDO COLHER DE PEDREIRO. AF_10/2022 | D30: M2 | E30: 126.41 | F30: 0
A31: Alvenaria Estrutural - Blocos de Concreto | B31: 89462 | C31: ALVENARIA DE BLOCOS DE CONCRETO ESTRUTURAL 14X19X29 CM (ESPESSURA 14 CM), FBK = 4,5 MPA, UTILIZANDO PALHETA. AF_10/2022 | D31: M2 | E31: 108.32 | F31: 0
A32: Alvenaria Estrutural - Blocos de Concreto | B32: 104444 | C32: ALVENARIA DE BLOCOS DE CONCRETO ESTRUTURAL 14X19X29 CM (ESPESSURA 14 CM), FBK = 8 MPA, UTILIZANDO COLHER DE PEDREIRO. AF_10/2022 | D32: M2 | E32: 0
A33: Alvenaria Estrutural - Blocos de Concreto | B33: 104442 | C33: ALVENARIA DE BLOCOS DE CONCRETO ESTRUTURAL 14X19X29 CM (ESPESSURA 14 CM), FBK = 8 MPA, UTILIZANDO PALHETA. AF_10/2022 | D33: M2 | E33: 0
A34: Alvenaria Estrutural - Blocos de Concreto | B34: 89472 | C34: ALVENARIA DE BLOCOS DE CONCRETO ESTRUTURAL 14X19X39 CM (ESPESSURA 14 CM), FBK = 14 MPA, UTILIZANDO COLHER DE PEDREIRO. AF_10/2022 | D34: M2 | E34: 112.02 | F34: 0
A35: Alvenaria Estrutural - Blocos de Concreto | B35: 89455 | C35: ALVENARIA DE BLOCOS DE CONCRETO ESTRUTURAL 14X19X39 CM (ESPESSURA 14 CM), FBK = 14 MPA, UTILIZANDO PALHETA. AF_10/2022 | D35: M2 | E35: 99.9 | F35: 0
A36: Alvenaria Estrutural - Blocos de Concreto | B36: 89470 | C36: ALVENARIA DE BLOCOS DE CONCRETO ESTRUTURAL 14X19X39 CM (ESPESSURA 14 CM), FBK = 4,5 MPA, UTILIZANDO COLHER DE PEDREIRO. AF_10/2022 | D36: M2 | E36: 93.24 | F36: 0
A37: Alvenaria Estrutural - Blocos de Concreto | B37: 89453 | C37: ALVENARIA DE BLOCOS DE CONCRETO ESTRUTURAL 14X19X39 CM (ESPESSURA 14 CM), FBK = 4,5 MPA, UTILIZANDO PALHETA. AF_10/2022 | D37: M2 | E37: 82.22 | F37: 0
A38: Alvenaria Estrutural - Blocos de Concreto | B38: 104443 | C38: ALVENARIA DE BLOCOS DE CONCRETO ESTRUTURAL 14X19X39 CM (ESPESSURA 14 CM), FBK = 8 MPA, UTILIZANDO COLHER DE PEDREIRO. AF_10/2022 | D38: M2 | E38: 0
A39: Alvenaria Estrutural - Blocos de Concreto | B39: 104441 | C39: ALVENARIA DE BLOCOS DE CONCRETO ESTRUTURAL 14X19X39 CM (ESPESSURA 14 CM), FBK = 8 MPA, UTILIZANDO PALHETA. AF_10/2022 | D39: M2 | E39: 0
A40: Alvenaria de Vedação | B40: 103354 | C40: ALVENARIA DE VEDAÇÃO DE BLOCOS CERÂMICOS FURADOS NA HORIZONTAL DE 11,5X14X24 CM (ESPESSURA 11,5 CM) E ARGAMASSA DE ASSENTAMENTO COM PREPARO EM BETONEIRA. AF_12/2021 | D40: M2 | E40: 89.51 | F40: 0.0065
A41: Alvenaria de Vedação | B41: 103355 | C41: ALVENARIA DE VEDAÇÃO DE BLOCOS CERÂMICOS FURADOS NA HORIZONTAL DE 11,5X14X24 CM (ESPESSURA 11,5 CM) E ARGAMASSA DE ASSENTAMENTO COM PREPARO MANUAL. AF_12/2021 | D41: M2 | E41: 91 | F41: 0.0064
A42: Alvenaria de Vedação | B42: 103330 | C42: ALVENARIA DE VEDAÇÃO DE BLOCOS CERÂMICOS FURADOS NA HORIZONTAL DE 11,5X19X19 CM (ESPESSURA 11,5 CM) E ARGAMASSA DE ASSENTAMENTO COM PREPARO EM BETONEIRA. AF_12/2021 | D42: M2 | E42: 83.6 | F42: 0.0049
A43: Alvenaria de Vedação | B43: 103331 | C43: ALVENARIA DE VEDAÇÃO DE BLOCOS CERÂMICOS FURADOS NA HORIZONTAL DE 11,5X19X19 CM (ESPESSURA 11,5 CM) E ARGAMASSA DE ASSENTAMENTO COM PREPARO MANUAL. AF_12/2021 | D43: M2 | E43: 85.01 | F43: 0.0048
A44: Alvenaria de Vedação | B44: 103358 | C44: ALVENARIA DE VEDAÇÃO DE BLOCOS CERÂMICOS FURADOS NA HORIZONTAL DE 11,5X19X29 CM (ESPESSURA 11,5 CM) E ARGAMASSA DE ASSENTAMENTO COM PREPARO EM BETONEIRA. AF_12/2021 | D44: M2 | E44: 71.17 | F44: 0.0058
A45: Alvenaria de Vedação | B45: 103359 | C45: ALVENARIA DE VEDAÇÃO DE BLOCOS CERÂMICOS FURADOS NA HORIZONTAL DE 11,5X19X29 CM (ESPESSURA 11,5 CM) E ARGAMASSA DE ASSENTAMENTO COM PREPARO MANUAL. AF_12/2021 | D45: M2 | E45: 72.36 | F45: 0.0057
A46: Alvenaria de Vedação | B46: 103366 | C46: ALVENARIA DE VEDAÇÃO DE BLOCOS CERÂMICOS FURADOS NA HORIZONTAL DE 11,5X19X39 CM (ESPESSURA 11,5 CM) E ARGAMASSA DE ASSENTAMENTO COM PREPARO EM BETONEIRA. AF_12/2021 | D46: M2 | E46: 63.18 | F46: 0.0065
A47: Alvenaria de Vedação | B47: 103367 | C47: ALVENARIA DE VEDAÇÃO DE BLOCOS CERÂMICOS FURADOS NA HORIZONTAL DE 11,5X19X39 CM (ESPESSURA 11,5 CM) E ARGAMASSA DE ASSENTAMENTO COM PREPARO MANUAL. AF_12/2021 | D47: M2 | E47: 64.26 | F47: 0.0064
A48: Alvenaria de Vedação | B48: 103360 | C48: ALVENARIA DE VEDAÇÃO DE BLOCOS CERÂMICOS FURADOS NA HORIZONTAL DE 14X19X29 CM (ESPESSURA 14 CM) E ARGAMASSA DE ASSENTAMENTO COM PREPARO EM BETONEIRA. AF_12/2021 | D48: M2 | E48: 83.01 | F48: 0.0049
A49: Alvenaria de Vedação | B49: 103361 | C49: ALVENARIA DE VEDAÇÃO DE BLOCOS CERÂMICOS FURADOS NA HORIZONTAL DE 14X19X29 CM (ESPESSURA 14 CM) E ARGAMASSA DE ASSENTAMENTO COM PREPARO MANUAL. AF_12/2021 | D49: M2 | E49: 84.52 | F49: 0.0049
A50: Alvenaria de Vedação | B50: 103368 | C50: ALVENARIA DE VEDAÇÃO DE BLOCOS CERÂMICOS FURADOS NA HORIZONTAL DE 14X19X39 CM (ESPESSURA 14 CM) E ARGAMASSA DE ASSENTAMENTO COM PREPARO EM BETONEIRA. AF_12/2021 | D50: M2 | E50: 71.21 | F50: 0.0058
A51: Alvenaria de Vedação | B51: 103369 | C51: ALVENARIA DE VEDAÇÃO DE BLOCOS CERÂMICOS FURADOS NA HORIZONTAL DE 14X19X39 CM (ESPESSURA 14 CM) E ARGAMASSA DE ASSENTAMENTO COM PREPARO MANUAL. AF_12/2021 | D51: M2 | E51: 72.58 | F51: 0.0056
A52: Alvenaria de Vedação | B52: 103334 | C52: ALVENARIA DE VEDAÇÃO DE BLOCOS CERÂMICOS FURADOS NA HORIZONTAL DE 14X9X19 CM (ESPESSURA 14 CM, BLOCO DEITADO) E ARGAMASSA DE ASSENTAMENTO COM PREPARO EM BETONEIRA. AF_12/2021 | D52: M2 | E52: 144.17 | F52: 0.0055
A53: Alvenaria de Vedação | B53: 103335 | C53: ALVENARIA DE VEDAÇÃO DE BLOCOS CERÂMICOS FURADOS NA HORIZONTAL DE 14X9X19 CM (ESPESSURA 14 CM, BLOCO DEITADO) E ARGAMASSA DE ASSENTAMENTO COM PREPARO MANUAL. AF_12/2021 | D53: M2 | E53: 146.8 | F53: 0.0054
A54: Alvenaria de Vedação | B54: 103362 | C54: ALVENARIA DE VEDAÇÃO DE BLOCOS CERÂMICOS FURADOS NA HORIZONTAL DE 19X19X29 CM (ESPESSURA 19 CM) E ARGAMASSA DE ASSENTAMENTO COM PREPARO EM BETONEIRA. AF_12/2021 | D54: M2 | E54: 101.71 | F54: 0.004
A55: Alvenaria de Vedação | B55: 103363 | C55: ALVENARIA DE VEDAÇÃO DE BLOCOS CERÂMICOS FURADOS NA HORIZONTAL DE 19X19X29 CM (ESPESSURA 19 CM) E ARGAMASSA DE ASSENTAMENTO COM PREPARO MANUAL. AF_12/2021 | D55: M2 | E55: 103.41 | F55: 0.004
A56: Alvenaria de Vedação | B56: 103370 | C56: ALVENARIA DE VEDAÇÃO DE BLOCOS CERÂMICOS FURADOS NA HORIZONTAL DE 19X19X39 CM (ESPESSURA 19 CM) E ARGAMASSA DE ASSENTAMENTO COM PREPARO EM BETONEIRA. AF_12/2021 | D56: M2 | E56: 91.23 | F56: 0.0045
A57: Alvenaria de Vedação | B57: 103371 | C57: ALVENARIA DE VEDAÇÃO DE BLOCOS CERÂMICOS FURADOS NA HORIZONTAL DE 19X19X39 CM (ESPESSURA 19 CM) E ARGAMASSA DE ASSENTAMENTO COM PREPARO MANUAL. AF_12/2021 | D57: M2 | E57: 92.77 | F57: 0.0044
A58: Alvenaria de Vedação | B58: 103332 | C58: ALVENARIA DE VEDAÇÃO DE BLOCOS CERÂMICOS FURADOS NA HORIZONTAL DE 9X14X19 CM (ESPESSURA 9 CM) E ARGAMASSA DE ASSENTAMENTO COM PREPARO EM BETONEIRA. AF_12/2021 | D58: M2 | E58: 118.56 | F58: 0.0024
A59: Alvenaria de Vedação | B59: 103333 | C59: ALVENARIA DE VEDAÇÃO DE BLOCOS CERÂMICOS FURADOS NA HORIZONTAL DE 9X14X19 CM (ESPESSURA 9 CM) E ARGAMASSA DE ASSENTAMENTO COM PREPARO MANUAL. AF_12/2021 | D59: M2 | E59: 120.07 | F59: 0.0023
A60: Alvenaria de Vedação | B60: 103352 | C60: ALVENARIA DE VEDAÇÃO DE BLOCOS CERÂMICOS FURADOS NA HORIZONTAL DE 9X14X24 CM (ESPESSURA 9 CM) E ARGAMASSA DE ASSENTAMENTO COM PREPARO EM BETONEIRA. AF_12/2021 | D60: M2 | E60: 102.54 | F60: 0.0027
A61: Alvenaria de Vedação | B61: 103353 | C61: ALVENARIA DE VEDAÇÃO DE BLOCOS CERÂMICOS FURADOS NA HORIZONTAL DE 9X14X24 CM (ESPESSURA 9 CM) E ARGAMASSA DE ASSENTAMENTO COM PREPARO MANUAL. AF_12/2021 | D61: M2 | E61: 103.94 | F61: 0.0027
A62: Alvenaria de Vedação | B62: 103328 | C62: ALVENARIA DE VEDAÇÃO DE BLOCOS CERÂMICOS FURADOS NA HORIZONTAL DE 9X19X19 CM (ESPESSURA 9 CM) E ARGAMASSA DE ASSENTAMENTO COM PREPARO EM BETONEIRA. AF_12/2021 | D62: M2 | E62: 94.01 | F62: 0.0021
A63: Alvenaria de Vedação | B63: 103329 | C63: ALVENARIA DE VEDAÇÃO DE BLOCOS CERÂMICOS FURADOS NA HORIZONTAL DE 9X19X19 CM (ESPESSURA 9 CM) E ARGAMASSA DE ASSENTAMENTO COM PREPARO MANUAL. AF_12/2021 | D63: M2 | E63: 95.32 | F63: 0.0021
A64: Alvenaria de Vedação | B64: 103356 | C64: ALVENARIA DE VEDAÇÃO DE BLOCOS CERÂMICOS FURADOS NA HORIZONTAL DE 9X19X29 CM (ESPESSURA 9 CM) E ARGAMASSA DE ASSENTAMENTO COM PREPARO EM BETONEIRA. AF_12/2021 | D64: M2 | E64: 63.06 | F64: 0.0032
A65: Alvenaria de Vedação | B65: 103357 | C65: ALVENARIA DE VEDAÇÃO DE BLOCOS CERÂMICOS FURADOS NA HORIZONTAL DE 9X19X29 CM (ESPESSURA 9 CM) E ARGAMASSA DE ASSENTAMENTO COM PREPARO MANUAL. AF_12/2021 | D65: M2 | E65: 64.17 | F65: 0.0031
A66: Alvenaria de Vedação | B66: 103364 | C66: ALVENARIA DE VEDAÇÃO DE BLOCOS CERÂMICOS FURADOS NA HORIZONTAL DE 9X19X39 CM (ESPESSURA 9 CM) E ARGAMASSA DE ASSENTAMENTO COM PREPARO EM BETONEIRA. AF_12/2021 | D66: M2 | E66: 52.86 | F66: 0.0078
A67: Alvenaria de Vedação | B67: 103365 | C67: ALVENARIA DE VEDAÇÃO DE BLOCOS CERÂMICOS FURADOS NA HORIZONTAL DE 9X19X39 CM (ESPESSURA 9 CM) E ARGAMASSA DE ASSENTAMENTO COM PREPARO MANUAL. AF_12/2021 | D67: M2 | E67: 53.64 | F67: 0.0037
A68: Alvenaria de Vedação | B68: 103350 | C68: ALVENARIA DE VEDAÇÃO DE BLOCOS CERÂMICOS FURADOS NA HORIZONTAL DE 9X9X19 CM (ESPESSURA 9 CM) E ARGAMASSA DE ASSENTAMENTO COM PREPARO EM BETONEIRA. AF_12/2021 | D68: M2 | E68: 174.26 | F68: 0.0023
A69: Alvenaria de Vedação | B69: 103351 | C69: ALVENARIA DE VEDAÇÃO DE BLOCOS CERÂMICOS FURADOS NA HORIZONTAL DE 9X9X19 CM (ESPESSURA 9 CM) E ARGAMASSA DE ASSENTAMENTO COM PREPARO MANUAL. AF_12/2021 | D69: M2 | E69: 176.19 | F69: 0.0023
A70: Alvenaria de Vedação | B70: 103344 | C70: ALVENARIA DE VEDAÇÃO DE BLOCOS CERÂMICOS FURADOS NA VERTICAL DE 11,5X19X29 CM (ESPESSURA 11,5 CM) E ARGAMASSA DE ASSENTAMENTO COM PREPARO EM BETONEIRA. AF_12/2021 | D70: M2 | E70: 85.44 | F70: 0.0048
A71: Alvenaria de Vedação | B71: 103345 | C71: ALVENARIA DE VEDAÇÃO DE BLOCOS CERÂMICOS FURADOS NA VERTICAL DE 11,5X19X29 CM (ESPESSURA 11,5 CM) E ARGAMASSA DE ASSENTAMENTO COM PREPARO MANUAL. AF_12/2021 | D71: M2 | E71: 87.2 | F71: 0.0047
A72: Alvenaria de Vedação | B72: 103348 | C72: ALVENARIA DE VEDAÇÃO DE BLOCOS CERÂMICOS FURADOS NA VERTICAL DE 11,5X19X39 CM (ESPESSURA 11,5 CM) E ARGAMASSA DE ASSENTAMENTO COM PREPARO EM BETONEIRA. AF_12/2021 | D72: M2 | E72: 72.59 | F72: 0.0056
A73: Alvenaria de Vedação | B73: 103349 | C73: ALVENARIA DE VEDAÇÃO DE BLOCOS CERÂMICOS FURADOS NA VERTICAL DE 11,5X19X39 CM (ESPESSURA 11,5 CM) E ARGAMASSA DE ASSENTAMENTO COM PREPARO MANUAL. AF_12/2021 | D73: M2 | E73: 74.18 | F73: 0.0055
A74: Alvenaria de Vedação | B74: 103346 | C74: ALVENARIA DE VEDAÇÃO DE BLOCOS CERÂMICOS FURADOS NA VERTICAL DE 14X19X29 CM (ESPESSURA 14 CM) E ARGAMASSA DE ASSENTAMENTO COM PREPARO EM BETONEIRA. AF_12/2021 | D74: M2 | E74: 94.37 | F74: 0.0043
A75: Alvenaria de Vedação | B75: 103347 | C75: ALVENARIA DE VEDAÇÃO DE BLOCOS CERÂMICOS FURADOS NA VERTICAL DE 14X19X29 CM (ESPESSURA 14 CM) E ARGAMASSA DE ASSENTAMENTO COM PREPARO MANUAL. AF_12/2021 | D75: M2 | E75: 96.24 | F75: 0.0043
A76: Alvenaria de Vedação | B76: 103324 | C76: ALVENARIA DE VEDAÇÃO DE BLOCOS CERÂMICOS FURADOS NA VERTICAL DE 14X19X39 CM (ESPESSURA 14 CM) E ARGAMASSA DE ASSENTAMENTO COM PREPARO EM BETONEIRA. AF_12/2021 | D76: M2 | E76: 82.26 | F76: 0.005
A77: Alvenaria de Vedação | B77: 103325 | C77: ALVENARIA DE VEDAÇÃO DE BLOCOS CERÂMICOS FURADOS NA VERTICAL DE 14X19X39 CM (ESPESSURA 14 CM) E ARGAMASSA DE ASSENTAMENTO COM PREPARO MANUAL. AF_12/2021 | D77: M2 | E77: 83.96 | F77: 0.0049
A78: Alvenaria de Vedação | B78: 103326 | C78: ALVENARIA DE VEDAÇÃO DE BLOCOS CERÂMICOS FURADOS NA VERTICAL DE 19X19X39 CM (ESPESSURA 19 CM) E ARGAMASSA DE ASSENTAMENTO COM PREPARO EM BETONEIRA. AF_12/2021 | D78: M2 | E78: 97.03 | F78: 0.0042
A79: Alvenaria de Vedação | B79: 103327 | C79: ALVENARIA DE VEDAÇÃO DE BLOCOS CERÂMICOS FURADOS NA VERTICAL DE 19X19X39 CM (ESPESSURA 19 CM) E ARGAMASSA DE ASSENTAMENTO COM PREPARO MANUAL. AF_12/2021 | D79: M2 | E79: 99.01 | F79: 0.0041
A80: Alvenaria de Vedação | B80: 103322 | C80: ALVENARIA DE VEDAÇÃO DE BLOCOS CERÂMICOS FURADOS NA VERTICAL DE 9X19X39 CM (ESPESSURA 9 CM) E ARGAMASSA DE ASSENTAMENTO COM PREPARO EM BETONEIRA. AF_12/2021 | D80: M2 | E80: 61.89 | F80: 0.0032
A81: Alvenaria de Vedação | B81: 103323 | C81: ALVENARIA DE VEDAÇÃO DE BLOCOS CERÂMICOS FURADOS NA VERTICAL DE 9X19X39 CM (ESPESSURA 9 CM) E ARGAMASSA DE ASSENTAMENTO COM PREPARO MANUAL. AF_12/2021 | D81: M2 | E81: 63.38 | F81: 0.0032
A82: Alvenaria de Vedação | B82: 103338 | C82: ALVENARIA DE VEDAÇÃO DE BLOCOS VAZADOS DE CONCRETO APARENTE DE 14X19X39 CM (ESPESSURA 14 CM) E ARGAMASSA DE ASSENTAMENTO COM PREPARO EM BETONEIRA. AF_12/2021 | D82: M2 | E82: 106.48 | F82: 0.0039
A83: Alvenaria de Vedação | B83: 103339 | C83: ALVENARIA DE VEDAÇÃO DE BLOCOS VAZADOS DE CONCRETO APARENTE DE 14X19X39 CM (ESPESSURA 14 CM) E ARGAMASSA DE ASSENTAMENTO COM PREPARO MANUAL. AF_12/2021 | D83: M2 | E83: 107.95 | F83: 0.0038
A84: Alvenaria de Vedação | B84: 103340 | C84: ALVENARIA DE VEDAÇÃO DE BLOCOS VAZADOS DE CONCRETO APARENTE DE 19X19X39 CM (ESPESSURA 19 CM) E ARGAMASSA DE ASSENTAMENTO COM PREPARO EM BETONEIRA. AF_12/2021 | D84: M2 | E84: 128.93 | F84: 0.0032
A85: Alvenaria de Vedação | B85: 103341 | C85: ALVENARIA DE VEDAÇÃO DE BLOCOS VAZADOS DE CONCRETO APARENTE DE 19X19X39 CM (ESPESSURA 19 CM) E ARGAMASSA DE ASSENTAMENTO COM PREPARO MANUAL. AF_12/2021 | D85: M2 | E85: 130.77 | F85: 0.0031
A86: Alvenaria de Vedação | B86: 103336 | C86: ALVENARIA DE VEDAÇÃO DE BLOCOS VAZADOS DE CONCRETO APARENTE DE 9X19X39 CM (ESPESSURA 9 CM) E ARGAMASSA DE ASSENTAMENTO COM PREPARO EM BETONEIRA. AF_12/2021 | D86: M2 | E86: 80.91 | F86: 0.0025
A87: Alvenaria de Vedação | B87: 103337 | C87: ALVENARIA DE VEDAÇÃO DE BLOCOS VAZADOS DE CONCRETO APARENTE DE 9X19X39 CM (ESPESSURA 9 CM) E ARGAMASSA DE ASSENTAMENTO COM PREPARO MANUAL. AF_12/2021 | D87: M2 | E87: 82.16 | F87: 0.0024
A88: Alvenaria de Vedação | B88: 103342 | C88: ALVENARIA DE VEDAÇÃO DE BLOCOS VAZADOS DE CONCRETO DE 14X19X29 CM (ESPESSURA 14 CM) E ARGAMASSA DE ASSENTAMENTO COM PREPARO EM BETONEIRA. AF_12/2021 | D88: M2 | E88: 109.03 | F88: 0.0038
A89: Alvenaria de Vedação | B89: 103343 | C89: ALVENARIA DE VEDAÇÃO DE BLOCOS VAZADOS DE CONCRETO DE 14X19X29 CM (ESPESSURA 14 CM) E ARGAMASSA DE ASSENTAMENTO COM PREPARO MANUAL. AF_12/2021 | D89: M2 | E89: 110.65 | F89: 0.0037
A90: Alvenaria de Vedação | B90: 103318 | C90: ALVENARIA DE VEDAÇÃO DE BLOCOS VAZADOS DE CONCRETO DE 14X19X39 CM (ESPESSURA 14 CM) E ARGAMASSA DE ASSENTAMENTO COM PREPARO EM BETONEIRA. AF_12/2021 | D90: M2 | E90: 93.4 | F90: 0.0044
A91: Alvenaria de Vedação | B91: 103319 | C91: ALVENARIA DE VEDAÇÃO DE BLOCOS VAZADOS DE CONCRETO DE 14X19X39 CM (ESPESSURA 14 CM) E ARGAMASSA DE ASSENTAMENTO COM PREPARO MANUAL. AF_12/2021 | D91: M2 | E91: 94.87 | F91: 0.0043
A92: Alvenaria de Vedação | B92: 103320 | C92: ALVENARIA DE VEDAÇÃO DE BLOCOS VAZADOS DE CONCRETO DE 19X19X39 CM (ESPESSURA 19 CM) E ARGAMASSA DE ASSENTAMENTO COM PREPARO EM BETONEIRA. AF_12/2021 | D92: M2 | E92: 112.45 | F92: 0.0036
A93: Alvenaria de Vedação | B93: 103321 | C93: ALVENARIA DE VEDAÇÃO DE BLOCOS VAZADOS DE CONCRETO DE 19X19X39 CM (ESPESSURA 19 CM) E ARGAMASSA DE ASSENTAMENTO COM PREPARO MANUAL. AF_12/2021 | D93: M2 | E93: 114.29 | F93: 0.0036
A94: Alvenaria de Vedação | B94: 103316 | C94: ALVENARIA DE VEDAÇÃO DE BLOCOS VAZADOS DE CONCRETO DE 9X19X39 CM (ESPESSURA 9 CM) E ARGAMASSA DE ASSENTAMENTO COM PREPARO EM BETONEIRA. AF_12/2021 | D94: M2 | E94: 72.03 | F94: 0.0028
A95: Alvenaria de Vedação | B95: 103317 | C95: ALVENARIA DE VEDAÇÃO DE BLOCOS VAZADOS DE CONCRETO DE 9X19X39 CM (ESPESSURA 9 CM) E ARGAMASSA DE ASSENTAMENTO COM PREPARO MANUAL. AF_12/2021 | D95: M2 | E95: 73.28 | F95: 0.0027
A96: Alvenarias Diversas | B96: 101166 | C96: ALVENARIA DE EMBASAMENTO COM BLOCO ESTRUTURAL DE CERÂMICA, DE 14X19X29CM E ARGAMASSA DE ASSENTAMENTO COM PREPARO EM BETONEIRA. AF_05/2020 | D96: M3 | E96: 678.73 | F96: 0
A97: Alvenarias Diversas | B97: 101165 | C97: ALVENARIA DE EMBASAMENTO COM BLOCO ESTRUTURAL DE CONCRETO, DE 14X19X29CM E ARGAMASSA DE ASSENTAMENTO COM PREPARO EM BETONEIRA. AF_05/2020 | D97: M3 | E97: 926.32 | F97: 0
A98: Alvenarias Diversas | B98: 101163 | C98: ALVENARIA DE VEDAÇÃO COM BLOCO DE VIDRO VAZADO, TIPO VENEZIANA, DE 6X20X20CM E ARGAMASSA DE ASSENTAMENTO COM PREPARO EM BETONEIRA. AF_05/2020 | D98: M2 | E98: 814.18 | F98: 0
A99: Alvenarias Diversas | B99: 101164 | C99: ALVENARIA DE VEDAÇÃO COM BLOCO DE VIDRO, TIPO CANELADO, DE 8X19X19CM E ARGAMASSA DE ASSENTAMENTO COM PREPARO EM BETONEIRA. AF_05/2020 | D99: M2 | E99: 825.76 | F99: 0
A100: Alvenarias Diversas | B100: 101162 | C100: ALVENARIA DE VEDAÇÃO COM ELEMENTO VAZADO DE CERÂMICA (COBOGÓ) DE 7X20X20CM E ARGAMASSA DE ASSENTAMENTO COM PREPARO EM BETONEIRA. AF_05/2020 | D100: M2 | E100: 159.15 | F100: 0
A101: Alvenarias Diversas | B101: 101161 | C101: ALVENARIA DE VEDAÇÃO COM ELEMENTO VAZADO DE CONCRETO (COBOGÓ) DE 7X50X50CM E ARGAMASSA DE ASSENTAMENTO COM PREPARO EM BETONEIRA. AF_05/2020 | D101: M2 | E101: 214.35 | F101: 0
A102: Alvenarias Diversas | B102: 101160 | C102: ALVENARIA DE VEDAÇÃO DE BLOCO DE SOLO-CIMENTO (TIJOLO ECOLÓGICO) DE 7X15X30CM (ESPESSURA 15CM). AF_05/2020 | D102: M2 | E102: 0
A103: Alvenarias Diversas | B103: 101159 | C103: ALVENARIA DE VEDAÇÃO DE BLOCOS CERÂMICOS MACIÇOS DE 5X10X20CM (ESPESSURA 10CM) E ARGAMASSA DE ASSENTAMENTO COM PREPARO EM BETONEIRA. AF_05/2020 | D103: M2 | E103: 136.96 | F103: 0
A104: Alvenarias Diversas | B104: 101154 | C104: ALVENARIA DE VEDAÇÃO DE BLOCOS DE CONCRETO CELULAR DE 10X30X60CM (ESPESSURA 10CM) E ARGAMASSA DE ASSENTAMENTO COM PREPARO EM BETONEIRA. AF_05/2020 | D104: M2 | E104: 128 | F104: 0.688
A105: Alvenarias Diversas | B105: 101155 | C105: ALVENARIA DE VEDAÇÃO DE BLOCOS DE CONCRETO CELULAR DE 15X30X60CM (ESPESSURA 15CM) E ARGAMASSA DE ASSENTAMENTO COM PREPARO EM BETONEIRA. AF_05/2020 | D105: M2 | E105: 180.1 | F105: 0.7182
A106: Alvenarias Diversas | B106: 101156 | C106: ALVENARIA DE VEDAÇÃO DE BLOCOS DE CONCRETO CELULAR DE 20X30X60CM (ESPESSURA 20CM) E ARGAMASSA DE ASSENTAMENTO COM PREPARO EM BETONEIRA. AF_05/2020 | D106: M2 | E106: 264.74 | F106: 0.7484
A107: Alvenarias Diversas | B107: 101158 | C107: ALVENARIA DE VEDAÇÃO DE BLOCOS DE GESSO DE 10X50X66CM (ESPESSURA 10CM). AF_05/2020 | D107: M2 | E107: 94.61 | F107: 0
A108: Alvenarias Diversas | B108: 101157 | C108: ALVENARIA DE VEDAÇÃO DE BLOCOS DE GESSO DE 7X50X66CM (ESPESSURA 7CM). AF_05/2020 | D108: M2 | E108: 71.91 | F108: 0
A109: Argamassas | B109: 87382 | C109: ARGAMASSA INDUSTRIALIZADA MULTIUSO PARA REVESTIMENTOS E ASSENTAMENTO DA ALVENARIA, PREPARO COM MISTURADOR DE EIXO HORIZONTAL DE 160 KG. AF_08/2019 | D109: M3 | E109: 1946.08 | F109: 0
A110: Argamassas | B110: 87383 | C110: ARGAMASSA INDUSTRIALIZADA MULTIUSO PARA REVESTIMENTOS E ASSENTAMENTO DA ALVENARIA, PREPARO COM MISTURADOR DE EIXO HORIZONTAL DE 300 KG. AF_08/2019 | D110: M3 | E110: 1947.3 | F110: 0
A111: Argamassas | B111: 87384 | C111: ARGAMASSA INDUSTRIALIZADA MULTIUSO PARA REVESTIMENTOS E ASSENTAMENTO DA ALVENARIA, PREPARO COM MISTURADOR DE EIXO HORIZONTAL DE 600 KG. AF_08/2019 | D111: M3 | E111: 1945.44 | F111: 0
A112: Argamassas | B112: 87398 | C112: ARGAMASSA INDUSTRIALIZADA MULTIUSO PARA REVESTIMENTOS E ASSENTAMENTO DA ALVENARIA, PREPARO MANUAL. AF_08/2019 | D112: M3 | E112: 2177.69 | F112: 0
A113: Argamassas | B113: 87395 | C113: ARGAMASSA INDUSTRIALIZADA PARA CHAPISCO COLANTE, PREPARO COM MISTURADOR DE EIXO HORIZONTAL DE 160 KG. AF_08/2019 | D113: M3 | E113: 3829.35 | F113: 0
A114: Argamassas | B114: 87396 | C114: ARGAMASSA INDUSTRIALIZADA PARA CHAPISCO COLANTE, PREPARO COM MISTURADOR DE EIXO HORIZONTAL DE 300 KG. AF_08/2019 | D114: M3 | E114: 3859.28 | F114: 0
A115: Argamassas | B115: 87397 | C115: ARGAMASSA INDUSTRIALIZADA PARA CHAPISCO COLANTE, PREPARO COM MISTURADOR DE EIXO HORIZONTAL DE 600 KG. AF_08/2019 | D115: M3 | E115: 3892.3 | F115: 0
A116: Argamassas | B116: 87402 | C116: ARGAMASSA INDUSTRIALIZADA PARA CHAPISCO COLANTE, PREPARO MANUAL. AF_08/2019 | D116: M3 | E116: 4127.4 | F116: 0
A117: Argamassas | B117: 87391 | C117: ARGAMASSA INDUSTRIALIZADA PARA CHAPISCO ROLADO, PREPARO COM MISTURADOR DE EIXO HORIZONTAL DE 160 KG. AF_08/2019 | D117: M3 | E117: 6077.56 | F117: 0
A118: Argamassas | B118: 87393 | C118: ARGAMASSA INDUSTRIALIZADA PARA CHAPISCO ROLADO, PREPARO COM MISTURADOR DE EIXO HORIZONTAL DE 300 KG. AF_08/2019 | D118: M3 | E118: 6137.7 | F118: 0
A119: Argamassas | B119: 87394 | C119: ARGAMASSA INDUSTRIALIZADA PARA CHAPISCO ROLADO, PREPARO COM MISTURADOR DE EIXO HORIZONTAL DE 600 KG. AF_08/2019 | D119: M3 | E119: 6199.56 | F119: 0
A120: Argamassas | B120: 87401 | C120: ARGAMASSA INDUSTRIALIZADA PARA CHAPISCO ROLADO, PREPARO MANUAL. AF_08/2019 | D120: M3 | E120: 6421.65 | F120: 0
A121: Argamassas | B121: 87407 | C121: ARGAMASSA INDUSTRIALIZADA PARA REVESTIMENTOS, MISTURA E PROJEÇÃO DE 1,5 M³/H DE ARGAMASSA. AF_08/2019 | D121: M3 | E121: 1983.66 | F121: 0
A122: Argamassas | B122: 87408 | C122: ARGAMASSA INDUSTRIALIZADA PARA REVESTIMENTOS, MISTURA E PROJEÇÃO DE 2 M³/H DE ARGAMASSA. AF_08/2019 | D122: M3 | E122: 1975.81 | F122: 0
A123: Argamassas | B123: 87404 | C123: ARGAMASSA PARA REVESTIMENTO DECORATIVO MONOCAMADA (MONOCAPA), MISTURA E PROJEÇÃO DE 1,5 M3/H DE ARGAMASSA. AF_08/2019 | D123: M3 | E123: 5675.51 | F123: 0
A124: Argamassas | B124: 87405 | C124: ARGAMASSA PARA REVESTIMENTO DECORATIVO MONOCAMADA (MONOCAPA), MISTURA E PROJEÇÃO DE 2 M3/H DE ARGAMASSA. AF_08/2019 | D124: M3 | E124: 5697.16 | F124: 0
A125: Argamassas | B125: 87388 | C125: ARGAMASSA PARA REVESTIMENTO DECORATIVO MONOCAMADA (MONOCAPA), PREPARO COM MISTURADOR DE EIXO HORIZONTAL DE 160 KG. AF_08/2019 | D125: M3 | E125: 5474.71 | F125: 0
A126: Argamassas | B126: 87389 | C126: ARGAMASSA PARA REVESTIMENTO DECORATIVO MONOCAMADA (MONOCAPA), PREPARO COM MISTURADOR DE EIXO HORIZONTAL DE 300 KG. AF_08/2019 | D126: M3 | E126: 5501.37 | F126: 0
A127: Argamassas | B127: 87390 | C127: ARGAMASSA PARA REVESTIMENTO DECORATIVO MONOCAMADA (MONOCAPA), PREPARO COM MISTURADOR DE EIXO HORIZONTAL DE 600 KG. AF_08/2019 | D127: M3 | E127: 5535.77 | F127: 0
A128: Argamassas | B128: 87385 | C128: ARGAMASSA PRONTA PARA CONTRAPISO, PREPARO COM MISTURADOR DE EIXO HORIZONTAL DE 160 KG. AF_08/2019 | D128: M3 | E128: 2268.1 | F128: 0
A129: Argamassas | B129: 87386 | C129: ARGAMASSA PRONTA PARA CONTRAPISO, PREPARO COM MISTURADOR DE EIXO HORIZONTAL DE 300 KG. AF_08/2019 | D129: M3 | E129: 2265.83 | F129: 0
A130: Argamassas | B130: 87387 | C130: ARGAMASSA PRONTA PARA CONTRAPISO, PREPARO COM MISTURADOR DE EIXO HORIZONTAL DE 600 KG. AF_08/2019 | D130: M3 | E130: 2267.19 | F130: 0
A131: Argamassas | B131: 87399 | C131: ARGAMASSA PRONTA PARA CONTRAPISO, PREPARO MANUAL. AF_08/2019 | D131: M3 | E131: 2506.46 | F131: 0
A132: Argamassas | B132: 88627 | C132: ARGAMASSA TRAÇO 1:0,5:4,5 (EM VOLUME DE CIMENTO, CAL E AREIA MÉDIA ÚMIDA) PARA ASSENTAMENTO DE ALVENARIA, PREPARO MANUAL. AF_08/2019 | D132: M3 | E132: 661.94 | F132: 0
A133: Argamassas | B133: 100463 | C133: ARGAMASSA TRAÇO 1:0,5:4,5 (EM VOLUME DE CIMENTO, CAL E AREIA MÉDIA ÚMIDA), PREPARO MECÂNICO COM BETONEIRA 250 L. AF_08/2019 | D133: M3 | E133: 0
A134: Argamassas | B134: 88626 | C134: ARGAMASSA TRAÇO 1:0,5:4,5 (EM VOLUME DE CIMENTO, CAL E AREIA MÉDIA ÚMIDA), PREPARO MECÂNICO COM BETONEIRA 400 L. AF_08/2019 | D134: M3 | E134: 547.85 | F134: 0
A135: Argamassas | B135: 100488 | C135: ARGAMASSA TRAÇO 1:0,5:4,5 (EM VOLUME DE CIMENTO, CAL E AREIA MÉDIA ÚMIDA), PREPARO MECÂNICO COM BETONEIRA 600 L. AF_08/2019 | D135: M3 | E135: 544.39 | F135: 0
A136: Argamassas | B136: 100464 | C136: ARGAMASSA TRAÇO 1:0,5:4,5 (EM VOLUME DE CIMENTO, CAL E AREIA MÉDIA ÚMIDA), PREPARO MECÂNICO COM MISTURADOR DE EIXO HORIZONTAL DE 160 KG. AF_08/2019 | D136: M3 | E136: 567.18 | F136: 0
A137: Argamassas | B137: 100465 | C137: ARGAMASSA TRAÇO 1:0,5:4,5 (EM VOLUME DE CIMENTO, CAL E AREIA MÉDIA ÚMIDA), PREPARO MECÂNICO COM MISTURADOR DE EIXO HORIZONTAL DE 300 KG. AF_08/2019 | D137: M3 | E137: 536.25 | F137: 0
A138: Argamassas | B138: 100466 | C138: ARGAMASSA TRAÇO 1:0,5:4,5 (EM VOLUME DE CIMENTO, CAL E AREIA MÉDIA ÚMIDA), PREPARO MECÂNICO COM MISTURADOR DE EIXO HORIZONTAL DE 600 KG. AF_08/2019 | D138: M3 | E138: 522.99 | F138: 0
A139: Argamassas | B139: 87368 | C139: ARGAMASSA TRAÇO 1:1,5:7,5 (EM VOLUME DE CIMENTO, CAL E AREIA MÉDIA ÚMIDA) PARA EMBOÇO/MASSA ÚNICA/ASSENTAMENTO DE ALVENARIA DE VEDAÇÃO, PREPARO MANUAL. AF_08/2019 | D139: M3 | E139: 680.77 | F139: 0
A140: Argamassas | B140: 100450 | C140: ARGAMASSA TRAÇO 1:1,5:7,5 (EM VOLUME DE CIMENTO, CAL E AREIA MÉDIA ÚMIDA) PARA EMBOÇO/MASSA ÚNICA/ASSENTAMENTO DE ALVENARIA DE VEDAÇÃO, PREPARO MECÂNICO COM BETONEIRA 250 L. AF_08/2019 | D140: M3 | E140: 0
A141: Argamassas | B141: 87289 | C141: ARGAMASSA TRAÇO 1:1,5:7,5 (EM VOLUME DE CIMENTO, CAL E AREIA MÉDIA ÚMIDA) PARA EMBOÇO/MASSA ÚNICA/ASSENTAMENTO DE ALVENARIA DE VEDAÇÃO, PREPARO MECÂNICO COM BETONEIRA 400 L. AF_08/2019 | D141: M3 | E141: 538.78 | F141: 0
A142: Argamassas | B142: 87290 | C142: ARGAMASSA TRAÇO 1:1,5:7,5 (EM VOLUME DE CIMENTO, CAL E AREIA MÉDIA ÚMIDA) PARA EMBOÇO/MASSA ÚNICA/ASSENTAMENTO DE ALVENARIA DE VEDAÇÃO, PREPARO MECÂNICO COM BETONEIRA 600 L. AF_08/2019 | D142: M3 | E142: 534.33 | F142: 0
A143: Argamassas | B143: 87333 | C143: ARGAMASSA TRAÇO 1:1,5:7,5 (EM VOLUME DE CIMENTO, CAL E AREIA MÉDIA ÚMIDA) PARA EMBOÇO/MASSA ÚNICA/ASSENTAMENTO DE ALVENARIA DE VEDAÇÃO, PREPARO MECÂNICO COM MISTURADOR DE EIXO HORIZONTAL DE 300 KG. AF_08/2019 | D143: M3 | E143: 541.09 | F143: 0
A144: Argamassas | B144: 87334 | C144: ARGAMASSA TRAÇO 1:1,5:7,5 (EM VOLUME DE CIMENTO, CAL E AREIA MÉDIA ÚMIDA) PARA EMBOÇO/MASSA ÚNICA/ASSENTAMENTO DE ALVENARIA DE VEDAÇÃO, PREPARO MECÂNICO COM MISTURADOR DE EIXO HORIZONTAL DE 600 KG. AF_08/2019 | D144: M3 | E144: 512.74 | F144: 0
A145: Argamassas | B145: 105515 | C145: ARGAMASSA TRAÇO 1:1,93 (EM VOLUME DE CIMENTO E AREIA MÉDIA ÚMIDA), FCK 20MPA, PREPARO MECÂNICO COM MISTURADOR DUPLO HORIZONTAL DE ALTA TURBULÊNCIA. AF_03/2020 | D145: M3 | E145: 842.44 | F145: 0
A146: Argamassas | B146: 87367 | C146: ARGAMASSA TRAÇO 1:1:6 (EM VOLUME DE CIMENTO, CAL E AREIA MÉDIA ÚMIDA) PARA EMBOÇO/MASSA ÚNICA/ASSENTAMENTO DE ALVENARIA DE VEDAÇÃO, PREPARO MANUAL. AF_08/2019 | D146: M3 | E146: 698.54 | F146: 0
A147: Argamassas | B147: 100449 | C147: ARGAMASSA TRAÇO 1:1:6 (EM VOLUME DE CIMENTO, CAL E AREIA MÉDIA ÚMIDA) PARA EMBOÇO/MASSA ÚNICA/ASSENTAMENTO DE ALVENARIA DE VEDAÇÃO, PREPARO MECÂNICO COM BETONEIRA 250 L. AF_08/2019 | D147: M3 | E147: 0
A148: Argamassas | B148: 87286 | C148: ARGAMASSA TRAÇO 1:1:6 (EM VOLUME DE CIMENTO, CAL E AREIA MÉDIA ÚMIDA) PARA EMBOÇO/MASSA ÚNICA/ASSENTAMENTO DE ALVENARIA DE VEDAÇÃO, PREPARO MECÂNICO COM BETONEIRA 400 L. AF_08/2019 | D148: M3 | E148: 559.78 | F148: 0
A149: Argamassas | B149: 87287 | C149: ARGAMASSA TRAÇO 1:1:6 (EM VOLUME DE CIMENTO, CAL E AREIA MÉDIA ÚMIDA) PARA EMBOÇO/MASSA ÚNICA/ASSENTAMENTO DE ALVENARIA DE VEDAÇÃO, PREPARO MECÂNICO COM BETONEIRA 600 L. AF_08/2019 | D149: M3 | E149: 549.17 | F149: 0
A150: Argamassas | B150: 87331 | C150: ARGAMASSA TRAÇO 1:1:6 (EM VOLUME DE CIMENTO, CAL E AREIA MÉDIA ÚMIDA) PARA EMBOÇO/MASSA ÚNICA/ASSENTAMENTO DE ALVENARIA DE VEDAÇÃO, PREPARO MECÂNICO COM MISTURADOR DE EIXO HORIZONTAL DE 300 KG. AF_08/2019 | D150: M3 | E150: 577.47 | F150: 0
A151: Argamassas | B151: 87332 | C151: ARGAMASSA TRAÇO 1:1:6 (EM VOLUME DE CIMENTO, CAL E AREIA MÉDIA ÚMIDA) PARA EMBOÇO/MASSA ÚNICA/ASSENTAMENTO DE ALVENARIA DE VEDAÇÃO, PREPARO MECÂNICO COM MISTURADOR DE EIXO HORIZONTAL DE 600 KG. AF_08/2019 | D151: M3 | E151: 529.46 | F151: 0
A152: Argamassas | B152: 87369 | C152: ARGAMASSA TRAÇO 1:2:8 (EM VOLUME DE CIMENTO, CAL E AREIA MÉDIA ÚMIDA) PARA EMBOÇO/MASSA ÚNICA/ASSENTAMENTO DE ALVENARIA DE VEDAÇÃO, PREPARO MANUAL. AF_08/2019 | D152: M3 | E152: 697.08 | F152: 0
A153: Argamassas | B153: 100451 | C153: ARGAMASSA TRAÇO 1:2:8 (EM VOLUME DE CIMENTO, CAL E AREIA MÉDIA ÚMIDA) PARA EMBOÇO/MASSA ÚNICA/ASSENTAMENTO DE ALVENARIA DE VEDAÇÃO, PREPARO MECÂNICO COM BETONEIRA 250 L. AF_08/2019 | D153: M3 | E153: 0
A154: Argamassas | B154: 87292 | C154: ARGAMASSA TRAÇO 1:2:8 (EM VOLUME DE CIMENTO, CAL E AREIA MÉDIA ÚMIDA) PARA EMBOÇO/MASSA ÚNICA/ASSENTAMENTO DE ALVENARIA DE VEDAÇÃO, PREPARO MECÂNICO COM BETONEIRA 400 L. AF_08/2019 | D154: M3 | E154: 553.21 | F154: 0
A155: Argamassas | B155: 87335 | C155: ARGAMASSA TRAÇO 1:2:8 (EM VOLUME DE CIMENTO, CAL E AREIA MÉDIA ÚMIDA) PARA EMBOÇO/MASSA ÚNICA/ASSENTAMENTO DE ALVENARIA DE VEDAÇÃO, PREPARO MECÂNICO COM MISTURADOR DE EIXO HORIZONTAL DE 300 KG. AF_08/2019 | D155: M3 | E155: 535.42 | F155: 0
A156: Argamassas | B156: 87336 | C156: ARGAMASSA TRAÇO 1:2:8 (EM VOLUME DE CIMENTO, CAL E AREIA MÉDIA ÚMIDA) PARA EMBOÇO/MASSA ÚNICA/ASSENTAMENTO DE ALVENARIA DE VEDAÇÃO, PREPARO MECÂNICO COM MISTURADOR DE EIXO HORIZONTAL DE 600 KG. AF_08/2019 | D156: M3 | E156: 530.89 | F156: 0
A157: Argamassas | B157: 87370 | C157: ARGAMASSA TRAÇO 1:2:9 (EM VOLUME DE CIMENTO, CAL E AREIA MÉDIA ÚMIDA) PARA EMBOÇO/MASSA ÚNICA/ASSENTAMENTO DE ALVENARIA DE VEDAÇÃO, PREPARO MANUAL. AF_08/2019 | D157: M3 | E157: 670.68 | F157: 0
A158: Argamassas | B158: 100452 | C158: ARGAMASSA TRAÇO 1:2:9 (EM VOLUME DE CIMENTO, CAL E AREIA MÉDIA ÚMIDA) PARA EMBOÇO/MASSA ÚNICA/ASSENTAMENTO DE ALVENARIA DE VEDAÇÃO, PREPARO MECÂNICO COM BETONEIRA 250 L. AF_08/2019 | D158: M3 | E158: 0
A159: Argamassas | B159: 88715 | C159: ARGAMASSA TRAÇO 1:2:9 (EM VOLUME DE CIMENTO, CAL E AREIA MÉDIA ÚMIDA) PARA EMBOÇO/MASSA ÚNICA/ASSENTAMENTO DE ALVENARIA DE VEDAÇÃO, PREPARO MECÂNICO COM BETONEIRA 400 L. AF_08/2019 | D159: M3 | E159: 521.03 | F159: 0
A160: Argamassas | B160: 87294 | C160: ARGAMASSA TRAÇO 1:2:9 (EM VOLUME DE CIMENTO, CAL E AREIA MÉDIA ÚMIDA) PARA EMBOÇO/MASSA ÚNICA/ASSENTAMENTO DE ALVENARIA DE VEDAÇÃO, PREPARO MECÂNICO COM BETONEIRA 600 L. AF_08/2019 | D160: M3 | E160: 528.47 | F160: 0
A161: Argamassas | B161: 87337 | C161: ARGAMASSA TRAÇO 1:2:9 (EM VOLUME DE CIMENTO, CAL E AREIA MÉDIA ÚMIDA) PARA EMBOÇO/MASSA ÚNICA/ASSENTAMENTO DE ALVENARIA DE VEDAÇÃO, PREPARO MECÂNICO COM MISTURADOR DE EIXO HORIZONTAL DE 300 KG. AF_08/2019 | D161: M3 | E161: 526.56 | F161: 0
A162: Argamassas | B162: 100487 | C162: ARGAMASSA TRAÇO 1:2:9 (EM VOLUME DE CIMENTO, CAL E AREIA MÉDIA ÚMIDA) PARA EMBOÇO/MASSA ÚNICA/ASSENTAMENTO DE ALVENARIA DE VEDAÇÃO, PREPARO MECÂNICO COM MISTURADOR DE EIXO HORIZONTAL DE 600 KG. AF_08/2019 | D162: M3 | E162: 501.14 | F162: 0
A163: Argamassas | B163: 87380 | C163: ARGAMASSA TRAÇO 1:3 (EM VOLUME DE CIMENTO E AREIA GROSSA ÚMIDA) COM ADIÇÃO DE EMULSÃO POLIMÉRICA PARA CHAPISCO ROLADO, PREPARO MANUAL. AF_08/2019 | D163: M3 | E163: 4093.86 | F163: 0
A164: Argamassas | B164: 100461 | C164: ARGAMASSA TRAÇO 1:3 (EM VOLUME DE CIMENTO E AREIA GROSSA ÚMIDA) COM ADIÇÃO DE EMULSÃO POLIMÉRICA PARA CHAPISCO ROLADO, PREPARO MECÂNICO COM BETONEIRA 250 L. AF_08/2019 | D164: M3 | E164: 0
A165: Argamassas | B165: 87322 | C165: ARGAMASSA TRAÇO 1:3 (EM VOLUME DE CIMENTO E AREIA GROSSA ÚMIDA) COM ADIÇÃO DE EMULSÃO POLIMÉRICA PARA CHAPISCO ROLADO, PREPARO MECÂNICO COM BETONEIRA 400 L. AF_08/2019 | D165: M3 | E165: 3988.36 | F165: 0
A166: Argamassas | B166: 87323 | C166: ARGAMASSA TRAÇO 1:3 (EM VOLUME DE CIMENTO E AREIA GROSSA ÚMIDA) COM ADIÇÃO DE EMULSÃO POLIMÉRICA PARA CHAPISCO ROLADO, PREPARO MECÂNICO COM BETONEIRA 600 L. AF_08/2019 | D166: M3 | E166: 3994.41 | F166: 0
A167: Argamassas | B167: 87360 | C167: ARGAMASSA TRAÇO 1:3 (EM VOLUME DE CIMENTO E AREIA GROSSA ÚMIDA) COM ADIÇÃO DE EMULSÃO POLIMÉRICA PARA CHAPISCO ROLADO, PREPARO MECÂNICO COM MISTURADOR DE EIXO HORIZONTAL DE 160 KG. AF_08/2019 | D167: M3 | E167: 3926.13 | F167: 0
A168: Argamassas | B168: 87361 | C168: ARGAMASSA TRAÇO 1:3 (EM VOLUME DE CIMENTO E AREIA GROSSA ÚMIDA) COM ADIÇÃO DE EMULSÃO POLIMÉRICA PARA CHAPISCO ROLADO, PREPARO MECÂNICO COM MISTURADOR DE EIXO HORIZONTAL DE 300 KG. AF_08/2019 | D168: M3 | E168: 3895.72 | F168: 0
A169: Argamassas | B169: 87362 | C169: ARGAMASSA TRAÇO 1:3 (EM VOLUME DE CIMENTO E AREIA GROSSA ÚMIDA) COM ADIÇÃO DE EMULSÃO POLIMÉRICA PARA CHAPISCO ROLADO, PREPARO MECÂNICO COM MISTURADOR DE EIXO HORIZONTAL DE 600 KG. AF_08/2019 | D169: M3 | E169: 3903.9 | F169: 0
A170: Argamassas | B170: 87377 | C170: ARGAMASSA TRAÇO 1:3 (EM VOLUME DE CIMENTO E AREIA GROSSA ÚMIDA) PARA CHAPISCO CONVENCIONAL, PREPARO MANUAL. AF_08/2019 | D170: M3 | E170: 677.04 | F170: 0
A171: Argamassas | B171: 100458 | C171: ARGAMASSA TRAÇO 1:3 (EM VOLUME DE CIMENTO E AREIA GROSSA ÚMIDA) PARA CHAPISCO CONVENCIONAL, PREPARO MECÂNICO COM BETONEIRA 250 L. AF_08/2019 | D171: M3 | E171: 0
A172: Argamassas | B172: 87313 | C172: ARGAMASSA TRAÇO 1:3 (EM VOLUME DE CIMENTO E AREIA GROSSA ÚMIDA) PARA CHAPISCO CONVENCIONAL, PREPARO MECÂNICO COM BETONEIRA 400 L. AF_08/2019 | D172: M3 | E172: 527.65 | F172: 0
A173: Argamassas | B173: 87314 | C173: ARGAMASSA TRAÇO 1:3 (EM VOLUME DE CIMENTO E AREIA GROSSA ÚMIDA) PARA CHAPISCO CONVENCIONAL, PREPARO MECÂNICO COM BETONEIRA 600 L. AF_08/2019 | D173: M3 | E173: 523.94 | F173: 0
A174: Argamassas | B174: 87352 | C174: ARGAMASSA TRAÇO 1:3 (EM VOLUME DE CIMENTO E AREIA GROSSA ÚMIDA) PARA CHAPISCO CONVENCIONAL, PREPARO MECÂNICO COM MISTURADOR DE EIXO HORIZONTAL DE 160 KG. AF_08/2019 | D174: M3 | E174: 593.04 | F174: 0
A175: Argamassas | B175: 87353 | C175: ARGAMASSA TRAÇO 1:3 (EM VOLUME DE CIMENTO E AREIA GROSSA ÚMIDA) PARA CHAPISCO CONVENCIONAL, PREPARO MECÂNICO COM MISTURADOR DE EIXO HORIZONTAL DE 300 KG. AF_08/2019 | D175: M3 | E175: 529.82 | F175: 0
A176: Argamassas | B176: 87354 | C176: ARGAMASSA TRAÇO 1:3 (EM VOLUME DE CIMENTO E AREIA GROSSA ÚMIDA) PARA CHAPISCO CONVENCIONAL, PREPARO MECÂNICO COM MISTURADOR DE EIXO HORIZONTAL DE 600 KG. AF_08/2019 | D176: M3 | E176: 504.1 | F176: 0
A177: Argamassas | B177: 100480 | C177: ARGAMASSA TRAÇO 1:3 (EM VOLUME DE CIMENTO E AREIA MÉDIA ÚMIDA) COM ADIÇÃO DE IMPERMEABILIZANTE, PREPARO MANUAL. AF_08/2019 | D177: M3 | E177: 890.1 | F177: 0
A178: Argamassas | B178: 100476 | C178: ARGAMASSA TRAÇO 1:3 (EM VOLUME DE CIMENTO E AREIA MÉDIA ÚMIDA) COM ADIÇÃO DE IMPERMEABILIZANTE, PREPARO MECÂNICO COM BETONEIRA 250 L. AF_08/2019 | D178: M3 | E178: 0
A179: Argamassas | B179: 100475 | C179: ARGAMASSA TRAÇO 1:3 (EM VOLUME DE CIMENTO E AREIA MÉDIA ÚMIDA) COM ADIÇÃO DE IMPERMEABILIZANTE, PREPARO MECÂNICO COM BETONEIRA 400 L. AF_08/2019 | D179: M3 | E179: 772.6 | F179: 0
A180: Argamassas | B180: 100491 | C180: ARGAMASSA TRAÇO 1:3 (EM VOLUME DE CIMENTO E AREIA MÉDIA ÚMIDA) COM ADIÇÃO DE IMPERMEABILIZANTE, PREPARO MECÂNICO COM BETONEIRA 600 L. AF_08/2019 | D180: M3 | E180: 775.66 | F180: 0
A181: Argamassas | B181: 100477 | C181: ARGAMASSA TRAÇO 1:3 (EM VOLUME DE CIMENTO E AREIA MÉDIA ÚMIDA) COM ADIÇÃO DE IMPERMEABILIZANTE, PREPARO MECÂNICO COM MISTURADOR DE EIXO HORIZONTAL DE 160 KG. AF_08/2019 | D181: M3 | E181: 818.5 | F181: 0
A182: Argamassas | B182: 100478 | C182: ARGAMASSA TRAÇO 1:3 (EM VOLUME DE CIMENTO E AREIA MÉDIA ÚMIDA) COM ADIÇÃO DE IMPERMEABILIZANTE, PREPARO MECÂNICO COM MISTURADOR DE EIXO HORIZONTAL DE 300 KG. AF_08/2019 | D182: M3 | E182: 758.03 | F182: 0
A183: Argamassas | B183: 100479 | C183: ARGAMASSA TRAÇO 1:3 (EM VOLUME DE CIMENTO E AREIA MÉDIA ÚMIDA) COM ADIÇÃO DE IMPERMEABILIZANTE, PREPARO MECÂNICO COM MISTURADOR DE EIXO HORIZONTAL DE 600 KG. AF_08/2019 | D183: M3 | E183: 748.09 | F183: 0
A184: Argamassas | B184: 87372 | C184: ARGAMASSA TRAÇO 1:3 (EM VOLUME DE CIMENTO E AREIA MÉDIA ÚMIDA) PARA CONTRAPISO, PREPARO MANUAL. AF_08/2019 | D184: M3 | E184: 835.86 | F184: 0
A185: Argamassas | B185: 100453 | C185: ARGAMASSA TRAÇO 1:3 (EM VOLUME DE CIMENTO E AREIA MÉDIA ÚMIDA) PARA CONTRAPISO, PREPARO MECÂNICO COM BETONEIRA 250 L. AF_08/2019 | D185: M3 | E185: 0
A186: Argamassas | B186: 87298 | C186: ARGAMASSA TRAÇO 1:3 (EM VOLUME DE CIMENTO E AREIA MÉDIA ÚMIDA) PARA CONTRAPISO, PREPARO MECÂNICO COM BETONEIRA 400 L. AF_08/2019 | D186: M3 | E186: 680.95 | F186: 0
A187: Argamassas | B187: 87299 | C187: ARGAMASSA TRAÇO 1:3 (EM VOLUME DE CIMENTO E AREIA MÉDIA ÚMIDA) PARA CONTRAPISO, PREPARO MECÂNICO COM BETONEIRA 600 L. AF_08/2019 | D187: M3 | E187: 436.07 | F187: 0
A188: Argamassas | B188: 87339 | C188: ARGAMASSA TRAÇO 1:3 (EM VOLUME DE CIMENTO E AREIA MÉDIA ÚMIDA) PARA CONTRAPISO, PREPARO MECÂNICO COM MISTURADOR DE EIXO HORIZONTAL DE 160 KG. AF_08/2019 | D188: M3 | E188: 778.25 | F188: 0
A189: Argamassas | B189: 87340 | C189: ARGAMASSA TRAÇO 1:3 (EM VOLUME DE CIMENTO E AREIA MÉDIA ÚMIDA) PARA CONTRAPISO, PREPARO MECÂNICO COM MISTURADOR DE EIXO HORIZONTAL DE 300 KG. AF_08/2019 | D189: M3 | E189: 676.66 | F189: 0
A190: Argamassas | B190: 87341 | C190: ARGAMASSA TRAÇO 1:3 (EM VOLUME DE CIMENTO E AREIA MÉDIA ÚMIDA) PARA CONTRAPISO, PREPARO MECÂNICO COM MISTURADOR DE EIXO HORIZONTAL DE 600 KG. AF_08/2019 | D190: M3 | E190: 653.34 | F190: 0
